Workbook

Sheet PROCESSUS TYPIQUE
B2: PROCESSUS DE COLLECTE DE DONNÉES ÉNERGÉTIQUES POUR LES BÂTIMENTS
B3: Affirmation | C3: Adéquate | D3: Place à amélioration
B4: 1. Les énergies les plus consommées sont l’électricité et le gaz naturel. | C4: x
B5: 2. Les factures d’énergie arrivent généralement aux ressources matérielles et sont ensuite acheminées aux ressources financières. | C5: x
B6: 3. La saisie et la compilation des données sont effectuées dans un fichier maison. | C6: x
B7: 4. La validation des données énergétique est effectuée sur une base mensuelle. | D7: x
B8: 5. Lorsqu’une nouvelle personne est en charge de la collecte des données énergétiques au sein d’un MO, sa formation consiste généralement en une transmission sommaire des informations. | C8: x
B9: 6. Parmi les MO ayant des stationnements intérieurs, ce ne sont que les stationnements intérieurs chauffés et éclairés qui sont inclus dans la valeur de superficie. | D9: x
B10: 7. Pour l’analyse des consommations, seule une analyse sommaire des consommations est effectuée.
B11: 8. Les températures ne sont pas normalisées en fonction des degrés jours de chauffe. | C11: x
B12: 9. Généralement, aucune estimation de données n’est effectuée. | C12: x
B13: 10. Les MO incluent généralement les consommations de tous les mois pour tous les bâtiments dans leur rapport annuel. | C13: x
B14: 11. Les documents contenant les données énergétiques, transmis à Transition énergétique Québec, doivent d’abord être révisés par une personne en autorité. | C14: x
B15: 12. Les données énergétiques font partie d’une publication publiée sous la gouverne du MO. | C15: x
B16: 13. Le fichier de saisie de Transition énergétique Québec est utilisé par une grande partie des MO. | C16: x
B18: Au printemps 2015, les MO ont été contactés afin de participer à une enquête au sujet de leur collecte de données énergétiques effectuée à l'automne de chaque année. Cette enquête contenait des questionnaires qui portaient sur les bâtiments et les véhicules. Le tableau précédent décrit sommairement le processus de cueillette de données énergétiques typique; il s'agit d'une synthèse illustrant ce que la majorité des répondants ont choisi comme réponse à chacune des questions. Notez qu'il s'agit du regroupement des réponses les plus courantes et non pas du processus d'un MO en particulier. Chaque affirmation affichée est évaluée afin de savoir si elle représente une étape adéquate dans le processus ou s'il pourrait y avoir place à l'amélioration.

Sheet 1. IDENTITÉ
B4: Système de suivi de la consommation énergétique dans les bâtiments
B5: Dernière mise à jour : 2020-09-02
B6: Version 23__03-05-2017
A7: Identité et coordonnées | B7: Veuillez inscrire l'information dans les cellules ombragées en bleu pâle.
A10: Ministère ou organisme : | B10: NOM DE L'ENTITÉ | C10: ← Veuillez utiliser la liste déroulante pour choisir le nom de votre organisme.
A11: Code du ministère ou de l'organisme : | B11: =IFERROR(VLOOKUP(B10,ListeMO!B3:C1000,2,FALSE),"") ->  | AI11: =COUNTIF(AM3:AM555,"OUI") -> 0
A12: Initiale ou acronyme :
A13: Catégorie :
A14: Nom de la personne responsable :
A15: Titre :
A16: Adresse :
A17: Ville :
A18: Téléphone :
A19: Courriel :
A20: Date :
A21: Année financière : | B21: avril-mars | C21: ← Veuillez utiliser la liste déroulante pour choisir la période de l'année financière
A22: Année de référence :
A23: Facteur de consommation variable : | B23: =0.35 -> 0.35
A24: Intensité énergétique minimale : | B24: =IF(B13=0,0,VLOOKUP(B13,A32:B37,2,FALSE)) -> 0
A25: Intensité énergétique maximale : | B25: =IF(B13=0,0,VLOOKUP(B13,A32:C37,3,FALSE)) -> 0
A27: Autre type d'énergie? | B27: 2
A29: Objectif du document :
A30: Recueillir l'information sur la consommation énergétique liée aux bâtiments de l'organisation et suivre son évolution.
B31: Marge d'erreur min. | C31: Marge d'erreur max.
B32: 0.14 | C32: 1.42 | E32: 1er janvier au 31 décembre
A33: Etablissements d'enseignement supérieur - Cégep | B33: 0.18 | C33: 1.84 | E33: 1er avril au 31 mars
A34: Etablissements d'enseignement supérieur - Université | B34: 0.31 | C34: 3.1 | E34: 1er mai au 30 avril
A35: Édifices à bureaux | B35: 0.22 | C35: 2.21 | E35: 1er juin au 31 mai
A36: Réseau de la santé et des services sociaux | B36: 0.5 | C36: 4.06 | E36: 1er juillet au 30 juin
A37: Autre | B37: 0.3 | C37: 2.97
A40: MESURES D'EFFICACITÉ ÉNERGÉTIQUE
A41: Si vous avez implanté des mesures d'efficacité énergétique ou de réduction de GES, veuillez l'indiquer dans le tableau ci-dessous.
A43: Année | B43: Type(s) de système(s) touché(s) | D43: Enveloppe de bâtiment | E43: Autres actions | F43: Commentaires | Q43: Identité | S43: Année | T43: 1 | U43: 2 | V43: 3 | W43: 4 | X43: 5 | Y43: 6 | Z43: 7 | AA43: 8 | AB43: 9
H44: FALSE | I44: FALSE | J44: FALSE | K44: FALSE | L44: FALSE | M44: FALSE | N44: FALSE | O44: FALSE | Q44: =$B$11 ->  | R44: =$B$10 -> NOM DE L'ENTITÉ | S44: =A44 -> 0 | T44: =IF(H44=FALSE,"",H44) ->  | U44: =IF(I44=FALSE,"",I44) ->  | AB44: =F44 -> 0
H45: FALSE | I45: FALSE | J45: FALSE | K45: FALSE | L45: FALSE | M45: FALSE | N45: FALSE | O45: FALSE | Q45: =$B$11 ->  | R45: =$B$10 -> NOM DE L'ENTITÉ | S45: =A45 -> 0 | T45: =IF(H45=FALSE,"",H45) ->  | U45: =IF(I45=FALSE,"",I45) ->  | V45: =IF(J45=FALSE,"",J45) ->  | W45: =IF(K45=FALSE,"",K45) ->  | X45: =IF(L45=FALSE,"",L45) ->  | Y45: =IF(M45=FALSE,"",M45) ->  | Z45: =IF(N45=FALSE,"",N45) ->  | AB45: =F45 -> 0
H46: FALSE | I46: FALSE | J46: FALSE | K46: FALSE | L46: FALSE | M46: FALSE | N46: FALSE | O46: FALSE | R46: NOM DE L'ENTITÉ | S46: 0 | AB46: 0
H47: FALSE | I47: FALSE | J47: FALSE | K47: FALSE | L47: FALSE | M47: FALSE | N47: FALSE | O47: FALSE | R47: NOM DE L'ENTITÉ | S47: 0 | AB47: 0
H48: FALSE | I48: FALSE | J48: FALSE | K48: FALSE | L48: FALSE | M48: FALSE | N48: FALSE | O48: FALSE | R48: NOM DE L'ENTITÉ | S48: 0 | AB48: 0
H49: FALSE | I49: FALSE | J49: FALSE | K49: FALSE | L49: FALSE | M49: FALSE | N49: FALSE | O49: FALSE | R49: NOM DE L'ENTITÉ | S49: 0 | AB49: 0
H50: FALSE | I50: FALSE | J50: FALSE | K50: FALSE | L50: FALSE | M50: FALSE | N50: FALSE | O50: FALSE | R50: NOM DE L'ENTITÉ | S50: 0 | AB50: 0
H51: FALSE | I51: FALSE | J51: FALSE | K51: FALSE | L51: FALSE | M51: FALSE | N51: FALSE | O51: FALSE | R51: NOM DE L'ENTITÉ | S51: 0 | AB51: 0
H52: FALSE | I52: FALSE | J52: FALSE | K52: FALSE | L52: FALSE | M52: FALSE | N52: FALSE | O52: FALSE | R52: NOM DE L'ENTITÉ | S52: 0 | AB52: 0
H53: FALSE | I53: FALSE | J53: FALSE | K53: FALSE | L53: FALSE | M53: FALSE | N53: FALSE | O53: FALSE | R53: NOM DE L'ENTITÉ | S53: 0 | AB53: 0
A56: 2009-2010
A57: 2010-2011
A58: 2011-2012
A59: 2012-2013
A60: 2013-2014
A61: 2014-2015
A62: 2015-2016
A63: 2016-2017
A64: 2018-2019
A65: 2019-2020
A66: 2020-2021
A67: 2021-2022
A68: 2022-2023
A69: 2023-2024
A70: 2024-2025
A71: 2025-2026
A72: 2026-2027
A73: 2027-2028
A74: 2028-2029
A75: 2029-2030
A76: 2009
A77: 2010
A78: 2011
A79: 2012
A80: 2013
A81: 2014
A82: 2015
A83: 2016
A84: 2017
A85: 2018
A86: 2019
A87: 2020
A88: 2021
A89: 2022
A90: 2023
A91: 2024
A92: 2025
A93: 2026
A94: 2027
A95: 2028
A96: 2029
A97: 2030

Sheet 2009-2010
C1: Système de suivi de la consommation énergétique dans les bâtiments
D2: Saisir les données énergétiques et les données sur les dépenses annuelles, avant taxes, dans les cellules ombragées en bleu pâle.
D4: Dans le cas où un projet ayant un effet sur la consommation énergétique a eu lieu au cours de l'année (rénovation, agrandissement, etc.),
D5: veuillez remplir la section « AJUSTEMENTS NON PÉRIODIQUES », ci-dessous.
A7: <-- Résumé | B7: Superficie | C7: Consommation électrique | E7: Gaz naturel | G7: Mazout n°2 | I7: Mazout n°6 | K7: Diesel (génératrice) | M7: Propane | O7: Résidus de bois (20 % d'humidité) | Q7: Résidus de bois (45 % d'humidité) | S7: Vapeur | U7: Eau refroidie | W7: Eau chaude | Y7: TOTAL | AA7: Intensité énergétique | AC7: GES | AE7: DJC
B8: [m²] | C8: [kWh] | D8: [$] | E8: [m³] | F8: [$] | G8: [l] | H8: [$] | I8: [l] | J8: [$] | K8: [l] | L8: [$] | M8: [l] | N8: [$] | O8: [1000 kg MG] | P8: [$] | Q8: [1000 kg MG] | R8: [$] | S8: [lbs] | T8: [$] | U8: [MBTU] | V8: [$] | W8: [MBTU] | X8: [$] | Y8: [GJ] | Z8: [$] | AA8: [GJ/m²] | AB8: [$/m²] | AC8: [t CO2 éq.] | AD8: [kg CO2 éq./m²] | AE8: [° C]
A9: =VALUE(CONCATENATE(LEFT(Annee_financiere,FIND("-",Annee_financiere)-1),"-",A22)) -> 2009-04-01 | Y9: =C9*kWh_Élect_to_GJ+E9*m3_GazNat_to_GJ+G9*L_Mazout2_to_GJ+I9*L_Mazout6_to_GJ+K9*L_Mazout2_to_GJ+M9*L_Propane_to_GJ+O9*kg_Bois8_to_GJ+Q9*kg_Bois35_to_GJ+S9*lbs_vapeur_to_GJ+U9*MBTU_eaurefroidie_to_GJ+W9*MBTU_eauchaude_to_GJ -> 0 | Z9: =D9+F9+H9+J9+N9+P9+R9+T9+V9+X9+L9 -> 0 | AA9: =IF(ISERROR(Y9/B9),"",Y9/B9) ->  | AB9: =IF(ISERROR(Z9/B9),"",Z9/B9) ->  | AC9: =(C9*kWh_Élect_to_kgGES+E9*IF(U_GNat="[m³]",m3_GazNat_to_kgGES,Conversion!$H$29)+G9*IF(U_Ma2="[l]",L_Mazout2_to_kgGES,Conversion!$H$31)+I9*IF(U_Ma6="[l]",L_Mazout6_to_kgGES,Conversion!$H$33)+K9*L_Mazout2_to_kgGES+M9*IF(U_Prop="[l]",L_Propane_to_kgGES,Conversion!$H$37)+O9*kg_Bois8_to_kgGES+Q9*kg_Bois35_to_kgGES+S9*lbs_vapeur_to_kgGES+U9*MBTU_eaurefroidie_to_kgGES+W9*MBTU_eauchaude_to_kgGES)/1000 -> 0 | AD9: =(IF(ISERROR(AC9/B9),0,(AC9/B9)))*1000 -> 0 | AE9: =INDEX(plage_DJ,MATCH(A9,plage_date),3) -> 313.8 | AF9: =SUM(AE9) -> 313.8 | AG9: 12
A10: =DATE(YEAR(A9),MONTH(A9)+1,DAY(A9)) -> 2009-05-01 | Y10: 0 | Z10: =D10+F10+H10+J10+N10+P10+R10+T10+V10+X10+L10 -> 0 | AA10: =IF(ISERROR(Y10/B10),"",Y10/B10) ->  | AB10: =IF(ISERROR(Z10/B10),"",Z10/B10) ->  | AC10: =(C10*kWh_Élect_to_kgGES+E10*IF(U_GNat="[m³]",m3_GazNat_to_kgGES,Conversion!$H$29)+G10*IF(U_Ma2="[l]",L_Mazout2_to_kgGES,Conversion!$H$31)+I10*IF(U_Ma6="[l]",L_Mazout6_to_kgGES,Conversion!$H$33)+K10*L_Mazout2_to_kgGES+M10*IF(U_Prop="[l]",L_Propane_to_kgGES,Conversion!$H$37)+O10*kg_Bois8_to_kgGES+Q10*kg_Bois35_to_kgGES+S10*lbs_vapeur_to_kgGES+U10*MBTU_eaurefroidie_to_kgGES+W10*MBTU_eauchaude_to_kgGES)/1000 -> 0 | AD10: =(IF(ISERROR(AC10/B10),0,(AC10/B10)))*1000 -> 0 | AE10: 165.8 | AF10: =SUM(AE9:AE10) -> 479.6 | AG10: 11
A11: =DATE(YEAR(A10),MONTH(A10)+1,DAY(A10)) -> 2009-06-01 | Y11: 0 | Z11: 0 | AC11: =(C11*kWh_Élect_to_kgGES+E11*IF(U_GNat="[m³]",m3_GazNat_to_kgGES,Conversion!$H$29)+G11*IF(U_Ma2="[l]",L_Mazout2_to_kgGES,Conversion!$H$31)+I11*IF(U_Ma6="[l]",L_Mazout6_to_kgGES,Conversion!$H$33)+K11*L_Mazout2_to_kgGES+M11*IF(U_Prop="[l]",L_Propane_to_kgGES,Conversion!$H$37)+O11*kg_Bois8_to_kgGES+Q11*kg_Bois35_to_kgGES+S11*lbs_vapeur_to_kgGES+U11*MBTU_eaurefroidie_to_kgGES+W11*MBTU_eauchaude_to_kgGES)/1000 -> 0 | AD11: 0 | AE11: 45.6 | AF11: =SUM(AE9:AE11) -> 525.2 | AG11: 10
A12: =DATE(YEAR(A11),MONTH(A11)+1,DAY(A11)) -> 2009-07-01 | Y12: 0 | Z12: 0 | AC12: =(C12*kWh_Élect_to_kgGES+E12*IF(U_GNat="[m³]",m3_GazNat_to_kgGES,Conversion!$H$29)+G12*IF(U_Ma2="[l]",L_Mazout2_to_kgGES,Conversion!$H$31)+I12*IF(U_Ma6="[l]",L_Mazout6_to_kgGES,Conversion!$H$33)+K12*L_Mazout2_to_kgGES+M12*IF(U_Prop="[l]",L_Propane_to_kgGES,Conversion!$H$37)+O12*kg_Bois8_to_kgGES+Q12*kg_Bois35_to_kgGES+S12*lbs_vapeur_to_kgGES+U12*MBTU_eaurefroidie_to_kgGES+W12*MBTU_eauchaude_to_kgGES)/1000 -> 0 | AD12: 0 | AE12: 7.8 | AF12: =SUM(AE9:AE12) -> 533 | AG12: 9
A13: 2009-08-01 | Y13: 0 | Z13: 0 | AC13: =(C13*kWh_Élect_to_kgGES+E13*IF(U_GNat="[m³]",m3_GazNat_to_kgGES,Conversion!$H$29)+G13*IF(U_Ma2="[l]",L_Mazout2_to_kgGES,Conversion!$H$31)+I13*IF(U_Ma6="[l]",L_Mazout6_to_kgGES,Conversion!$H$33)+K13*L_Mazout2_to_kgGES+M13*IF(U_Prop="[l]",L_Propane_to_kgGES,Conversion!$H$37)+O13*kg_Bois8_to_kgGES+Q13*kg_Bois35_to_kgGES+S13*lbs_vapeur_to_kgGES+U13*MBTU_eaurefroidie_to_kgGES+W13*MBTU_eauchaude_to_kgGES)/1000 -> 0 | AD13: 0 | AE13: 20.1 | AF13: =SUM(AE9:AE13) -> 553.1 | AG13: 8
A14: 2009-09-01 | Y14: 0 | Z14: 0 | AC14: =(C14*kWh_Élect_to_kgGES+E14*IF(U_GNat="[m³]",m3_GazNat_to_kgGES,Conversion!$H$29)+G14*IF(U_Ma2="[l]",L_Mazout2_to_kgGES,Conversion!$H$31)+I14*IF(U_Ma6="[l]",L_Mazout6_to_kgGES,Conversion!$H$33)+K14*L_Mazout2_to_kgGES+M14*IF(U_Prop="[l]",L_Propane_to_kgGES,Conversion!$H$37)+O14*kg_Bois8_to_kgGES+Q14*kg_Bois35_to_kgGES+S14*lbs_vapeur_to_kgGES+U14*MBTU_eaurefroidie_to_kgGES+W14*MBTU_eauchaude_to_kgGES)/1000 -> 0 | AD14: 0 | AE14: 90.6 | AF14: =SUM(AE9:AE14) -> 643.7 | AG14: 7
A15: 2009-10-01 | Y15: 0 | Z15: 0 | AC15: =(C15*kWh_Élect_to_kgGES+E15*IF(U_GNat="[m³]",m3_GazNat_to_kgGES,Conversion!$H$29)+G15*IF(U_Ma2="[l]",L_Mazout2_to_kgGES,Conversion!$H$31)+I15*IF(U_Ma6="[l]",L_Mazout6_to_kgGES,Conversion!$H$33)+K15*L_Mazout2_to_kgGES+M15*IF(U_Prop="[l]",L_Propane_to_kgGES,Conversion!$H$37)+O15*kg_Bois8_to_kgGES+Q15*kg_Bois35_to_kgGES+S15*lbs_vapeur_to_kgGES+U15*MBTU_eaurefroidie_to_kgGES+W15*MBTU_eauchaude_to_kgGES)/1000 -> 0 | AD15: 0 | AE15: 342.7 | AF15: =SUM(AE9:AE15) -> 986.4 | AG15: 6
A16: 2009-11-01 | Y16: 0 | Z16: 0 | AC16: =(C16*kWh_Élect_to_kgGES+E16*IF(U_GNat="[m³]",m3_GazNat_to_kgGES,Conversion!$H$29)+G16*IF(U_Ma2="[l]",L_Mazout2_to_kgGES,Conversion!$H$31)+I16*IF(U_Ma6="[l]",L_Mazout6_to_kgGES,Conversion!$H$33)+K16*L_Mazout2_to_kgGES+M16*IF(U_Prop="[l]",L_Propane_to_kgGES,Conversion!$H$37)+O16*kg_Bois8_to_kgGES+Q16*kg_Bois35_to_kgGES+S16*lbs_vapeur_to_kgGES+U16*MBTU_eaurefroidie_to_kgGES+W16*MBTU_eauchaude_to_kgGES)/1000 -> 0 | AD16: 0 | AE16: 407.3 | AF16: =SUM(AE9:AE16) -> 1393.7 | AG16: 5
A17: 2009-12-01 | Y17: 0 | Z17: 0 | AC17: =(C17*kWh_Élect_to_kgGES+E17*IF(U_GNat="[m³]",m3_GazNat_to_kgGES,Conversion!$H$29)+G17*IF(U_Ma2="[l]",L_Mazout2_to_kgGES,Conversion!$H$31)+I17*IF(U_Ma6="[l]",L_Mazout6_to_kgGES,Conversion!$H$33)+K17*L_Mazout2_to_kgGES+M17*IF(U_Prop="[l]",L_Propane_to_kgGES,Conversion!$H$37)+O17*kg_Bois8_to_kgGES+Q17*kg_Bois35_to_kgGES+S17*lbs_vapeur_to_kgGES+U17*MBTU_eaurefroidie_to_kgGES+W17*MBTU_eauchaude_to_kgGES)/1000 -> 0 | AD17: 0 | AE17: 724.6 | AF17: =SUM(AE9:AE17) -> 2118.3 | AG17: 4
A18: 2010-01-01 | Y18: 0 | Z18: 0 | AC18: =(C18*kWh_Élect_to_kgGES+E18*IF(U_GNat="[m³]",m3_GazNat_to_kgGES,Conversion!$H$29)+G18*IF(U_Ma2="[l]",L_Mazout2_to_kgGES,Conversion!$H$31)+I18*IF(U_Ma6="[l]",L_Mazout6_to_kgGES,Conversion!$H$33)+K18*L_Mazout2_to_kgGES+M18*IF(U_Prop="[l]",L_Propane_to_kgGES,Conversion!$H$37)+O18*kg_Bois8_to_kgGES+Q18*kg_Bois35_to_kgGES+S18*lbs_vapeur_to_kgGES+U18*MBTU_eaurefroidie_to_kgGES+W18*MBTU_eauchaude_to_kgGES)/1000 -> 0 | AD18: 0 | AE18: 756.3 | AF18: =SUM(AE9:AE18) -> 2874.6 | AG18: 3
A19: 2010-02-01 | Y19: 0 | Z19: 0 | AC19: =(C19*kWh_Élect_to_kgGES+E19*IF(U_GNat="[m³]",m3_GazNat_to_kgGES,Conversion!$H$29)+G19*IF(U_Ma2="[l]",L_Mazout2_to_kgGES,Conversion!$H$31)+I19*IF(U_Ma6="[l]",L_Mazout6_to_kgGES,Conversion!$H$33)+K19*L_Mazout2_to_kgGES+M19*IF(U_Prop="[l]",L_Propane_to_kgGES,Conversion!$H$37)+O19*kg_Bois8_to_kgGES+Q19*kg_Bois35_to_kgGES+S19*lbs_vapeur_to_kgGES+U19*MBTU_eaurefroidie_to_kgGES+W19*MBTU_eauchaude_to_kgGES)/1000 -> 0 | AD19: 0 | AE19: 636.3 | AF19: =SUM(AE9:AE19) -> 3510.9 | AG19: 2
A20: 2010-03-01 | Y20: 0 | Z20: 0 | AC20: =(C20*kWh_Élect_to_kgGES+E20*IF(U_GNat="[m³]",m3_GazNat_to_kgGES,Conversion!$H$29)+G20*IF(U_Ma2="[l]",L_Mazout2_to_kgGES,Conversion!$H$31)+I20*IF(U_Ma6="[l]",L_Mazout6_to_kgGES,Conversion!$H$33)+K20*L_Mazout2_to_kgGES+M20*IF(U_Prop="[l]",L_Propane_to_kgGES,Conversion!$H$37)+O20*kg_Bois8_to_kgGES+Q20*kg_Bois35_to_kgGES+S20*lbs_vapeur_to_kgGES+U20*MBTU_eaurefroidie_to_kgGES+W20*MBTU_eauchaude_to_kgGES)/1000 -> 0 | AD20: 0 | AE20: 456.9 | AF20: =SUM(AE9:AE20) -> 3967.8 | AG20: 1
A21: TOTAL/moyenne | B21: =IFERROR(AVERAGE(B9:B20),0) -> 0 | C21: =SUM(C9:C20) -> 0 | D21: 0 | E21: =SUM(E9:E20) -> 0 | F21: 0 | G21: 0 | H21: 0 | I21: 0 | J21: 0 | K21: 0 | L21: 0 | M21: 0 | N21: 0 | O21: 0 | P21: 0 | Q21: 0 | R21: 0 | S21: 0 | T21: 0 | U21: 0 | V21: 0 | W21: 0 | X21: 0 | Y21: 0 | Z21: =D21+F21+H21+J21+L21+N21+P21+R21+T21+V21+X21 -> 0 | AA21: =IF(ISERROR(Y21/B21),"",Y21/B21) ->  | AB21: =IF(ISERROR(Z21/B21),"",Z21/B21) ->  | AC21: =(C21*kWh_Élect_to_kgGES+E21*IF(U_GNat="[m³]",m3_GazNat_to_kgGES,Conversion!$H$29)+G21*IF(U_Ma2="[l]",L_Mazout2_to_kgGES,Conversion!$H$31)+I21*IF(U_Ma6="[l]",L_Mazout6_to_kgGES,Conversion!$H$33)+K21*L_Mazout2_to_kgGES+M21*IF(U_Prop="[l]",L_Propane_to_kgGES,Conversion!$H$37)+O21*kg_Bois8_to_kgGES+Q21*kg_Bois35_to_kgGES+S21*lbs_vapeur_to_kgGES+U21*MBTU_eaurefroidie_to_kgGES+W21*MBTU_eauchaude_to_kgGES)/1000 -> 0 | AD21: =(IF(ISERROR(AC21/B21),0,(AC21/B21)))*1000 -> 0 | AE21: =SUM(AE9:AE20) -> 3967.8
A22: 2009 | B22: Sup_09-10 | C22: Elec_kWh_09-10 | D22: Elec_CAD_09-10 | E22: GN_m³_09-10 | F22: GN_CAD_09-10 | G22: Ma2_l_09-10 | H22: Ma2_CAD_09-10 | I22: Ma6_l_09-10 | J22: Ma6_CAD_09-10 | M22: Prop_l_09-10 | N22: Prop_CAD_09-10 | O22: Bois20_1000kg_09-10 | P22: Bois20_CAD_09-10 | Q22: Bois45_1000kg_09-10 | R22: Bois45_CAD_09-10 | Y22: GJ_Tot_09-10 | Z22: CAD_Tot_09-10 | AA22: GJm²_09-10 | AB22: CAD/m²_09-10 | AC22: GES_ton_09-10 | AD22: GES_ton/m²_09-10 | AE22: DJC_tot_09-10
A23: Nombre de bâtiments en propriété ou en location, pour lesquels des factures d'énergie sont payées par l'organisation :
A25: ATTENTION, la saisie des consommations d'énergie comporte une erreur si la cellule AA21 est ombragée d'une couleur ! | AA25: =Lim_bas -> 0 | AB25: =Lim_haut -> 0
B27: Résumé des ajustements non périodique | C27: Impact pour l'année en cours [GJ] | D27: Impact cumulatif pour les années subséquentes [GJ] | AG27: 2 | AH27: 5 | AI27: 7 | AJ27: 12 | AK27: 17
B28: 2010-2011 | C28: =GJ_Ajust_NP_Cour_10_11 -> 0 | D28: =GJ_Ajust_NP_annuel_10_11 -> 0 | AC28: Source d'énergie - Unité de mesure | AG28: unité | AH28: Énergie brute2 par unité (MJ) | AI28: Gigajoules brutes [GJ]/unité | AJ28: GES [kg CO2]/unité | AK28: GES [kg CO2]/GJ
B29: 2011-2012 | C29: =GJ_Ajust_NP_Cour_11_12 -> 0 | D29: =GJ_Ajust_NP_annuel_11_12 -> 0 | AC29: Électricité | AG29: kWh | AH29: 3.6 | AI29: 0.0036 | AJ29: 0.00204 | AK29: 0.5666666667 | AM29: facteurs de conversion
B30: 2012-2013 | C30: =GJ_Ajust_NP_Cour_12_13 -> 0 | D30: =GJ_Ajust_NP_annuel_12_13 -> 0 | AC30: Gaz naturel | AD30: Gaz naturel - m3 | AG30: m³ | AH30: 37.89 | AI30: 0.03789 | AJ30: 1.889317 | AK30: 49.86320929 | AM30: m³ | AN30: à | AO30: millier de pi³ | AP30: 0.03531467
B31: 2013-2014 | C31: =GJ_Ajust_NP_Cour_13_14 -> 0 | D31: =GJ_Ajust_NP_annuel_13_14 -> 0 | AC31: Gaz naturel | AD31: Gaz naturel - Mille pi3 | AG31: millier de pi³ | AH31: 1072.925218 | AI31: 1.072925218 | AJ31: 53.49949469 | AK31: 1411.968717 | AM31: litre | AN31: à | AO31: gal imp | AP31: 0.2199692
B32: 2014-2015 | C32: =GJ_Ajust_NP_Cour_14_15 -> 0 | D32: =GJ_Ajust_NP_annuel_14_15 ->  | AC32: Mazout 2 léger | AD32: Mazout no 2 - Litre | AG32: L | AH32: 38.5 | AI32: 0.0385 | AJ32: 2.734736 | AK32: 71.0321039 | AM32: 1000 kg | AN32: à | AO32: 1000 lbs | AP32: 2.20462
B33: 2015-2016 | C33: =GJ_Ajust_NP_Cour_15_16 -> 0 | D33: =GJ_Ajust_NP_annuel_15_16 ->  | AC33: Mazout 2 léger | AD33: Mazout no 2 - Gallon (imp.) | AG33: gal imp | AH33: 175.0245034 | AI33: 0.0385 | AJ33: 2.734736 | AK33: 71.0321039
B34: 2016-2017 | C34: =GJ_Ajust_NP_Cour_16_17 -> 0 | D34: =GJ_Ajust_NP_annuel_16_17 -> 0 | AC34: Mazout 6 lourd | AD34: Mazout no 6 - Litre | AG34: L | AH34: 42.5 | AI34: 0.0425 | AJ34: 3.14636 | AK34: 74.032
B35: 2017-2018 | C35: =GJ_Ajust_NP_Cour_17_18 -> 0 | D35: =GJ_Ajust_NP_annuel_17_18 -> 0 | AC35: Mazout 6 lourd | AD35: Mazout no 6 - Gallon (imp.) | AG35: gal imp | AH35: 193.2088674 | AI35: 0.0425 | AJ35: 3.14636 | AK35: 74.032
B36: 2018-2019 | C36: =GJ_Ajust_NP_Cour_18_19 -> 0 | D36: =GJ_Ajust_NP_annuel_18_19 -> 0 | AC36: Propane | AD36: Gaz propane - Litre | AG36: L | AH36: 25.31 | AI36: 0.02531 | AJ36: 1.543984 | AK36: 61.00292375
B37: 2019-2020 | C37: =GJ_Ajust_NP_Cour_19_20 -> 0 | D37: =GJ_Ajust_NP_annuel_19_20 -> 0 | AC37: Propane | AD37: Gaz propane - Gallon (imp.) | AG37: gal imp | AH37: 115.0615632 | AI37: 0.02531 | AJ37: 1.543984 | AK37: 61.00292375
B38: 2020-2021 | C38: =GJ_Ajust_NP_Cour_20_21 -> 0 | D38: =GJ_Ajust_NP_annuel_20_21 -> 0 | AC38: Résidus de bois (20% d'humidité) | AD38: Résidus de bois (20% d'humidité) - 1000kg (MG) | AG38: kg (MG) | AH38: 15.1 | AI38: 0.0151 | AJ38: 0.02761913265 | AK38: 1.829081633
AC39: Résidus de bois (20% d'humidité) | AD39: Résidus de bois (20% d'humidité) - 1000lbs | AG39: 1000 lbs | AH39: 6.849252932 | AI39: 0.006849252932 | AJ39: 0.01252784274 | AK39: 0.8296584594
AC40: Résidus de bois (45% d'humidité) | AD40: Résidus de bois (45% d'humidité) - 1000kg (MG) | AG40: kg (MG) | AH40: 9.75 | AI40: 0.00975 | AJ40: 0.01783354592 | AK40: 1.829081633
AC41: Résidus de bois (45% d'humidité) | AD41: Résidus de bois (45% d'humidité) - 1000lbs | AG41: 1000 lbs | AH41: 4.422530867 | AI41: 0.004422530867 | AJ41: 0.008089169979 | AK41: 0.8296584594
AC42: Eau refroidie | AD42: Eau refroidie - MBTU | AG42: MBTU | AH42: 292.997363 | AI42: 0.292997363 | AJ42: 0 | AK42: 0
AC43: Eau chaude | AD43: Eau chaude - MBTU | AG43: MBTU | AH43: 292.997363 | AI43: 0.292997363 | AJ43: 0 | AK43: 0
AC44: Vapeur | AD44: Vapeur - Lbs | AG44: Lbs | AH44: 1.0543 | AI44: 0.0010543 | AJ44: 0.06571347694 | AK44: 62.32901161
AC47: références:
AC48: 1 | AD48: Annexe 13 du Rapport d'inventaire national du Canada 1990-2010 partie 3
AC49: 2 | AD49: Règlement sur la déclaration obligatoire de certaines émission de contaminants dans l'atmosphère, Loi sur la qualité de l'environnement, Q-2, a.2.2, 109.1 et 124.1, tableau 1-3 Facteurs d’émission selon le type de combustible
AD50: Utilisation des données pour usages industriels, ciment, secteur manufacturier et secteurs résidentiel, commercial, isntitutionnel, agricile et de la construction (évacuation de centrale électrique, autoconsommation ou gazoduc).
AD52: 41617
AD53: Benoît Légaré, Nadia Lalancette et Michel Fournier, on convient de d'utiliser la valeur calculée à la colonne 18
AD54: Ces facteurs sont les mêmes que ceux utilisés dans le fichier CompilationSommaireV5
AC55: 3 | AD55: Facteur de conversion normalisé pour le gaz naturel au Québec, par Gaz Métro
AC56: 4 | AD56: MELS- ES

Sheet 2010-2011
C1: Système de suivi de la consommation énergétique dans les bâtiments
D2: Saisir les données énergétiques et les données sur les dépenses annuelles, avant taxes, dans les cellules ombragées en bleu pâle.
D4: Dans le cas où un projet ayant un effet sur la consommation énergétique a eu lieu au cours de l'année (rénovation, agrandissement, etc.),
D5: veuillez remplir la section « AJUSTEMENTS NON PÉRIODIQUES », ci-dessous.
A7: <-- Résumé | B7: Superficie | C7: Consommation électrique | E7: Gaz naturel | G7: Mazout n°2 | I7: Mazout n°6 | K7: Diesel (génératrice) | M7: Propane | O7: Résidus de bois (20 % d'humidité) | Q7: Résidus de bois (45 % d'humidité) | S7: Vapeur | U7: Eau refroidie | W7: Eau chaude | Y7: TOTAL | AA7: Intensité énergétique | AC7: GES | AE7: DJC
B8: [m²] | C8: [kWh] | D8: [$] | E8: [m³] | F8: [$] | G8: [l] | H8: [$] | I8: [l] | J8: [$] | K8: [l] | L8: [$] | M8: [l] | N8: [$] | O8: [1000 kg MG] | P8: [$] | Q8: [1000 kg MG] | R8: [$] | S8: [lbs] | T8: [$] | U8: [MBTU] | V8: [$] | W8: [MBTU] | X8: [$] | Y8: [GJ] | Z8: [$] | AA8: [GJ/m²] | AB8: [$/m²] | AC8: [t CO2 éq.] | AD8: [kg CO2 éq./m²] | AE8: [° C]
A9: =VALUE(CONCATENATE(LEFT(Annee_financiere,FIND("-",Annee_financiere)-1),"-",A22)) -> 2010-04-01 | Y9: =C9*kWh_Élect_to_GJ+E9*m3_GazNat_to_GJ+G9*L_Mazout2_to_GJ+I9*L_Mazout6_to_GJ+K9*L_Mazout2_to_GJ+M9*L_Propane_to_GJ+O9*kg_Bois8_to_GJ+Q9*kg_Bois35_to_GJ+S9*lbs_vapeur_to_GJ+U9*MBTU_eaurefroidie_to_GJ+W9*MBTU_eauchaude_to_GJ -> 0 | Z9: =D9+F9+H9+J9+N9+P9+R9+T9+V9+X9+L9 -> 0 | AA9: =IF(ISERROR(Y9/B9),"",Y9/B9) ->  | AB9: =IF(ISERROR(Z9/B9),"",Z9/B9) ->  | AC9: =(C9*kWh_Élect_to_kgGES+E9*IF(U_GNat="[m³]",m3_GazNat_to_kgGES,Conversion!$H$29)+G9*IF(U_Ma2="[l]",L_Mazout2_to_kgGES,Conversion!$H$31)+I9*IF(U_Ma6="[l]",L_Mazout6_to_kgGES,Conversion!$H$33)+K9*L_Mazout2_to_kgGES+M9*IF(U_Prop="[l]",L_Propane_to_kgGES,Conversion!$H$37)+O9*kg_Bois8_to_kgGES+Q9*kg_Bois35_to_kgGES+S9*lbs_vapeur_to_kgGES+U9*MBTU_eaurefroidie_to_kgGES+W9*MBTU_eauchaude_to_kgGES)/1000 -> 0 | AD9: =(IF(ISERROR(AC9/B9),0,(AC9/B9)))*1000 -> 0 | AE9: =INDEX(plage_DJ,MATCH(A9,plage_date),3) -> 256.3 | AG9: 12
A10: =DATE(YEAR(A9),MONTH(A9)+1,DAY(A9)) -> 2010-05-01 | Y10: 0 | Z10: =D10+F10+H10+J10+N10+P10+R10+T10+V10+X10+L10 -> 0 | AA10: =IF(ISERROR(Y10/B10),"",Y10/B10) ->  | AB10: =IF(ISERROR(Z10/B10),"",Z10/B10) ->  | AC10: =(C10*kWh_Élect_to_kgGES+E10*IF(U_GNat="[m³]",m3_GazNat_to_kgGES,Conversion!$H$29)+G10*IF(U_Ma2="[l]",L_Mazout2_to_kgGES,Conversion!$H$31)+I10*IF(U_Ma6="[l]",L_Mazout6_to_kgGES,Conversion!$H$33)+K10*L_Mazout2_to_kgGES+M10*IF(U_Prop="[l]",L_Propane_to_kgGES,Conversion!$H$37)+O10*kg_Bois8_to_kgGES+Q10*kg_Bois35_to_kgGES+S10*lbs_vapeur_to_kgGES+U10*MBTU_eaurefroidie_to_kgGES+W10*MBTU_eauchaude_to_kgGES)/1000 -> 0 | AD10: =(IF(ISERROR(AC10/B10),0,(AC10/B10)))*1000 -> 0 | AE10: 107.9 | AF10: =SUM(AE9) -> 256.3 | AG10: 11
A11: =DATE(YEAR(A10),MONTH(A10)+1,DAY(A10)) -> 2010-06-01 | Y11: 0 | Z11: 0 | AC11: =(C11*kWh_Élect_to_kgGES+E11*IF(U_GNat="[m³]",m3_GazNat_to_kgGES,Conversion!$H$29)+G11*IF(U_Ma2="[l]",L_Mazout2_to_kgGES,Conversion!$H$31)+I11*IF(U_Ma6="[l]",L_Mazout6_to_kgGES,Conversion!$H$33)+K11*L_Mazout2_to_kgGES+M11*IF(U_Prop="[l]",L_Propane_to_kgGES,Conversion!$H$37)+O11*kg_Bois8_to_kgGES+Q11*kg_Bois35_to_kgGES+S11*lbs_vapeur_to_kgGES+U11*MBTU_eaurefroidie_to_kgGES+W11*MBTU_eauchaude_to_kgGES)/1000 -> 0 | AD11: 0 | AE11: 32.4 | AF11: =SUM(AE9:AE10) -> 364.2 | AG11: 10
A12: 2010-07-01 | Y12: 0 | Z12: 0 | AC12: =(C12*kWh_Élect_to_kgGES+E12*IF(U_GNat="[m³]",m3_GazNat_to_kgGES,Conversion!$H$29)+G12*IF(U_Ma2="[l]",L_Mazout2_to_kgGES,Conversion!$H$31)+I12*IF(U_Ma6="[l]",L_Mazout6_to_kgGES,Conversion!$H$33)+K12*L_Mazout2_to_kgGES+M12*IF(U_Prop="[l]",L_Propane_to_kgGES,Conversion!$H$37)+O12*kg_Bois8_to_kgGES+Q12*kg_Bois35_to_kgGES+S12*lbs_vapeur_to_kgGES+U12*MBTU_eaurefroidie_to_kgGES+W12*MBTU_eauchaude_to_kgGES)/1000 -> 0 | AD12: 0 | AE12: 4.9 | AF12: =SUM(AE9:AE11) -> 396.6 | AG12: 9
A13: 2010-08-01 | Y13: 0 | Z13: 0 | AC13: =(C13*kWh_Élect_to_kgGES+E13*IF(U_GNat="[m³]",m3_GazNat_to_kgGES,Conversion!$H$29)+G13*IF(U_Ma2="[l]",L_Mazout2_to_kgGES,Conversion!$H$31)+I13*IF(U_Ma6="[l]",L_Mazout6_to_kgGES,Conversion!$H$33)+K13*L_Mazout2_to_kgGES+M13*IF(U_Prop="[l]",L_Propane_to_kgGES,Conversion!$H$37)+O13*kg_Bois8_to_kgGES+Q13*kg_Bois35_to_kgGES+S13*lbs_vapeur_to_kgGES+U13*MBTU_eaurefroidie_to_kgGES+W13*MBTU_eauchaude_to_kgGES)/1000 -> 0 | AD13: 0 | AE13: 9.4 | AF13: =SUM(AE9:AE12) -> 401.5 | AG13: 8
A14: 2010-09-01 | Y14: 0 | Z14: 0 | AC14: =(C14*kWh_Élect_to_kgGES+E14*IF(U_GNat="[m³]",m3_GazNat_to_kgGES,Conversion!$H$29)+G14*IF(U_Ma2="[l]",L_Mazout2_to_kgGES,Conversion!$H$31)+I14*IF(U_Ma6="[l]",L_Mazout6_to_kgGES,Conversion!$H$33)+K14*L_Mazout2_to_kgGES+M14*IF(U_Prop="[l]",L_Propane_to_kgGES,Conversion!$H$37)+O14*kg_Bois8_to_kgGES+Q14*kg_Bois35_to_kgGES+S14*lbs_vapeur_to_kgGES+U14*MBTU_eaurefroidie_to_kgGES+W14*MBTU_eauchaude_to_kgGES)/1000 -> 0 | AD14: 0 | AE14: 84.4 | AF14: =SUM(AE9:AE13) -> 410.9 | AG14: 7
A15: 2010-10-01 | Y15: 0 | Z15: 0 | AC15: =(C15*kWh_Élect_to_kgGES+E15*IF(U_GNat="[m³]",m3_GazNat_to_kgGES,Conversion!$H$29)+G15*IF(U_Ma2="[l]",L_Mazout2_to_kgGES,Conversion!$H$31)+I15*IF(U_Ma6="[l]",L_Mazout6_to_kgGES,Conversion!$H$33)+K15*L_Mazout2_to_kgGES+M15*IF(U_Prop="[l]",L_Propane_to_kgGES,Conversion!$H$37)+O15*kg_Bois8_to_kgGES+Q15*kg_Bois35_to_kgGES+S15*lbs_vapeur_to_kgGES+U15*MBTU_eaurefroidie_to_kgGES+W15*MBTU_eauchaude_to_kgGES)/1000 -> 0 | AD15: 0 | AE15: 300.5 | AF15: =SUM(AE9:AE14) -> 495.3 | AG15: 6
A16: 2010-11-01 | Y16: 0 | Z16: 0 | AC16: =(C16*kWh_Élect_to_kgGES+E16*IF(U_GNat="[m³]",m3_GazNat_to_kgGES,Conversion!$H$29)+G16*IF(U_Ma2="[l]",L_Mazout2_to_kgGES,Conversion!$H$31)+I16*IF(U_Ma6="[l]",L_Mazout6_to_kgGES,Conversion!$H$33)+K16*L_Mazout2_to_kgGES+M16*IF(U_Prop="[l]",L_Propane_to_kgGES,Conversion!$H$37)+O16*kg_Bois8_to_kgGES+Q16*kg_Bois35_to_kgGES+S16*lbs_vapeur_to_kgGES+U16*MBTU_eaurefroidie_to_kgGES+W16*MBTU_eauchaude_to_kgGES)/1000 -> 0 | AD16: 0 | AE16: 466.6 | AF16: =SUM(AE9:AE15) -> 795.8 | AG16: 5
A17: 2010-12-01 | Y17: 0 | Z17: 0 | AC17: =(C17*kWh_Élect_to_kgGES+E17*IF(U_GNat="[m³]",m3_GazNat_to_kgGES,Conversion!$H$29)+G17*IF(U_Ma2="[l]",L_Mazout2_to_kgGES,Conversion!$H$31)+I17*IF(U_Ma6="[l]",L_Mazout6_to_kgGES,Conversion!$H$33)+K17*L_Mazout2_to_kgGES+M17*IF(U_Prop="[l]",L_Propane_to_kgGES,Conversion!$H$37)+O17*kg_Bois8_to_kgGES+Q17*kg_Bois35_to_kgGES+S17*lbs_vapeur_to_kgGES+U17*MBTU_eaurefroidie_to_kgGES+W17*MBTU_eauchaude_to_kgGES)/1000 -> 0 | AD17: 0 | AE17: 739 | AF17: =SUM(AE9:AE16) -> 1262.4 | AG17: 4
A18: 2011-01-01 | Y18: 0 | Z18: 0 | AC18: =(C18*kWh_Élect_to_kgGES+E18*IF(U_GNat="[m³]",m3_GazNat_to_kgGES,Conversion!$H$29)+G18*IF(U_Ma2="[l]",L_Mazout2_to_kgGES,Conversion!$H$31)+I18*IF(U_Ma6="[l]",L_Mazout6_to_kgGES,Conversion!$H$33)+K18*L_Mazout2_to_kgGES+M18*IF(U_Prop="[l]",L_Propane_to_kgGES,Conversion!$H$37)+O18*kg_Bois8_to_kgGES+Q18*kg_Bois35_to_kgGES+S18*lbs_vapeur_to_kgGES+U18*MBTU_eaurefroidie_to_kgGES+W18*MBTU_eauchaude_to_kgGES)/1000 -> 0 | AD18: 0 | AE18: 851.5 | AF18: =SUM(AE9:AE17) -> 2001.4 | AG18: 3
A19: 2011-02-01 | Y19: 0 | Z19: 0 | AC19: =(C19*kWh_Élect_to_kgGES+E19*IF(U_GNat="[m³]",m3_GazNat_to_kgGES,Conversion!$H$29)+G19*IF(U_Ma2="[l]",L_Mazout2_to_kgGES,Conversion!$H$31)+I19*IF(U_Ma6="[l]",L_Mazout6_to_kgGES,Conversion!$H$33)+K19*L_Mazout2_to_kgGES+M19*IF(U_Prop="[l]",L_Propane_to_kgGES,Conversion!$H$37)+O19*kg_Bois8_to_kgGES+Q19*kg_Bois35_to_kgGES+S19*lbs_vapeur_to_kgGES+U19*MBTU_eaurefroidie_to_kgGES+W19*MBTU_eauchaude_to_kgGES)/1000 -> 0 | AD19: 0 | AE19: 716.1 | AF19: =SUM(AE9:AE18) -> 2852.9 | AG19: 2
A20: 2011-03-01 | Y20: 0 | Z20: 0 | AC20: =(C20*kWh_Élect_to_kgGES+E20*IF(U_GNat="[m³]",m3_GazNat_to_kgGES,Conversion!$H$29)+G20*IF(U_Ma2="[l]",L_Mazout2_to_kgGES,Conversion!$H$31)+I20*IF(U_Ma6="[l]",L_Mazout6_to_kgGES,Conversion!$H$33)+K20*L_Mazout2_to_kgGES+M20*IF(U_Prop="[l]",L_Propane_to_kgGES,Conversion!$H$37)+O20*kg_Bois8_to_kgGES+Q20*kg_Bois35_to_kgGES+S20*lbs_vapeur_to_kgGES+U20*MBTU_eaurefroidie_to_kgGES+W20*MBTU_eauchaude_to_kgGES)/1000 -> 0 | AD20: 0 | AE20: 618.4 | AF20: =SUM(AE9:AE19) -> 3569 | AG20: 1
A21: TOTAL/moyenne | B21: =IFERROR(AVERAGE(B9:B20),0) -> 0 | C21: =SUM(C9:C20) -> 0 | D21: 0 | E21: 0 | F21: 0 | G21: 0 | H21: 0 | I21: 0 | J21: 0 | K21: 0 | L21: 0 | M21: 0 | N21: 0 | O21: 0 | P21: 0 | Q21: 0 | R21: 0 | S21: 0 | T21: 0 | U21: 0 | V21: 0 | W21: 0 | X21: 0 | Y21: 0 | Z21: =D21+F21+H21+J21+L21+N21+P21+R21+T21+V21+X21 -> 0 | AA21: =IF(ISERROR(Y21/B21),"",Y21/B21) ->  | AB21: =IF(ISERROR(Z21/B21),"",Z21/B21) ->  | AC21: =(C21*kWh_Élect_to_kgGES+E21*IF(U_GNat="[m³]",m3_GazNat_to_kgGES,Conversion!$H$29)+G21*IF(U_Ma2="[l]",L_Mazout2_to_kgGES,Conversion!$H$31)+I21*IF(U_Ma6="[l]",L_Mazout6_to_kgGES,Conversion!$H$33)+K21*L_Mazout2_to_kgGES+M21*IF(U_Prop="[l]",L_Propane_to_kgGES,Conversion!$H$37)+O21*kg_Bois8_to_kgGES+Q21*kg_Bois35_to_kgGES+S21*lbs_vapeur_to_kgGES+U21*MBTU_eaurefroidie_to_kgGES+W21*MBTU_eauchaude_to_kgGES)/1000 -> 0 | AD21: =(IF(ISERROR(AC21/B21),0,(AC21/B21)))*1000 -> 0 | AE21: =SUM(AE9:AE20) -> 4187.4 | AF21: =AF9/AF20 -> 0
A22: 2010 | B22: Sup_10-11 | C22: Elec_kWh_10-11 | D22: Elec_CAD_10-11 | E22: GN_m³_10-11 | F22: GN_CAD_10-11 | G22: Ma2_l_10-11 | H22: Ma2_CAD_10-11 | I22: Ma6_l_10-11 | J22: Ma6_CAD_10-11 | M22: Prop_l_10-11 | N22: Prop_CAD_10-11 | O22: Bois20_1000kg_10-11 | P22: Bois20_CAD_10-11 | Q22: Bois45_1000kg_10-11 | R22: Bois45_CAD_10-11 | Y22: GJ_Tot_10-11 | Z22: CAD_Tot_10-11 | AA22: GJm²_10-11 | AB22: CAD/m²_10-11 | AC22: GES_ton_10-11 | AD22: GES_ton/m²_10-11 | AE22: DJC_tot_10-11
A23: Nombre de bâtiments en propriété ou en location, pour lesquels des factures d'énergie sont payées par l'organisation :
N24: 167744.3847
A25: ATTENTION, la saisie des consommations d'énergie comporte une erreur si la cellule AA21 est ombragée d'une couleur ! | X25: titre? | AA25: =Lim_bas -> 0 | AB25: =Lim_haut -> 0
A27: AJUSTEMENTS NON PÉRIODIQUES | C27: Un ajustement correspond à une modification majeure des équipements ou du bâtiment. Il peut avoir un effet positif ou négatif sur la consommation énergétique : - un effet positif correspond à une augmentation majeure de la consommation, à la suite par exemple de l'ajout d'un étage de bâtiment ou de l'ajout de climatisation d'une aile d'un bâtiment; - un effet négatif correspond à une diminution majeure de la consommation. Cette diminution ne résulte pas forcément d’une économie provenant d’une optimisation du bâtiment. Elle peut, par exemple, être attribuable à la fermeture d’une partie d'un bâtiment qui devient alors inoccupé. Exemple : L'ajout de locaux implique une augmentation nette des charges de chauffage et d'éclairage de 500 kWh, telles qu’elles sont calculées par une firme d'ingénieurs. Dans ce fichier, le projet, qui sera nommé « Agrandissement », impliquera une augmentation de l'électricité de 500 kWh. Comme il s'agit de chauffage, l'ajustement y est sensible. La date d'implantation correspond au mois où l’effet sur la consommation a été effectif. Si l'ajustement a eu un effet sur plus qu'une source d'énergie, merci de rajouter une ligne pour chaque source touchée.
B29: Projet | C29: Tendance de l'effet | D29: Source d'énergie touchée | E29: Effet annuel sur la référence | G29: Ajustement sensible au chauffage | H29: Date d'implantation | I29: Effet pour l'année complète [GJ] | J29: Effet pour l'année en cours [GJ] | X29: Énergie de l'année de référence ajustée | Y29: =((1-Facteur_variable)+Facteur_variable*DJC_tot_10_11/DJC_tot_09_10)*GJ_Tot_09_10+GJ_Ajust_NP_Cour_10_11 -> 0 | Z29: GJTotRef_Ajust_10_11 | AB29: pourquoi utiliser GJ_Ajust_NP_Cour_11_12 qui représente une données partielle, plutôt que GJ_Ajust_NP_annuel_11_12
B30: Nom du projet n°1 | F30: =IF(D30="électrique","kWh",IF(D30="Gaz naturel","m³",IF(LEFT(D30,1)="R","1000 kg","l"))) -> l | I30: =IF(COUNTA(G30)=1,IF(C30="Réduction",-1,IF(C30="Augmentation",1,0))*E30*INDEX(Conversion!$A$26:$J$42,MATCH(D30,Conversion!$J$26:$J$42,0),9),0) -> 0 | J30: =IF(G30="Non",I30*L30,IF(G30="Oui",I30*K30,0)) -> 0 | K30: =(DJC_tot_10_11-INDEX($A$9:$AF$20,MATCH(H30,$A$9:$A$20,0),24))/DJC_tot_10_11 ->  | L30: =INDEX($A$9:$AG$20,MATCH(H30,$A$9:$A$20,0),25)/12 ->  | X30: Énergie de l'année de suivi | Y30: =GJ_Tot_10_11 -> 0 | AB30: -->Réponse de JD le 27 août 2012 : parce que pour l'année de suivi il faut prendre le courant et pour les années subséquentes il faut prendre l'annuel
B31: Nom du projet n°2 | F31: =IF(D31="électrique","kWh",IF(D31="Gaz naturel","m³",IF(LEFT(D31,1)="R","1000 kg","l"))) -> l | I31: =IF(COUNTA(G31)=1,IF(C31="Réduction",-1,IF(C31="Augmentation",1,0))*E31*INDEX(Conversion!$A$26:$J$42,MATCH(D31,Conversion!$J$26:$J$42,0),9),0) -> 0 | J31: 0 | X31: Superficie de l'année de référence | Y31: =Sup_09_10 -> 0
B32: Nom du projet n°3 | F32: l | I32: =IF(COUNTA(G32)=1,IF(C32="Réduction",-1,IF(C32="Augmentation",1,0))*E32*INDEX(Conversion!$A$26:$J$42,MATCH(D32,Conversion!$J$26:$J$42,0),9),0) -> 0 | J32: 0 | X32: Superficie de l'année de suivi | Y32: =Sup_10_11 -> 0
B33: Nom du projet n°4 | F33: l | I33: =IF(COUNTA(G33)=1,IF(C33="Réduction",-1,IF(C33="Augmentation",1,0))*E33*INDEX(Conversion!$A$26:$J$42,MATCH(D33,Conversion!$J$26:$J$42,0),9),0) -> 0 | J33: 0 | Y33: =GJTotRef_Ajust_10_11/Sup_09_10 ->  | Z33: GJTotRef_Ajust_m²_10_11
B34: Nom du projet n°5 | F34: l | I34: =IF(COUNTA(G34)=1,IF(C34="Réduction",-1,IF(C34="Augmentation",1,0))*E34*INDEX(Conversion!$A$26:$J$42,MATCH(D34,Conversion!$J$26:$J$42,0),9),0) -> 0 | J34: 0 | Y34: =J37 -> 0 | Z34: GJ_Ajust_NP_Cour_10_11
B35: Nom du projet n°6 | F35: l | I35: =IF(COUNTA(G35)=1,IF(C35="Réduction",-1,IF(C35="Augmentation",1,0))*E35*INDEX(Conversion!$A$26:$J$42,MATCH(D35,Conversion!$J$26:$J$42,0),9),0) -> 0 | J35: 0 | Y35: =I37 -> 0 | Z35: GJ_Ajust_NP_annuel_10_11
B36: Nom du projet n°7 | F36: l | I36: =IF(COUNTA(G36)=1,IF(C36="Réduction",-1,IF(C36="Augmentation",1,0))*E36*INDEX(Conversion!$A$26:$J$42,MATCH(D36,Conversion!$J$26:$J$42,0),9),0) -> 0 | J36: 0
B37: TOTAL | I37: =SUM(I30:I36) -> 0 | J37: =SUM(J30:J36) -> 0
C46: Réduction | D46: Électrique | G46: Oui
C47: Augmentation | D47: Gaz naturel | G47: Non
D48: Mazout n°2
D49: Mazout n°6
D50: Propane
D51: Résidus de bois (20 % d'humidité)
D52: Résidus de bois (45 % d'humidité)
D53: -
B55: Ne pas effacer, à blanchir et bloquer lors de la mise en route
B56: Gaz naturel | D56: Mazout n°2 | F56: Résidus de bois (20 % d'humidité)
B57: [m³] | C57: [mille pi³] | D57: [l] | E57: [Gallon imp] | F57: [1000 kg MG] | G57: [1000 lbs]

Sheet 2011-2012
C1: Système de suivi de la consommation énergétique dans les bâtiments
D2: Saisir les données énergétiques et les données sur les dépenses annuelles, avant taxes, dans les cellules ombragées en bleu pâle.
D4: Dans le cas où un projet ayant un effet sur la consommation énergétique a eu lieu au cours de l'année (rénovation, agrandissement, etc.),
D5: veuillez remplir la section « AJUSTEMENTS NON PÉRIODIQUES », ci-dessous.
A7: <-- Résumé | B7: Superficie | C7: Consommation électrique | E7: Gaz naturel | G7: Mazout n°2 | I7: Mazout n°6 | K7: Diesel (génératrice) | M7: Propane | O7: Résidus de bois (20 % d'humidité) | Q7: Résidus de bois (45 % d'humidité) | S7: Vapeur | U7: Eau refroidie | W7: Eau chaude | Y7: TOTAL | AA7: Intensité énergétique | AC7: GES | AE7: DJC
B8: [m²] | C8: [kWh] | D8: [$] | E8: [m³] | F8: [$] | G8: [l] | H8: [$] | I8: [l] | J8: [$] | K8: [l] | L8: [$] | M8: [l] | N8: [$] | O8: [1000 kg MG] | P8: [$] | Q8: [1000 kg MG] | R8: [$] | S8: [lbs] | T8: [$] | U8: [MBTU] | V8: [$] | W8: [MBTU] | X8: [$] | Y8: [GJ] | Z8: [$] | AA8: [GJ/m²] | AB8: [$/m²] | AC8: [t CO2 éq.] | AD8: [kg CO2 éq./m²] | AE8: [° C]
A9: =VALUE(CONCATENATE(LEFT(Annee_financiere,FIND("-",Annee_financiere)-1),"-",A22)) -> 2011-04-01 | Y9: =C9*kWh_Élect_to_GJ+E9*m3_GazNat_to_GJ+G9*L_Mazout2_to_GJ+I9*L_Mazout6_to_GJ+K9*L_Mazout2_to_GJ+M9*L_Propane_to_GJ+O9*kg_Bois8_to_GJ+Q9*kg_Bois35_to_GJ+S9*lbs_vapeur_to_GJ+U9*MBTU_eaurefroidie_to_GJ+W9*MBTU_eauchaude_to_GJ -> 0 | Z9: =D9+F9+H9+J9+N9+P9+R9+T9+V9+X9+L9 -> 0 | AA9: =IF(ISERROR(Y9/B9),"",Y9/B9) ->  | AB9: =IF(ISERROR(Z9/B9),"",Z9/B9) ->  | AC9: =(C9*kWh_Élect_to_kgGES+E9*IF(U_GNat="[m³]",m3_GazNat_to_kgGES,Conversion!$H$29)+G9*IF(U_Ma2="[l]",L_Mazout2_to_kgGES,Conversion!$H$31)+I9*IF(U_Ma6="[l]",L_Mazout6_to_kgGES,Conversion!$H$33)+K9*L_Mazout2_to_kgGES+M9*IF(U_Prop="[l]",L_Propane_to_kgGES,Conversion!$H$37)+O9*kg_Bois8_to_kgGES+Q9*kg_Bois35_to_kgGES+S9*lbs_vapeur_to_kgGES+U9*MBTU_eaurefroidie_to_kgGES+W9*MBTU_eauchaude_to_kgGES)/1000 -> 0 | AD9: =(IF(ISERROR(AC9/B9),0,(AC9/B9)))*1000 -> 0 | AE9: =INDEX(plage_DJ,MATCH(A9,plage_date),3) -> 341.6 | AG9: 12
A10: =DATE(YEAR(A9),MONTH(A9)+1,DAY(A9)) -> 2011-05-01 | Y10: 0 | Z10: =D10+F10+H10+J10+N10+P10+R10+T10+V10+X10+L10 -> 0 | AA10: =IF(ISERROR(Y10/B10),"",Y10/B10) ->  | AB10: =IF(ISERROR(Z10/B10),"",Z10/B10) ->  | AC10: =(C10*kWh_Élect_to_kgGES+E10*IF(U_GNat="[m³]",m3_GazNat_to_kgGES,Conversion!$H$29)+G10*IF(U_Ma2="[l]",L_Mazout2_to_kgGES,Conversion!$H$31)+I10*IF(U_Ma6="[l]",L_Mazout6_to_kgGES,Conversion!$H$33)+K10*L_Mazout2_to_kgGES+M10*IF(U_Prop="[l]",L_Propane_to_kgGES,Conversion!$H$37)+O10*kg_Bois8_to_kgGES+Q10*kg_Bois35_to_kgGES+S10*lbs_vapeur_to_kgGES+U10*MBTU_eaurefroidie_to_kgGES+W10*MBTU_eauchaude_to_kgGES)/1000 -> 0 | AD10: =(IF(ISERROR(AC10/B10),0,(AC10/B10)))*1000 -> 0 | AE10: 138 | AF10: =SUM(AE9) -> 341.6 | AG10: 11
A11: =DATE(YEAR(A10),MONTH(A10)+1,DAY(A10)) -> 2011-06-01 | Y11: 0 | Z11: 0 | AC11: =(C11*kWh_Élect_to_kgGES+E11*IF(U_GNat="[m³]",m3_GazNat_to_kgGES,Conversion!$H$29)+G11*IF(U_Ma2="[l]",L_Mazout2_to_kgGES,Conversion!$H$31)+I11*IF(U_Ma6="[l]",L_Mazout6_to_kgGES,Conversion!$H$33)+K11*L_Mazout2_to_kgGES+M11*IF(U_Prop="[l]",L_Propane_to_kgGES,Conversion!$H$37)+O11*kg_Bois8_to_kgGES+Q11*kg_Bois35_to_kgGES+S11*lbs_vapeur_to_kgGES+U11*MBTU_eaurefroidie_to_kgGES+W11*MBTU_eauchaude_to_kgGES)/1000 -> 0 | AD11: 0 | AE11: 19.4 | AF11: =SUM(AE9:AE10) -> 479.6 | AG11: 10
A12: 2011-07-01 | Y12: 0 | Z12: 0 | AC12: =(C12*kWh_Élect_to_kgGES+E12*IF(U_GNat="[m³]",m3_GazNat_to_kgGES,Conversion!$H$29)+G12*IF(U_Ma2="[l]",L_Mazout2_to_kgGES,Conversion!$H$31)+I12*IF(U_Ma6="[l]",L_Mazout6_to_kgGES,Conversion!$H$33)+K12*L_Mazout2_to_kgGES+M12*IF(U_Prop="[l]",L_Propane_to_kgGES,Conversion!$H$37)+O12*kg_Bois8_to_kgGES+Q12*kg_Bois35_to_kgGES+S12*lbs_vapeur_to_kgGES+U12*MBTU_eaurefroidie_to_kgGES+W12*MBTU_eauchaude_to_kgGES)/1000 -> 0 | AD12: 0 | AE12: 0 | AF12: =SUM(AE9:AE11) -> 499 | AG12: 9
A13: 2011-08-01 | Y13: 0 | Z13: 0 | AC13: =(C13*kWh_Élect_to_kgGES+E13*IF(U_GNat="[m³]",m3_GazNat_to_kgGES,Conversion!$H$29)+G13*IF(U_Ma2="[l]",L_Mazout2_to_kgGES,Conversion!$H$31)+I13*IF(U_Ma6="[l]",L_Mazout6_to_kgGES,Conversion!$H$33)+K13*L_Mazout2_to_kgGES+M13*IF(U_Prop="[l]",L_Propane_to_kgGES,Conversion!$H$37)+O13*kg_Bois8_to_kgGES+Q13*kg_Bois35_to_kgGES+S13*lbs_vapeur_to_kgGES+U13*MBTU_eaurefroidie_to_kgGES+W13*MBTU_eauchaude_to_kgGES)/1000 -> 0 | AD13: 0 | AE13: 2.4 | AF13: =SUM(AE9:AE12) -> 499 | AG13: 8
A14: 2011-09-01 | Y14: 0 | Z14: 0 | AC14: =(C14*kWh_Élect_to_kgGES+E14*IF(U_GNat="[m³]",m3_GazNat_to_kgGES,Conversion!$H$29)+G14*IF(U_Ma2="[l]",L_Mazout2_to_kgGES,Conversion!$H$31)+I14*IF(U_Ma6="[l]",L_Mazout6_to_kgGES,Conversion!$H$33)+K14*L_Mazout2_to_kgGES+M14*IF(U_Prop="[l]",L_Propane_to_kgGES,Conversion!$H$37)+O14*kg_Bois8_to_kgGES+Q14*kg_Bois35_to_kgGES+S14*lbs_vapeur_to_kgGES+U14*MBTU_eaurefroidie_to_kgGES+W14*MBTU_eauchaude_to_kgGES)/1000 -> 0 | AD14: 0 | AE14: 46.6 | AF14: =SUM(AE9:AE13) -> 501.4 | AG14: 7
A15: 2011-10-01 | Y15: 0 | Z15: 0 | AC15: =(C15*kWh_Élect_to_kgGES+E15*IF(U_GNat="[m³]",m3_GazNat_to_kgGES,Conversion!$H$29)+G15*IF(U_Ma2="[l]",L_Mazout2_to_kgGES,Conversion!$H$31)+I15*IF(U_Ma6="[l]",L_Mazout6_to_kgGES,Conversion!$H$33)+K15*L_Mazout2_to_kgGES+M15*IF(U_Prop="[l]",L_Propane_to_kgGES,Conversion!$H$37)+O15*kg_Bois8_to_kgGES+Q15*kg_Bois35_to_kgGES+S15*lbs_vapeur_to_kgGES+U15*MBTU_eaurefroidie_to_kgGES+W15*MBTU_eauchaude_to_kgGES)/1000 -> 0 | AD15: 0 | AE15: 252 | AF15: =SUM(AE9:AE14) -> 548 | AG15: 6
A16: 2011-11-01 | Y16: 0 | Z16: 0 | AC16: =(C16*kWh_Élect_to_kgGES+E16*IF(U_GNat="[m³]",m3_GazNat_to_kgGES,Conversion!$H$29)+G16*IF(U_Ma2="[l]",L_Mazout2_to_kgGES,Conversion!$H$31)+I16*IF(U_Ma6="[l]",L_Mazout6_to_kgGES,Conversion!$H$33)+K16*L_Mazout2_to_kgGES+M16*IF(U_Prop="[l]",L_Propane_to_kgGES,Conversion!$H$37)+O16*kg_Bois8_to_kgGES+Q16*kg_Bois35_to_kgGES+S16*lbs_vapeur_to_kgGES+U16*MBTU_eaurefroidie_to_kgGES+W16*MBTU_eauchaude_to_kgGES)/1000 -> 0 | AD16: 0 | AE16: 381.6 | AF16: =SUM(AE9:AE15) -> 800 | AG16: 5
A17: 2011-12-01 | Y17: 0 | Z17: 0 | AC17: =(C17*kWh_Élect_to_kgGES+E17*IF(U_GNat="[m³]",m3_GazNat_to_kgGES,Conversion!$H$29)+G17*IF(U_Ma2="[l]",L_Mazout2_to_kgGES,Conversion!$H$31)+I17*IF(U_Ma6="[l]",L_Mazout6_to_kgGES,Conversion!$H$33)+K17*L_Mazout2_to_kgGES+M17*IF(U_Prop="[l]",L_Propane_to_kgGES,Conversion!$H$37)+O17*kg_Bois8_to_kgGES+Q17*kg_Bois35_to_kgGES+S17*lbs_vapeur_to_kgGES+U17*MBTU_eaurefroidie_to_kgGES+W17*MBTU_eauchaude_to_kgGES)/1000 -> 0 | AD17: 0 | AE17: 637.6 | AF17: =SUM(AE9:AE16) -> 1181.6 | AG17: 4
A18: 2012-01-01 | Y18: 0 | Z18: 0 | AC18: =(C18*kWh_Élect_to_kgGES+E18*IF(U_GNat="[m³]",m3_GazNat_to_kgGES,Conversion!$H$29)+G18*IF(U_Ma2="[l]",L_Mazout2_to_kgGES,Conversion!$H$31)+I18*IF(U_Ma6="[l]",L_Mazout6_to_kgGES,Conversion!$H$33)+K18*L_Mazout2_to_kgGES+M18*IF(U_Prop="[l]",L_Propane_to_kgGES,Conversion!$H$37)+O18*kg_Bois8_to_kgGES+Q18*kg_Bois35_to_kgGES+S18*lbs_vapeur_to_kgGES+U18*MBTU_eaurefroidie_to_kgGES+W18*MBTU_eauchaude_to_kgGES)/1000 -> 0 | AD18: 0 | AE18: 788.3 | AF18: =SUM(AE9:AE17) -> 1819.2 | AG18: 3
A19: 2012-02-01 | Y19: 0 | Z19: 0 | AC19: =(C19*kWh_Élect_to_kgGES+E19*IF(U_GNat="[m³]",m3_GazNat_to_kgGES,Conversion!$H$29)+G19*IF(U_Ma2="[l]",L_Mazout2_to_kgGES,Conversion!$H$31)+I19*IF(U_Ma6="[l]",L_Mazout6_to_kgGES,Conversion!$H$33)+K19*L_Mazout2_to_kgGES+M19*IF(U_Prop="[l]",L_Propane_to_kgGES,Conversion!$H$37)+O19*kg_Bois8_to_kgGES+Q19*kg_Bois35_to_kgGES+S19*lbs_vapeur_to_kgGES+U19*MBTU_eaurefroidie_to_kgGES+W19*MBTU_eauchaude_to_kgGES)/1000 -> 0 | AD19: 0 | AE19: 659.7 | AF19: =SUM(AE9:AE18) -> 2607.5 | AG19: 2
A20: 2012-03-01 | Y20: 0 | Z20: 0 | AC20: =(C20*kWh_Élect_to_kgGES+E20*IF(U_GNat="[m³]",m3_GazNat_to_kgGES,Conversion!$H$29)+G20*IF(U_Ma2="[l]",L_Mazout2_to_kgGES,Conversion!$H$31)+I20*IF(U_Ma6="[l]",L_Mazout6_to_kgGES,Conversion!$H$33)+K20*L_Mazout2_to_kgGES+M20*IF(U_Prop="[l]",L_Propane_to_kgGES,Conversion!$H$37)+O20*kg_Bois8_to_kgGES+Q20*kg_Bois35_to_kgGES+S20*lbs_vapeur_to_kgGES+U20*MBTU_eaurefroidie_to_kgGES+W20*MBTU_eauchaude_to_kgGES)/1000 -> 0 | AD20: 0 | AE20: 462.8 | AF20: =SUM(AE9:AE19) -> 3267.2 | AG20: 1
A21: TOTAL/moyenne | B21: =IF(ISERROR(AVERAGE(B9:B20)),0,AVERAGE(B9:B20)) -> 0 | C21: =SUM(C9:C20) -> 0 | D21: 0 | E21: 0 | F21: 0 | G21: 0 | H21: 0 | I21: 0 | J21: 0 | K21: 0 | L21: 0 | M21: 0 | N21: 0 | O21: 0 | P21: 0 | Q21: 0 | R21: 0 | S21: 0 | T21: 0 | U21: 0 | V21: 0 | W21: 0 | X21: 0 | Y21: 0 | Z21: =D21+F21+H21+J21+L21+N21+P21+R21+T21+V21+X21 -> 0 | AA21: =IF(ISERROR(Y21/B21),"",Y21/B21) ->  | AB21: =IF(ISERROR(Z21/B21),"",Z21/B21) ->  | AC21: =(C21*kWh_Élect_to_kgGES+E21*IF(U_GNat="[m³]",m3_GazNat_to_kgGES,Conversion!$H$29)+G21*IF(U_Ma2="[l]",L_Mazout2_to_kgGES,Conversion!$H$31)+I21*IF(U_Ma6="[l]",L_Mazout6_to_kgGES,Conversion!$H$33)+K21*L_Mazout2_to_kgGES+M21*IF(U_Prop="[l]",L_Propane_to_kgGES,Conversion!$H$37)+O21*kg_Bois8_to_kgGES+Q21*kg_Bois35_to_kgGES+S21*lbs_vapeur_to_kgGES+U21*MBTU_eaurefroidie_to_kgGES+W21*MBTU_eauchaude_to_kgGES)/1000 -> 0 | AD21: =(IF(ISERROR(AC21/B21),0,(AC21/B21)))*1000 -> 0 | AE21: =SUM(AE9:AE20) -> 3730
A22: 2011 | B22: Sup_11-12 | C22: Elec_kWh_11-12 | D22: Elec_CAD_11-12 | E22: GN_m³_11-12 | F22: GN_CAD_11-12 | G22: Ma2_l_11-12 | H22: Ma2_CAD_11-12 | I22: Ma6_l_11-12 | J22: Ma6_CAD_11-12 | M22: Prop_l_11-12 | N22: Prop_CAD_11-12 | O22: Bois20_1000kg_11-12 | P22: Bois20_CAD_11-12 | Q22: Bois45_1000kg_11-12 | R22: Bois45_CAD_11-12 | Y22: GJ_Tot_11-12 | Z22: CAD_Tot_11-12 | AA22: GJm²_11-12 | AB22: CAD/m²_11-12 | AC22: GES_ton_11-12 | AD22: GES_ton/m²_11-12 | AE22: DJC_tot_11-12
A23: Nombre de bâtiments en propriété ou en location, pour lesquels des factures d'énergie sont payées par l'organisation :
A25: ATTENTION, la saisie des consommations d'énergie comporte une erreur si la cellule AA21 est ombragée d'une couleur ! | AA25: =Lim_bas -> 0 | AB25: =Lim_haut -> 0
A27: AJUSTEMENTS NON PÉRIODIQUES | C27: Un ajustement correspond à une modification majeure des équipements ou du bâtiment. Il peut avoir un effet positif ou négatif sur la consommation énergétique : - un effet positif correspond à une augmentation majeure de la consommation, à la suite par exemple de l'ajout d'un étage de bâtiment ou de l'ajout de climatisation d'une aile d'un bâtiment; - un effet négatif correspond à une diminution majeure de la consommation. Cette diminution ne résulte pas forcément d’une économie provenant d’une optimisation du bâtiment. Elle peut, par exemple, être attribuable à la fermeture d’une partie d'un bâtiment qui devient alors inoccupé. Exemple : L'ajout de locaux implique une augmentation nette des charges de chauffage et d'éclairage de 500 kWh, telles qu’elles sont calculées par une firme d'ingénieurs. Dans ce fichier, le projet, qui sera nommé « Agrandissement », impliquera une augmentation de l'électricité de 500 kWh. Comme il s'agit de chauffage, l'ajustement y est sensible. La date d'implantation correspond au mois où l’effet sur la consommation a été effectif. Si l'ajustement a eu un effet sur plus qu'une source d'énergie, merci de rajouter une ligne pour chaque source touchée.
B29: Projet | C29: Tendance de l'impact | D29: Source d'énergie touchée | E29: Impact Annuel sur la référence | G29: Ajustement sensible au chauffage | H29: Date d'implantation | I29: Effet pour l'année complète [GJ] | J29: Effet pour l'année en cours [GJ] | X29: Énergie de l'année de référence ajustée | Y29: =((1-Facteur_variable)+Facteur_variable*DJC_tot_11_12/DJC_tot_09_10)*GJ_Tot_09_10+GJ_Ajust_NP_Cour_11_12 -> 0 | Z29: GJTotRef_Ajust_11_12
B30: Nom du projet no1 | F30: =IF(D30="électrique","kWh",IF(D30="Gaz naturel","m³",IF(LEFT(D30,1)="R","1000 kg","l"))) -> l | I30: =IF(COUNTA(G30)=1,IF(C30="Réduction",-1,IF(C30="Augmentation",1,0))*E30*INDEX(Conversion!$A$26:$J$42,MATCH(D30,Conversion!$J$26:$J$42,0),9),0) -> 0 | J30: =IF(G30="Non",I30*L30,IF(G30="Oui",I30*K30,0)) -> 0 | K30: =(DJC_tot_11_12-INDEX($A$9:$AF$20,MATCH(H30,$A$9:$A$20,0),24))/DJC_tot_11_12 ->  | L30: =INDEX($A$9:$AG$20,MATCH(H30,$A$9:$A$20,0),25)/12 ->  | X30: Énergie de l'année de suivi | Y30: =GJ_Tot_11_12 -> 0
B31: Nom du projet no2 | F31: =IF(D31="électrique","kWh",IF(D31="Gaz naturel","m³",IF(LEFT(D31,1)="R","1000 kg","l"))) -> l | I31: =IF(COUNTA(G31)=1,IF(C31="Réduction",-1,IF(C31="Augmentation",1,0))*E31*INDEX(Conversion!$A$26:$J$42,MATCH(D31,Conversion!$J$26:$J$42,0),9),0) -> 0 | J31: 0 | K31: =(DJC_tot_10_11-INDEX($A$9:$AF$20,MATCH(H31,$A$9:$A$20,0),24))/DJC_tot_11_12 ->  | X31: Superficie de l'année de référence | Y31: =Sup_09_10 -> 0
B32: Nom du projet no3 | F32: l | I32: =IF(COUNTA(G32)=1,IF(C32="Réduction",-1,IF(C32="Augmentation",1,0))*E32*INDEX(Conversion!$A$26:$J$42,MATCH(D32,Conversion!$J$26:$J$42,0),9),0) -> 0 | J32: 0 | X32: Superficie de l'année de suivi | Y32: =Sup_11_12 -> 0
B33: Nom du projet no4 | F33: l | I33: =IF(COUNTA(G33)=1,IF(C33="Réduction",-1,IF(C33="Augmentation",1,0))*E33*INDEX(Conversion!$A$26:$J$42,MATCH(D33,Conversion!$J$26:$J$42,0),9),0) -> 0 | J33: 0 | Y33: =GJTotRef_Ajust_11_12/Sup_09_10 ->  | Z33: GJTotRef_Ajust_m²_11_12
B34: Nom du projet no5 | F34: l | I34: =IF(COUNTA(G34)=1,IF(C34="Réduction",-1,IF(C34="Augmentation",1,0))*E34*INDEX(Conversion!$A$26:$J$42,MATCH(D34,Conversion!$J$26:$J$42,0),9),0) -> 0 | J34: 0 | Y34: =J37 -> 0 | Z34: GJ_Ajust_NP_Cour_11_12
B35: Nom du projet no6 | F35: l | I35: =IF(COUNTA(G35)=1,IF(C35="Réduction",-1,IF(C35="Augmentation",1,0))*E35*INDEX(Conversion!$A$26:$J$42,MATCH(D35,Conversion!$J$26:$J$42,0),9),0) -> 0 | J35: 0 | Y35: =I37 -> 0 | Z35: GJ_Ajust_NP_annuel_11_12
B36: Nom du projet no7 | F36: l | I36: =IF(COUNTA(G36)=1,IF(C36="Réduction",-1,IF(C36="Augmentation",1,0))*E36*INDEX(Conversion!$A$26:$J$42,MATCH(D36,Conversion!$J$26:$J$42,0),9),0) -> 0 | J36: 0
B37: TOTAL | I37: =SUM(I30:I36) -> 0 | J37: =SUM(J30:J36) -> 0
C46: Réduction | D46: Électrique | G46: Oui
C47: Augmentation | D47: Gaz naturel | G47: Non
D48: Mazout n°2
D49: Mazout n°6
D50: Propane
D51: Résidus de bois (20%humidité)
D52: Résidus de bois (45%humidité)
D53: -
B55: Ne pas effacer, à blanchir et bloquer lora de la mise en route
B56: Gaz naturel | D56: Mazout n°2 | F56: Résidus de bois (20% d'humidité)
B57: [m³] | C57: [mille pi³] | D57: [l] | E57: [Gallon imp] | F57: [1000 kg MG] | G57: [1000 lbs]

Sheet 2012-2013
C1: Système de suivi de la consommation énergétique dans les bâtiments
D2: Saisir les données énergétiques et les données sur les dépenses annuelles, avant taxes, dans les cellules ombragées en bleu pâle.
D4: Dans le cas où un projet ayant un effet sur la consommation énergétique a eu lieu au cours de l'année (rénovation, agrandissement, etc.),
D5: veuillez remplir la section « AJUSTEMENTS NON PÉRIODIQUES », ci-dessous.
A7: <-- Résumé | B7: Superficie | C7: Consommation électrique | E7: Gaz naturel | G7: Mazout n°2 | I7: Mazout n°6 | K7: Diesel (génératrice) | M7: Propane | O7: Résidus de bois (20 % d'humidité) | Q7: Résidus de bois (45 % d'humidité) | S7: Vapeur | U7: Eau refroidie | W7: Eau chaude | Y7: TOTAL | AA7: Intensité énergétique | AC7: GES | AE7: DJC
B8: [m²] | C8: [kWh] | D8: [$] | E8: [m³] | F8: [$] | G8: [l] | H8: [$] | I8: [l] | J8: [$] | K8: [l] | L8: [$] | M8: [l] | N8: [$] | O8: [1000 kg MG] | P8: [$] | Q8: [1000 kg MG] | R8: [$] | S8: [lbs] | T8: [$] | U8: [MBTU] | V8: [$] | W8: [MBTU] | X8: [$] | Y8: [GJ] | Z8: [$] | AA8: [GJ/m²] | AB8: [$/m²] | AC8: [t CO2 éq.] | AD8: [kg CO2 éq./m²] | AE8: [° C]
A9: =VALUE(CONCATENATE(LEFT(Annee_financiere,FIND("-",Annee_financiere)-1),"-",A22)) -> 2012-04-01 | Y9: =C9*kWh_Élect_to_GJ+E9*m3_GazNat_to_GJ+G9*L_Mazout2_to_GJ+I9*L_Mazout6_to_GJ+K9*L_Mazout2_to_GJ+M9*L_Propane_to_GJ+O9*kg_Bois8_to_GJ+Q9*kg_Bois35_to_GJ+S9*lbs_vapeur_to_GJ+U9*MBTU_eaurefroidie_to_GJ+W9*MBTU_eauchaude_to_GJ -> 0 | Z9: =D9+F9+H9+J9+N9+P9+R9+T9+V9+X9+L9 -> 0 | AA9: =IF(ISERROR(Y9/B9),"",Y9/B9) ->  | AB9: =IF(ISERROR(Z9/B9),"",Z9/B9) ->  | AC9: =(C9*kWh_Élect_to_kgGES+E9*IF(U_GNat="[m³]",m3_GazNat_to_kgGES,Conversion!$H$29)+G9*IF(U_Ma2="[l]",L_Mazout2_to_kgGES,Conversion!$H$31)+I9*IF(U_Ma6="[l]",L_Mazout6_to_kgGES,Conversion!$H$33)+K9*L_Mazout2_to_kgGES+M9*IF(U_Prop="[l]",L_Propane_to_kgGES,Conversion!$H$37)+O9*kg_Bois8_to_kgGES+Q9*kg_Bois35_to_kgGES+S9*lbs_vapeur_to_kgGES+U9*MBTU_eaurefroidie_to_kgGES+W9*MBTU_eauchaude_to_kgGES)/1000 -> 0 | AD9: =(IF(ISERROR(AC9/B9),0,(AC9/B9)))*1000 -> 0 | AE9: =INDEX(plage_DJ,MATCH(A9,plage_date),3) -> 339.2 | AG9: 12
A10: =DATE(YEAR(A9),MONTH(A9)+1,DAY(A9)) -> 2012-05-01 | Y10: 0 | Z10: =D10+F10+H10+J10+N10+P10+R10+T10+V10+X10+L10 -> 0 | AA10: =IF(ISERROR(Y10/B10),"",Y10/B10) ->  | AB10: =IF(ISERROR(Z10/B10),"",Z10/B10) ->  | AC10: =(C10*kWh_Élect_to_kgGES+E10*IF(U_GNat="[m³]",m3_GazNat_to_kgGES,Conversion!$H$29)+G10*IF(U_Ma2="[l]",L_Mazout2_to_kgGES,Conversion!$H$31)+I10*IF(U_Ma6="[l]",L_Mazout6_to_kgGES,Conversion!$H$33)+K10*L_Mazout2_to_kgGES+M10*IF(U_Prop="[l]",L_Propane_to_kgGES,Conversion!$H$37)+O10*kg_Bois8_to_kgGES+Q10*kg_Bois35_to_kgGES+S10*lbs_vapeur_to_kgGES+U10*MBTU_eaurefroidie_to_kgGES+W10*MBTU_eauchaude_to_kgGES)/1000 -> 0 | AD10: =(IF(ISERROR(AC10/B10),0,(AC10/B10)))*1000 -> 0 | AE10: 89.9 | AF10: =SUM(AE9) -> 339.2 | AG10: 11
A11: =DATE(YEAR(A10),MONTH(A10)+1,DAY(A10)) -> 2012-06-01 | Y11: 0 | Z11: 0 | AC11: =(C11*kWh_Élect_to_kgGES+E11*IF(U_GNat="[m³]",m3_GazNat_to_kgGES,Conversion!$H$29)+G11*IF(U_Ma2="[l]",L_Mazout2_to_kgGES,Conversion!$H$31)+I11*IF(U_Ma6="[l]",L_Mazout6_to_kgGES,Conversion!$H$33)+K11*L_Mazout2_to_kgGES+M11*IF(U_Prop="[l]",L_Propane_to_kgGES,Conversion!$H$37)+O11*kg_Bois8_to_kgGES+Q11*kg_Bois35_to_kgGES+S11*lbs_vapeur_to_kgGES+U11*MBTU_eaurefroidie_to_kgGES+W11*MBTU_eauchaude_to_kgGES)/1000 -> 0 | AD11: 0 | AE11: 21.5 | AF11: =SUM(AE9:AE10) -> 429.1 | AG11: 10
A12: 2012-07-01 | Y12: 0 | Z12: 0 | AC12: =(C12*kWh_Élect_to_kgGES+E12*IF(U_GNat="[m³]",m3_GazNat_to_kgGES,Conversion!$H$29)+G12*IF(U_Ma2="[l]",L_Mazout2_to_kgGES,Conversion!$H$31)+I12*IF(U_Ma6="[l]",L_Mazout6_to_kgGES,Conversion!$H$33)+K12*L_Mazout2_to_kgGES+M12*IF(U_Prop="[l]",L_Propane_to_kgGES,Conversion!$H$37)+O12*kg_Bois8_to_kgGES+Q12*kg_Bois35_to_kgGES+S12*lbs_vapeur_to_kgGES+U12*MBTU_eaurefroidie_to_kgGES+W12*MBTU_eauchaude_to_kgGES)/1000 -> 0 | AD12: 0 | AE12: 0.7 | AF12: =SUM(AE9:AE11) -> 450.6 | AG12: 9
A13: 2012-08-01 | Y13: 0 | Z13: 0 | AC13: =(C13*kWh_Élect_to_kgGES+E13*IF(U_GNat="[m³]",m3_GazNat_to_kgGES,Conversion!$H$29)+G13*IF(U_Ma2="[l]",L_Mazout2_to_kgGES,Conversion!$H$31)+I13*IF(U_Ma6="[l]",L_Mazout6_to_kgGES,Conversion!$H$33)+K13*L_Mazout2_to_kgGES+M13*IF(U_Prop="[l]",L_Propane_to_kgGES,Conversion!$H$37)+O13*kg_Bois8_to_kgGES+Q13*kg_Bois35_to_kgGES+S13*lbs_vapeur_to_kgGES+U13*MBTU_eaurefroidie_to_kgGES+W13*MBTU_eauchaude_to_kgGES)/1000 -> 0 | AD13: 0 | AE13: 0.8 | AF13: =SUM(AE9:AE12) -> 451.3 | AG13: 8
A14: 2012-09-01 | Y14: 0 | Z14: 0 | AC14: =(C14*kWh_Élect_to_kgGES+E14*IF(U_GNat="[m³]",m3_GazNat_to_kgGES,Conversion!$H$29)+G14*IF(U_Ma2="[l]",L_Mazout2_to_kgGES,Conversion!$H$31)+I14*IF(U_Ma6="[l]",L_Mazout6_to_kgGES,Conversion!$H$33)+K14*L_Mazout2_to_kgGES+M14*IF(U_Prop="[l]",L_Propane_to_kgGES,Conversion!$H$37)+O14*kg_Bois8_to_kgGES+Q14*kg_Bois35_to_kgGES+S14*lbs_vapeur_to_kgGES+U14*MBTU_eaurefroidie_to_kgGES+W14*MBTU_eauchaude_to_kgGES)/1000 -> 0 | AD14: 0 | AE14: 92.5 | AF14: =SUM(AE9:AE13) -> 452.1 | AG14: 7
A15: 2012-10-01 | Y15: 0 | Z15: 0 | AC15: =(C15*kWh_Élect_to_kgGES+E15*IF(U_GNat="[m³]",m3_GazNat_to_kgGES,Conversion!$H$29)+G15*IF(U_Ma2="[l]",L_Mazout2_to_kgGES,Conversion!$H$31)+I15*IF(U_Ma6="[l]",L_Mazout6_to_kgGES,Conversion!$H$33)+K15*L_Mazout2_to_kgGES+M15*IF(U_Prop="[l]",L_Propane_to_kgGES,Conversion!$H$37)+O15*kg_Bois8_to_kgGES+Q15*kg_Bois35_to_kgGES+S15*lbs_vapeur_to_kgGES+U15*MBTU_eaurefroidie_to_kgGES+W15*MBTU_eauchaude_to_kgGES)/1000 -> 0 | AD15: 0 | AE15: 222.8 | AF15: =SUM(AE9:AE14) -> 544.6 | AG15: 6
A16: 2012-11-01 | Y16: 0 | Z16: 0 | AC16: =(C16*kWh_Élect_to_kgGES+E16*IF(U_GNat="[m³]",m3_GazNat_to_kgGES,Conversion!$H$29)+G16*IF(U_Ma2="[l]",L_Mazout2_to_kgGES,Conversion!$H$31)+I16*IF(U_Ma6="[l]",L_Mazout6_to_kgGES,Conversion!$H$33)+K16*L_Mazout2_to_kgGES+M16*IF(U_Prop="[l]",L_Propane_to_kgGES,Conversion!$H$37)+O16*kg_Bois8_to_kgGES+Q16*kg_Bois35_to_kgGES+S16*lbs_vapeur_to_kgGES+U16*MBTU_eaurefroidie_to_kgGES+W16*MBTU_eauchaude_to_kgGES)/1000 -> 0 | AD16: 0 | AE16: 524.2 | AF16: =SUM(AE9:AE15) -> 767.4 | AG16: 5
A17: 2012-12-01 | Y17: 0 | Z17: 0 | AC17: =(C17*kWh_Élect_to_kgGES+E17*IF(U_GNat="[m³]",m3_GazNat_to_kgGES,Conversion!$H$29)+G17*IF(U_Ma2="[l]",L_Mazout2_to_kgGES,Conversion!$H$31)+I17*IF(U_Ma6="[l]",L_Mazout6_to_kgGES,Conversion!$H$33)+K17*L_Mazout2_to_kgGES+M17*IF(U_Prop="[l]",L_Propane_to_kgGES,Conversion!$H$37)+O17*kg_Bois8_to_kgGES+Q17*kg_Bois35_to_kgGES+S17*lbs_vapeur_to_kgGES+U17*MBTU_eaurefroidie_to_kgGES+W17*MBTU_eauchaude_to_kgGES)/1000 -> 0 | AD17: 0 | AE17: 666.5 | AF17: =SUM(AE9:AE16) -> 1291.6 | AG17: 4
A18: 2013-01-01 | Y18: 0 | Z18: 0 | AC18: =(C18*kWh_Élect_to_kgGES+E18*IF(U_GNat="[m³]",m3_GazNat_to_kgGES,Conversion!$H$29)+G18*IF(U_Ma2="[l]",L_Mazout2_to_kgGES,Conversion!$H$31)+I18*IF(U_Ma6="[l]",L_Mazout6_to_kgGES,Conversion!$H$33)+K18*L_Mazout2_to_kgGES+M18*IF(U_Prop="[l]",L_Propane_to_kgGES,Conversion!$H$37)+O18*kg_Bois8_to_kgGES+Q18*kg_Bois35_to_kgGES+S18*lbs_vapeur_to_kgGES+U18*MBTU_eaurefroidie_to_kgGES+W18*MBTU_eauchaude_to_kgGES)/1000 -> 0 | AD18: 0 | AE18: 808.2 | AF18: =SUM(AE9:AE17) -> 1958.1 | AG18: 3
A19: 2013-02-01 | Y19: 0 | Z19: 0 | AC19: =(C19*kWh_Élect_to_kgGES+E19*IF(U_GNat="[m³]",m3_GazNat_to_kgGES,Conversion!$H$29)+G19*IF(U_Ma2="[l]",L_Mazout2_to_kgGES,Conversion!$H$31)+I19*IF(U_Ma6="[l]",L_Mazout6_to_kgGES,Conversion!$H$33)+K19*L_Mazout2_to_kgGES+M19*IF(U_Prop="[l]",L_Propane_to_kgGES,Conversion!$H$37)+O19*kg_Bois8_to_kgGES+Q19*kg_Bois35_to_kgGES+S19*lbs_vapeur_to_kgGES+U19*MBTU_eaurefroidie_to_kgGES+W19*MBTU_eauchaude_to_kgGES)/1000 -> 0 | AD19: 0 | AE19: 698 | AF19: =SUM(AE9:AE18) -> 2766.3 | AG19: 2
A20: 2013-03-01 | Y20: 0 | Z20: 0 | AC20: =(C20*kWh_Élect_to_kgGES+E20*IF(U_GNat="[m³]",m3_GazNat_to_kgGES,Conversion!$H$29)+G20*IF(U_Ma2="[l]",L_Mazout2_to_kgGES,Conversion!$H$31)+I20*IF(U_Ma6="[l]",L_Mazout6_to_kgGES,Conversion!$H$33)+K20*L_Mazout2_to_kgGES+M20*IF(U_Prop="[l]",L_Propane_to_kgGES,Conversion!$H$37)+O20*kg_Bois8_to_kgGES+Q20*kg_Bois35_to_kgGES+S20*lbs_vapeur_to_kgGES+U20*MBTU_eaurefroidie_to_kgGES+W20*MBTU_eauchaude_to_kgGES)/1000 -> 0 | AD20: 0 | AE20: 575.1 | AF20: =SUM(AE9:AE19) -> 3464.3 | AG20: 1
A21: TOTAL/moyenne | B21: =IF(ISERROR(AVERAGE(B9:B20)),0,AVERAGE(B9:B20)) -> 0 | C21: =SUM(C9:C20) -> 0 | D21: 0 | E21: 0 | F21: 0 | G21: 0 | H21: 0 | I21: 0 | J21: 0 | K21: 0 | L21: 0 | M21: 0 | N21: 0 | O21: 0 | P21: 0 | Q21: 0 | R21: 0 | S21: 0 | T21: 0 | U21: 0 | V21: 0 | W21: 0 | X21: 0 | Y21: 0 | Z21: =D21+F21+H21+J21+L21+N21+P21+R21+T21+V21+X21 -> 0 | AA21: =IF(ISERROR(Y21/B21),"",Y21/B21) ->  | AB21: =IF(ISERROR(Z21/B21),"",Z21/B21) ->  | AC21: =(C21*kWh_Élect_to_kgGES+E21*IF(U_GNat="[m³]",m3_GazNat_to_kgGES,Conversion!$H$29)+G21*IF(U_Ma2="[l]",L_Mazout2_to_kgGES,Conversion!$H$31)+I21*IF(U_Ma6="[l]",L_Mazout6_to_kgGES,Conversion!$H$33)+K21*L_Mazout2_to_kgGES+M21*IF(U_Prop="[l]",L_Propane_to_kgGES,Conversion!$H$37)+O21*kg_Bois8_to_kgGES+Q21*kg_Bois35_to_kgGES+S21*lbs_vapeur_to_kgGES+U21*MBTU_eaurefroidie_to_kgGES+W21*MBTU_eauchaude_to_kgGES)/1000 -> 0 | AD21: =(IF(ISERROR(AC21/B21),0,(AC21/B21)))*1000 -> 0 | AE21: =SUM(AE9:AE20) -> 4039.4
A22: 2012 | B22: Sup_12-13 | C22: Elec_kWh_12-13 | D22: Elec_CAD_12-13 | E22: GN_m³_12-13 | F22: GN_CAD_12-13 | G22: Ma2_l_12-13 | H22: Ma2_CAD_12-13 | I22: Ma6_l_12-13 | J22: Ma6_CAD_12-13 | M22: Prop_l_12-13 | N22: Prop_CAD_12-13 | O22: Bois20_1000kg_12-13 | P22: Bois20_CAD_12-13 | Q22: Bois45_1000kg_12-13 | R22: Bois45_CAD_12-13 | Y22: GJ_Tot_12-13 | Z22: CAD_Tot_12-13 | AA22: GJm²_12-13 | AB22: CAD/m²_12-13 | AC22: GES_ton_12-13 | AD22: GES_ton/m²_12-13 | AE22: DJC_tot_12-13
A23: Nombre de bâtiments en propriété ou en location, pour lesquels des factures d'énergie sont payées par l'organisation :
A25: ATTENTION, la saisie des consommations d'énergie comporte une erreur si la cellule AA21 est ombragée d'une couleur ! | AA25: =Lim_bas -> 0 | AB25: =Lim_haut -> 0
A27: AJUSTEMENTS NON PÉRIODIQUES | C27: Un ajustement correspond à une modification majeure des équipements ou du bâtiment. Il peut avoir un effet positif ou négatif sur la consommation énergétique : - un effet positif correspond à une augmentation majeure de la consommation, à la suite par exemple de l'ajout d'un étage de bâtiment ou de l'ajout de climatisation d'une aile d'un bâtiment; - un effet négatif correspond à une diminution majeure de la consommation. Cette diminution ne résulte pas forcément d’une économie provenant d’une optimisation du bâtiment. Elle peut, par exemple, être attribuable à la fermeture d’une partie d'un bâtiment qui devient alors inoccupé. Exemple : L'ajout de locaux implique une augmentation nette des charges de chauffage et d'éclairage de 500 kWh, telles qu’elles sont calculées par une firme d'ingénieurs. Dans ce fichier, le projet, qui sera nommé « Agrandissement », impliquera une augmentation de l'électricité de 500 kWh. Comme il s'agit de chauffage, l'ajustement y est sensible. La date d'implantation correspond au mois où l’effet sur la consommation a été effectif. Si l'ajustement a eu un effet sur plus qu'une source d'énergie, merci de rajouter une ligne pour chaque source touchée.
B29: Projet | C29: Tendance de l'impact | D29: Source d'énergie touchée | E29: Impact Annuel | G29: Ajustement sensible au chauffage | H29: Date d'implantation | I29: Impact pour l'année complète [GJ] | J29: Impact pour l'année en cours [GJ] | X29: Énergie de l'année de référence ajustée | Y29: =((1-Facteur_variable)+Facteur_variable*DJC_tot_12_13/DJC_tot_09_10)*GJ_Tot_09_10+GJ_Ajust_NP_Cour_12_13 -> 0 | Z29: GJTotRef_Ajust_12_13
B30: Nom du projet no1 | F30: =IF(D30="électrique","kWh",IF(D30="Gaz naturel","m³",IF(LEFT(D30,1)="R","1000 kg","l"))) -> l | I30: =IF(COUNTA(G30)=1,IF(C30="Réduction",-1,IF(C30="Augmentation",1,0))*E30*INDEX(Conversion!$A$26:$J$42,MATCH(D30,Conversion!$J$26:$J$42,0),9),0) -> 0 | J30: =IF(G30="Non",I30*L30,IF(G30="Oui",I30*K30,0)) -> 0 | K30: =(DJC_tot_12_13-INDEX($A$9:$AF$20,MATCH(H30,$A$9:$A$20,0),24))/DJC_tot_12_13 ->  | L30: =INDEX($A$9:$AG$20,MATCH(H30,$A$9:$A$20,0),25)/12 ->  | X30: Énergie de l'année de suivi | Y30: =GJ_Tot_12_13 -> 0
B31: Nom du projet no2 | F31: =IF(D31="électrique","kWh",IF(D31="Gaz naturel","m³",IF(LEFT(D31,1)="R","1000 kg","l"))) -> l | I31: =IF(COUNTA(G31)=1,IF(C31="Réduction",-1,IF(C31="Augmentation",1,0))*E31*INDEX(Conversion!$A$26:$J$42,MATCH(D31,Conversion!$J$26:$J$42,0),9),0) -> 0 | J31: 0 | X31: Superficie de l'année de référence | Y31: =Sup_09_10 -> 0
B32: Nom du projet no3 | F32: l | I32: =IF(COUNTA(G32)=1,IF(C32="Réduction",-1,IF(C32="Augmentation",1,0))*E32*INDEX(Conversion!$A$26:$J$42,MATCH(D32,Conversion!$J$26:$J$42,0),9),0) -> 0 | J32: 0 | X32: Superficie de l'année de suivi | Y32: =Sup_12_13 -> 0
B33: Nom du projet no4 | F33: l | I33: =IF(COUNTA(G33)=1,IF(C33="Réduction",-1,IF(C33="Augmentation",1,0))*E33*INDEX(Conversion!$A$26:$J$42,MATCH(D33,Conversion!$J$26:$J$42,0),9),0) -> 0 | J33: 0 | Y33: =GJTotRef_Ajust_12_13/Sup_09_10 ->  | Z33: GJTotRef_Ajust_m²_12_13
B34: Nom du projet no5 | F34: l | I34: =IF(COUNTA(G34)=1,IF(C34="Réduction",-1,IF(C34="Augmentation",1,0))*E34*INDEX(Conversion!$A$26:$J$42,MATCH(D34,Conversion!$J$26:$J$42,0),9),0) -> 0 | J34: 0 | Y34: =J37 -> 0 | Z34: GJ_Ajust_NP_Cour_12_13
B35: Nom du projet no6 | F35: l | I35: =IF(COUNTA(G35)=1,IF(C35="Réduction",-1,IF(C35="Augmentation",1,0))*E35*INDEX(Conversion!$A$26:$J$42,MATCH(D35,Conversion!$J$26:$J$42,0),9),0) -> 0 | J35: 0 | Y35: =I37 -> 0 | Z35: GJ_Ajust_NP_annuel_12_13
B36: Nom du projet no7 | F36: l | I36: =IF(COUNTA(G36)=1,IF(C36="Réduction",-1,IF(C36="Augmentation",1,0))*E36*INDEX(Conversion!$A$26:$J$42,MATCH(D36,Conversion!$J$26:$J$42,0),9),0) -> 0 | J36: 0
B37: TOTAL | I37: =SUM(I30:I36) -> 0 | J37: =SUM(J30:J36) -> 0
C46: Réduction | D46: Électrique | G46: Oui
C47: Augmentation | D47: Gaz naturel | G47: Non
D48: Mazout n°2
D49: Mazout n°6
D50: Propane
D51: Résidus de bois (20%humidité)
D52: Résidus de bois (45%humidité)
D53: -

Sheet 2013-2014
C1: Système de suivi de la consommation énergétique dans les bâtiments
D2: Saisir les données énergétiques et les données sur les dépenses annuelles, avant taxes, dans les cellules ombragées en bleu pâle.
D4: Dans le cas où un projet ayant un effet sur la consommation énergétique a eu lieu au cours de l'année (rénovation, agrandissement, etc.),
D5: veuillez remplir la section « AJUSTEMENTS NON PÉRIODIQUES », ci-dessous.
A7: <-- Résumé | B7: Superficie | C7: Consommation électrique | E7: Gaz naturel | G7: Mazout n°2 | I7: Mazout n°6 | K7: Diesel (génératrice) | M7: Propane | O7: Résidus de bois (20 % d'humidité) | Q7: Résidus de bois (45 % d'humidité) | S7: Vapeur | U7: Eau refroidie | W7: Eau chaude | Y7: TOTAL | AA7: Intensité énergétique | AC7: GES | AE7: DJC
B8: [m²] | C8: [kWh] | D8: [$] | E8: [m³] | F8: [$] | G8: [l] | H8: [$] | I8: [l] | J8: [$] | K8: [l] | L8: [$] | M8: [l] | N8: [$] | O8: [1000 kg MG] | P8: [$] | Q8: [1000 kg MG] | R8: [$] | S8: [lbs] | T8: [$] | U8: [MBTU] | V8: [$] | W8: [MBTU] | X8: [$] | Y8: [GJ] | Z8: [$] | AA8: [GJ/m²] | AB8: [$/m²] | AC8: [t CO2 éq.] | AD8: [kg CO2 éq./m²] | AE8: [° C]
A9: =VALUE(CONCATENATE(LEFT(Annee_financiere,FIND("-",Annee_financiere)-1),"-",A22)) -> 2013-04-01 | Y9: =C9*kWh_Élect_to_GJ+E9*m3_GazNat_to_GJ+G9*L_Mazout2_to_GJ+I9*L_Mazout6_to_GJ+K9*L_Mazout2_to_GJ+M9*L_Propane_to_GJ+O9*kg_Bois8_to_GJ+Q9*kg_Bois35_to_GJ+S9*lbs_vapeur_to_GJ+U9*MBTU_eaurefroidie_to_GJ+W9*MBTU_eauchaude_to_GJ -> 0 | Z9: =D9+F9+H9+J9+N9+P9+R9+T9+V9+X9+L9 -> 0 | AA9: =IF(ISERROR(Y9/B9),"",Y9/B9) ->  | AB9: =IF(ISERROR(Z9/B9),"",Z9/B9) ->  | AC9: =(C9*kWh_Élect_to_kgGES+E9*IF(U_GNat="[m³]",m3_GazNat_to_kgGES,Conversion!$H$29)+G9*IF(U_Ma2="[l]",L_Mazout2_to_kgGES,Conversion!$H$31)+I9*IF(U_Ma6="[l]",L_Mazout6_to_kgGES,Conversion!$H$33)+K9*L_Mazout2_to_kgGES+M9*IF(U_Prop="[l]",L_Propane_to_kgGES,Conversion!$H$37)+O9*kg_Bois8_to_kgGES+Q9*kg_Bois35_to_kgGES+S9*lbs_vapeur_to_kgGES+U9*MBTU_eaurefroidie_to_kgGES+W9*MBTU_eauchaude_to_kgGES)/1000 -> 0 | AD9: =(IF(ISERROR(AC9/B9),0,(AC9/B9)))*1000 -> 0 | AE9: =INDEX(plage_DJ,MATCH(A9,plage_date),3) -> 358.6 | AG9: 12
A10: =DATE(YEAR(A9),MONTH(A9)+1,DAY(A9)) -> 2013-05-01 | Y10: 0 | Z10: =D10+F10+H10+J10+N10+P10+R10+T10+V10+X10+L10 -> 0 | AA10: =IF(ISERROR(Y10/B10),"",Y10/B10) ->  | AB10: =IF(ISERROR(Z10/B10),"",Z10/B10) ->  | AC10: =(C10*kWh_Élect_to_kgGES+E10*IF(U_GNat="[m³]",m3_GazNat_to_kgGES,Conversion!$H$29)+G10*IF(U_Ma2="[l]",L_Mazout2_to_kgGES,Conversion!$H$31)+I10*IF(U_Ma6="[l]",L_Mazout6_to_kgGES,Conversion!$H$33)+K10*L_Mazout2_to_kgGES+M10*IF(U_Prop="[l]",L_Propane_to_kgGES,Conversion!$H$37)+O10*kg_Bois8_to_kgGES+Q10*kg_Bois35_to_kgGES+S10*lbs_vapeur_to_kgGES+U10*MBTU_eaurefroidie_to_kgGES+W10*MBTU_eauchaude_to_kgGES)/1000 -> 0 | AD10: =(IF(ISERROR(AC10/B10),0,(AC10/B10)))*1000 -> 0 | AE10: 106.5 | AF10: =SUM(AE9) -> 358.6 | AG10: 11
A11: =DATE(YEAR(A10),MONTH(A10)+1,DAY(A10)) -> 2013-06-01 | Y11: 0 | Z11: 0 | AC11: =(C11*kWh_Élect_to_kgGES+E11*IF(U_GNat="[m³]",m3_GazNat_to_kgGES,Conversion!$H$29)+G11*IF(U_Ma2="[l]",L_Mazout2_to_kgGES,Conversion!$H$31)+I11*IF(U_Ma6="[l]",L_Mazout6_to_kgGES,Conversion!$H$33)+K11*L_Mazout2_to_kgGES+M11*IF(U_Prop="[l]",L_Propane_to_kgGES,Conversion!$H$37)+O11*kg_Bois8_to_kgGES+Q11*kg_Bois35_to_kgGES+S11*lbs_vapeur_to_kgGES+U11*MBTU_eaurefroidie_to_kgGES+W11*MBTU_eauchaude_to_kgGES)/1000 -> 0 | AD11: 0 | AE11: 47.7 | AF11: =SUM(AE9:AE10) -> 465.1 | AG11: 10
A12: 2013-07-01 | Y12: 0 | Z12: 0 | AC12: =(C12*kWh_Élect_to_kgGES+E12*IF(U_GNat="[m³]",m3_GazNat_to_kgGES,Conversion!$H$29)+G12*IF(U_Ma2="[l]",L_Mazout2_to_kgGES,Conversion!$H$31)+I12*IF(U_Ma6="[l]",L_Mazout6_to_kgGES,Conversion!$H$33)+K12*L_Mazout2_to_kgGES+M12*IF(U_Prop="[l]",L_Propane_to_kgGES,Conversion!$H$37)+O12*kg_Bois8_to_kgGES+Q12*kg_Bois35_to_kgGES+S12*lbs_vapeur_to_kgGES+U12*MBTU_eaurefroidie_to_kgGES+W12*MBTU_eauchaude_to_kgGES)/1000 -> 0 | AD12: 0 | AE12: 4.1 | AF12: =SUM(AE9:AE11) -> 512.8 | AG12: 9
A13: 2013-08-01 | Y13: 0 | Z13: 0 | AC13: =(C13*kWh_Élect_to_kgGES+E13*IF(U_GNat="[m³]",m3_GazNat_to_kgGES,Conversion!$H$29)+G13*IF(U_Ma2="[l]",L_Mazout2_to_kgGES,Conversion!$H$31)+I13*IF(U_Ma6="[l]",L_Mazout6_to_kgGES,Conversion!$H$33)+K13*L_Mazout2_to_kgGES+M13*IF(U_Prop="[l]",L_Propane_to_kgGES,Conversion!$H$37)+O13*kg_Bois8_to_kgGES+Q13*kg_Bois35_to_kgGES+S13*lbs_vapeur_to_kgGES+U13*MBTU_eaurefroidie_to_kgGES+W13*MBTU_eauchaude_to_kgGES)/1000 -> 0 | AD13: 0 | AE13: 3.4 | AF13: =SUM(AE9:AE12) -> 516.9 | AG13: 8
A14: 2013-09-01 | Y14: 0 | Z14: 0 | AC14: =(C14*kWh_Élect_to_kgGES+E14*IF(U_GNat="[m³]",m3_GazNat_to_kgGES,Conversion!$H$29)+G14*IF(U_Ma2="[l]",L_Mazout2_to_kgGES,Conversion!$H$31)+I14*IF(U_Ma6="[l]",L_Mazout6_to_kgGES,Conversion!$H$33)+K14*L_Mazout2_to_kgGES+M14*IF(U_Prop="[l]",L_Propane_to_kgGES,Conversion!$H$37)+O14*kg_Bois8_to_kgGES+Q14*kg_Bois35_to_kgGES+S14*lbs_vapeur_to_kgGES+U14*MBTU_eaurefroidie_to_kgGES+W14*MBTU_eauchaude_to_kgGES)/1000 -> 0 | AD14: 0 | AE14: 99.5 | AF14: =SUM(AE9:AE13) -> 520.3 | AG14: 7
A15: 2013-10-01 | Y15: 0 | Z15: 0 | AC15: =(C15*kWh_Élect_to_kgGES+E15*IF(U_GNat="[m³]",m3_GazNat_to_kgGES,Conversion!$H$29)+G15*IF(U_Ma2="[l]",L_Mazout2_to_kgGES,Conversion!$H$31)+I15*IF(U_Ma6="[l]",L_Mazout6_to_kgGES,Conversion!$H$33)+K15*L_Mazout2_to_kgGES+M15*IF(U_Prop="[l]",L_Propane_to_kgGES,Conversion!$H$37)+O15*kg_Bois8_to_kgGES+Q15*kg_Bois35_to_kgGES+S15*lbs_vapeur_to_kgGES+U15*MBTU_eaurefroidie_to_kgGES+W15*MBTU_eauchaude_to_kgGES)/1000 -> 0 | AD15: 0 | AE15: 236.5 | AF15: =SUM(AE9:AE14) -> 619.8 | AG15: 6
A16: 2013-11-01 | Y16: 0 | Z16: 0 | AC16: =(C16*kWh_Élect_to_kgGES+E16*IF(U_GNat="[m³]",m3_GazNat_to_kgGES,Conversion!$H$29)+G16*IF(U_Ma2="[l]",L_Mazout2_to_kgGES,Conversion!$H$31)+I16*IF(U_Ma6="[l]",L_Mazout6_to_kgGES,Conversion!$H$33)+K16*L_Mazout2_to_kgGES+M16*IF(U_Prop="[l]",L_Propane_to_kgGES,Conversion!$H$37)+O16*kg_Bois8_to_kgGES+Q16*kg_Bois35_to_kgGES+S16*lbs_vapeur_to_kgGES+U16*MBTU_eaurefroidie_to_kgGES+W16*MBTU_eauchaude_to_kgGES)/1000 -> 0 | AD16: 0 | AE16: 514 | AF16: =SUM(AE9:AE15) -> 856.3 | AG16: 5
A17: 2013-12-01 | Y17: 0 | Z17: 0 | AC17: =(C17*kWh_Élect_to_kgGES+E17*IF(U_GNat="[m³]",m3_GazNat_to_kgGES,Conversion!$H$29)+G17*IF(U_Ma2="[l]",L_Mazout2_to_kgGES,Conversion!$H$31)+I17*IF(U_Ma6="[l]",L_Mazout6_to_kgGES,Conversion!$H$33)+K17*L_Mazout2_to_kgGES+M17*IF(U_Prop="[l]",L_Propane_to_kgGES,Conversion!$H$37)+O17*kg_Bois8_to_kgGES+Q17*kg_Bois35_to_kgGES+S17*lbs_vapeur_to_kgGES+U17*MBTU_eaurefroidie_to_kgGES+W17*MBTU_eauchaude_to_kgGES)/1000 -> 0 | AD17: 0 | AE17: 817.5 | AF17: =SUM(AE9:AE16) -> 1370.3 | AG17: 4
A18: 2014-01-01 | Y18: 0 | Z18: 0 | AC18: =(C18*kWh_Élect_to_kgGES+E18*IF(U_GNat="[m³]",m3_GazNat_to_kgGES,Conversion!$H$29)+G18*IF(U_Ma2="[l]",L_Mazout2_to_kgGES,Conversion!$H$31)+I18*IF(U_Ma6="[l]",L_Mazout6_to_kgGES,Conversion!$H$33)+K18*L_Mazout2_to_kgGES+M18*IF(U_Prop="[l]",L_Propane_to_kgGES,Conversion!$H$37)+O18*kg_Bois8_to_kgGES+Q18*kg_Bois35_to_kgGES+S18*lbs_vapeur_to_kgGES+U18*MBTU_eaurefroidie_to_kgGES+W18*MBTU_eauchaude_to_kgGES)/1000 -> 0 | AD18: 0 | AE18: 873.9 | AF18: =SUM(AE9:AE17) -> 2187.8 | AG18: 3
A19: 2014-02-01 | Y19: 0 | Z19: 0 | AC19: =(C19*kWh_Élect_to_kgGES+E19*IF(U_GNat="[m³]",m3_GazNat_to_kgGES,Conversion!$H$29)+G19*IF(U_Ma2="[l]",L_Mazout2_to_kgGES,Conversion!$H$31)+I19*IF(U_Ma6="[l]",L_Mazout6_to_kgGES,Conversion!$H$33)+K19*L_Mazout2_to_kgGES+M19*IF(U_Prop="[l]",L_Propane_to_kgGES,Conversion!$H$37)+O19*kg_Bois8_to_kgGES+Q19*kg_Bois35_to_kgGES+S19*lbs_vapeur_to_kgGES+U19*MBTU_eaurefroidie_to_kgGES+W19*MBTU_eauchaude_to_kgGES)/1000 -> 0 | AD19: 0 | AE19: 754.6 | AF19: =SUM(AE9:AE18) -> 3061.7 | AG19: 2
A20: 2014-03-01 | Y20: 0 | Z20: 0 | AC20: =(C20*kWh_Élect_to_kgGES+E20*IF(U_GNat="[m³]",m3_GazNat_to_kgGES,Conversion!$H$29)+G20*IF(U_Ma2="[l]",L_Mazout2_to_kgGES,Conversion!$H$31)+I20*IF(U_Ma6="[l]",L_Mazout6_to_kgGES,Conversion!$H$33)+K20*L_Mazout2_to_kgGES+M20*IF(U_Prop="[l]",L_Propane_to_kgGES,Conversion!$H$37)+O20*kg_Bois8_to_kgGES+Q20*kg_Bois35_to_kgGES+S20*lbs_vapeur_to_kgGES+U20*MBTU_eaurefroidie_to_kgGES+W20*MBTU_eauchaude_to_kgGES)/1000 -> 0 | AD20: 0 | AE20: 746.2 | AF20: =SUM(AE9:AE19) -> 3816.3 | AG20: 1
A21: TOTAL/moyenne | B21: =IF(ISERROR(AVERAGE(B9:B20)),0,AVERAGE(B9:B20)) -> 0 | C21: =SUM(C9:C20) -> 0 | D21: =SUM(D9:D20) -> 0 | E21: 0 | F21: 0 | G21: 0 | H21: 0 | I21: 0 | J21: 0 | K21: 0 | L21: 0 | M21: 0 | N21: 0 | O21: 0 | P21: 0 | Q21: 0 | R21: 0 | S21: 0 | T21: 0 | U21: 0 | V21: 0 | W21: 0 | X21: 0 | Y21: 0 | Z21: =D21+F21+H21+J21+L21+N21+P21+R21+T21+V21+X21 -> 0 | AA21: =IF(ISERROR(Y21/B21),"",Y21/B21) ->  | AB21: =IF(ISERROR(Z21/B21),"",Z21/B21) ->  | AC21: =(C21*kWh_Élect_to_kgGES+E21*IF(U_GNat="[m³]",m3_GazNat_to_kgGES,Conversion!$H$29)+G21*IF(U_Ma2="[l]",L_Mazout2_to_kgGES,Conversion!$H$31)+I21*IF(U_Ma6="[l]",L_Mazout6_to_kgGES,Conversion!$H$33)+K21*L_Mazout2_to_kgGES+M21*IF(U_Prop="[l]",L_Propane_to_kgGES,Conversion!$H$37)+O21*kg_Bois8_to_kgGES+Q21*kg_Bois35_to_kgGES+S21*lbs_vapeur_to_kgGES+U21*MBTU_eaurefroidie_to_kgGES+W21*MBTU_eauchaude_to_kgGES)/1000 -> 0 | AD21: =(IF(ISERROR(AC21/B21),0,(AC21/B21)))*1000 -> 0 | AE21: =SUM(AE9:AE20) -> 4562.5
A22: 2013 | B22: Sup_13-14 | C22: Elec_kWh_13-14 | D22: Elec_CAD_13-14 | E22: GN_m³_13-14 | F22: GN_CAD_13-14 | G22: Ma2_l_13-14 | H22: Ma2_CAD_13-14 | I22: Ma6_l_13-14 | J22: Ma6_CAD_13-14 | M22: Prop_l_13-14 | N22: Prop_CAD_13-14 | O22: Bois20_1000kg_13-14 | P22: Bois20_CAD_13-14 | Q22: Bois45_1000kg_13-14 | R22: Bois45_CAD_13-14 | Y22: GJ_Tot_13-14 | Z22: CAD_Tot_13-14 | AA22: GJm²_13-14 | AB22: CAD/m²_13-14 | AC22: GES_ton_13-14 | AD22: GES_ton/m²_13-14 | AE22: DJC_tot_13-14
A23: Nombre de bâtiments en propriété ou en location, pour lesquels des factures d'énergie sont payées par l'organisation :
A25: ATTENTION, la saisie des consommations d'énergie comporte une erreur si la cellule AA21 est ombragée d'une couleur ! | AA25: =Lim_bas -> 0 | AB25: =Lim_haut -> 0
A27: AJUSTEMENTS NON PÉRIODIQUES | C27: Un ajustement correspond à une modification majeure des équipements ou du bâtiment. Il peut avoir un effet positif ou négatif sur la consommation énergétique : - un effet positif correspond à une augmentation majeure de la consommation, à la suite par exemple de l'ajout d'un étage de bâtiment ou de l'ajout de climatisation d'une aile d'un bâtiment; - un effet négatif correspond à une diminution majeure de la consommation. Cette diminution ne résulte pas forcément d’une économie provenant d’une optimisation du bâtiment. Elle peut, par exemple, être attribuable à la fermeture d’une partie d'un bâtiment qui devient alors inoccupé. Exemple : L'ajout de locaux implique une augmentation nette des charges de chauffage et d'éclairage de 500 kWh, telles qu’elles sont calculées par une firme d'ingénieurs. Dans ce fichier, le projet, qui sera nommé « Agrandissement », impliquera une augmentation de l'électricité de 500 kWh. Comme il s'agit de chauffage, l'ajustement y est sensible. La date d'implantation correspond au mois où l’effet sur la consommation a été effectif. Si l'ajustement a eu un effet sur plus qu'une source d'énergie, merci de rajouter une ligne pour chaque source touchée.
B29: Projet | C29: Tendance de l'impact | D29: Source d'énergie touchée | E29: Impact Annuel | G29: Ajustement sensible au chauffage | H29: Date d'implantation | I29: Impact pour l'année complète [GJ] | J29: Impact pour l'année en cours [GJ] | X29: Énergie de l'année de référence ajustée | Y29: =((1-Facteur_variable)+Facteur_variable*DJC_tot_13_14/DJC_tot_09_10)*GJ_Tot_09_10+GJ_Ajust_NP_Cour_13_14 -> 0 | Z29: GJTotRef_Ajust_13_14
B30: Nom du projet no1 | F30: =IF(D30="électrique","kWh",IF(D30="Gaz naturel","m³",IF(LEFT(D30,1)="R","1000 kg","l"))) -> l | I30: =IF(COUNTA(G30)=1,IF(C30="Réduction",-1,IF(C30="Augmentation",1,0))*E30*INDEX(Conversion!$A$26:$J$42,MATCH(D30,Conversion!$J$26:$J$42,0),9),0) -> 0 | J30: =IF(G30="Non",I30*L30,IF(G30="Oui",I30*K30,0)) -> 0 | K30: =(DJC_tot_13_14-INDEX($A$9:$AF$20,MATCH(H30,$A$9:$A$20,0),24))/DJC_tot_13_14 ->  | L30: =INDEX($A$9:$AG$20,MATCH(H30,$A$9:$A$20,0),25)/12 ->  | X30: Énergie de l'année de suivi | Y30: =GJ_Tot_13_14 -> 0
B31: Nom du projet no2 | F31: =IF(D31="électrique","kWh",IF(D31="Gaz naturel","m³",IF(LEFT(D31,1)="R","1000 kg","l"))) -> l | I31: =IF(COUNTA(G31)=1,IF(C31="Réduction",-1,IF(C31="Augmentation",1,0))*E31*INDEX(Conversion!$A$26:$J$42,MATCH(D31,Conversion!$J$26:$J$42,0),9),0) -> 0 | J31: 0 | X31: Superficie de l'année de référence | Y31: =Sup_09_10 -> 0
B32: Nom du projet no3 | F32: l | I32: =IF(COUNTA(G32)=1,IF(C32="Réduction",-1,IF(C32="Augmentation",1,0))*E32*INDEX(Conversion!$A$26:$J$42,MATCH(D32,Conversion!$J$26:$J$42,0),9),0) -> 0 | J32: 0 | X32: Superficie de l'année de suivi | Y32: =Sup_13_14 -> 0
B33: Nom du projet no4 | F33: l | I33: =IF(COUNTA(G33)=1,IF(C33="Réduction",-1,IF(C33="Augmentation",1,0))*E33*INDEX(Conversion!$A$26:$J$42,MATCH(D33,Conversion!$J$26:$J$42,0),9),0) -> 0 | J33: 0 | Y33: =GJTotRef_Ajust_13_14/Sup_09_10 ->  | Z33: GJTotRef_Ajust_m²_13_14
B34: Nom du projet no5 | F34: l | I34: =IF(COUNTA(G34)=1,IF(C34="Réduction",-1,IF(C34="Augmentation",1,0))*E34*INDEX(Conversion!$A$26:$J$42,MATCH(D34,Conversion!$J$26:$J$42,0),9),0) -> 0 | J34: 0 | Y34: =J37 -> 0 | Z34: GJ_Ajust_NP_Cour_13_14
B35: Nom du projet no6 | F35: l | I35: =IF(COUNTA(G35)=1,IF(C35="Réduction",-1,IF(C35="Augmentation",1,0))*E35*INDEX(Conversion!$A$26:$J$42,MATCH(D35,Conversion!$J$26:$J$42,0),9),0) -> 0 | J35: 0 | Y35: =I37 -> 0 | Z35: GJ_Ajust_NP_annuel_13_14
B36: Nom du projet no7 | F36: l | I36: =IF(COUNTA(G36)=1,IF(C36="Réduction",-1,IF(C36="Augmentation",1,0))*E36*INDEX(Conversion!$A$26:$J$42,MATCH(D36,Conversion!$J$26:$J$42,0),9),0) -> 0 | J36: 0
B37: TOTAL | I37: =SUM(I30:I36) -> 0 | J37: =SUM(J30:J36) -> 0
C46: Réduction | D46: Électrique | G46: Oui
C47: Augmentation | D47: Gaz naturel | G47: Non
D48: Mazout n°2
D49: Mazout n°6
D50: Propane
D51: Résidus de bois (20%humidité)
D52: Résidus de bois (45%humidité)
D53: -

Sheet 2014-2015
C1: Système de suivi de la consommation énergétique dans les bâtiments
D2: Saisir les données énergétiques et les données sur les dépenses annuelles, avant taxes, dans les cellules ombragées en bleu pâle.
D3: Pour les fins du MERN, la saisie mensuelle des données est optionnelle. Les espaces pour saisir mensuellement les données sont mises à la disposition des MO afin de leur permettre de suivre périodiquement la consommation.
D4: Dans le cas où un projet ayant un effet sur la consommation énergétique a eu lieu au cours de l'année (rénovation, agrandissement, etc.),
D5: veuillez remplir la section « AJUSTEMENTS NON PÉRIODIQUES », ci-dessous.
A7: <-- Résumé | B7: Superficie | C7: Consommation électrique | E7: Gaz naturel | G7: Mazout n°2 | I7: Mazout n°6 | K7: Diesel (génératrice) | M7: Propane | O7: Résidus de bois (8% d'humidité) | Q7: Résidus de bois (35% d'humidité) | S7: Vapeur | U7: Eau refroidie | W7: Eau chaude | Y7: TOTAL | AA7: Intensité Énergétique | AC7: GES | AE7: DJC
B8: [m²] | C8: [kWh] | D8: [$] | E8: [m³] | F8: [$] | G8: [l] | H8: [$] | I8: [l] | J8: [$] | K8: [l] | L8: [$] | M8: [l] | N8: [$] | O8: [1000 kg MG] | P8: [$] | Q8: [1000 kg MG] | R8: [$] | S8: [lbs] | T8: [$] | U8: [MBTU] | V8: [$] | W8: [MBTU] | X8: [$] | Y8: [GJ] | Z8: [$] | AA8: [GJ/m²] | AB8: [$/m²] | AC8: [t CO2 éq.] | AD8: [kg CO2 éq./m²] | AE8: [° C]
A9: =VALUE(CONCATENATE(LEFT(Annee_financiere,FIND("-",Annee_financiere)-1),"-",A22)) -> 2014-04-01 | Y9: =C9*kWh_Élect_to_GJ+E9*m3_GazNat_to_GJ+G9*L_Mazout2_to_GJ+I9*L_Mazout6_to_GJ+K9*L_Mazout2_to_GJ+M9*L_Propane_to_GJ+O9*kg_Bois8_to_GJ+Q9*kg_Bois35_to_GJ+S9*lbs_vapeur_to_GJ+U9*MBTU_eaurefroidie_to_GJ+W9*MBTU_eauchaude_to_GJ -> 0 | Z9: =D9+F9+H9+J9+N9+P9+R9+T9+V9+X9+L9 -> 0 | AA9: =IF(ISERROR(Y9/B9),"",Y9/B9) ->  | AB9: =IF(ISERROR(Z9/B9),"",Z9/B9) ->  | AC9: =(C9*kWh_Élect_to_kgGES+E9*IF(U_GNat="[m³]",m3_GazNat_to_kgGES,Conversion!$H$29)+G9*IF(U_Ma2="[l]",L_Mazout2_to_kgGES,Conversion!$H$31)+I9*IF(U_Ma6="[l]",L_Mazout6_to_kgGES,Conversion!$H$33)+K9*L_Mazout2_to_kgGES+M9*IF(U_Prop="[l]",L_Propane_to_kgGES,Conversion!$H$37)+O9*kg_Bois8_to_kgGES+Q9*kg_Bois35_to_kgGES+S9*lbs_vapeur_to_kgGES+U9*MBTU_eaurefroidie_to_kgGES+W9*MBTU_eauchaude_to_kgGES)/1000 -> 0 | AD9: =(IF(ISERROR(AC9/B9),0,(AC9/B9)))*1000 -> 0 | AE9: =INDEX(plage_DJ,MATCH(A9,plage_date),3) -> 368.1 | AG9: 12
A10: =DATE(YEAR(A9),MONTH(A9)+1,DAY(A9)) -> 2014-05-01 | Y10: 0 | Z10: =D10+F10+H10+J10+N10+P10+R10+T10+V10+X10+L10 -> 0 | AA10: =IF(ISERROR(Y10/B10),"",Y10/B10) ->  | AB10: =IF(ISERROR(Z10/B10),"",Z10/B10) ->  | AC10: =(C10*kWh_Élect_to_kgGES+E10*IF(U_GNat="[m³]",m3_GazNat_to_kgGES,Conversion!$H$29)+G10*IF(U_Ma2="[l]",L_Mazout2_to_kgGES,Conversion!$H$31)+I10*IF(U_Ma6="[l]",L_Mazout6_to_kgGES,Conversion!$H$33)+K10*L_Mazout2_to_kgGES+M10*IF(U_Prop="[l]",L_Propane_to_kgGES,Conversion!$H$37)+O10*kg_Bois8_to_kgGES+Q10*kg_Bois35_to_kgGES+S10*lbs_vapeur_to_kgGES+U10*MBTU_eaurefroidie_to_kgGES+W10*MBTU_eauchaude_to_kgGES)/1000 -> 0 | AD10: =(IF(ISERROR(AC10/B10),0,(AC10/B10)))*1000 -> 0 | AE10: 118.9 | AF10: =SUM(AE9) -> 368.1 | AG10: 11
A11: =DATE(YEAR(A10),MONTH(A10)+1,DAY(A10)) -> 2014-06-01 | Y11: 0 | Z11: 0 | AC11: =(C11*kWh_Élect_to_kgGES+E11*IF(U_GNat="[m³]",m3_GazNat_to_kgGES,Conversion!$H$29)+G11*IF(U_Ma2="[l]",L_Mazout2_to_kgGES,Conversion!$H$31)+I11*IF(U_Ma6="[l]",L_Mazout6_to_kgGES,Conversion!$H$33)+K11*L_Mazout2_to_kgGES+M11*IF(U_Prop="[l]",L_Propane_to_kgGES,Conversion!$H$37)+O11*kg_Bois8_to_kgGES+Q11*kg_Bois35_to_kgGES+S11*lbs_vapeur_to_kgGES+U11*MBTU_eaurefroidie_to_kgGES+W11*MBTU_eauchaude_to_kgGES)/1000 -> 0 | AD11: 0 | AE11: 10.1 | AF11: =SUM(AE9:AE10) -> 487 | AG11: 10
A12: 2014-07-01 | Y12: 0 | Z12: 0 | AC12: =(C12*kWh_Élect_to_kgGES+E12*IF(U_GNat="[m³]",m3_GazNat_to_kgGES,Conversion!$H$29)+G12*IF(U_Ma2="[l]",L_Mazout2_to_kgGES,Conversion!$H$31)+I12*IF(U_Ma6="[l]",L_Mazout6_to_kgGES,Conversion!$H$33)+K12*L_Mazout2_to_kgGES+M12*IF(U_Prop="[l]",L_Propane_to_kgGES,Conversion!$H$37)+O12*kg_Bois8_to_kgGES+Q12*kg_Bois35_to_kgGES+S12*lbs_vapeur_to_kgGES+U12*MBTU_eaurefroidie_to_kgGES+W12*MBTU_eauchaude_to_kgGES)/1000 -> 0 | AD12: 0 | AE12: 2.9 | AF12: =SUM(AE9:AE11) -> 497.1 | AG12: 9
A13: 2014-08-01 | Y13: 0 | Z13: 0 | AC13: =(C13*kWh_Élect_to_kgGES+E13*IF(U_GNat="[m³]",m3_GazNat_to_kgGES,Conversion!$H$29)+G13*IF(U_Ma2="[l]",L_Mazout2_to_kgGES,Conversion!$H$31)+I13*IF(U_Ma6="[l]",L_Mazout6_to_kgGES,Conversion!$H$33)+K13*L_Mazout2_to_kgGES+M13*IF(U_Prop="[l]",L_Propane_to_kgGES,Conversion!$H$37)+O13*kg_Bois8_to_kgGES+Q13*kg_Bois35_to_kgGES+S13*lbs_vapeur_to_kgGES+U13*MBTU_eaurefroidie_to_kgGES+W13*MBTU_eauchaude_to_kgGES)/1000 -> 0 | AD13: 0 | AE13: 10.6 | AF13: =SUM(AE9:AE12) -> 500 | AG13: 8
A14: 2014-09-01 | Y14: 0 | Z14: 0 | AC14: =(C14*kWh_Élect_to_kgGES+E14*IF(U_GNat="[m³]",m3_GazNat_to_kgGES,Conversion!$H$29)+G14*IF(U_Ma2="[l]",L_Mazout2_to_kgGES,Conversion!$H$31)+I14*IF(U_Ma6="[l]",L_Mazout6_to_kgGES,Conversion!$H$33)+K14*L_Mazout2_to_kgGES+M14*IF(U_Prop="[l]",L_Propane_to_kgGES,Conversion!$H$37)+O14*kg_Bois8_to_kgGES+Q14*kg_Bois35_to_kgGES+S14*lbs_vapeur_to_kgGES+U14*MBTU_eaurefroidie_to_kgGES+W14*MBTU_eauchaude_to_kgGES)/1000 -> 0 | AD14: 0 | AE14: 97.6 | AF14: =SUM(AE9:AE13) -> 510.6 | AG14: 7
A15: 2014-10-01 | Y15: 0 | Z15: 0 | AC15: =(C15*kWh_Élect_to_kgGES+E15*IF(U_GNat="[m³]",m3_GazNat_to_kgGES,Conversion!$H$29)+G15*IF(U_Ma2="[l]",L_Mazout2_to_kgGES,Conversion!$H$31)+I15*IF(U_Ma6="[l]",L_Mazout6_to_kgGES,Conversion!$H$33)+K15*L_Mazout2_to_kgGES+M15*IF(U_Prop="[l]",L_Propane_to_kgGES,Conversion!$H$37)+O15*kg_Bois8_to_kgGES+Q15*kg_Bois35_to_kgGES+S15*lbs_vapeur_to_kgGES+U15*MBTU_eaurefroidie_to_kgGES+W15*MBTU_eauchaude_to_kgGES)/1000 -> 0 | AD15: 0 | AE15: 224.1 | AF15: =SUM(AE9:AE14) -> 608.2 | AG15: 6
A16: 2014-11-01 | Y16: 0 | Z16: 0 | AC16: =(C16*kWh_Élect_to_kgGES+E16*IF(U_GNat="[m³]",m3_GazNat_to_kgGES,Conversion!$H$29)+G16*IF(U_Ma2="[l]",L_Mazout2_to_kgGES,Conversion!$H$31)+I16*IF(U_Ma6="[l]",L_Mazout6_to_kgGES,Conversion!$H$33)+K16*L_Mazout2_to_kgGES+M16*IF(U_Prop="[l]",L_Propane_to_kgGES,Conversion!$H$37)+O16*kg_Bois8_to_kgGES+Q16*kg_Bois35_to_kgGES+S16*lbs_vapeur_to_kgGES+U16*MBTU_eaurefroidie_to_kgGES+W16*MBTU_eauchaude_to_kgGES)/1000 -> 0 | AD16: 0 | AE16: 484 | AF16: =SUM(AE9:AE15) -> 832.3 | AG16: 5
A17: 2014-12-01 | Y17: 0 | Z17: 0 | AC17: =(C17*kWh_Élect_to_kgGES+E17*IF(U_GNat="[m³]",m3_GazNat_to_kgGES,Conversion!$H$29)+G17*IF(U_Ma2="[l]",L_Mazout2_to_kgGES,Conversion!$H$31)+I17*IF(U_Ma6="[l]",L_Mazout6_to_kgGES,Conversion!$H$33)+K17*L_Mazout2_to_kgGES+M17*IF(U_Prop="[l]",L_Propane_to_kgGES,Conversion!$H$37)+O17*kg_Bois8_to_kgGES+Q17*kg_Bois35_to_kgGES+S17*lbs_vapeur_to_kgGES+U17*MBTU_eaurefroidie_to_kgGES+W17*MBTU_eauchaude_to_kgGES)/1000 -> 0 | AD17: 0 | AE17: 664.7 | AF17: =SUM(AE9:AE16) -> 1316.3 | AG17: 4
A18: 2015-01-01 | Y18: 0 | Z18: 0 | AC18: =(C18*kWh_Élect_to_kgGES+E18*IF(U_GNat="[m³]",m3_GazNat_to_kgGES,Conversion!$H$29)+G18*IF(U_Ma2="[l]",L_Mazout2_to_kgGES,Conversion!$H$31)+I18*IF(U_Ma6="[l]",L_Mazout6_to_kgGES,Conversion!$H$33)+K18*L_Mazout2_to_kgGES+M18*IF(U_Prop="[l]",L_Propane_to_kgGES,Conversion!$H$37)+O18*kg_Bois8_to_kgGES+Q18*kg_Bois35_to_kgGES+S18*lbs_vapeur_to_kgGES+U18*MBTU_eaurefroidie_to_kgGES+W18*MBTU_eauchaude_to_kgGES)/1000 -> 0 | AD18: 0 | AE18: 926.3 | AF18: =SUM(AE9:AE17) -> 1981 | AG18: 3
A19: 2015-02-01 | Y19: 0 | Z19: 0 | AC19: =(C19*kWh_Élect_to_kgGES+E19*IF(U_GNat="[m³]",m3_GazNat_to_kgGES,Conversion!$H$29)+G19*IF(U_Ma2="[l]",L_Mazout2_to_kgGES,Conversion!$H$31)+I19*IF(U_Ma6="[l]",L_Mazout6_to_kgGES,Conversion!$H$33)+K19*L_Mazout2_to_kgGES+M19*IF(U_Prop="[l]",L_Propane_to_kgGES,Conversion!$H$37)+O19*kg_Bois8_to_kgGES+Q19*kg_Bois35_to_kgGES+S19*lbs_vapeur_to_kgGES+U19*MBTU_eaurefroidie_to_kgGES+W19*MBTU_eauchaude_to_kgGES)/1000 -> 0 | AD19: 0 | AE19: 929.3 | AF19: =SUM(AE9:AE18) -> 2907.3 | AG19: 2
A20: 2015-03-01 | Y20: 0 | Z20: 0 | AC20: =(C20*kWh_Élect_to_kgGES+E20*IF(U_GNat="[m³]",m3_GazNat_to_kgGES,Conversion!$H$29)+G20*IF(U_Ma2="[l]",L_Mazout2_to_kgGES,Conversion!$H$31)+I20*IF(U_Ma6="[l]",L_Mazout6_to_kgGES,Conversion!$H$33)+K20*L_Mazout2_to_kgGES+M20*IF(U_Prop="[l]",L_Propane_to_kgGES,Conversion!$H$37)+O20*kg_Bois8_to_kgGES+Q20*kg_Bois35_to_kgGES+S20*lbs_vapeur_to_kgGES+U20*MBTU_eaurefroidie_to_kgGES+W20*MBTU_eauchaude_to_kgGES)/1000 -> 0 | AD20: 0 | AE20: 706.5 | AF20: =SUM(AE9:AE19) -> 3836.6 | AG20: 1
A21: TOTAL/moyenne | B21: =IF(ISERROR(AVERAGE(B9:B20)),0,AVERAGE(B9:B20)) -> 0 | C21: =SUM(C9:C20) -> 0 | D21: =SUM(D9:D20) -> 0 | E21: =SUM(E9:E20) -> 0 | F21: 0 | G21: 0 | H21: 0 | I21: 0 | J21: 0 | K21: 0 | L21: 0 | M21: 0 | N21: 0 | O21: 0 | P21: 0 | Q21: 0 | R21: 0 | S21: 0 | T21: 0 | U21: 0 | V21: 0 | W21: 0 | X21: 0 | Y21: 0 | Z21: =D21+F21+H21+J21+L21+N21+P21+R21+T21+V21+X21 -> 0 | AA21: =IF(ISERROR(Y21/B21),"",Y21/B21) ->  | AB21: =IF(ISERROR(Z21/B21),"",Z21/B21) ->  | AC21: =(C21*kWh_Élect_to_kgGES+E21*IF(U_GNat="[m³]",m3_GazNat_to_kgGES,Conversion!$H$29)+G21*IF(U_Ma2="[l]",L_Mazout2_to_kgGES,Conversion!$H$31)+I21*IF(U_Ma6="[l]",L_Mazout6_to_kgGES,Conversion!$H$33)+K21*L_Mazout2_to_kgGES+M21*IF(U_Prop="[l]",L_Propane_to_kgGES,Conversion!$H$37)+O21*kg_Bois8_to_kgGES+Q21*kg_Bois35_to_kgGES+S21*lbs_vapeur_to_kgGES+U21*MBTU_eaurefroidie_to_kgGES+W21*MBTU_eauchaude_to_kgGES)/1000 -> 0 | AD21: =(IF(ISERROR(AC21/B21),0,(AC21/B21)))*1000 -> 0 | AE21: =SUM(AE9:AE20) -> 4543.1
A22: 2014 | B22: Sup_14_15 | C22: Elec_kWh_14_15 | D22: Elec_CAD_14_15 | E22: GN_m³_14_15 | F22: GN_CAD_14_15 | G22: Ma2_l_14_15 | H22: Ma2_CAD_14_15 | I22: Ma6_l_14_15 | J22: Ma6_CAD_14_15 | M22: Prop_l_14_15 | N22: Prop_CAD_14_15 | O22: Bois20_1000kg_14_15 | P22: Bois20_CAD_14_15 | Q22: Bois45_1000kg_14_15 | R22: Bois45_CAD_14_15 | Y22: GJ_Tot_14_15 | Z22: CAD_Tot_14_15 | AA22: GJm²_14_15 | AB22: CAD/m²_14_15 | AC22: GES_ton_14_15 | AD22: GES_ton/m²_14_15 | AE22: DJC_tot_14_15
A23: Nombre de bâtiments en propriété ou location, pour lesquels des factures d'énergie sont payées par l'organisation :
A25: ATTENTION, la saisie des consommations d'énergie comporte une erreur si la cellule AA21 est ombragée d'une couleur ! | AA25: =Lim_bas -> 0 | AB25: =Lim_haut -> 0
A27: QUESTIONS SPÉCIFIQUES (cocher si applicable)
A29: 1.
A30: 2.
A31: 3.
A32: 4.
A33: 5.
A35: AJUSTEMENTS NON PÉRIODIQUE | C35: Un ajustement correspond à une modification majeure des équipements ou du bâtiment. Il peut avoir un effet positif ou négatif sur la consommation énergétique : - un effet positif correspond à une augmentation majeure de la consommation, à la suite par exemple de l'ajout d'un étage de bâtiment ou de l'ajout de climatisation d'une aile d'un bâtiment; - un effet négatif correspond à une diminution majeure de la consommation. Cette diminution ne résulte pas forcément d’une économie provenant d’une optimisation du bâtiment. Elle peut, par exemple, être attribuable à la fermeture d’une partie d'un bâtiment qui devient alors inoccupé. Exemple : L'ajout de locaux implique une augmentation nette des charges de chauffage et d'éclairage de 500 kWh, telles qu’elles sont calculées par une firme d'ingénieurs. Dans ce fichier, le projet, qui sera nommé « Agrandissement », impliquera une augmentation de l'électricité de 500 kWh. Comme il s'agit de chauffage, l'ajustement y est sensible. La date d'implantation correspond au mois où l’effet sur la consommation a été effectif. Si l'ajustement a eu un effet sur plus qu'une source d'énergie, merci de rajouter une ligne pour chaque source touchée.
B37: Projet | C37: Tendance de l'impact | D37: Source d'énergie touchée | E37: Impact Annuel | G37: Ajustement sensible au chauffage | H37: Date d'implantation | I37: Impact pour l'année complète [GJ] | J37: Impact pour l'année en cours [GJ] | Z37: Énergie de l'année de référence ajustée | AA37: =((1-Facteur_variable)+Facteur_variable*DJC_tot_14_15/DJC_tot_09_10)*GJ_Tot_09_10+GJ_Ajust_NP_Cour_14_15 -> 0 | AB37: GJTotRef_Ajust_14_15
B38: Nom du projet no1 | F38: =IF(D38="électrique","kWh",IF(D38="Gaz naturel","m³",IF(LEFT(D38,1)="R","1000 kg","l"))) -> l | I38: =IF(COUNTA(G38)=1,IF(C38="Réduction",-1,IF(C38="Augmentation",1,0))*E38*INDEX(Conversion!$A$26:$J$42,MATCH(D38,Conversion!$J$26:$J$42,0),9),0) -> 0 | J38: =IF(G38="Non",I38*L38,IF(G38="Oui",I38*K38,0)) -> 0 | K38: =(DJC_tot_15_16-INDEX($A$9:$AF$20,MATCH(H38,$A$9:$A$20,0),24))/DJC_tot_15_16 ->  | L38: =INDEX($A$9:$AG$20,MATCH(H38,$A$9:$A$20,0),25)/12 ->  | Z38: Énergie de l'année de suivi | AA38: =GJ_Tot_15_16 -> 0
B39: Nom du projet no2 | F39: =IF(D39="électrique","kWh",IF(D39="Gaz naturel","m³",IF(LEFT(D39,1)="R","1000 kg","l"))) -> l | I39: =IF(COUNTA(G39)=1,IF(C39="Réduction",-1,IF(C39="Augmentation",1,0))*E39*INDEX(Conversion!$A$26:$J$42,MATCH(D39,Conversion!$J$26:$J$42,0),9),0) -> 0 | J39: 0 | Z39: Superficie de l'année de référence | AA39: =Sup_09_10 -> 0
B40: Nom du projet no3 | F40: l | I40: =IF(COUNTA(G40)=1,IF(C40="Réduction",-1,IF(C40="Augmentation",1,0))*E40*INDEX(Conversion!$A$26:$J$42,MATCH(D40,Conversion!$J$26:$J$42,0),9),0) -> 0 | J40: 0 | Z40: Superficie de l'année de suivi | AA40: =Sup_15_16 -> 0
B41: Nom du projet no4 | F41: l | I41: =IF(COUNTA(G41)=1,IF(C41="Réduction",-1,IF(C41="Augmentation",1,0))*E41*INDEX(Conversion!$A$26:$J$42,MATCH(D41,Conversion!$J$26:$J$42,0),9),0) -> 0 | J41: 0 | AA41: =GJTotRef_Ajust_14_15/Sup_09_10 ->  | AB41: GJTotRef_Ajust_m²_14_15
B42: Nom du projet no5 | F42: l | I42: =IF(COUNTA(G42)=1,IF(C42="Réduction",-1,IF(C42="Augmentation",1,0))*E42*INDEX(Conversion!$A$26:$J$42,MATCH(D42,Conversion!$J$26:$J$42,0),9),0) -> 0 | J42: 0 | AA42: =J45 -> 0 | AB42: GJ_Ajust_NP_Cour_14_15
B43: Nom du projet no6 | F43: l | I43: =IF(COUNTA(G43)=1,IF(C43="Réduction",-1,IF(C43="Augmentation",1,0))*E43*INDEX(Conversion!$A$26:$J$42,MATCH(D43,Conversion!$J$26:$J$42,0),9),0) -> 0 | J43: 0 | AA43: =I45 -> 0 | AB43: GJ_Ajust_NP_annuel_14_15
B44: Nom du projet no7 | F44: l | I44: =IF(COUNTA(G44)=1,IF(C44="Réduction",-1,IF(C44="Augmentation",1,0))*E44*INDEX(Conversion!$A$26:$J$42,MATCH(D44,Conversion!$J$26:$J$42,0),9),0) -> 0 | J44: 0
B45: TOTAL | I45: =SUM(I38:I44) -> 0 | J45: =SUM(J38:J44) -> 0
C54: Réduction | D54: Électrique | G54: Oui
C55: Augmentation | D55: Gaz naturel | G55: Non
D56: Mazout n°2
D57: Mazout n°6
D58: Propane
D59: Résidus de bois (20%humidité)
D60: Résidus de bois (45%humidité)
D61: -

Sheet 2015-2016
C1: Système de suivi de la consommation énergétique dans les bâtiments
D2: Saisir les données énergétiques et les données sur les dépenses annuelles, avant taxes, dans les cellules ombragées en bleu pâle.
D3: Pour les fins du MERN, la saisie mensuelle des données est optionnelle. Les espaces pour saisir mensuellement les données sont mises à la disposition des MO afin de leur permettre de suivre périodiquement la consommation.
D4: Dans le cas où un projet ayant un effet sur la consommation énergétique a eu lieu au cours de l'année (rénovation, agrandissement, etc.),
D5: veuillez remplir la section « AJUSTEMENTS NON PÉRIODIQUES », ci-dessous.
A7: <-- Résumé | B7: Superficie | C7: Consommation électrique | E7: Gaz naturel | G7: Mazout n°2 | I7: Mazout n°6 | K7: Diesel (génératrice) | M7: Propane | O7: Résidus de bois (8% d'humidité) | Q7: Résidus de bois (35% d'humidité) | S7: Vapeur | U7: Eau refroidie | W7: Eau chaude | Y7: TOTAL | AA7: Intensité Énergétique | AC7: GES | AE7: DJC
B8: [m²] | C8: [kWh] | D8: [$] | E8: [m³] | F8: [$] | G8: [l] | H8: [$] | I8: [l] | J8: [$] | K8: [l] | L8: [$] | M8: [l] | N8: [$] | O8: [1000 kg MG] | P8: [$] | Q8: [1000 kg MG] | R8: [$] | S8: [lbs] | T8: [$] | U8: [MBTU] | V8: [$] | W8: [MBTU] | X8: [$] | Y8: [GJ] | Z8: [$] | AA8: [GJ/m²] | AB8: [$/m²] | AC8: [t CO2 éq.] | AD8: [kg CO2 éq./m²] | AE8: [° C]
A9: =VALUE(CONCATENATE(LEFT(Annee_financiere,FIND("-",Annee_financiere)-1),"-",A22)) -> 2015-04-01 | Y9: =C9*kWh_Élect_to_GJ+E9*m3_GazNat_to_GJ+G9*L_Mazout2_to_GJ+I9*L_Mazout6_to_GJ+K9*L_Mazout2_to_GJ+M9*L_Propane_to_GJ+O9*kg_Bois8_to_GJ+Q9*kg_Bois35_to_GJ+S9*lbs_vapeur_to_GJ+U9*MBTU_eaurefroidie_to_GJ+W9*MBTU_eauchaude_to_GJ -> 0 | Z9: =D9+F9+H9+J9+N9+P9+R9+T9+V9+X9+L9 -> 0 | AA9: =IF(ISERROR(Y9/B9),"",Y9/B9) ->  | AB9: =IF(ISERROR(Z9/B9),"",Z9/B9) ->  | AC9: =(C9*kWh_Élect_to_kgGES+E9*IF(U_GNat="[m³]",m3_GazNat_to_kgGES,Conversion!$H$29)+G9*IF(U_Ma2="[l]",L_Mazout2_to_kgGES,Conversion!$H$31)+I9*IF(U_Ma6="[l]",L_Mazout6_to_kgGES,Conversion!$H$33)+K9*L_Mazout2_to_kgGES+M9*IF(U_Prop="[l]",L_Propane_to_kgGES,Conversion!$H$37)+O9*kg_Bois8_to_kgGES+Q9*kg_Bois35_to_kgGES+S9*lbs_vapeur_to_kgGES+U9*MBTU_eaurefroidie_to_kgGES+W9*MBTU_eauchaude_to_kgGES)/1000 -> 0 | AD9: =(IF(ISERROR(AC9/B9),0,(AC9/B9)))*1000 -> 0 | AE9: =INDEX(plage_DJ,MATCH(A9,plage_date),3) -> 351.6 | AG9: 12
A10: =DATE(YEAR(A9),MONTH(A9)+1,DAY(A9)) -> 2015-05-01 | Y10: 0 | Z10: =D10+F10+H10+J10+N10+P10+R10+T10+V10+X10+L10 -> 0 | AA10: =IF(ISERROR(Y10/B10),"",Y10/B10) ->  | AB10: =IF(ISERROR(Z10/B10),"",Z10/B10) ->  | AC10: =(C10*kWh_Élect_to_kgGES+E10*IF(U_GNat="[m³]",m3_GazNat_to_kgGES,Conversion!$H$29)+G10*IF(U_Ma2="[l]",L_Mazout2_to_kgGES,Conversion!$H$31)+I10*IF(U_Ma6="[l]",L_Mazout6_to_kgGES,Conversion!$H$33)+K10*L_Mazout2_to_kgGES+M10*IF(U_Prop="[l]",L_Propane_to_kgGES,Conversion!$H$37)+O10*kg_Bois8_to_kgGES+Q10*kg_Bois35_to_kgGES+S10*lbs_vapeur_to_kgGES+U10*MBTU_eaurefroidie_to_kgGES+W10*MBTU_eauchaude_to_kgGES)/1000 -> 0 | AD10: =(IF(ISERROR(AC10/B10),0,(AC10/B10)))*1000 -> 0 | AE10: 73 | AF10: =SUM(AE9) -> 351.6 | AG10: 11
A11: =DATE(YEAR(A10),MONTH(A10)+1,DAY(A10)) -> 2015-06-01 | Y11: 0 | Z11: 0 | AC11: =(C11*kWh_Élect_to_kgGES+E11*IF(U_GNat="[m³]",m3_GazNat_to_kgGES,Conversion!$H$29)+G11*IF(U_Ma2="[l]",L_Mazout2_to_kgGES,Conversion!$H$31)+I11*IF(U_Ma6="[l]",L_Mazout6_to_kgGES,Conversion!$H$33)+K11*L_Mazout2_to_kgGES+M11*IF(U_Prop="[l]",L_Propane_to_kgGES,Conversion!$H$37)+O11*kg_Bois8_to_kgGES+Q11*kg_Bois35_to_kgGES+S11*lbs_vapeur_to_kgGES+U11*MBTU_eaurefroidie_to_kgGES+W11*MBTU_eauchaude_to_kgGES)/1000 -> 0 | AD11: 0 | AE11: 40.1 | AF11: =SUM(AE9:AE10) -> 424.6 | AG11: 10
A12: 2015-07-01 | Y12: 0 | Z12: 0 | AC12: =(C12*kWh_Élect_to_kgGES+E12*IF(U_GNat="[m³]",m3_GazNat_to_kgGES,Conversion!$H$29)+G12*IF(U_Ma2="[l]",L_Mazout2_to_kgGES,Conversion!$H$31)+I12*IF(U_Ma6="[l]",L_Mazout6_to_kgGES,Conversion!$H$33)+K12*L_Mazout2_to_kgGES+M12*IF(U_Prop="[l]",L_Propane_to_kgGES,Conversion!$H$37)+O12*kg_Bois8_to_kgGES+Q12*kg_Bois35_to_kgGES+S12*lbs_vapeur_to_kgGES+U12*MBTU_eaurefroidie_to_kgGES+W12*MBTU_eauchaude_to_kgGES)/1000 -> 0 | AD12: 0 | AE12: 1.1 | AF12: =SUM(AE9:AE11) -> 464.7 | AG12: 9
A13: 2015-08-01 | Y13: 0 | Z13: 0 | AC13: =(C13*kWh_Élect_to_kgGES+E13*IF(U_GNat="[m³]",m3_GazNat_to_kgGES,Conversion!$H$29)+G13*IF(U_Ma2="[l]",L_Mazout2_to_kgGES,Conversion!$H$31)+I13*IF(U_Ma6="[l]",L_Mazout6_to_kgGES,Conversion!$H$33)+K13*L_Mazout2_to_kgGES+M13*IF(U_Prop="[l]",L_Propane_to_kgGES,Conversion!$H$37)+O13*kg_Bois8_to_kgGES+Q13*kg_Bois35_to_kgGES+S13*lbs_vapeur_to_kgGES+U13*MBTU_eaurefroidie_to_kgGES+W13*MBTU_eauchaude_to_kgGES)/1000 -> 0 | AD13: 0 | AE13: 0.9 | AF13: =SUM(AE9:AE12) -> 465.8 | AG13: 8
A14: 2015-09-01 | Y14: 0 | Z14: 0 | AC14: =(C14*kWh_Élect_to_kgGES+E14*IF(U_GNat="[m³]",m3_GazNat_to_kgGES,Conversion!$H$29)+G14*IF(U_Ma2="[l]",L_Mazout2_to_kgGES,Conversion!$H$31)+I14*IF(U_Ma6="[l]",L_Mazout6_to_kgGES,Conversion!$H$33)+K14*L_Mazout2_to_kgGES+M14*IF(U_Prop="[l]",L_Propane_to_kgGES,Conversion!$H$37)+O14*kg_Bois8_to_kgGES+Q14*kg_Bois35_to_kgGES+S14*lbs_vapeur_to_kgGES+U14*MBTU_eaurefroidie_to_kgGES+W14*MBTU_eauchaude_to_kgGES)/1000 -> 0 | AD14: 0 | AE14: 39.5 | AF14: =SUM(AE9:AE13) -> 466.7 | AG14: 7
A15: 2015-10-01 | Y15: 0 | Z15: 0 | AC15: =(C15*kWh_Élect_to_kgGES+E15*IF(U_GNat="[m³]",m3_GazNat_to_kgGES,Conversion!$H$29)+G15*IF(U_Ma2="[l]",L_Mazout2_to_kgGES,Conversion!$H$31)+I15*IF(U_Ma6="[l]",L_Mazout6_to_kgGES,Conversion!$H$33)+K15*L_Mazout2_to_kgGES+M15*IF(U_Prop="[l]",L_Propane_to_kgGES,Conversion!$H$37)+O15*kg_Bois8_to_kgGES+Q15*kg_Bois35_to_kgGES+S15*lbs_vapeur_to_kgGES+U15*MBTU_eaurefroidie_to_kgGES+W15*MBTU_eauchaude_to_kgGES)/1000 -> 0 | AD15: 0 | AE15: 311.7 | AF15: =SUM(AE9:AE14) -> 506.2 | AG15: 6
A16: 2015-11-01 | Y16: 0 | Z16: 0 | AC16: =(C16*kWh_Élect_to_kgGES+E16*IF(U_GNat="[m³]",m3_GazNat_to_kgGES,Conversion!$H$29)+G16*IF(U_Ma2="[l]",L_Mazout2_to_kgGES,Conversion!$H$31)+I16*IF(U_Ma6="[l]",L_Mazout6_to_kgGES,Conversion!$H$33)+K16*L_Mazout2_to_kgGES+M16*IF(U_Prop="[l]",L_Propane_to_kgGES,Conversion!$H$37)+O16*kg_Bois8_to_kgGES+Q16*kg_Bois35_to_kgGES+S16*lbs_vapeur_to_kgGES+U16*MBTU_eaurefroidie_to_kgGES+W16*MBTU_eauchaude_to_kgGES)/1000 -> 0 | AD16: 0 | AE16: 384.2 | AF16: =SUM(AE9:AE15) -> 817.9 | AG16: 5
A17: 2015-12-01 | Y17: 0 | Z17: 0 | AC17: =(C17*kWh_Élect_to_kgGES+E17*IF(U_GNat="[m³]",m3_GazNat_to_kgGES,Conversion!$H$29)+G17*IF(U_Ma2="[l]",L_Mazout2_to_kgGES,Conversion!$H$31)+I17*IF(U_Ma6="[l]",L_Mazout6_to_kgGES,Conversion!$H$33)+K17*L_Mazout2_to_kgGES+M17*IF(U_Prop="[l]",L_Propane_to_kgGES,Conversion!$H$37)+O17*kg_Bois8_to_kgGES+Q17*kg_Bois35_to_kgGES+S17*lbs_vapeur_to_kgGES+U17*MBTU_eaurefroidie_to_kgGES+W17*MBTU_eauchaude_to_kgGES)/1000 -> 0 | AD17: 0 | AE17: 489.7 | AF17: =SUM(AE9:AE16) -> 1202.1 | AG17: 4
A18: 2016-01-01 | Y18: 0 | Z18: 0 | AC18: =(C18*kWh_Élect_to_kgGES+E18*IF(U_GNat="[m³]",m3_GazNat_to_kgGES,Conversion!$H$29)+G18*IF(U_Ma2="[l]",L_Mazout2_to_kgGES,Conversion!$H$31)+I18*IF(U_Ma6="[l]",L_Mazout6_to_kgGES,Conversion!$H$33)+K18*L_Mazout2_to_kgGES+M18*IF(U_Prop="[l]",L_Propane_to_kgGES,Conversion!$H$37)+O18*kg_Bois8_to_kgGES+Q18*kg_Bois35_to_kgGES+S18*lbs_vapeur_to_kgGES+U18*MBTU_eaurefroidie_to_kgGES+W18*MBTU_eauchaude_to_kgGES)/1000 -> 0 | AD18: 0 | AE18: 723 | AF18: =SUM(AE9:AE17) -> 1691.8 | AG18: 3
A19: 2016-02-01 | Y19: 0 | Z19: 0 | AC19: =(C19*kWh_Élect_to_kgGES+E19*IF(U_GNat="[m³]",m3_GazNat_to_kgGES,Conversion!$H$29)+G19*IF(U_Ma2="[l]",L_Mazout2_to_kgGES,Conversion!$H$31)+I19*IF(U_Ma6="[l]",L_Mazout6_to_kgGES,Conversion!$H$33)+K19*L_Mazout2_to_kgGES+M19*IF(U_Prop="[l]",L_Propane_to_kgGES,Conversion!$H$37)+O19*kg_Bois8_to_kgGES+Q19*kg_Bois35_to_kgGES+S19*lbs_vapeur_to_kgGES+U19*MBTU_eaurefroidie_to_kgGES+W19*MBTU_eauchaude_to_kgGES)/1000 -> 0 | AD19: 0 | AE19: 641.8 | AF19: =SUM(AE9:AE18) -> 2414.8 | AG19: 2
A20: 2016-03-01 | Y20: 0 | Z20: 0 | AC20: =(C20*kWh_Élect_to_kgGES+E20*IF(U_GNat="[m³]",m3_GazNat_to_kgGES,Conversion!$H$29)+G20*IF(U_Ma2="[l]",L_Mazout2_to_kgGES,Conversion!$H$31)+I20*IF(U_Ma6="[l]",L_Mazout6_to_kgGES,Conversion!$H$33)+K20*L_Mazout2_to_kgGES+M20*IF(U_Prop="[l]",L_Propane_to_kgGES,Conversion!$H$37)+O20*kg_Bois8_to_kgGES+Q20*kg_Bois35_to_kgGES+S20*lbs_vapeur_to_kgGES+U20*MBTU_eaurefroidie_to_kgGES+W20*MBTU_eauchaude_to_kgGES)/1000 -> 0 | AD20: 0 | AE20: 554.8 | AF20: =SUM(AE9:AE19) -> 3056.6 | AG20: 1
A21: TOTAL/moyenne | B21: =IF(ISERROR(AVERAGE(B9:B20)),0,AVERAGE(B9:B20)) -> 0 | C21: =SUM(C9:C20) -> 0 | D21: =SUM(D9:D20) -> 0 | E21: =SUM(E9:E20) -> 0 | F21: 0 | G21: 0 | H21: 0 | I21: 0 | J21: 0 | K21: 0 | L21: 0 | M21: 0 | N21: 0 | O21: 0 | P21: 0 | Q21: 0 | R21: 0 | S21: 0 | T21: 0 | U21: 0 | V21: 0 | W21: 0 | X21: 0 | Y21: 0 | Z21: =D21+F21+H21+J21+L21+N21+P21+R21+T21+V21+X21 -> 0 | AA21: =IF(ISERROR(Y21/B21),"",Y21/B21) ->  | AB21: =IF(ISERROR(Z21/B21),"",Z21/B21) ->  | AC21: =(C21*kWh_Élect_to_kgGES+E21*IF(U_GNat="[m³]",m3_GazNat_to_kgGES,Conversion!$H$29)+G21*IF(U_Ma2="[l]",L_Mazout2_to_kgGES,Conversion!$H$31)+I21*IF(U_Ma6="[l]",L_Mazout6_to_kgGES,Conversion!$H$33)+K21*L_Mazout2_to_kgGES+M21*IF(U_Prop="[l]",L_Propane_to_kgGES,Conversion!$H$37)+O21*kg_Bois8_to_kgGES+Q21*kg_Bois35_to_kgGES+S21*lbs_vapeur_to_kgGES+U21*MBTU_eaurefroidie_to_kgGES+W21*MBTU_eauchaude_to_kgGES)/1000 -> 0 | AD21: =(IF(ISERROR(AC21/B21),0,(AC21/B21)))*1000 -> 0 | AE21: =SUM(AE9:AE20) -> 3611.4
A22: 2015 | B22: Sup_15_16 | C22: Elec_kWh_15_16 | D22: Elec_CAD_15_16 | E22: GN_m³_15_16 | F22: GN_CAD_15_16 | G22: Ma2_l_15_16 | H22: Ma2_CAD_15_16 | I22: Ma6_l_15_16 | J22: Ma6_CAD_15_16 | M22: Prop_l_15_16 | N22: Prop_CAD_15_16 | O22: Bois20_1000kg_15_16 | P22: Bois20_CAD_15_16 | Q22: Bois45_1000kg_15_16 | R22: Bois45_CAD_15_16 | Y22: GJ_Tot_15_16 | Z22: CAD_Tot_15_16 | AA22: GJm²_15_16 | AB22: CAD/m²_15_16 | AC22: GES_ton_15_16 | AD22: GES_ton/m²_15_16 | AE22: DJC_tot_15_16
A23: Nombre de bâtiments en propriété ou location, pour lesquels des factures d'énergie sont payées par l'organisation :
A25: ATTENTION, la saisie des consommations d'énergie comporte une erreur si la cellule AA21 est ombragée d'une couleur ! | AA25: =Lim_bas -> 0 | AB25: =Lim_haut -> 0
A27: QUESTIONS SPÉCIFIQUES (cocher si applicable)
A29: 1.
A30: 2.
A31: 3.
A32: 4.
A33: 5.
A35: AJUSTEMENTS NON PÉRIODIQUE | C35: Un ajustement correspond à une modification majeure des équipements ou du bâtiment. Il peut avoir un effet positif ou négatif sur la consommation énergétique : - un effet positif correspond à une augmentation majeure de la consommation, à la suite par exemple de l'ajout d'un étage de bâtiment ou de l'ajout de climatisation d'une aile d'un bâtiment; - un effet négatif correspond à une diminution majeure de la consommation. Cette diminution ne résulte pas forcément d’une économie provenant d’une optimisation du bâtiment. Elle peut, par exemple, être attribuable à la fermeture d’une partie d'un bâtiment qui devient alors inoccupé. Exemple : L'ajout de locaux implique une augmentation nette des charges de chauffage et d'éclairage de 500 kWh, telles qu’elles sont calculées par une firme d'ingénieurs. Dans ce fichier, le projet, qui sera nommé « Agrandissement », impliquera une augmentation de l'électricité de 500 kWh. Comme il s'agit de chauffage, l'ajustement y est sensible. La date d'implantation correspond au mois où l’effet sur la consommation a été effectif. Si l'ajustement a eu un effet sur plus qu'une source d'énergie, merci de rajouter une ligne pour chaque source touchée.
B37: Projet | C37: Tendance de l'impact | D37: Source d'énergie touchée | E37: Impact Annuel | G37: Ajustement sensible au chauffage | H37: Date d'implantation | I37: Impact pour l'année complète [GJ] | J37: Impact pour l'année en cours [GJ] | Z37: Énergie de l'année de référence ajustée | AA37: =((1-Facteur_variable)+Facteur_variable*DJC_tot_15_16/DJC_tot_09_10)*GJ_Tot_09_10+GJ_Ajust_NP_Cour_15_16 -> 0 | AB37: GJTotRef_Ajust_15_16
B38: Nom du projet no1 | F38: =IF(D38="électrique","kWh",IF(D38="Gaz naturel","m³",IF(LEFT(D38,1)="R","1000 kg","l"))) -> l | I38: =IF(COUNTA(G38)=1,IF(C38="Réduction",-1,IF(C38="Augmentation",1,0))*E38*INDEX(Conversion!$A$26:$J$42,MATCH(D38,Conversion!$J$26:$J$42,0),9),0) -> 0 | J38: =IF(G38="Non",I38*L38,IF(G38="Oui",I38*K38,0)) -> 0 | K38: =(DJC_tot_15_16-INDEX($A$9:$AF$20,MATCH(H38,$A$9:$A$20,0),24))/DJC_tot_15_16 ->  | L38: =INDEX($A$9:$AG$20,MATCH(H38,$A$9:$A$20,0),25)/12 ->  | Z38: Énergie de l'année de suivi | AA38: =GJ_Tot_15_16 -> 0
B39: Nom du projet no2 | F39: =IF(D39="électrique","kWh",IF(D39="Gaz naturel","m³",IF(LEFT(D39,1)="R","1000 kg","l"))) -> l | I39: =IF(COUNTA(G39)=1,IF(C39="Réduction",-1,IF(C39="Augmentation",1,0))*E39*INDEX(Conversion!$A$26:$J$42,MATCH(D39,Conversion!$J$26:$J$42,0),9),0) -> 0 | J39: 0 | Z39: Superficie de l'année de référence | AA39: =Sup_09_10 -> 0
B40: Nom du projet no3 | F40: l | I40: =IF(COUNTA(G40)=1,IF(C40="Réduction",-1,IF(C40="Augmentation",1,0))*E40*INDEX(Conversion!$A$26:$J$42,MATCH(D40,Conversion!$J$26:$J$42,0),9),0) -> 0 | J40: 0 | Z40: Superficie de l'année de suivi | AA40: =Sup_15_16 -> 0
B41: Nom du projet no4 | F41: l | I41: =IF(COUNTA(G41)=1,IF(C41="Réduction",-1,IF(C41="Augmentation",1,0))*E41*INDEX(Conversion!$A$26:$J$42,MATCH(D41,Conversion!$J$26:$J$42,0),9),0) -> 0 | J41: 0 | AA41: =GJTotRef_Ajust_15_16/Sup_09_10 ->  | AB41: GJTotRef_Ajust_m²_15_16
B42: Nom du projet no5 | F42: l | I42: =IF(COUNTA(G42)=1,IF(C42="Réduction",-1,IF(C42="Augmentation",1,0))*E42*INDEX(Conversion!$A$26:$J$42,MATCH(D42,Conversion!$J$26:$J$42,0),9),0) -> 0 | J42: 0 | AA42: =J45 -> 0 | AB42: GJ_Ajust_NP_Cour_15_16
B43: Nom du projet no6 | F43: l | I43: =IF(COUNTA(G43)=1,IF(C43="Réduction",-1,IF(C43="Augmentation",1,0))*E43*INDEX(Conversion!$A$26:$J$42,MATCH(D43,Conversion!$J$26:$J$42,0),9),0) -> 0 | J43: 0 | AA43: =I45 -> 0 | AB43: GJ_Ajust_NP_annuel_15_16
B44: Nom du projet no7 | F44: l | I44: =IF(COUNTA(G44)=1,IF(C44="Réduction",-1,IF(C44="Augmentation",1,0))*E44*INDEX(Conversion!$A$26:$J$42,MATCH(D44,Conversion!$J$26:$J$42,0),9),0) -> 0 | J44: 0
B45: TOTAL | I45: =SUM(I38:I44) -> 0 | J45: =SUM(J38:J44) -> 0
C54: Réduction | D54: Électrique | G54: Oui
C55: Augmentation | D55: Gaz naturel | G55: Non
D56: Mazout n°2
D57: Mazout n°6
D58: Propane
D59: Résidus de bois (20%humidité)
D60: Résidus de bois (45%humidité)
D61: -

Sheet 2016-2017
C1: Système de suivi de la consommation énergétique dans les bâtiments
D2: Saisir les données énergétiques et les données sur les dépenses annuelles, avant taxes, dans les cellules ombragées en bleu pâle.
D3: Pour les fins du MERN, la saisie mensuelle des données est optionnelle. Les espaces pour saisir mensuellement les données sont mises à la disposition des MO afin de leur permettre de suivre périodiquement la consommation.
D4: Dans le cas où un projet ayant un effet sur la consommation énergétique a eu lieu au cours de l'année (rénovation, agrandissement, etc.),
D5: veuillez remplir la section « AJUSTEMENTS NON PÉRIODIQUES », ci-dessous.
A7: <-- Résumé | B7: Superficie | C7: Consommation électrique | E7: Gaz naturel | G7: Mazout n°2 | I7: Mazout n°6 | K7: Diesel (génératrice) | M7: Propane | O7: Résidus de bois (8% d'humidité) | Q7: Résidus de bois (35% d'humidité) | S7: Vapeur | U7: Eau refroidie | W7: Eau chaude | Y7: TOTAL | AA7: Intensité Énergétique | AC7: GES | AE7: DJC
B8: [m²] | C8: [kWh] | D8: [$] | E8: [m³] | F8: [$] | G8: [l] | H8: [$] | I8: [l] | J8: [$] | K8: [l] | L8: [$] | M8: [l] | N8: [$] | O8: [1000 kg MG] | P8: [$] | Q8: [1000 kg MG] | R8: [$] | S8: [lbs] | T8: [$] | U8: [MBTU] | V8: [$] | W8: [MBTU] | X8: [$] | Y8: [GJ] | Z8: [$] | AA8: [GJ/m²] | AB8: [$/m²] | AC8: [t CO2 éq.] | AD8: [kg CO2 éq./m²] | AE8: [° C]
A9: =VALUE(CONCATENATE(LEFT(Annee_financiere,FIND("-",Annee_financiere)-1),"-",A22)) -> 2016-04-01 | Y9: =C9*kWh_Élect_to_GJ+E9*m3_GazNat_to_GJ+G9*L_Mazout2_to_GJ+I9*L_Mazout6_to_GJ+K9*L_Mazout2_to_GJ+M9*L_Propane_to_GJ+O9*kg_Bois8_to_GJ+Q9*kg_Bois35_to_GJ+S9*lbs_vapeur_to_GJ+U9*MBTU_eaurefroidie_to_GJ+W9*MBTU_eauchaude_to_GJ -> 0 | Z9: =D9+F9+H9+J9+N9+P9+R9+T9+V9+X9+L9 -> 0 | AA9: =IF(ISERROR(Y9/B9),"",Y9/B9) ->  | AB9: =IF(ISERROR(Z9/B9),"",Z9/B9) ->  | AC9: =(C9*kWh_Élect_to_kgGES+E9*IF(U_GNat="[m³]",m3_GazNat_to_kgGES,Conversion!$H$29)+G9*IF(U_Ma2="[l]",L_Mazout2_to_kgGES,Conversion!$H$31)+I9*IF(U_Ma6="[l]",L_Mazout6_to_kgGES,Conversion!$H$33)+K9*L_Mazout2_to_kgGES+M9*IF(U_Prop="[l]",L_Propane_to_kgGES,Conversion!$H$37)+O9*kg_Bois8_to_kgGES+Q9*kg_Bois35_to_kgGES+S9*lbs_vapeur_to_kgGES+U9*MBTU_eaurefroidie_to_kgGES+W9*MBTU_eauchaude_to_kgGES)/1000 -> 0 | AD9: =(IF(ISERROR(AC9/B9),0,(AC9/B9)))*1000 -> 0 | AE9: =INDEX(plage_DJ,MATCH(A9,plage_date),3) -> 417.7 | AG9: 12
A10: =DATE(YEAR(A9),MONTH(A9)+1,DAY(A9)) -> 2016-05-01 | Y10: =C10*kWh_Élect_to_GJ+E10*m3_GazNat_to_GJ+G10*L_Mazout2_to_GJ+I10*L_Mazout6_to_GJ+K10*L_Mazout2_to_GJ+M10*L_Propane_to_GJ+O10*kg_Bois8_to_GJ+Q10*kg_Bois35_to_GJ+S10*lbs_vapeur_to_GJ+U10*MBTU_eaurefroidie_to_GJ+W10*MBTU_eauchaude_to_GJ -> 0 | Z10: =D10+F10+H10+J10+N10+P10+R10+T10+V10+X10+L10 -> 0 | AA10: =IF(ISERROR(Y10/B10),"",Y10/B10) ->  | AB10: =IF(ISERROR(Z10/B10),"",Z10/B10) ->  | AC10: =(C10*kWh_Élect_to_kgGES+E10*IF(U_GNat="[m³]",m3_GazNat_to_kgGES,Conversion!$H$29)+G10*IF(U_Ma2="[l]",L_Mazout2_to_kgGES,Conversion!$H$31)+I10*IF(U_Ma6="[l]",L_Mazout6_to_kgGES,Conversion!$H$33)+K10*L_Mazout2_to_kgGES+M10*IF(U_Prop="[l]",L_Propane_to_kgGES,Conversion!$H$37)+O10*kg_Bois8_to_kgGES+Q10*kg_Bois35_to_kgGES+S10*lbs_vapeur_to_kgGES+U10*MBTU_eaurefroidie_to_kgGES+W10*MBTU_eauchaude_to_kgGES)/1000 -> 0 | AD10: =(IF(ISERROR(AC10/B10),0,(AC10/B10)))*1000 -> 0 | AE10: 132.2 | AF10: =SUM(AE9) -> 417.7 | AG10: 11
A11: =DATE(YEAR(A10),MONTH(A10)+1,DAY(A10)) -> 2016-06-01 | Y11: 0 | Z11: 0 | AC11: =(C11*kWh_Élect_to_kgGES+E11*IF(U_GNat="[m³]",m3_GazNat_to_kgGES,Conversion!$H$29)+G11*IF(U_Ma2="[l]",L_Mazout2_to_kgGES,Conversion!$H$31)+I11*IF(U_Ma6="[l]",L_Mazout6_to_kgGES,Conversion!$H$33)+K11*L_Mazout2_to_kgGES+M11*IF(U_Prop="[l]",L_Propane_to_kgGES,Conversion!$H$37)+O11*kg_Bois8_to_kgGES+Q11*kg_Bois35_to_kgGES+S11*lbs_vapeur_to_kgGES+U11*MBTU_eaurefroidie_to_kgGES+W11*MBTU_eauchaude_to_kgGES)/1000 -> 0 | AD11: 0 | AE11: 31.2 | AF11: =SUM(AE9:AE10) -> 549.9 | AG11: 10
A12: 2016-07-01 | Y12: 0 | Z12: 0 | AC12: =(C12*kWh_Élect_to_kgGES+E12*IF(U_GNat="[m³]",m3_GazNat_to_kgGES,Conversion!$H$29)+G12*IF(U_Ma2="[l]",L_Mazout2_to_kgGES,Conversion!$H$31)+I12*IF(U_Ma6="[l]",L_Mazout6_to_kgGES,Conversion!$H$33)+K12*L_Mazout2_to_kgGES+M12*IF(U_Prop="[l]",L_Propane_to_kgGES,Conversion!$H$37)+O12*kg_Bois8_to_kgGES+Q12*kg_Bois35_to_kgGES+S12*lbs_vapeur_to_kgGES+U12*MBTU_eaurefroidie_to_kgGES+W12*MBTU_eauchaude_to_kgGES)/1000 -> 0 | AD12: 0 | AE12: 3.4 | AF12: =SUM(AE9:AE11) -> 581.1 | AG12: 9
A13: 2016-08-01 | Y13: 0 | Z13: 0 | AC13: =(C13*kWh_Élect_to_kgGES+E13*IF(U_GNat="[m³]",m3_GazNat_to_kgGES,Conversion!$H$29)+G13*IF(U_Ma2="[l]",L_Mazout2_to_kgGES,Conversion!$H$31)+I13*IF(U_Ma6="[l]",L_Mazout6_to_kgGES,Conversion!$H$33)+K13*L_Mazout2_to_kgGES+M13*IF(U_Prop="[l]",L_Propane_to_kgGES,Conversion!$H$37)+O13*kg_Bois8_to_kgGES+Q13*kg_Bois35_to_kgGES+S13*lbs_vapeur_to_kgGES+U13*MBTU_eaurefroidie_to_kgGES+W13*MBTU_eauchaude_to_kgGES)/1000 -> 0 | AD13: 0 | AE13: 0.6 | AF13: =SUM(AE9:AE12) -> 584.5 | AG13: 8
A14: 2016-09-01 | Y14: 0 | Z14: 0 | AC14: =(C14*kWh_Élect_to_kgGES+E14*IF(U_GNat="[m³]",m3_GazNat_to_kgGES,Conversion!$H$29)+G14*IF(U_Ma2="[l]",L_Mazout2_to_kgGES,Conversion!$H$31)+I14*IF(U_Ma6="[l]",L_Mazout6_to_kgGES,Conversion!$H$33)+K14*L_Mazout2_to_kgGES+M14*IF(U_Prop="[l]",L_Propane_to_kgGES,Conversion!$H$37)+O14*kg_Bois8_to_kgGES+Q14*kg_Bois35_to_kgGES+S14*lbs_vapeur_to_kgGES+U14*MBTU_eaurefroidie_to_kgGES+W14*MBTU_eauchaude_to_kgGES)/1000 -> 0 | AD14: 0 | AE14: 48 | AF14: =SUM(AE9:AE13) -> 585.1 | AG14: 7
A15: 2016-10-01 | Y15: 0 | Z15: 0 | AC15: =(C15*kWh_Élect_to_kgGES+E15*IF(U_GNat="[m³]",m3_GazNat_to_kgGES,Conversion!$H$29)+G15*IF(U_Ma2="[l]",L_Mazout2_to_kgGES,Conversion!$H$31)+I15*IF(U_Ma6="[l]",L_Mazout6_to_kgGES,Conversion!$H$33)+K15*L_Mazout2_to_kgGES+M15*IF(U_Prop="[l]",L_Propane_to_kgGES,Conversion!$H$37)+O15*kg_Bois8_to_kgGES+Q15*kg_Bois35_to_kgGES+S15*lbs_vapeur_to_kgGES+U15*MBTU_eaurefroidie_to_kgGES+W15*MBTU_eauchaude_to_kgGES)/1000 -> 0 | AD15: 0 | AE15: 254.1 | AF15: =SUM(AE9:AE14) -> 633.1 | AG15: 6
A16: 2016-11-01 | Y16: 0 | Z16: 0 | AC16: =(C16*kWh_Élect_to_kgGES+E16*IF(U_GNat="[m³]",m3_GazNat_to_kgGES,Conversion!$H$29)+G16*IF(U_Ma2="[l]",L_Mazout2_to_kgGES,Conversion!$H$31)+I16*IF(U_Ma6="[l]",L_Mazout6_to_kgGES,Conversion!$H$33)+K16*L_Mazout2_to_kgGES+M16*IF(U_Prop="[l]",L_Propane_to_kgGES,Conversion!$H$37)+O16*kg_Bois8_to_kgGES+Q16*kg_Bois35_to_kgGES+S16*lbs_vapeur_to_kgGES+U16*MBTU_eaurefroidie_to_kgGES+W16*MBTU_eauchaude_to_kgGES)/1000 -> 0 | AD16: 0 | AE16: 406.9 | AF16: =SUM(AE9:AE15) -> 887.2 | AG16: 5
A17: 2016-12-01 | Y17: 0 | Z17: 0 | AC17: =(C17*kWh_Élect_to_kgGES+E17*IF(U_GNat="[m³]",m3_GazNat_to_kgGES,Conversion!$H$29)+G17*IF(U_Ma2="[l]",L_Mazout2_to_kgGES,Conversion!$H$31)+I17*IF(U_Ma6="[l]",L_Mazout6_to_kgGES,Conversion!$H$33)+K17*L_Mazout2_to_kgGES+M17*IF(U_Prop="[l]",L_Propane_to_kgGES,Conversion!$H$37)+O17*kg_Bois8_to_kgGES+Q17*kg_Bois35_to_kgGES+S17*lbs_vapeur_to_kgGES+U17*MBTU_eaurefroidie_to_kgGES+W17*MBTU_eauchaude_to_kgGES)/1000 -> 0 | AD17: 0 | AE17: 690.4 | AF17: =SUM(AE9:AE16) -> 1294.1 | AG17: 4
A18: 2017-01-01 | Y18: 0 | Z18: 0 | AC18: =(C18*kWh_Élect_to_kgGES+E18*IF(U_GNat="[m³]",m3_GazNat_to_kgGES,Conversion!$H$29)+G18*IF(U_Ma2="[l]",L_Mazout2_to_kgGES,Conversion!$H$31)+I18*IF(U_Ma6="[l]",L_Mazout6_to_kgGES,Conversion!$H$33)+K18*L_Mazout2_to_kgGES+M18*IF(U_Prop="[l]",L_Propane_to_kgGES,Conversion!$H$37)+O18*kg_Bois8_to_kgGES+Q18*kg_Bois35_to_kgGES+S18*lbs_vapeur_to_kgGES+U18*MBTU_eaurefroidie_to_kgGES+W18*MBTU_eauchaude_to_kgGES)/1000 -> 0 | AD18: 0 | AE18: 699 | AF18: =SUM(AE9:AE17) -> 1984.5 | AG18: 3
A19: 2017-02-01 | Y19: 0 | Z19: 0 | AC19: =(C19*kWh_Élect_to_kgGES+E19*IF(U_GNat="[m³]",m3_GazNat_to_kgGES,Conversion!$H$29)+G19*IF(U_Ma2="[l]",L_Mazout2_to_kgGES,Conversion!$H$31)+I19*IF(U_Ma6="[l]",L_Mazout6_to_kgGES,Conversion!$H$33)+K19*L_Mazout2_to_kgGES+M19*IF(U_Prop="[l]",L_Propane_to_kgGES,Conversion!$H$37)+O19*kg_Bois8_to_kgGES+Q19*kg_Bois35_to_kgGES+S19*lbs_vapeur_to_kgGES+U19*MBTU_eaurefroidie_to_kgGES+W19*MBTU_eauchaude_to_kgGES)/1000 -> 0 | AD19: 0 | AE19: 607.5 | AF19: =SUM(AE9:AE18) -> 2683.5 | AG19: 2
A20: 2017-03-01 | Y20: 0 | Z20: 0 | AC20: =(C20*kWh_Élect_to_kgGES+E20*IF(U_GNat="[m³]",m3_GazNat_to_kgGES,Conversion!$H$29)+G20*IF(U_Ma2="[l]",L_Mazout2_to_kgGES,Conversion!$H$31)+I20*IF(U_Ma6="[l]",L_Mazout6_to_kgGES,Conversion!$H$33)+K20*L_Mazout2_to_kgGES+M20*IF(U_Prop="[l]",L_Propane_to_kgGES,Conversion!$H$37)+O20*kg_Bois8_to_kgGES+Q20*kg_Bois35_to_kgGES+S20*lbs_vapeur_to_kgGES+U20*MBTU_eaurefroidie_to_kgGES+W20*MBTU_eauchaude_to_kgGES)/1000 -> 0 | AD20: 0 | AE20: 660.9 | AF20: =SUM(AE9:AE19) -> 3291 | AG20: 1
A21: TOTAL/moyenne | B21: =IF(ISERROR(AVERAGE(B9:B20)),0,AVERAGE(B9:B20)) -> 0 | C21: =SUM(C9:C20) -> 0 | D21: =SUM(D9:D20) -> 0 | E21: =SUM(E9:E20) -> 0 | F21: 0 | G21: 0 | H21: 0 | I21: 0 | J21: 0 | K21: 0 | L21: 0 | M21: 0 | N21: 0 | O21: 0 | P21: 0 | Q21: 0 | R21: 0 | S21: 0 | T21: 0 | U21: 0 | V21: 0 | W21: 0 | X21: 0 | Y21: =C21*kWh_Élect_to_GJ+E21*m3_GazNat_to_GJ+G21*L_Mazout2_to_GJ+I21*L_Mazout6_to_GJ+K21*L_Mazout2_to_GJ+M21*L_Propane_to_GJ+O21*kg_Bois8_to_GJ+Q21*kg_Bois35_to_GJ+S21*lbs_vapeur_to_GJ+U21*MBTU_eaurefroidie_to_GJ+W21*MBTU_eauchaude_to_GJ -> 0 | Z21: =D21+F21+H21+J21+L21+N21+P21+R21+T21+V21+X21 -> 0 | AA21: =IF(ISERROR(Y21/B21),"",Y21/B21) ->  | AB21: =IF(ISERROR(Z21/B21),"",Z21/B21) ->  | AC21: =(C21*kWh_Élect_to_kgGES+E21*IF(U_GNat="[m³]",m3_GazNat_to_kgGES,Conversion!$H$29)+G21*IF(U_Ma2="[l]",L_Mazout2_to_kgGES,Conversion!$H$31)+I21*IF(U_Ma6="[l]",L_Mazout6_to_kgGES,Conversion!$H$33)+K21*L_Mazout2_to_kgGES+M21*IF(U_Prop="[l]",L_Propane_to_kgGES,Conversion!$H$37)+O21*kg_Bois8_to_kgGES+Q21*kg_Bois35_to_kgGES+S21*lbs_vapeur_to_kgGES+U21*MBTU_eaurefroidie_to_kgGES+W21*MBTU_eauchaude_to_kgGES)/1000 -> 0 | AD21: =(IF(ISERROR(AC21/B21),0,(AC21/B21)))*1000 -> 0 | AE21: =SUM(AE9:AE20) -> 3951.9
A22: 2016 | B22: Sup_16_17 | C22: Elec_kWh_16_17 | D22: Elec_CAD_16_17 | E22: GN_m³_16_17 | F22: GN_CAD_16_17 | G22: Ma2_l_16_17 | H22: Ma2_CAD_16_17 | I22: Ma6_l_16_17 | J22: Ma6_CAD_16_17 | M22: Prop_l_16_17 | N22: Prop_CAD_16_17 | O22: Bois20_1000kg_16_17 | P22: Bois20_CAD_16_17 | Q22: Bois45_1000kg_16_17 | R22: Bois45_CAD_16_17 | Y22: GJ_Tot_16_17 | Z22: CAD_Tot_16_17 | AA22: GJm²_16_17 | AB22: CAD/m²_16_17 | AC22: GES_ton_16_17 | AD22: GES_ton/m²_16_17 | AE22: DJC_tot_16_17
A23: Nombre de bâtiments en propriété ou location, pour lesquels des factures d'énergie sont payées par l'organisation :
A25: ATTENTION, la saisie des consommations d'énergie comporte une erreur si la cellule AA21 est ombragée d'une couleur ! | AA25: =Lim_bas -> 0 | AB25: =Lim_haut -> 0
A27: QUESTIONS SPÉCIFIQUES (cocher si applicable)
A29: 1.
A30: 2.
A31: 3.
A32: 4.
A33: 5.
A35: AJUSTEMENTS NON PÉRIODIQUE | C35: Un ajustement correspond à une modification majeure des équipements ou du bâtiment. Il peut avoir un effet positif ou négatif sur la consommation énergétique : - un effet positif correspond à une augmentation majeure de la consommation, à la suite par exemple de l'ajout d'un étage de bâtiment ou de l'ajout de climatisation d'une aile d'un bâtiment; - un effet négatif correspond à une diminution majeure de la consommation. Cette diminution ne résulte pas forcément d’une économie provenant d’une optimisation du bâtiment. Elle peut, par exemple, être attribuable à la fermeture d’une partie d'un bâtiment qui devient alors inoccupé. Exemple : L'ajout de locaux implique une augmentation nette des charges de chauffage et d'éclairage de 500 kWh, telles qu’elles sont calculées par une firme d'ingénieurs. Dans ce fichier, le projet, qui sera nommé « Agrandissement », impliquera une augmentation de l'électricité de 500 kWh. Comme il s'agit de chauffage, l'ajustement y est sensible. La date d'implantation correspond au mois où l’effet sur la consommation a été effectif. Si l'ajustement a eu un effet sur plus qu'une source d'énergie, merci de rajouter une ligne pour chaque source touchée.
B37: Projet | C37: Tendance de l'impact | D37: Source d'énergie touchée | E37: Impact Annuel | G37: Ajustement sensible au chauffage | H37: Date d'implantation | I37: Impact pour l'année complète [GJ] | J37: Impact pour l'année en cours [GJ] | Z37: Énergie de l'année de référence ajustée | AA37: =((1-Facteur_variable)+Facteur_variable*DJC_tot_16_17/DJC_tot_09_10)*GJ_Tot_09_10+GJ_Ajust_NP_Cour_16_17 -> 0 | AB37: GJTotRef_Ajust_16_17
B38: Nom du projet no1 | F38: =IF(D38="électrique","kWh",IF(D38="Gaz naturel","m³",IF(LEFT(D38,1)="R","1000 kg","l"))) -> l | I38: =IF(COUNTA(G38)=1,IF(C38="Réduction",-1,IF(C38="Augmentation",1,0))*E38*INDEX(Conversion!$A$26:$J$42,MATCH(D38,Conversion!$J$26:$J$42,0),9),0) -> 0 | J38: =IF(G38="Non",I38*L38,IF(G38="Oui",I38*K38,0)) -> 0 | K38: =(DJC_tot_16_17-INDEX($A$9:$AF$20,MATCH(H38,$A$9:$A$20,0),24))/DJC_tot_16_17 ->  | L38: =INDEX($A$9:$AG$20,MATCH(H38,$A$9:$A$20,0),25)/12 ->  | Z38: Énergie de l'année de suivi | AA38: =GJ_Tot_16_17 -> 0
B39: Nom du projet no2 | F39: =IF(D39="électrique","kWh",IF(D39="Gaz naturel","m³",IF(LEFT(D39,1)="R","1000 kg","l"))) -> l | I39: =IF(COUNTA(G39)=1,IF(C39="Réduction",-1,IF(C39="Augmentation",1,0))*E39*INDEX(Conversion!$A$26:$J$42,MATCH(D39,Conversion!$J$26:$J$42,0),9),0) -> 0 | J39: 0 | Z39: Superficie de l'année de référence | AA39: =Sup_09_10 -> 0
B40: Nom du projet no3 | F40: l | I40: =IF(COUNTA(G40)=1,IF(C40="Réduction",-1,IF(C40="Augmentation",1,0))*E40*INDEX(Conversion!$A$26:$J$42,MATCH(D40,Conversion!$J$26:$J$42,0),9),0) -> 0 | J40: 0 | Z40: Superficie de l'année de suivi | AA40: =Sup_16_17 -> 0
B41: Nom du projet no4 | F41: l | I41: =IF(COUNTA(G41)=1,IF(C41="Réduction",-1,IF(C41="Augmentation",1,0))*E41*INDEX(Conversion!$A$26:$J$42,MATCH(D41,Conversion!$J$26:$J$42,0),9),0) -> 0 | J41: 0 | AA41: =GJTotRef_Ajust_16_17/Sup_09_10 ->  | AB41: GJTotRef_Ajust_m²_16_17
B42: Nom du projet no5 | F42: l | I42: =IF(COUNTA(G42)=1,IF(C42="Réduction",-1,IF(C42="Augmentation",1,0))*E42*INDEX(Conversion!$A$26:$J$42,MATCH(D42,Conversion!$J$26:$J$42,0),9),0) -> 0 | J42: 0 | AA42: =J45 -> 0 | AB42: GJ_Ajust_NP_Cour_16_17
B43: Nom du projet no6 | F43: l | I43: =IF(COUNTA(G43)=1,IF(C43="Réduction",-1,IF(C43="Augmentation",1,0))*E43*INDEX(Conversion!$A$26:$J$42,MATCH(D43,Conversion!$J$26:$J$42,0),9),0) -> 0 | J43: 0 | AA43: =I45 -> 0 | AB43: GJ_Ajust_NP_annuel_16_17
B44: Nom du projet no7 | F44: l | I44: =IF(COUNTA(G44)=1,IF(C44="Réduction",-1,IF(C44="Augmentation",1,0))*E44*INDEX(Conversion!$A$26:$J$42,MATCH(D44,Conversion!$J$26:$J$42,0),9),0) -> 0 | J44: 0
B45: TOTAL | I45: =SUM(I38:I44) -> 0 | J45: =SUM(J38:J44) -> 0
C54: Réduction | D54: Électrique | G54: Oui
C55: Augmentation | D55: Gaz naturel | G55: Non
D56: Mazout n°2
D57: Mazout n°6
D58: Propane
D59: Résidus de bois (20%humidité)
D60: Résidus de bois (45%humidité)
D61: -

Sheet 2017-2018
D2: Saisir les données énergétiques et les données sur les dépenses annuelles, avant taxes, dans les cellules ombragées en bleu pâle.
D3: Pour les fins du MERN, la saisie mensuelle des données est optionnelle. Les espaces pour saisir mensuellement les données sont mises à la disposition des MO afin de leur permettre de suivre périodiquement la consommation.
D4: Dans le cas où un projet ayant un effet sur la consommation énergétique a eu lieu au cours de l'année (rénovation, agrandissement, etc.),
D5: veuillez remplir la section « AJUSTEMENTS NON PÉRIODIQUES », ci-dessous.
A7: <-- Résumé | B7: Superficie | C7: Consommation électrique | E7: Gaz naturel | G7: Mazout n°2 | I7: Mazout n°6 | K7: Diesel (génératrice) | M7: Propane | O7: Résidus de bois (20% d'humidité) | Q7: Résidus de bois (45% d'humidité) | S7: Vapeur | U7: Eau refroidie | W7: Eau chaude | Y7: TOTAL | AA7: Intensité Énergétique | AC7: GES | AE7: DJC
B8: [m²] | C8: [kWh] | D8: [$] | E8: [m³] | F8: [$] | G8: [l] | H8: [$] | I8: [l] | J8: [$] | K8: [l] | L8: [$] | M8: [l] | N8: [$] | O8: [1000 kg MG] | P8: [$] | Q8: [1000 kg MG] | R8: [$] | S8: [lbs] | T8: [$] | U8: [MBTU] | V8: [$] | W8: [MBTU] | X8: [$] | Y8: [GJ] | Z8: [$] | AA8: [GJ/m²] | AB8: [$/m²] | AC8: [Ton CO2 eq] | AD8: [kg CO2 eq/m²] | AE8: [° C]
A9: =VALUE(CONCATENATE(LEFT(Annee_financiere,FIND("-",Annee_financiere)-1),"-",A22)) -> 2017-04-01 | Y9: =C9*kWh_Élect_to_GJ+E9*m3_GazNat_to_GJ+G9*L_Mazout2_to_GJ+I9*L_Mazout6_to_GJ+K9*L_Mazout2_to_GJ+M9*L_Propane_to_GJ+O9*kg_Bois8_to_GJ+Q9*kg_Bois35_to_GJ+S9*lbs_vapeur_to_GJ+U9*MBTU_eaurefroidie_to_GJ+W9*MBTU_eauchaude_to_GJ -> 0 | Z9: =D9+F9+H9+J9+N9+P9+R9+T9+V9+X9+L9 -> 0 | AA9: =IF(ISERROR(Y9/B9),"",Y9/B9) ->  | AB9: =IF(ISERROR(Z9/B9),"",Z9/B9) ->  | AC9: =(C9*kWh_Élect_to_kgGES+E9*IF(U_GNat="[m³]",m3_GazNat_to_kgGES,Conversion!$H$29)+G9*IF(U_Ma2="[l]",L_Mazout2_to_kgGES,Conversion!$H$31)+I9*IF(U_Ma6="[l]",L_Mazout6_to_kgGES,Conversion!$H$33)+K9*L_Mazout2_to_kgGES+M9*IF(U_Prop="[l]",L_Propane_to_kgGES,Conversion!$H$37)+O9*kg_Bois8_to_kgGES+Q9*kg_Bois35_to_kgGES+S9*lbs_vapeur_to_kgGES+U9*MBTU_eaurefroidie_to_kgGES+W9*MBTU_eauchaude_to_kgGES)/1000 -> 0 | AD9: =(IF(ISERROR(AC9/B9),0,(AC9/B9)))*1000 -> 0 | AE9: =INDEX(plage_DJ,MATCH(A9,plage_date),3) -> 300.7 | AG9: 12
A10: =DATE(YEAR(A9),MONTH(A9)+1,DAY(A9)) -> 2017-05-01 | Y10: =C10*kWh_Élect_to_GJ+E10*m3_GazNat_to_GJ+G10*L_Mazout2_to_GJ+I10*L_Mazout6_to_GJ+K10*L_Mazout2_to_GJ+M10*L_Propane_to_GJ+O10*kg_Bois8_to_GJ+Q10*kg_Bois35_to_GJ+S10*lbs_vapeur_to_GJ+U10*MBTU_eaurefroidie_to_GJ+W10*MBTU_eauchaude_to_GJ -> 0 | Z10: =D10+F10+H10+J10+N10+P10+R10+T10+V10+X10+L10 -> 0 | AC10: =(C10*kWh_Élect_to_kgGES+E10*IF(U_GNat="[m³]",m3_GazNat_to_kgGES,Conversion!$H$29)+G10*IF(U_Ma2="[l]",L_Mazout2_to_kgGES,Conversion!$H$31)+I10*IF(U_Ma6="[l]",L_Mazout6_to_kgGES,Conversion!$H$33)+K10*L_Mazout2_to_kgGES+M10*IF(U_Prop="[l]",L_Propane_to_kgGES,Conversion!$H$37)+O10*kg_Bois8_to_kgGES+Q10*kg_Bois35_to_kgGES+S10*lbs_vapeur_to_kgGES+U10*MBTU_eaurefroidie_to_kgGES+W10*MBTU_eauchaude_to_kgGES)/1000 -> 0 | AD10: 0 | AE10: 157.3 | AF10: =SUM(AE9) -> 300.7 | AG10: 11
A11: =DATE(YEAR(A10),MONTH(A10)+1,DAY(A10)) -> 2017-06-01 | Y11: 0 | Z11: 0 | AC11: =(C11*kWh_Élect_to_kgGES+E11*IF(U_GNat="[m³]",m3_GazNat_to_kgGES,Conversion!$H$29)+G11*IF(U_Ma2="[l]",L_Mazout2_to_kgGES,Conversion!$H$31)+I11*IF(U_Ma6="[l]",L_Mazout6_to_kgGES,Conversion!$H$33)+K11*L_Mazout2_to_kgGES+M11*IF(U_Prop="[l]",L_Propane_to_kgGES,Conversion!$H$37)+O11*kg_Bois8_to_kgGES+Q11*kg_Bois35_to_kgGES+S11*lbs_vapeur_to_kgGES+U11*MBTU_eaurefroidie_to_kgGES+W11*MBTU_eauchaude_to_kgGES)/1000 -> 0 | AD11: 0 | AE11: 30.2 | AF11: =SUM(AE9:AE10) -> 458 | AG11: 10
A12: 2017-07-01 | Y12: 0 | Z12: 0 | AC12: =(C12*kWh_Élect_to_kgGES+E12*IF(U_GNat="[m³]",m3_GazNat_to_kgGES,Conversion!$H$29)+G12*IF(U_Ma2="[l]",L_Mazout2_to_kgGES,Conversion!$H$31)+I12*IF(U_Ma6="[l]",L_Mazout6_to_kgGES,Conversion!$H$33)+K12*L_Mazout2_to_kgGES+M12*IF(U_Prop="[l]",L_Propane_to_kgGES,Conversion!$H$37)+O12*kg_Bois8_to_kgGES+Q12*kg_Bois35_to_kgGES+S12*lbs_vapeur_to_kgGES+U12*MBTU_eaurefroidie_to_kgGES+W12*MBTU_eauchaude_to_kgGES)/1000 -> 0 | AD12: 0 | AE12: 0.8 | AF12: =SUM(AE9:AE11) -> 488.2 | AG12: 9
A13: 2017-08-01 | Y13: 0 | Z13: 0 | AC13: =(C13*kWh_Élect_to_kgGES+E13*IF(U_GNat="[m³]",m3_GazNat_to_kgGES,Conversion!$H$29)+G13*IF(U_Ma2="[l]",L_Mazout2_to_kgGES,Conversion!$H$31)+I13*IF(U_Ma6="[l]",L_Mazout6_to_kgGES,Conversion!$H$33)+K13*L_Mazout2_to_kgGES+M13*IF(U_Prop="[l]",L_Propane_to_kgGES,Conversion!$H$37)+O13*kg_Bois8_to_kgGES+Q13*kg_Bois35_to_kgGES+S13*lbs_vapeur_to_kgGES+U13*MBTU_eaurefroidie_to_kgGES+W13*MBTU_eauchaude_to_kgGES)/1000 -> 0 | AD13: 0 | AE13: 14 | AF13: =SUM(AE9:AE12) -> 489 | AG13: 8
A14: 2017-09-01 | Y14: 0 | Z14: 0 | AC14: =(C14*kWh_Élect_to_kgGES+E14*IF(U_GNat="[m³]",m3_GazNat_to_kgGES,Conversion!$H$29)+G14*IF(U_Ma2="[l]",L_Mazout2_to_kgGES,Conversion!$H$31)+I14*IF(U_Ma6="[l]",L_Mazout6_to_kgGES,Conversion!$H$33)+K14*L_Mazout2_to_kgGES+M14*IF(U_Prop="[l]",L_Propane_to_kgGES,Conversion!$H$37)+O14*kg_Bois8_to_kgGES+Q14*kg_Bois35_to_kgGES+S14*lbs_vapeur_to_kgGES+U14*MBTU_eaurefroidie_to_kgGES+W14*MBTU_eauchaude_to_kgGES)/1000 -> 0 | AD14: 0 | AE14: 51.8 | AF14: =SUM(AE9:AE13) -> 503 | AG14: 7
A15: 2017-10-01 | Y15: 0 | Z15: 0 | AC15: =(C15*kWh_Élect_to_kgGES+E15*IF(U_GNat="[m³]",m3_GazNat_to_kgGES,Conversion!$H$29)+G15*IF(U_Ma2="[l]",L_Mazout2_to_kgGES,Conversion!$H$31)+I15*IF(U_Ma6="[l]",L_Mazout6_to_kgGES,Conversion!$H$33)+K15*L_Mazout2_to_kgGES+M15*IF(U_Prop="[l]",L_Propane_to_kgGES,Conversion!$H$37)+O15*kg_Bois8_to_kgGES+Q15*kg_Bois35_to_kgGES+S15*lbs_vapeur_to_kgGES+U15*MBTU_eaurefroidie_to_kgGES+W15*MBTU_eauchaude_to_kgGES)/1000 -> 0 | AD15: 0 | AE15: 14 | AF15: =SUM(AE9:AE14) -> 554.8 | AG15: 6
A16: 2017-11-01 | Y16: 0 | Z16: 0 | AC16: =(C16*kWh_Élect_to_kgGES+E16*IF(U_GNat="[m³]",m3_GazNat_to_kgGES,Conversion!$H$29)+G16*IF(U_Ma2="[l]",L_Mazout2_to_kgGES,Conversion!$H$31)+I16*IF(U_Ma6="[l]",L_Mazout6_to_kgGES,Conversion!$H$33)+K16*L_Mazout2_to_kgGES+M16*IF(U_Prop="[l]",L_Propane_to_kgGES,Conversion!$H$37)+O16*kg_Bois8_to_kgGES+Q16*kg_Bois35_to_kgGES+S16*lbs_vapeur_to_kgGES+U16*MBTU_eaurefroidie_to_kgGES+W16*MBTU_eauchaude_to_kgGES)/1000 -> 0 | AD16: 0 | AE16: 479.5 | AF16: =SUM(AE9:AE15) -> 568.8 | AG16: 5
A17: 2017-12-01 | Y17: 0 | Z17: 0 | AC17: =(C17*kWh_Élect_to_kgGES+E17*IF(U_GNat="[m³]",m3_GazNat_to_kgGES,Conversion!$H$29)+G17*IF(U_Ma2="[l]",L_Mazout2_to_kgGES,Conversion!$H$31)+I17*IF(U_Ma6="[l]",L_Mazout6_to_kgGES,Conversion!$H$33)+K17*L_Mazout2_to_kgGES+M17*IF(U_Prop="[l]",L_Propane_to_kgGES,Conversion!$H$37)+O17*kg_Bois8_to_kgGES+Q17*kg_Bois35_to_kgGES+S17*lbs_vapeur_to_kgGES+U17*MBTU_eaurefroidie_to_kgGES+W17*MBTU_eauchaude_to_kgGES)/1000 -> 0 | AD17: 0 | AE17: 823.6 | AF17: =SUM(AE9:AE16) -> 1048.3 | AG17: 4
A18: 2018-01-01 | Y18: 0 | Z18: 0 | AC18: =(C18*kWh_Élect_to_kgGES+E18*IF(U_GNat="[m³]",m3_GazNat_to_kgGES,Conversion!$H$29)+G18*IF(U_Ma2="[l]",L_Mazout2_to_kgGES,Conversion!$H$31)+I18*IF(U_Ma6="[l]",L_Mazout6_to_kgGES,Conversion!$H$33)+K18*L_Mazout2_to_kgGES+M18*IF(U_Prop="[l]",L_Propane_to_kgGES,Conversion!$H$37)+O18*kg_Bois8_to_kgGES+Q18*kg_Bois35_to_kgGES+S18*lbs_vapeur_to_kgGES+U18*MBTU_eaurefroidie_to_kgGES+W18*MBTU_eauchaude_to_kgGES)/1000 -> 0 | AD18: 0 | AE18: 859.2 | AF18: =SUM(AE9:AE17) -> 1871.9 | AG18: 3
A19: 2018-02-01 | Y19: 0 | Z19: 0 | AC19: =(C19*kWh_Élect_to_kgGES+E19*IF(U_GNat="[m³]",m3_GazNat_to_kgGES,Conversion!$H$29)+G19*IF(U_Ma2="[l]",L_Mazout2_to_kgGES,Conversion!$H$31)+I19*IF(U_Ma6="[l]",L_Mazout6_to_kgGES,Conversion!$H$33)+K19*L_Mazout2_to_kgGES+M19*IF(U_Prop="[l]",L_Propane_to_kgGES,Conversion!$H$37)+O19*kg_Bois8_to_kgGES+Q19*kg_Bois35_to_kgGES+S19*lbs_vapeur_to_kgGES+U19*MBTU_eaurefroidie_to_kgGES+W19*MBTU_eauchaude_to_kgGES)/1000 -> 0 | AD19: 0 | AE19: 631.8 | AF19: =SUM(AE9:AE18) -> 2731.1 | AG19: 2
A20: 2018-03-01 | Y20: 0 | Z20: 0 | AC20: =(C20*kWh_Élect_to_kgGES+E20*IF(U_GNat="[m³]",m3_GazNat_to_kgGES,Conversion!$H$29)+G20*IF(U_Ma2="[l]",L_Mazout2_to_kgGES,Conversion!$H$31)+I20*IF(U_Ma6="[l]",L_Mazout6_to_kgGES,Conversion!$H$33)+K20*L_Mazout2_to_kgGES+M20*IF(U_Prop="[l]",L_Propane_to_kgGES,Conversion!$H$37)+O20*kg_Bois8_to_kgGES+Q20*kg_Bois35_to_kgGES+S20*lbs_vapeur_to_kgGES+U20*MBTU_eaurefroidie_to_kgGES+W20*MBTU_eauchaude_to_kgGES)/1000 -> 0 | AD20: 0 | AE20: 586.5 | AF20: =SUM(AE9:AE19) -> 3362.9 | AG20: 1
A21: TOTAL/moyenne | B21: =IF(ISERROR(AVERAGE(B9:B20)),0,AVERAGE(B9:B20)) -> 0 | C21: =SUM(C9:C20) -> 0 | D21: =SUM(D9:D20) -> 0 | E21: =SUM(E9:E20) -> 0 | F21: =SUM(F9:F20) -> 0 | G21: 0 | H21: =SUM(H9:H20) -> 0 | I21: 0 | J21: 0 | K21: 0 | L21: 0 | M21: 0 | N21: 0 | O21: 0 | P21: 0 | Q21: 0 | R21: 0 | S21: 0 | T21: 0 | U21: 0 | V21: 0 | W21: 0 | X21: 0 | Y21: =C21*kWh_Élect_to_GJ+E21*m3_GazNat_to_GJ+G21*L_Mazout2_to_GJ+I21*L_Mazout6_to_GJ+K21*L_Mazout2_to_GJ+M21*L_Propane_to_GJ+O21*kg_Bois8_to_GJ+Q21*kg_Bois35_to_GJ+S21*lbs_vapeur_to_GJ+U21*MBTU_eaurefroidie_to_GJ+W21*MBTU_eauchaude_to_GJ -> 0 | Z21: =D21+F21+H21+J21+L21+N21+P21+R21+T21+V21+X21 -> 0 | AC21: =(C21*kWh_Élect_to_kgGES+E21*IF(U_GNat="[m³]",m3_GazNat_to_kgGES,Conversion!$H$29)+G21*IF(U_Ma2="[l]",L_Mazout2_to_kgGES,Conversion!$H$31)+I21*IF(U_Ma6="[l]",L_Mazout6_to_kgGES,Conversion!$H$33)+K21*L_Mazout2_to_kgGES+M21*IF(U_Prop="[l]",L_Propane_to_kgGES,Conversion!$H$37)+O21*kg_Bois8_to_kgGES+Q21*kg_Bois35_to_kgGES+S21*lbs_vapeur_to_kgGES+U21*MBTU_eaurefroidie_to_kgGES+W21*MBTU_eauchaude_to_kgGES)/1000 -> 0 | AD21: 0 | AE21: =SUM(AE9:AE20) -> 3949.4
A22: 2017 | B22: Sup_17-18 | C22: Elec_kWh_17-18 | D22: Elec_CAD_17-18 | E22: GN_m³_17-18 | F22: GN_CAD_17-18 | G22: Ma2_l_17-18 | H22: Ma2_CAD_17-18 | I22: Ma6_l_17-18 | J22: Ma6_CAD_17-18 | K22: Prop_l_17-18 | L22: Prop_CAD_17-18 | M22: Bois20_1000kg_17-18 | N22: Bois20_CAD_17-18 | O22: Bois45_1000kg_17-18 | P22: Bois45_CAD_17-18 | W22: GJ_Tot_17-18 | X22: CAD_Tot_17-18 | Y22: GJm²_17-18 | Z22: CAD/m²_17-18 | AA22: GES_ton_17-18 | AB22: GES_ton/m²_17-18 | AC22: DJC_tot_17-18
A23: Nombre de bâtiments en propriété ou location, pour lesquels des factures d'énergie sont payées par l'organisation :
A25: ATTENTION, la saisie des consommations d'énergie comporte une erreur si la cellule AA21 est ombragée d'une couleur ! | Y25: =Lim_bas -> 0 | Z25: =Lim_haut -> 0
A27: QUESTIONS SPÉCIFIQUES (cocher si applicable)
A29: 1.
A30: 2.
A31: 3.
A32: 4.
A33: 5.
A35: AJUSTEMENTS NON PÉRIODIQUE | C35: Un ajustement correspond à une modification majeure des équipements ou du bâtiment. Un ajustement peut avoir un impact positif ou négatif sur la consommation énergétique: - un impact positif correspond à une augmentation majeure de la consommation, suite par exemple à l'ajout d'un étage de bâtiment ou à l'ajout de climatisation d'une aile d'un bâtiment. - un impact négatif correspond à une diminution majeure de la consommation. Cette diminution provient non pas d’une économie provenant d’une optimisation du bâtiment mais par exemple de la fermeture d’une partie d'un bâtiment qui devient alors inoccupé. Par exemple : l'ajout de locaux implique une augmentation nette des charges de chauffage et d'éclairage de 500 kWh, telles que calculées par une firme d'ingénieurs. Dans ce fichier, le projet sera noté « Agrandissement » impliquant une augmentation de l'électricité de 500 kWh. Comme il s'agit de chauffage, l'ajustement est sensible au chauffage. La date d'implantation correspond au mois où l'impact sur la consommation a été effectif. Si l'ajustement a eu un impact sur plus qu'une source d'énergie, merci de rajouter une ligne pour chaque source touchée.
B37: Projet | C37: Tendance de l'impact | D37: Source d'énergie touchée | E37: Impact Annuel | G37: Ajustement sensible au chauffage | H37: Date d'implantation | I37: Impact pour l'année complète [GJ] | J37: Impact pour l'année en cours [GJ] | X37: Énergie de l'année de référence ajustée | Y37: =((1-Facteur_variable)+Facteur_variable*DJC_tot_17_18/DJC_tot_09_10)*GJ_Tot_09_10+GJ_Ajust_NP_Cour_17_18 -> 0 | Z37: GJTotRef_Ajust_17_18
B38: Nom du projet #1 | F38: =IF(D38="électrique","kWh",IF(D38="Gaz naturel","m³",IF(LEFT(D38,1)="R","1000 kg","l"))) -> l | I38: =IF(COUNTA(G38)=1,IF(C38="Réduction",-1,IF(C38="Augmentation",1,0))*E38*INDEX(Conversion!$A$26:$J$42,MATCH(D38,Conversion!$J$26:$J$42,0),9),0) -> 0 | J38: =IF(G38="Non",I38*L38,IF(G38="Oui",I38*K38,0)) -> 0 | K38: =(DJC_tot_17_18-INDEX($A$9:$AF$20,MATCH(H38,$A$9:$A$20,0),24))/DJC_tot_17_18 ->  | L38: =INDEX($A$9:$AG$20,MATCH(H38,$A$9:$A$20,0),25)/12 ->  | X38: Énergie de l'année de suivi | Y38: =GJ_Tot_17_18 -> 0
B39: Nom du projet #2 | F39: =IF(D39="électrique","kWh",IF(D39="Gaz naturel","m³",IF(LEFT(D39,1)="R","1000 kg","l"))) -> l | I39: =IF(COUNTA(G39)=1,IF(C39="Réduction",-1,IF(C39="Augmentation",1,0))*E39*INDEX(Conversion!$A$26:$J$42,MATCH(D39,Conversion!$J$26:$J$42,0),9),0) -> 0 | J39: 0 | X39: Superficie de l'année de référence | Y39: =Sup_09_10 -> 0
B40: Nom du projet #3 | F40: l | I40: =IF(COUNTA(G40)=1,IF(C40="Réduction",-1,IF(C40="Augmentation",1,0))*E40*INDEX(Conversion!$A$26:$J$42,MATCH(D40,Conversion!$J$26:$J$42,0),9),0) -> 0 | J40: 0 | X40: Superficie de l'année de suivi | Y40: =Sup_17_18 -> 0
B41: Nom du projet #4 | F41: l | I41: =IF(COUNTA(G41)=1,IF(C41="Réduction",-1,IF(C41="Augmentation",1,0))*E41*INDEX(Conversion!$A$26:$J$42,MATCH(D41,Conversion!$J$26:$J$42,0),9),0) -> 0 | J41: 0 | Y41: =GJTotRef_Ajust_17_18/Sup_09_10 ->  | Z41: GJTotRef_Ajust_m²_17_18
B42: Nom du projet #5 | F42: l | I42: =IF(COUNTA(G42)=1,IF(C42="Réduction",-1,IF(C42="Augmentation",1,0))*E42*INDEX(Conversion!$A$26:$J$42,MATCH(D42,Conversion!$J$26:$J$42,0),9),0) -> 0 | J42: 0 | Y42: =J45 -> 0 | Z42: GJ_Ajust_NP_Cour_17_18
B43: Nom du projet #6 | F43: l | I43: =IF(COUNTA(G43)=1,IF(C43="Réduction",-1,IF(C43="Augmentation",1,0))*E43*INDEX(Conversion!$A$26:$J$42,MATCH(D43,Conversion!$J$26:$J$42,0),9),0) -> 0 | J43: 0 | Y43: =I45 -> 0 | Z43: GJ_Ajust_NP_annuel_17_18
B44: Nom du projet #7 | F44: l | I44: =IF(COUNTA(G44)=1,IF(C44="Réduction",-1,IF(C44="Augmentation",1,0))*E44*INDEX(Conversion!$A$26:$J$42,MATCH(D44,Conversion!$J$26:$J$42,0),9),0) -> 0 | J44: 0
B45: TOTAL | I45: =SUM(I38:I44) -> 0 | J45: =SUM(J38:J44) -> 0
C54: Réduction | D54: Électrique | G54: Oui
C55: Augmentation | D55: Gaz naturel | G55: Non
D56: Mazout n°2
D57: Mazout n°6
D58: Propane
D59: Résidus de bois (20%humidité)
D60: Résidus de bois (45%humidité)
D61: -

Sheet 2018-2019
D2: Saisir les données énergétiques et les données sur les dépenses annuelles, avant taxes, dans les cellules ombragées en bleu pâle.
D3: Pour les fins du MERN, la saisie mensuelle des données est optionnelle. Les espaces pour saisir mensuellement les données sont mises à la disposition des MO afin de leur permettre de suivre périodiquement la consommation.
D4: Dans le cas où un projet ayant un effet sur la consommation énergétique a eu lieu au cours de l'année (rénovation, agrandissement, etc.),
D5: veuillez remplir la section « AJUSTEMENTS NON PÉRIODIQUES », ci-dessous.
A7: <-- Résumé | B7: Superficie | C7: Consommation électrique | E7: Gaz naturel | G7: Mazout n°2 | I7: Mazout n°6 | K7: Diesel (génératrice) | M7: Propane | O7: Résidus de bois (20% d'humidité) | Q7: Résidus de bois (45% d'humidité) | S7: Vapeur | U7: Eau refroidie | W7: Eau chaude | Y7: TOTAL | AA7: Intensité Énergétique | AC7: GES | AE7: DJC
B8: [m²] | C8: [kWh] | D8: [$] | E8: [m³] | F8: [$] | G8: [l] | H8: [$] | I8: [l] | J8: [$] | K8: [l] | L8: [$] | M8: [l] | N8: [$] | O8: [1000 kg MG] | P8: [$] | Q8: [1000 kg MG] | R8: [$] | S8: [lbs] | T8: [$] | U8: [MBTU] | V8: [$] | W8: [MBTU] | X8: [$] | Y8: [GJ] | Z8: [$] | AA8: [GJ/m²] | AB8: [$/m²] | AC8: [Ton CO2 eq] | AD8: [kg CO2 eq/m²] | AE8: [° C]
A9: =VALUE(CONCATENATE(LEFT(Annee_financiere,FIND("-",Annee_financiere)-1),"-",A22)) -> 2018-04-01 | Y9: =C9*kWh_Élect_to_GJ+E9*m3_GazNat_to_GJ+G9*L_Mazout2_to_GJ+I9*L_Mazout6_to_GJ+K9*L_Mazout2_to_GJ+M9*L_Propane_to_GJ+O9*kg_Bois8_to_GJ+Q9*kg_Bois35_to_GJ+S9*lbs_vapeur_to_GJ+U9*MBTU_eaurefroidie_to_GJ+W9*MBTU_eauchaude_to_GJ -> 0 | Z9: =D9+F9+H9+J9+N9+P9+R9+T9+V9+X9+L9 -> 0 | AA9: =IF(ISERROR(Y9/B9),"",Y9/B9) ->  | AB9: =IF(ISERROR(Z9/B9),"",Z9/B9) ->  | AC9: =(C9*kWh_Élect_to_kgGES+E9*IF(U_GNat="[m³]",m3_GazNat_to_kgGES,Conversion!$H$29)+G9*IF(U_Ma2="[l]",L_Mazout2_to_kgGES,Conversion!$H$31)+I9*IF(U_Ma6="[l]",L_Mazout6_to_kgGES,Conversion!$H$33)+K9*L_Mazout2_to_kgGES+M9*IF(U_Prop="[l]",L_Propane_to_kgGES,Conversion!$H$37)+O9*kg_Bois8_to_kgGES+Q9*kg_Bois35_to_kgGES+S9*lbs_vapeur_to_kgGES+U9*MBTU_eaurefroidie_to_kgGES+W9*MBTU_eauchaude_to_kgGES)/1000 -> 0 | AD9: =(IF(ISERROR(AC9/B9),0,(AC9/B9)))*1000 -> 0 | AE9: =INDEX(plage_DJ,MATCH(A9,plage_date),3) -> 422.4 | AG9: 12
A10: =DATE(YEAR(A9),MONTH(A9)+1,DAY(A9)) -> 2018-05-01 | Y10: =C10*kWh_Élect_to_GJ+E10*m3_GazNat_to_GJ+G10*L_Mazout2_to_GJ+I10*L_Mazout6_to_GJ+K10*L_Mazout2_to_GJ+M10*L_Propane_to_GJ+O10*kg_Bois8_to_GJ+Q10*kg_Bois35_to_GJ+S10*lbs_vapeur_to_GJ+U10*MBTU_eaurefroidie_to_GJ+W10*MBTU_eauchaude_to_GJ -> 0 | Z10: =D10+F10+H10+J10+N10+P10+R10+T10+V10+X10+L10 -> 0 | AC10: =(C10*kWh_Élect_to_kgGES+E10*IF(U_GNat="[m³]",m3_GazNat_to_kgGES,Conversion!$H$29)+G10*IF(U_Ma2="[l]",L_Mazout2_to_kgGES,Conversion!$H$31)+I10*IF(U_Ma6="[l]",L_Mazout6_to_kgGES,Conversion!$H$33)+K10*L_Mazout2_to_kgGES+M10*IF(U_Prop="[l]",L_Propane_to_kgGES,Conversion!$H$37)+O10*kg_Bois8_to_kgGES+Q10*kg_Bois35_to_kgGES+S10*lbs_vapeur_to_kgGES+U10*MBTU_eaurefroidie_to_kgGES+W10*MBTU_eauchaude_to_kgGES)/1000 -> 0 | AD10: 0 | AE10: 80.1 | AF10: =SUM(AE9) -> 422.4 | AG10: 11
A11: =DATE(YEAR(A10),MONTH(A10)+1,DAY(A10)) -> 2018-06-01 | Y11: 0 | Z11: 0 | AC11: =(C11*kWh_Élect_to_kgGES+E11*IF(U_GNat="[m³]",m3_GazNat_to_kgGES,Conversion!$H$29)+G11*IF(U_Ma2="[l]",L_Mazout2_to_kgGES,Conversion!$H$31)+I11*IF(U_Ma6="[l]",L_Mazout6_to_kgGES,Conversion!$H$33)+K11*L_Mazout2_to_kgGES+M11*IF(U_Prop="[l]",L_Propane_to_kgGES,Conversion!$H$37)+O11*kg_Bois8_to_kgGES+Q11*kg_Bois35_to_kgGES+S11*lbs_vapeur_to_kgGES+U11*MBTU_eaurefroidie_to_kgGES+W11*MBTU_eauchaude_to_kgGES)/1000 -> 0 | AD11: 0 | AE11: 27.1 | AF11: =SUM(AE9:AE10) -> 502.5 | AG11: 10
A12: 2018-07-01 | Y12: 0 | Z12: 0 | AC12: =(C12*kWh_Élect_to_kgGES+E12*IF(U_GNat="[m³]",m3_GazNat_to_kgGES,Conversion!$H$29)+G12*IF(U_Ma2="[l]",L_Mazout2_to_kgGES,Conversion!$H$31)+I12*IF(U_Ma6="[l]",L_Mazout6_to_kgGES,Conversion!$H$33)+K12*L_Mazout2_to_kgGES+M12*IF(U_Prop="[l]",L_Propane_to_kgGES,Conversion!$H$37)+O12*kg_Bois8_to_kgGES+Q12*kg_Bois35_to_kgGES+S12*lbs_vapeur_to_kgGES+U12*MBTU_eaurefroidie_to_kgGES+W12*MBTU_eauchaude_to_kgGES)/1000 -> 0 | AD12: 0 | AE12: 0 | AF12: =SUM(AE9:AE11) -> 529.6 | AG12: 9
A13: 2018-08-01 | Y13: 0 | Z13: 0 | AC13: =(C13*kWh_Élect_to_kgGES+E13*IF(U_GNat="[m³]",m3_GazNat_to_kgGES,Conversion!$H$29)+G13*IF(U_Ma2="[l]",L_Mazout2_to_kgGES,Conversion!$H$31)+I13*IF(U_Ma6="[l]",L_Mazout6_to_kgGES,Conversion!$H$33)+K13*L_Mazout2_to_kgGES+M13*IF(U_Prop="[l]",L_Propane_to_kgGES,Conversion!$H$37)+O13*kg_Bois8_to_kgGES+Q13*kg_Bois35_to_kgGES+S13*lbs_vapeur_to_kgGES+U13*MBTU_eaurefroidie_to_kgGES+W13*MBTU_eauchaude_to_kgGES)/1000 -> 0 | AD13: 0 | AE13: 0.1 | AF13: =SUM(AE9:AE12) -> 529.6 | AG13: 8
A14: 2018-09-01 | Y14: 0 | Z14: 0 | AC14: =(C14*kWh_Élect_to_kgGES+E14*IF(U_GNat="[m³]",m3_GazNat_to_kgGES,Conversion!$H$29)+G14*IF(U_Ma2="[l]",L_Mazout2_to_kgGES,Conversion!$H$31)+I14*IF(U_Ma6="[l]",L_Mazout6_to_kgGES,Conversion!$H$33)+K14*L_Mazout2_to_kgGES+M14*IF(U_Prop="[l]",L_Propane_to_kgGES,Conversion!$H$37)+O14*kg_Bois8_to_kgGES+Q14*kg_Bois35_to_kgGES+S14*lbs_vapeur_to_kgGES+U14*MBTU_eaurefroidie_to_kgGES+W14*MBTU_eauchaude_to_kgGES)/1000 -> 0 | AD14: 0 | AE14: 69.7 | AF14: =SUM(AE9:AE13) -> 529.7 | AG14: 7
A15: 2018-10-01 | Y15: 0 | Z15: 0 | AC15: =(C15*kWh_Élect_to_kgGES+E15*IF(U_GNat="[m³]",m3_GazNat_to_kgGES,Conversion!$H$29)+G15*IF(U_Ma2="[l]",L_Mazout2_to_kgGES,Conversion!$H$31)+I15*IF(U_Ma6="[l]",L_Mazout6_to_kgGES,Conversion!$H$33)+K15*L_Mazout2_to_kgGES+M15*IF(U_Prop="[l]",L_Propane_to_kgGES,Conversion!$H$37)+O15*kg_Bois8_to_kgGES+Q15*kg_Bois35_to_kgGES+S15*lbs_vapeur_to_kgGES+U15*MBTU_eaurefroidie_to_kgGES+W15*MBTU_eauchaude_to_kgGES)/1000 -> 0 | AD15: 0 | AE15: 262.4 | AF15: =SUM(AE9:AE14) -> 599.4 | AG15: 6
A16: 2018-11-01 | Y16: 0 | Z16: 0 | AC16: =(C16*kWh_Élect_to_kgGES+E16*IF(U_GNat="[m³]",m3_GazNat_to_kgGES,Conversion!$H$29)+G16*IF(U_Ma2="[l]",L_Mazout2_to_kgGES,Conversion!$H$31)+I16*IF(U_Ma6="[l]",L_Mazout6_to_kgGES,Conversion!$H$33)+K16*L_Mazout2_to_kgGES+M16*IF(U_Prop="[l]",L_Propane_to_kgGES,Conversion!$H$37)+O16*kg_Bois8_to_kgGES+Q16*kg_Bois35_to_kgGES+S16*lbs_vapeur_to_kgGES+U16*MBTU_eaurefroidie_to_kgGES+W16*MBTU_eauchaude_to_kgGES)/1000 -> 0 | AD16: 0 | AE16: 543.5 | AF16: =SUM(AE9:AE15) -> 861.8 | AG16: 5
A17: 2018-12-01 | Y17: 0 | Z17: 0 | AC17: =(C17*kWh_Élect_to_kgGES+E17*IF(U_GNat="[m³]",m3_GazNat_to_kgGES,Conversion!$H$29)+G17*IF(U_Ma2="[l]",L_Mazout2_to_kgGES,Conversion!$H$31)+I17*IF(U_Ma6="[l]",L_Mazout6_to_kgGES,Conversion!$H$33)+K17*L_Mazout2_to_kgGES+M17*IF(U_Prop="[l]",L_Propane_to_kgGES,Conversion!$H$37)+O17*kg_Bois8_to_kgGES+Q17*kg_Bois35_to_kgGES+S17*lbs_vapeur_to_kgGES+U17*MBTU_eaurefroidie_to_kgGES+W17*MBTU_eauchaude_to_kgGES)/1000 -> 0 | AD17: 0 | AE17: 689.3 | AF17: =SUM(AE9:AE16) -> 1405.3 | AG17: 4
A18: 2019-01-01 | Y18: 0 | Z18: 0 | AC18: =(C18*kWh_Élect_to_kgGES+E18*IF(U_GNat="[m³]",m3_GazNat_to_kgGES,Conversion!$H$29)+G18*IF(U_Ma2="[l]",L_Mazout2_to_kgGES,Conversion!$H$31)+I18*IF(U_Ma6="[l]",L_Mazout6_to_kgGES,Conversion!$H$33)+K18*L_Mazout2_to_kgGES+M18*IF(U_Prop="[l]",L_Propane_to_kgGES,Conversion!$H$37)+O18*kg_Bois8_to_kgGES+Q18*kg_Bois35_to_kgGES+S18*lbs_vapeur_to_kgGES+U18*MBTU_eaurefroidie_to_kgGES+W18*MBTU_eauchaude_to_kgGES)/1000 -> 0 | AD18: 0 | AE18: 877.4 | AF18: =SUM(AE9:AE17) -> 2094.6 | AG18: 3
A19: 2019-02-01 | Y19: 0 | Z19: 0 | AC19: =(C19*kWh_Élect_to_kgGES+E19*IF(U_GNat="[m³]",m3_GazNat_to_kgGES,Conversion!$H$29)+G19*IF(U_Ma2="[l]",L_Mazout2_to_kgGES,Conversion!$H$31)+I19*IF(U_Ma6="[l]",L_Mazout6_to_kgGES,Conversion!$H$33)+K19*L_Mazout2_to_kgGES+M19*IF(U_Prop="[l]",L_Propane_to_kgGES,Conversion!$H$37)+O19*kg_Bois8_to_kgGES+Q19*kg_Bois35_to_kgGES+S19*lbs_vapeur_to_kgGES+U19*MBTU_eaurefroidie_to_kgGES+W19*MBTU_eauchaude_to_kgGES)/1000 -> 0 | AD19: 0 | AE19: 736.4 | AF19: =SUM(AE9:AE18) -> 2972 | AG19: 2
A20: 2019-03-01 | Y20: 0 | Z20: 0 | AC20: =(C20*kWh_Élect_to_kgGES+E20*IF(U_GNat="[m³]",m3_GazNat_to_kgGES,Conversion!$H$29)+G20*IF(U_Ma2="[l]",L_Mazout2_to_kgGES,Conversion!$H$31)+I20*IF(U_Ma6="[l]",L_Mazout6_to_kgGES,Conversion!$H$33)+K20*L_Mazout2_to_kgGES+M20*IF(U_Prop="[l]",L_Propane_to_kgGES,Conversion!$H$37)+O20*kg_Bois8_to_kgGES+Q20*kg_Bois35_to_kgGES+S20*lbs_vapeur_to_kgGES+U20*MBTU_eaurefroidie_to_kgGES+W20*MBTU_eauchaude_to_kgGES)/1000 -> 0 | AD20: 0 | AE20: 638.8 | AF20: =SUM(AE9:AE19) -> 3708.4 | AG20: 1
A21: TOTAL/moyenne | B21: =IF(ISERROR(AVERAGE(B9:B20)),0,AVERAGE(B9:B20)) -> 0 | C21: =SUM(C9:C20) -> 0 | D21: 0 | E21: 0 | F21: 0 | G21: 0 | H21: 0 | I21: 0 | J21: 0 | K21: 0 | L21: 0 | M21: 0 | N21: 0 | O21: 0 | P21: 0 | Q21: 0 | R21: 0 | S21: 0 | T21: 0 | U21: 0 | V21: 0 | W21: 0 | X21: 0 | Y21: =C21*kWh_Élect_to_GJ+E21*m3_GazNat_to_GJ+G21*L_Mazout2_to_GJ+I21*L_Mazout6_to_GJ+K21*L_Mazout2_to_GJ+M21*L_Propane_to_GJ+O21*kg_Bois8_to_GJ+Q21*kg_Bois35_to_GJ+S21*lbs_vapeur_to_GJ+U21*MBTU_eaurefroidie_to_GJ+W21*MBTU_eauchaude_to_GJ -> 0 | Z21: =D21+F21+H21+J21+L21+N21+P21+R21+T21+V21+X21 -> 0 | AC21: =(C21*kWh_Élect_to_kgGES+E21*IF(U_GNat="[m³]",m3_GazNat_to_kgGES,Conversion!$H$29)+G21*IF(U_Ma2="[l]",L_Mazout2_to_kgGES,Conversion!$H$31)+I21*IF(U_Ma6="[l]",L_Mazout6_to_kgGES,Conversion!$H$33)+K21*L_Mazout2_to_kgGES+M21*IF(U_Prop="[l]",L_Propane_to_kgGES,Conversion!$H$37)+O21*kg_Bois8_to_kgGES+Q21*kg_Bois35_to_kgGES+S21*lbs_vapeur_to_kgGES+U21*MBTU_eaurefroidie_to_kgGES+W21*MBTU_eauchaude_to_kgGES)/1000 -> 0 | AD21: 0 | AE21: =SUM(AE9:AE20) -> 4347.2
A22: 2018 | B22: Sup_18-19 | C22: Elec_kWh_18-19 | D22: Elec_CAD_18-19 | E22: GN_m³_18-19 | F22: GN_CAD_18-19 | G22: Ma2_l_18-19 | H22: Ma2_CAD_18-19 | I22: Ma6_l_18-19 | J22: Ma6_CAD_18-19 | K22: Prop_l_18-19 | L22: Prop_CAD_18-19 | M22: Bois20_1000kg_18-19 | N22: Bois20_CAD_18-19 | O22: Bois45_1000kg_18-19 | P22: Bois45_CAD_18-19 | W22: GJ_Tot_18-19 | X22: CAD_Tot_18-19 | Y22: GJm²_18-19 | Z22: CAD/m²_18-19 | AA22: GES_ton_18-19 | AB22: GES_ton/m²_18-19 | AC22: DJC_tot_18-19
A23: Nombre de bâtiments en propriété ou location, pour lesquels des factures d'énergie sont payées par l'organisation :
A25: ATTENTION, la saisie des consommations d'énergie comporte une erreur si la cellule AA21 est ombragée d'une couleur ! | Y25: =Lim_bas -> 0 | Z25: =Lim_haut -> 0
A27: QUESTIONS SPÉCIFIQUES (cocher si applicable)
A29: 1.
A30: 2.
A31: 3.
A32: 4.
A33: 5.
A35: AJUSTEMENTS NON PÉRIODIQUE | C35: Un ajustement correspond à une modification majeure des équipements ou du bâtiment. Un ajustement peut avoir un impact positif ou négatif sur la consommation énergétique: - un impact positif correspond à une augmentation majeure de la consommation, suite par exemple à l'ajout d'un étage de bâtiment ou à l'ajout de climatisation d'une aile d'un bâtiment. - un impact négatif correspond à une diminution majeure de la consommation. Cette diminution provient non pas d’une économie provenant d’une optimisation du bâtiment mais par exemple de la fermeture d’une partie d'un bâtiment qui devient alors inoccupé. Par exemple : l'ajout de locaux implique une augmentation nette des charges de chauffage et d'éclairage de 500 kWh, telles que calculées par une firme d'ingénieurs. Dans ce fichier, le projet sera noté « Agrandissement » impliquant une augmentation de l'électricité de 500 kWh. Comme il s'agit de chauffage, l'ajustement est sensible au chauffage. La date d'implantation correspond au mois où l'impact sur la consommation a été effectif. Si l'ajustement a eu un impact sur plus qu'une source d'énergie, merci de rajouter une ligne pour chaque source touchée.
B37: Projet | C37: Tendance de l'impact | D37: Source d'énergie touchée | E37: Impact Annuel | G37: Ajustement sensible au chauffage | H37: Date d'implantation | I37: Impact pour l'année complète [GJ] | J37: Impact pour l'année en cours [GJ] | X37: Énergie de l'année de référence ajustée | Y37: =((1-Facteur_variable)+Facteur_variable*DJC_tot_18_19/DJC_tot_09_10)*GJ_Tot_09_10+GJ_Ajust_NP_Cour_18_19 -> 0 | Z37: GJTotRef_Ajust_18_19
B38: Nom du projet #1 | F38: =IF(D38="électrique","kWh",IF(D38="Gaz naturel","m³",IF(LEFT(D38,1)="R","1000 kg","l"))) -> l | I38: =IF(COUNTA(G38)=1,IF(C38="Réduction",-1,IF(C38="Augmentation",1,0))*E38*INDEX(Conversion!$A$26:$J$42,MATCH(D38,Conversion!$J$26:$J$42,0),9),0) -> 0 | J38: =IF(G38="Non",I38*L38,IF(G38="Oui",I38*K38,0)) -> 0 | K38: =(DJC_tot_18_19-INDEX($A$9:$AF$20,MATCH(H38,$A$9:$A$20,0),24))/DJC_tot_18_19 ->  | L38: =INDEX($A$9:$AG$20,MATCH(H38,$A$9:$A$20,0),25)/12 ->  | X38: Énergie de l'année de suivi | Y38: =GJ_Tot_18_19 -> 0
B39: Nom du projet #2 | F39: =IF(D39="électrique","kWh",IF(D39="Gaz naturel","m³",IF(LEFT(D39,1)="R","1000 kg","l"))) -> l | I39: =IF(COUNTA(G39)=1,IF(C39="Réduction",-1,IF(C39="Augmentation",1,0))*E39*INDEX(Conversion!$A$26:$J$42,MATCH(D39,Conversion!$J$26:$J$42,0),9),0) -> 0 | J39: 0 | X39: Superficie de l'année de référence | Y39: =Sup_09_10 -> 0
B40: Nom du projet #3 | F40: l | I40: =IF(COUNTA(G40)=1,IF(C40="Réduction",-1,IF(C40="Augmentation",1,0))*E40*INDEX(Conversion!$A$26:$J$42,MATCH(D40,Conversion!$J$26:$J$42,0),9),0) -> 0 | J40: 0 | X40: Superficie de l'année de suivi | Y40: =Sup_18_19 -> 0
B41: Nom du projet #4 | F41: l | I41: =IF(COUNTA(G41)=1,IF(C41="Réduction",-1,IF(C41="Augmentation",1,0))*E41*INDEX(Conversion!$A$26:$J$42,MATCH(D41,Conversion!$J$26:$J$42,0),9),0) -> 0 | J41: 0 | Y41: =GJTotRef_Ajust_18_19/Sup_09_10 ->  | Z41: GJTotRef_Ajust_m²_18_19
B42: Nom du projet #5 | F42: l | I42: =IF(COUNTA(G42)=1,IF(C42="Réduction",-1,IF(C42="Augmentation",1,0))*E42*INDEX(Conversion!$A$26:$J$42,MATCH(D42,Conversion!$J$26:$J$42,0),9),0) -> 0 | J42: 0 | Y42: =J45 -> 0 | Z42: GJ_Ajust_NP_Cour_18_19
B43: Nom du projet #6 | F43: l | I43: =IF(COUNTA(G43)=1,IF(C43="Réduction",-1,IF(C43="Augmentation",1,0))*E43*INDEX(Conversion!$A$26:$J$42,MATCH(D43,Conversion!$J$26:$J$42,0),9),0) -> 0 | J43: 0 | Y43: =I45 -> 0 | Z43: GJ_Ajust_NP_annuel_18_19
B44: Nom du projet #7 | F44: l | I44: =IF(COUNTA(G44)=1,IF(C44="Réduction",-1,IF(C44="Augmentation",1,0))*E44*INDEX(Conversion!$A$26:$J$42,MATCH(D44,Conversion!$J$26:$J$42,0),9),0) -> 0 | J44: 0
B45: TOTAL | I45: =SUM(I38:I44) -> 0 | J45: =SUM(J38:J44) -> 0
C54: Réduction | D54: Électrique | G54: Oui
C55: Augmentation | D55: Gaz naturel | G55: Non
D56: Mazout n°2
D57: Mazout n°6
D58: Propane
D59: Résidus de bois (20%humidité)
D60: Résidus de bois (45%humidité)
D61: -

Sheet 2019-2020
D2: Saisir les données énergétiques et les données sur les dépenses annuelles, avant taxes, dans les cellules ombragées en bleu pâle.
D3: Pour les fins du MERN, la saisie mensuelle des données est optionnelle. Les espaces pour saisir mensuellement les données sont mises à la disposition des MO afin de leur permettre de suivre périodiquement la consommation.
D4: Dans le cas où un projet ayant un effet sur la consommation énergétique a eu lieu au cours de l'année (rénovation, agrandissement, etc.),
D5: veuillez remplir la section « AJUSTEMENTS NON PÉRIODIQUES », ci-dessous.
A7: <-- Résumé | B7: Superficie | C7: Consommation électrique | E7: Gaz naturel | G7: Mazout n°2 | I7: Mazout n°6 | K7: Diesel (génératrice) | M7: Propane | O7: Résidus de bois (20% d'humidité) | Q7: Résidus de bois (45% d'humidité) | S7: Vapeur | U7: Eau refroidie | W7: Eau chaude | Y7: TOTAL | AA7: Intensité Énergétique | AC7: GES | AE7: DJC
B8: [m²] | C8: [kWh] | D8: [$] | E8: [m³] | F8: [$] | G8: [l] | H8: [$] | I8: [l] | J8: [$] | K8: [l] | L8: [$] | M8: [l] | N8: [$] | O8: [1000 kg MG] | P8: [$] | Q8: [1000 kg MG] | R8: [$] | S8: [lbs] | T8: [$] | U8: [MBTU] | V8: [$] | W8: [MBTU] | X8: [$] | Y8: [GJ] | Z8: [$] | AA8: [GJ/m²] | AB8: [$/m²] | AC8: [Ton CO2 eq] | AD8: [kg CO2 eq/m²] | AE8: [° C]
A9: =VALUE(CONCATENATE(LEFT(Annee_financiere,FIND("-",Annee_financiere)-1),"-",A22)) -> 2019-04-01 | Y9: =C9*kWh_Élect_to_GJ+E9*m3_GazNat_to_GJ+G9*L_Mazout2_to_GJ+I9*L_Mazout6_to_GJ+K9*L_Mazout2_to_GJ+M9*L_Propane_to_GJ+O9*kg_Bois8_to_GJ+Q9*kg_Bois35_to_GJ+S9*lbs_vapeur_to_GJ+U9*MBTU_eaurefroidie_to_GJ+W9*MBTU_eauchaude_to_GJ -> 0 | Z9: =D9+F9+H9+J9+N9+P9+R9+T9+V9+X9+L9 -> 0 | AA9: =IF(ISERROR(Y9/B9),"",Y9/B9) ->  | AB9: =IF(ISERROR(Z9/B9),"",Z9/B9) ->  | AC9: =(C9*kWh_Élect_to_kgGES+E9*IF(U_GNat="[m³]",m3_GazNat_to_kgGES,Conversion!$H$29)+G9*IF(U_Ma2="[l]",L_Mazout2_to_kgGES,Conversion!$H$31)+I9*IF(U_Ma6="[l]",L_Mazout6_to_kgGES,Conversion!$H$33)+K9*IF(U_Ma2="[l]",L_Mazout2_to_kgGES,Conversion!$H$35)+M9*IF(U_Prop="[l]",L_Propane_to_kgGES,Conversion!$H$37)+O9*IF(U_Bois20="[1000 kg MG]",Conversion!$H$38,Conversion!$H$39)+Q9*IF(U_Bois45="[1000 kg MG]",Conversion!$H$40,Conversion!$H$41)+S9*lbs_vapeur_to_kgGES+U9*MBTU_eaurefroidie_to_kgGES+W9*MBTU_eauchaude_to_kgGES)/1000 -> 0 | AD9: =(IF(ISERROR(AC9/B9),0,(AC9/B9)))*1000 -> 0 | AE9: =INDEX(plage_DJ,MATCH(A9,plage_date),3) -> 377.4 | AG9: 12
A10: =DATE(YEAR(A9),MONTH(A9)+1,DAY(A9)) -> 2019-05-01 | Y10: 0 | Z10: =D10+F10+H10+J10+N10+P10+R10+T10+V10+X10+L10 -> 0 | AC10: =(C10*kWh_Élect_to_kgGES+E10*IF(U_GNat="[m³]",m3_GazNat_to_kgGES,Conversion!$H$29)+G10*IF(U_Ma2="[l]",L_Mazout2_to_kgGES,Conversion!$H$31)+I10*IF(U_Ma6="[l]",L_Mazout6_to_kgGES,Conversion!$H$33)+K10*IF(U_Ma2="[l]",L_Mazout2_to_kgGES,Conversion!$H$35)+M10*IF(U_Prop="[l]",L_Propane_to_kgGES,Conversion!$H$37)+O10*IF(U_Bois20="[1000 kg MG]",Conversion!$H$38,Conversion!$H$39)+Q10*IF(U_Bois45="[1000 kg MG]",Conversion!$H$40,Conversion!$H$41)+S10*lbs_vapeur_to_kgGES+U10*MBTU_eaurefroidie_to_kgGES+W10*MBTU_eauchaude_to_kgGES)/1000 -> 0 | AD10: 0 | AE10: =INDEX(plage_DJ,MATCH(A10,plage_date),3) -> 185.7 | AF10: =SUM(AE9) -> 377.4 | AG10: 11
A11: =DATE(YEAR(A10),MONTH(A10)+1,DAY(A10)) -> 2019-06-01 | Y11: 0 | Z11: 0 | AC11: =(C11*kWh_Élect_to_kgGES+E11*IF(U_GNat="[m³]",m3_GazNat_to_kgGES,Conversion!$H$29)+G11*IF(U_Ma2="[l]",L_Mazout2_to_kgGES,Conversion!$H$31)+I11*IF(U_Ma6="[l]",L_Mazout6_to_kgGES,Conversion!$H$33)+K11*IF(U_Ma2="[l]",L_Mazout2_to_kgGES,Conversion!$H$35)+M11*IF(U_Prop="[l]",L_Propane_to_kgGES,Conversion!$H$37)+O11*IF(U_Bois20="[1000 kg MG]",Conversion!$H$38,Conversion!$H$39)+Q11*IF(U_Bois45="[1000 kg MG]",Conversion!$H$40,Conversion!$H$41)+S11*lbs_vapeur_to_kgGES+U11*MBTU_eaurefroidie_to_kgGES+W11*MBTU_eauchaude_to_kgGES)/1000 -> 0 | AD11: 0 | AE11: 41 | AF11: =SUM(AE9:AE10) -> 563.1 | AG11: 10
A12: 2019-07-01 | Y12: 0 | Z12: 0 | AC12: =(C12*kWh_Élect_to_kgGES+E12*IF(U_GNat="[m³]",m3_GazNat_to_kgGES,Conversion!$H$29)+G12*IF(U_Ma2="[l]",L_Mazout2_to_kgGES,Conversion!$H$31)+I12*IF(U_Ma6="[l]",L_Mazout6_to_kgGES,Conversion!$H$33)+K12*IF(U_Ma2="[l]",L_Mazout2_to_kgGES,Conversion!$H$35)+M12*IF(U_Prop="[l]",L_Propane_to_kgGES,Conversion!$H$37)+O12*IF(U_Bois20="[1000 kg MG]",Conversion!$H$38,Conversion!$H$39)+Q12*IF(U_Bois45="[1000 kg MG]",Conversion!$H$40,Conversion!$H$41)+S12*lbs_vapeur_to_kgGES+U12*MBTU_eaurefroidie_to_kgGES+W12*MBTU_eauchaude_to_kgGES)/1000 -> 0 | AD12: 0 | AE12: 0 | AF12: =SUM(AE9:AE11) -> 604.1 | AG12: 9
A13: 2019-08-01 | Y13: 0 | Z13: 0 | AC13: =(C13*kWh_Élect_to_kgGES+E13*IF(U_GNat="[m³]",m3_GazNat_to_kgGES,Conversion!$H$29)+G13*IF(U_Ma2="[l]",L_Mazout2_to_kgGES,Conversion!$H$31)+I13*IF(U_Ma6="[l]",L_Mazout6_to_kgGES,Conversion!$H$33)+K13*IF(U_Ma2="[l]",L_Mazout2_to_kgGES,Conversion!$H$35)+M13*IF(U_Prop="[l]",L_Propane_to_kgGES,Conversion!$H$37)+O13*IF(U_Bois20="[1000 kg MG]",Conversion!$H$38,Conversion!$H$39)+Q13*IF(U_Bois45="[1000 kg MG]",Conversion!$H$40,Conversion!$H$41)+S13*lbs_vapeur_to_kgGES+U13*MBTU_eaurefroidie_to_kgGES+W13*MBTU_eauchaude_to_kgGES)/1000 -> 0 | AD13: 0 | AE13: 2 | AF13: =SUM(AE9:AE12) -> 604.1 | AG13: 8
A14: 2019-09-01 | Y14: 0 | Z14: 0 | AC14: =(C14*kWh_Élect_to_kgGES+E14*IF(U_GNat="[m³]",m3_GazNat_to_kgGES,Conversion!$H$29)+G14*IF(U_Ma2="[l]",L_Mazout2_to_kgGES,Conversion!$H$31)+I14*IF(U_Ma6="[l]",L_Mazout6_to_kgGES,Conversion!$H$33)+K14*IF(U_Ma2="[l]",L_Mazout2_to_kgGES,Conversion!$H$35)+M14*IF(U_Prop="[l]",L_Propane_to_kgGES,Conversion!$H$37)+O14*IF(U_Bois20="[1000 kg MG]",Conversion!$H$38,Conversion!$H$39)+Q14*IF(U_Bois45="[1000 kg MG]",Conversion!$H$40,Conversion!$H$41)+S14*lbs_vapeur_to_kgGES+U14*MBTU_eaurefroidie_to_kgGES+W14*MBTU_eauchaude_to_kgGES)/1000 -> 0 | AD14: 0 | AE14: 78.4 | AF14: =SUM(AE9:AE13) -> 606.1 | AG14: 7
A15: 2019-10-01 | Y15: 0 | Z15: 0 | AC15: =(C15*kWh_Élect_to_kgGES+E15*IF(U_GNat="[m³]",m3_GazNat_to_kgGES,Conversion!$H$29)+G15*IF(U_Ma2="[l]",L_Mazout2_to_kgGES,Conversion!$H$31)+I15*IF(U_Ma6="[l]",L_Mazout6_to_kgGES,Conversion!$H$33)+K15*IF(U_Ma2="[l]",L_Mazout2_to_kgGES,Conversion!$H$35)+M15*IF(U_Prop="[l]",L_Propane_to_kgGES,Conversion!$H$37)+O15*IF(U_Bois20="[1000 kg MG]",Conversion!$H$38,Conversion!$H$39)+Q15*IF(U_Bois45="[1000 kg MG]",Conversion!$H$40,Conversion!$H$41)+S15*lbs_vapeur_to_kgGES+U15*MBTU_eaurefroidie_to_kgGES+W15*MBTU_eauchaude_to_kgGES)/1000 -> 0 | AD15: 0 | AE15: 245.7 | AF15: =SUM(AE9:AE14) -> 684.5 | AG15: 6
A16: 2019-11-01 | Y16: 0 | Z16: 0 | AC16: =(C16*kWh_Élect_to_kgGES+E16*IF(U_GNat="[m³]",m3_GazNat_to_kgGES,Conversion!$H$29)+G16*IF(U_Ma2="[l]",L_Mazout2_to_kgGES,Conversion!$H$31)+I16*IF(U_Ma6="[l]",L_Mazout6_to_kgGES,Conversion!$H$33)+K16*IF(U_Ma2="[l]",L_Mazout2_to_kgGES,Conversion!$H$35)+M16*IF(U_Prop="[l]",L_Propane_to_kgGES,Conversion!$H$37)+O16*IF(U_Bois20="[1000 kg MG]",Conversion!$H$38,Conversion!$H$39)+Q16*IF(U_Bois45="[1000 kg MG]",Conversion!$H$40,Conversion!$H$41)+S16*lbs_vapeur_to_kgGES+U16*MBTU_eaurefroidie_to_kgGES+W16*MBTU_eauchaude_to_kgGES)/1000 -> 0 | AD16: 0 | AE16: 533.3 | AF16: =SUM(AE9:AE15) -> 930.2 | AG16: 5
A17: 2019-12-01 | Y17: 0 | Z17: 0 | AC17: =(C17*kWh_Élect_to_kgGES+E17*IF(U_GNat="[m³]",m3_GazNat_to_kgGES,Conversion!$H$29)+G17*IF(U_Ma2="[l]",L_Mazout2_to_kgGES,Conversion!$H$31)+I17*IF(U_Ma6="[l]",L_Mazout6_to_kgGES,Conversion!$H$33)+K17*IF(U_Ma2="[l]",L_Mazout2_to_kgGES,Conversion!$H$35)+M17*IF(U_Prop="[l]",L_Propane_to_kgGES,Conversion!$H$37)+O17*IF(U_Bois20="[1000 kg MG]",Conversion!$H$38,Conversion!$H$39)+Q17*IF(U_Bois45="[1000 kg MG]",Conversion!$H$40,Conversion!$H$41)+S17*lbs_vapeur_to_kgGES+U17*MBTU_eaurefroidie_to_kgGES+W17*MBTU_eauchaude_to_kgGES)/1000 -> 0 | AD17: 0 | AE17: 688.8 | AF17: =SUM(AE9:AE16) -> 1463.5 | AG17: 4
A18: 2020-01-01 | Y18: 0 | Z18: 0 | AC18: =(C18*kWh_Élect_to_kgGES+E18*IF(U_GNat="[m³]",m3_GazNat_to_kgGES,Conversion!$H$29)+G18*IF(U_Ma2="[l]",L_Mazout2_to_kgGES,Conversion!$H$31)+I18*IF(U_Ma6="[l]",L_Mazout6_to_kgGES,Conversion!$H$33)+K18*IF(U_Ma2="[l]",L_Mazout2_to_kgGES,Conversion!$H$35)+M18*IF(U_Prop="[l]",L_Propane_to_kgGES,Conversion!$H$37)+O18*IF(U_Bois20="[1000 kg MG]",Conversion!$H$38,Conversion!$H$39)+Q18*IF(U_Bois45="[1000 kg MG]",Conversion!$H$40,Conversion!$H$41)+S18*lbs_vapeur_to_kgGES+U18*MBTU_eaurefroidie_to_kgGES+W18*MBTU_eauchaude_to_kgGES)/1000 -> 0 | AD18: 0 | AE18: 731 | AF18: =SUM(AE9:AE17) -> 2152.3 | AG18: 3
A19: 2020-02-01 | Y19: 0 | Z19: 0 | AC19: =(C19*kWh_Élect_to_kgGES+E19*IF(U_GNat="[m³]",m3_GazNat_to_kgGES,Conversion!$H$29)+G19*IF(U_Ma2="[l]",L_Mazout2_to_kgGES,Conversion!$H$31)+I19*IF(U_Ma6="[l]",L_Mazout6_to_kgGES,Conversion!$H$33)+K19*IF(U_Ma2="[l]",L_Mazout2_to_kgGES,Conversion!$H$35)+M19*IF(U_Prop="[l]",L_Propane_to_kgGES,Conversion!$H$37)+O19*IF(U_Bois20="[1000 kg MG]",Conversion!$H$38,Conversion!$H$39)+Q19*IF(U_Bois45="[1000 kg MG]",Conversion!$H$40,Conversion!$H$41)+S19*lbs_vapeur_to_kgGES+U19*MBTU_eaurefroidie_to_kgGES+W19*MBTU_eauchaude_to_kgGES)/1000 -> 0 | AD19: 0 | AE19: 693.5 | AF19: =SUM(AE9:AE18) -> 2883.3 | AG19: 2
A20: 2020-03-01 | Y20: 0 | Z20: 0 | AC20: =(C20*kWh_Élect_to_kgGES+E20*IF(U_GNat="[m³]",m3_GazNat_to_kgGES,Conversion!$H$29)+G20*IF(U_Ma2="[l]",L_Mazout2_to_kgGES,Conversion!$H$31)+I20*IF(U_Ma6="[l]",L_Mazout6_to_kgGES,Conversion!$H$33)+K20*IF(U_Ma2="[l]",L_Mazout2_to_kgGES,Conversion!$H$35)+M20*IF(U_Prop="[l]",L_Propane_to_kgGES,Conversion!$H$37)+O20*IF(U_Bois20="[1000 kg MG]",Conversion!$H$38,Conversion!$H$39)+Q20*IF(U_Bois45="[1000 kg MG]",Conversion!$H$40,Conversion!$H$41)+S20*lbs_vapeur_to_kgGES+U20*MBTU_eaurefroidie_to_kgGES+W20*MBTU_eauchaude_to_kgGES)/1000 -> 0 | AD20: 0 | AE20: 528.9 | AF20: =SUM(AE9:AE19) -> 3576.8 | AG20: 1
A21: TOTAL/moyenne | B21: =IF(ISERROR(AVERAGE(B9:B20)),0,AVERAGE(B9:B20)) -> 0 | C21: =SUM(C9:C20) -> 0 | D21: =SUM(D9:D20) -> 0 | E21: =SUM(E9:E20) -> 0 | F21: =SUM(F9:F20) -> 0 | G21: 0 | H21: 0 | I21: 0 | J21: 0 | K21: 0 | L21: 0 | M21: 0 | N21: 0 | O21: 0 | P21: 0 | Q21: 0 | R21: 0 | S21: 0 | T21: 0 | U21: 0 | V21: 0 | W21: 0 | X21: 0 | Y21: =C21*kWh_Élect_to_GJ+E21*m3_GazNat_to_GJ+G21*L_Mazout2_to_GJ+I21*L_Mazout6_to_GJ+M21*L_Propane_to_GJ+O21*kg_Bois8_to_GJ+Q21*kg_Bois35_to_GJ+S21*lbs_vapeur_to_GJ+U21*MBTU_eaurefroidie_to_GJ+W21*MBTU_eauchaude_to_GJ+K21*L_Mazout2_to_GJ -> 0 | Z21: =D21+F21+H21+J21+L21+N21+P21+R21+T21+V21+X21 -> 0 | AC21: =(C21*kWh_Élect_to_kgGES+E21*IF(U_GNat="[m³]",m3_GazNat_to_kgGES,Conversion!$H$29)+G21*IF(U_Ma2="[l]",L_Mazout2_to_kgGES,Conversion!$H$31)+I21*IF(U_Ma6="[l]",L_Mazout6_to_kgGES,Conversion!$H$33)+K21*IF(U_Ma2="[l]",L_Mazout2_to_kgGES,Conversion!$H$35)+M21*IF(U_Prop="[l]",L_Propane_to_kgGES,Conversion!$H$37)+O21*IF(U_Bois20="[1000 kg MG]",Conversion!$H$38,Conversion!$H$39)+Q21*IF(U_Bois45="[1000 kg MG]",Conversion!$H$40,Conversion!$H$41)+S21*lbs_vapeur_to_kgGES+U21*MBTU_eaurefroidie_to_kgGES+W21*MBTU_eauchaude_to_kgGES)/1000 -> 0 | AD21: 0 | AE21: =SUM(AE9:AE20) -> 4105.7
A22: 2019 | B22: Sup_19-20 | C22: Elec_kWh_19-20 | D22: Elec_CAD_19-20 | E22: GN_m³_19-20 | F22: GN_CAD_19-20 | G22: Ma2_l_19-20 | H22: Ma2_CAD_19-20 | I22: Ma6_l_19-20 | J22: Ma6_CAD_19-20 | K22: Prop_l_19-20 | L22: Prop_CAD_19-20 | M22: Bois20_1000kg_19-20 | N22: Bois20_CAD_19-20 | O22: Bois45_1000kg_19-20 | P22: Bois45_CAD_19-20 | W22: GJ_Tot_19-20 | X22: CAD_Tot_19-20 | Y22: GJm²_19-20 | Z22: CAD/m²_19-20 | AA22: GES_ton_19-20 | AB22: GES_ton/m²_19-20 | AC22: DJC_tot_19-20
A23: Nombre de bâtiments en propriété ou location, pour lesquels des factures d'énergie sont payées par l'organisation :
A25: ATTENTION, la saisie des consommations d'énergie comporte une erreur si la cellule AA21 est ombragée d'une couleur ! | Y25: =Lim_bas -> 0 | Z25: =Lim_haut -> 0
A27: QUESTIONS SPÉCIFIQUES (cocher si applicable)
A29: 1.
A30: 2.
A31: 3.
A32: 4.
A33: 5.
A35: AJUSTEMENTS NON PÉRIODIQUE | C35: Un ajustement correspond à une modification majeure des équipements ou du bâtiment. Un ajustement peut avoir un impact positif ou négatif sur la consommation énergétique: - un impact positif correspond à une augmentation majeure de la consommation, suite par exemple à l'ajout d'un étage de bâtiment ou à l'ajout de climatisation d'une aile d'un bâtiment. - un impact négatif correspond à une diminution majeure de la consommation. Cette diminution provient non pas d’une économie provenant d’une optimisation du bâtiment mais par exemple de la fermeture d’une partie d'un bâtiment qui devient alors inoccupé. Par exemple : l'ajout de locaux implique une augmentation nette des charges de chauffage et d'éclairage de 500 kWh, telles que calculées par une firme d'ingénieurs. Dans ce fichier, le projet sera noté « Agrandissement » impliquant une augmentation de l'électricité de 500 kWh. Comme il s'agit de chauffage, l'ajustement est sensible au chauffage. La date d'implantation correspond au mois où l'impact sur la consommation a été effectif. Si l'ajustement a eu un impact sur plus qu'une source d'énergie, merci de rajouter une ligne pour chaque source touchée.
B37: Projet | C37: Tendance de l'impact | D37: Source d'énergie touchée | E37: Impact Annuel | G37: Ajustement sensible au chauffage | H37: Date d'implantation | I37: Impact pour l'année complète [GJ] | J37: Impact pour l'année en cours [GJ] | X37: Énergie de l'année de référence ajustée | Y37: =((1-Facteur_variable)+Facteur_variable*DJC_tot_19_20/DJC_tot_09_10)*GJ_Tot_09_10+GJ_Ajust_NP_Cour_19_20 -> 0 | Z37: GJTotRef_Ajust_19_20
B38: Nom du projet #1 | F38: =IF(D38="électrique","kWh",IF(D38="Gaz naturel","m³",IF(LEFT(D38,1)="R","1000 kg","l"))) -> l | I38: =IF(COUNTA(G38)=1,IF(C38="Réduction",-1,IF(C38="Augmentation",1,0))*E38*INDEX(Conversion!$A$26:$J$42,MATCH(D38,Conversion!$J$26:$J$42,0),9),0) -> 0 | J38: =IF(G38="Non",I38*L38,IF(G38="Oui",I38*K38,0)) -> 0 | K38: =(DJC_tot_19_20-INDEX($A$9:$AF$20,MATCH(H38,$A$9:$A$20,0),24))/DJC_tot_19_20 ->  | L38: =INDEX($A$9:$AG$20,MATCH(H38,$A$9:$A$20,0),25)/12 ->  | X38: Énergie de l'année de suivi | Y38: =GJ_Tot_19_20 -> 0
B39: Nom du projet #2 | F39: =IF(D39="électrique","kWh",IF(D39="Gaz naturel","m³",IF(LEFT(D39,1)="R","1000 kg","l"))) -> l | I39: =IF(COUNTA(G39)=1,IF(C39="Réduction",-1,IF(C39="Augmentation",1,0))*E39*INDEX(Conversion!$A$26:$J$42,MATCH(D39,Conversion!$J$26:$J$42,0),9),0) -> 0 | J39: 0 | X39: Superficie de l'année de référence | Y39: =Sup_09_10 -> 0
B40: Nom du projet #3 | F40: l | I40: =IF(COUNTA(G40)=1,IF(C40="Réduction",-1,IF(C40="Augmentation",1,0))*E40*INDEX(Conversion!$A$26:$J$42,MATCH(D40,Conversion!$J$26:$J$42,0),9),0) -> 0 | J40: 0 | X40: Superficie de l'année de suivi | Y40: =Sup_19_20 -> 0
B41: Nom du projet #4 | F41: l | I41: =IF(COUNTA(G41)=1,IF(C41="Réduction",-1,IF(C41="Augmentation",1,0))*E41*INDEX(Conversion!$A$26:$J$42,MATCH(D41,Conversion!$J$26:$J$42,0),9),0) -> 0 | J41: 0 | Y41: =GJTotRef_Ajust_19_20/Sup_09_10 ->  | Z41: GJTotRef_Ajust_m²_19_20
B42: Nom du projet #5 | F42: l | I42: =IF(COUNTA(G42)=1,IF(C42="Réduction",-1,IF(C42="Augmentation",1,0))*E42*INDEX(Conversion!$A$26:$J$42,MATCH(D42,Conversion!$J$26:$J$42,0),9),0) -> 0 | J42: 0 | Y42: =J45 -> 0 | Z42: GJ_Ajust_NP_Cour_19_20
B43: Nom du projet #6 | F43: l | I43: =IF(COUNTA(G43)=1,IF(C43="Réduction",-1,IF(C43="Augmentation",1,0))*E43*INDEX(Conversion!$A$26:$J$42,MATCH(D43,Conversion!$J$26:$J$42,0),9),0) -> 0 | J43: 0 | Y43: =I45 -> 0 | Z43: GJ_Ajust_NP_annuel_19_20
B44: Nom du projet #7 | F44: l | I44: =IF(COUNTA(G44)=1,IF(C44="Réduction",-1,IF(C44="Augmentation",1,0))*E44*INDEX(Conversion!$A$26:$J$42,MATCH(D44,Conversion!$J$26:$J$42,0),9),0) -> 0 | J44: 0
B45: TOTAL | I45: =SUM(I38:I44) -> 0 | J45: =SUM(J38:J44) -> 0
C54: Réduction | D54: Électrique | G54: Oui
C55: Augmentation | D55: Gaz naturel | G55: Non
D56: Mazout n°2
D57: Mazout n°6
D58: Propane
D59: Résidus de bois (20%humidité)
D60: Résidus de bois (45%humidité)
D61: -

Sheet 2020-2021 (hidden)
D2: Saisir les données énergétiques et les données sur les dépenses annuelles, avant taxes, dans les cellules ombragées en bleu pâle.
D3: Pour les fins du BEIE, la saisie mensuelle des données est optionnelle. Les espaces pour saisir mensuellement les données sont mises à la disposition des MO afin de leur permettre de suivre périodiquement la consommation.
D4: Dans le cas où un projet ayant un effet sur la consommation énergétique a eu lieu au cours de l'année (rénovation, agrandissement, etc.),
D5: veuillez remplir la section « AJUSTEMENTS NON PÉRIODIQUES », ci-dessous.
A7: <-- Résumé | B7: Superficie | C7: Consommation électrique | E7: Gaz naturel | G7: Mazout n°2 | I7: Mazout n°6 | K7: Diesel (génératrice) | M7: Propane | O7: Résidus de bois (20% d'humidité) | Q7: Résidus de bois (45% d'humidité) | S7: Vapeur | U7: Eau refroidie | W7: Eau chaude | Y7: TOTAL | AA7: Intensité Énergétique | AC7: GES | AE7: DJC
B8: [m²] | C8: [kWh] | D8: [$] | E8: [m³] | F8: [$] | G8: [l] | H8: [$] | I8: [l] | J8: [$] | K8: [l] | L8: [$] | M8: [l] | N8: [$] | O8: [1000 kg MG] | P8: [$] | Q8: [1000 kg MG] | R8: [$] | S8: [lbs] | T8: [$] | U8: [MBTU] | V8: [$] | W8: [MBTU] | X8: [$] | Y8: [GJ] | Z8: [$] | AA8: [GJ/m²] | AB8: [$/m²] | AC8: [Ton CO2 eq] | AD8: [kg CO2 eq/m²] | AE8: [° C]
A9: =VALUE(CONCATENATE(LEFT(Annee_financiere,FIND("-",Annee_financiere)-1),"-",A22)) -> 2020-04-01 | Y9: =C9*kWh_Élect_to_GJ+E9*m3_GazNat_to_GJ+G9*L_Mazout2_to_GJ+I9*L_Mazout6_to_GJ+M9*L_Propane_to_GJ+O9*kg_Bois8_to_GJ+Q9*kg_Bois35_to_GJ+S9*lbs_vapeur_to_GJ+U9*MBTU_eaurefroidie_to_GJ+W9*MBTU_eauchaude_to_GJ+K9*L_Diesel_to_GJ -> 0 | Z9: =D9+F9+H9+J9+N9+P9+R9+T9+V9+X9+L9 -> 0 | AA9: =IF(ISERROR(Y9/B9),"",Y9/B9) ->  | AB9: =IF(ISERROR(Z9/B9),"",Z9/B9) ->  | AC9: =(C9*kWh_Élect_to_kgGES+E9*IF(U_GNat="[m³]",m3_GazNat_to_kgGES,Conversion!$H$29)+G9*IF(U_Ma2="[l]",L_Mazout2_to_kgGES,Conversion!$H$31)+I9*IF(U_Ma6="[l]",L_Mazout6_to_kgGES,Conversion!$H$33)+K9*IF(U_Dies="[l]",L_diesel_to_kgGES,Conversion!$H$35)+M9*IF(U_Prop="[l]",L_Propane_to_kgGES,Conversion!$H$37)+O9*IF(U_Bois20="[1000 kg MG]",Conversion!$H$38,Conversion!$H$39)+Q9*IF(U_Bois45="[1000 kg MG]",Conversion!$H$40,Conversion!$H$41)+S9*lbs_vapeur_to_kgGES+U9*MBTU_eaurefroidie_to_kgGES+W9*MBTU_eauchaude_to_kgGES)/1000 ->  | AD9: =(IF(ISERROR(AC9/B9),0,(AC9/B9)))*1000 -> 0 | AE9: =INDEX(plage_DJ,MATCH(A9,plage_date),3) -> 382.5 | AG9: 12
A10: =DATE(YEAR(A9),MONTH(A9)+1,DAY(A9)) -> 2020-05-01 | Y10: 0 | Z10: =D10+F10+H10+J10+N10+P10+R10+T10+V10+X10+L10 -> 0 | AC10: =(C10*kWh_Élect_to_kgGES+E10*IF(U_GNat="[m³]",m3_GazNat_to_kgGES,Conversion!$H$29)+G10*IF(U_Ma2="[l]",L_Mazout2_to_kgGES,Conversion!$H$31)+I10*IF(U_Ma6="[l]",L_Mazout6_to_kgGES,Conversion!$H$33)+K10*IF(U_Dies="[l]",L_diesel_to_kgGES,Conversion!$H$35)+M10*IF(U_Prop="[l]",L_Propane_to_kgGES,Conversion!$H$37)+O10*IF(U_Bois20="[1000 kg MG]",Conversion!$H$38,Conversion!$H$39)+Q10*IF(U_Bois45="[1000 kg MG]",Conversion!$H$40,Conversion!$H$41)+S10*lbs_vapeur_to_kgGES+U10*MBTU_eaurefroidie_to_kgGES+W10*MBTU_eauchaude_to_kgGES)/1000 ->  | AD10: 0 | AE10: 176.7 | AF10: =SUM(AE9) -> 382.5 | AG10: 11
A11: =DATE(YEAR(A10),MONTH(A10)+1,DAY(A10)) -> 2020-06-01 | Y11: 0 | Z11: 0 | AC11: =(C11*kWh_Élect_to_kgGES+E11*IF(U_GNat="[m³]",m3_GazNat_to_kgGES,Conversion!$H$29)+G11*IF(U_Ma2="[l]",L_Mazout2_to_kgGES,Conversion!$H$31)+I11*IF(U_Ma6="[l]",L_Mazout6_to_kgGES,Conversion!$H$33)+K11*IF(U_Dies="[l]",L_diesel_to_kgGES,Conversion!$H$35)+M11*IF(U_Prop="[l]",L_Propane_to_kgGES,Conversion!$H$37)+O11*IF(U_Bois20="[1000 kg MG]",Conversion!$H$38,Conversion!$H$39)+Q11*IF(U_Bois45="[1000 kg MG]",Conversion!$H$40,Conversion!$H$41)+S11*lbs_vapeur_to_kgGES+U11*MBTU_eaurefroidie_to_kgGES+W11*MBTU_eauchaude_to_kgGES)/1000 ->  | AD11: 0 | AE11: 36.9 | AF11: =SUM(AE9:AE10) -> 559.2 | AG11: 10
A12: 2020-07-01 | Y12: 0 | Z12: 0 | AC12: =(C12*kWh_Élect_to_kgGES+E12*IF(U_GNat="[m³]",m3_GazNat_to_kgGES,Conversion!$H$29)+G12*IF(U_Ma2="[l]",L_Mazout2_to_kgGES,Conversion!$H$31)+I12*IF(U_Ma6="[l]",L_Mazout6_to_kgGES,Conversion!$H$33)+K12*IF(U_Dies="[l]",L_diesel_to_kgGES,Conversion!$H$35)+M12*IF(U_Prop="[l]",L_Propane_to_kgGES,Conversion!$H$37)+O12*IF(U_Bois20="[1000 kg MG]",Conversion!$H$38,Conversion!$H$39)+Q12*IF(U_Bois45="[1000 kg MG]",Conversion!$H$40,Conversion!$H$41)+S12*lbs_vapeur_to_kgGES+U12*MBTU_eaurefroidie_to_kgGES+W12*MBTU_eauchaude_to_kgGES)/1000 ->  | AD12: 0 | AE12: 0 | AF12: =SUM(AE9:AE11) -> 596.1 | AG12: 9
A13: 2020-08-01 | Y13: 0 | Z13: 0 | AC13: =(C13*kWh_Élect_to_kgGES+E13*IF(U_GNat="[m³]",m3_GazNat_to_kgGES,Conversion!$H$29)+G13*IF(U_Ma2="[l]",L_Mazout2_to_kgGES,Conversion!$H$31)+I13*IF(U_Ma6="[l]",L_Mazout6_to_kgGES,Conversion!$H$33)+K13*IF(U_Dies="[l]",L_diesel_to_kgGES,Conversion!$H$35)+M13*IF(U_Prop="[l]",L_Propane_to_kgGES,Conversion!$H$37)+O13*IF(U_Bois20="[1000 kg MG]",Conversion!$H$38,Conversion!$H$39)+Q13*IF(U_Bois45="[1000 kg MG]",Conversion!$H$40,Conversion!$H$41)+S13*lbs_vapeur_to_kgGES+U13*MBTU_eaurefroidie_to_kgGES+W13*MBTU_eauchaude_to_kgGES)/1000 ->  | AD13: 0 | AE13: 17.5 | AF13: =SUM(AE9:AE12) -> 596.1 | AG13: 8
A14: 2020-09-01 | Y14: 0 | Z14: 0 | AC14: =(C14*kWh_Élect_to_kgGES+E14*IF(U_GNat="[m³]",m3_GazNat_to_kgGES,Conversion!$H$29)+G14*IF(U_Ma2="[l]",L_Mazout2_to_kgGES,Conversion!$H$31)+I14*IF(U_Ma6="[l]",L_Mazout6_to_kgGES,Conversion!$H$33)+K14*IF(U_Dies="[l]",L_diesel_to_kgGES,Conversion!$H$35)+M14*IF(U_Prop="[l]",L_Propane_to_kgGES,Conversion!$H$37)+O14*IF(U_Bois20="[1000 kg MG]",Conversion!$H$38,Conversion!$H$39)+Q14*IF(U_Bois45="[1000 kg MG]",Conversion!$H$40,Conversion!$H$41)+S14*lbs_vapeur_to_kgGES+U14*MBTU_eaurefroidie_to_kgGES+W14*MBTU_eauchaude_to_kgGES)/1000 ->  | AD14: 0 | AE14: 100.2 | AF14: =SUM(AE9:AE13) -> 613.6 | AG14: 7
A15: 2020-10-01 | Y15: 0 | Z15: 0 | AC15: =(C15*kWh_Élect_to_kgGES+E15*IF(U_GNat="[m³]",m3_GazNat_to_kgGES,Conversion!$H$29)+G15*IF(U_Ma2="[l]",L_Mazout2_to_kgGES,Conversion!$H$31)+I15*IF(U_Ma6="[l]",L_Mazout6_to_kgGES,Conversion!$H$33)+K15*IF(U_Dies="[l]",L_diesel_to_kgGES,Conversion!$H$35)+M15*IF(U_Prop="[l]",L_Propane_to_kgGES,Conversion!$H$37)+O15*IF(U_Bois20="[1000 kg MG]",Conversion!$H$38,Conversion!$H$39)+Q15*IF(U_Bois45="[1000 kg MG]",Conversion!$H$40,Conversion!$H$41)+S15*lbs_vapeur_to_kgGES+U15*MBTU_eaurefroidie_to_kgGES+W15*MBTU_eauchaude_to_kgGES)/1000 ->  | AD15: 0 | AE15: 284.6 | AF15: =SUM(AE9:AE14) -> 713.8 | AG15: 6
A16: 2020-11-01 | Y16: 0 | Z16: 0 | AC16: =(C16*kWh_Élect_to_kgGES+E16*IF(U_GNat="[m³]",m3_GazNat_to_kgGES,Conversion!$H$29)+G16*IF(U_Ma2="[l]",L_Mazout2_to_kgGES,Conversion!$H$31)+I16*IF(U_Ma6="[l]",L_Mazout6_to_kgGES,Conversion!$H$33)+K16*IF(U_Dies="[l]",L_diesel_to_kgGES,Conversion!$H$35)+M16*IF(U_Prop="[l]",L_Propane_to_kgGES,Conversion!$H$37)+O16*IF(U_Bois20="[1000 kg MG]",Conversion!$H$38,Conversion!$H$39)+Q16*IF(U_Bois45="[1000 kg MG]",Conversion!$H$40,Conversion!$H$41)+S16*lbs_vapeur_to_kgGES+U16*MBTU_eaurefroidie_to_kgGES+W16*MBTU_eauchaude_to_kgGES)/1000 ->  | AD16: 0 | AE16: 0 | AF16: =SUM(AE9:AE15) -> 998.4 | AG16: 5
A17: 2020-12-01 | Y17: 0 | Z17: 0 | AC17: =(C17*kWh_Élect_to_kgGES+E17*IF(U_GNat="[m³]",m3_GazNat_to_kgGES,Conversion!$H$29)+G17*IF(U_Ma2="[l]",L_Mazout2_to_kgGES,Conversion!$H$31)+I17*IF(U_Ma6="[l]",L_Mazout6_to_kgGES,Conversion!$H$33)+K17*IF(U_Dies="[l]",L_diesel_to_kgGES,Conversion!$H$35)+M17*IF(U_Prop="[l]",L_Propane_to_kgGES,Conversion!$H$37)+O17*IF(U_Bois20="[1000 kg MG]",Conversion!$H$38,Conversion!$H$39)+Q17*IF(U_Bois45="[1000 kg MG]",Conversion!$H$40,Conversion!$H$41)+S17*lbs_vapeur_to_kgGES+U17*MBTU_eaurefroidie_to_kgGES+W17*MBTU_eauchaude_to_kgGES)/1000 ->  | AD17: 0 | AE17: 0 | AF17: =SUM(AE9:AE16) -> 998.4 | AG17: 4
A18: 2021-01-01 | Y18: 0 | Z18: 0 | AC18: =(C18*kWh_Élect_to_kgGES+E18*IF(U_GNat="[m³]",m3_GazNat_to_kgGES,Conversion!$H$29)+G18*IF(U_Ma2="[l]",L_Mazout2_to_kgGES,Conversion!$H$31)+I18*IF(U_Ma6="[l]",L_Mazout6_to_kgGES,Conversion!$H$33)+K18*IF(U_Dies="[l]",L_diesel_to_kgGES,Conversion!$H$35)+M18*IF(U_Prop="[l]",L_Propane_to_kgGES,Conversion!$H$37)+O18*IF(U_Bois20="[1000 kg MG]",Conversion!$H$38,Conversion!$H$39)+Q18*IF(U_Bois45="[1000 kg MG]",Conversion!$H$40,Conversion!$H$41)+S18*lbs_vapeur_to_kgGES+U18*MBTU_eaurefroidie_to_kgGES+W18*MBTU_eauchaude_to_kgGES)/1000 ->  | AD18: 0 | AE18: 0 | AF18: =SUM(AE9:AE17) -> 998.4 | AG18: 3
A19: 2021-02-01 | Y19: 0 | Z19: 0 | AC19: =(C19*kWh_Élect_to_kgGES+E19*IF(U_GNat="[m³]",m3_GazNat_to_kgGES,Conversion!$H$29)+G19*IF(U_Ma2="[l]",L_Mazout2_to_kgGES,Conversion!$H$31)+I19*IF(U_Ma6="[l]",L_Mazout6_to_kgGES,Conversion!$H$33)+K19*IF(U_Dies="[l]",L_diesel_to_kgGES,Conversion!$H$35)+M19*IF(U_Prop="[l]",L_Propane_to_kgGES,Conversion!$H$37)+O19*IF(U_Bois20="[1000 kg MG]",Conversion!$H$38,Conversion!$H$39)+Q19*IF(U_Bois45="[1000 kg MG]",Conversion!$H$40,Conversion!$H$41)+S19*lbs_vapeur_to_kgGES+U19*MBTU_eaurefroidie_to_kgGES+W19*MBTU_eauchaude_to_kgGES)/1000 ->  | AD19: 0 | AE19: 0 | AF19: =SUM(AE9:AE18) -> 998.4 | AG19: 2
A20: 2021-03-01 | Y20: 0 | Z20: 0 | AC20: =(C20*kWh_Élect_to_kgGES+E20*IF(U_GNat="[m³]",m3_GazNat_to_kgGES,Conversion!$H$29)+G20*IF(U_Ma2="[l]",L_Mazout2_to_kgGES,Conversion!$H$31)+I20*IF(U_Ma6="[l]",L_Mazout6_to_kgGES,Conversion!$H$33)+K20*IF(U_Dies="[l]",L_diesel_to_kgGES,Conversion!$H$35)+M20*IF(U_Prop="[l]",L_Propane_to_kgGES,Conversion!$H$37)+O20*IF(U_Bois20="[1000 kg MG]",Conversion!$H$38,Conversion!$H$39)+Q20*IF(U_Bois45="[1000 kg MG]",Conversion!$H$40,Conversion!$H$41)+S20*lbs_vapeur_to_kgGES+U20*MBTU_eaurefroidie_to_kgGES+W20*MBTU_eauchaude_to_kgGES)/1000 ->  | AD20: 0 | AE20: 0 | AF20: =SUM(AE9:AE19) -> 998.4 | AG20: 1
A21: TOTAL/moyenne | B21: =IF(ISERROR(AVERAGE(B9:B20)),0,AVERAGE(B9:B20)) -> 0 | C21: =SUM(C9:C20) -> 0 | D21: =SUM(D9:D20) -> 0 | E21: =SUM(E9:E20) -> 0 | F21: =SUM(F9:F20) -> 0 | G21: 0 | H21: 0 | I21: 0 | J21: 0 | K21: 0 | L21: 0 | M21: 0 | N21: 0 | O21: 0 | P21: 0 | Q21: 0 | R21: 0 | S21: 0 | T21: 0 | U21: 0 | V21: 0 | W21: 0 | X21: 0 | Y21: 0 | Z21: 0 | AC21: =(C21*kWh_Élect_to_kgGES+E21*IF(U_GNat="[m³]",m3_GazNat_to_kgGES,Conversion!$H$29)+G21*IF(U_Ma2="[l]",L_Mazout2_to_kgGES,Conversion!$H$31)+I21*IF(U_Ma6="[l]",L_Mazout6_to_kgGES,Conversion!$H$33)+K21*IF(U_Dies="[l]",L_diesel_to_kgGES,Conversion!$H$35)+M21*IF(U_Prop="[l]",L_Propane_to_kgGES,Conversion!$H$37)+O21*IF(U_Bois20="[1000 kg MG]",Conversion!$H$38,Conversion!$H$39)+Q21*IF(U_Bois45="[1000 kg MG]",Conversion!$H$40,Conversion!$H$41)+S21*lbs_vapeur_to_kgGES+U21*MBTU_eaurefroidie_to_kgGES+W21*MBTU_eauchaude_to_kgGES)/1000 ->  | AD21: 0 | AE21: =SUM(AE9:AE20) -> 998.4
A22: 2020 | B22: Sup_20-21 | C22: Elec_kWh_20-21 | D22: Elec_CAD_20-21 | E22: GN_m³_20-21 | F22: GN_CAD_20-21 | G22: Ma2_l_20-21 | H22: Ma2_CAD_20-21 | I22: Ma6_l_20-21 | J22: Ma6_CAD_20-21 | K22: Prop_l_20-21 | L22: Prop_CAD_20-21 | M22: Bois20_1000kg_20-21 | N22: Bois20_CAD_20-21 | O22: Bois45_1000kg_20-21 | P22: Bois45_CAD_20-21 | W22: GJ_Tot_20-21 | X22: CAD_Tot_20-21 | Y22: GJm²_20-21 | Z22: CAD/m²_20-21 | AA22: GES_ton_20-21 | AB22: GES_ton/m²_20-21 | AC22: DJC_tot_20-21
A23: Nombre de bâtiments en propriété ou location, pour lesquels des factures d'énergie sont payées par l'organisation :
A25: ATTENTION, la saisie des consommations d'énergie comporte une erreur si la cellule AA21 est ombragée d'une couleur ! | Y25: =Lim_bas -> 0 | Z25: =Lim_haut -> 0
A27: QUESTIONS SPÉCIFIQUES (cocher si applicable)
A29: 1.
A30: 2.
A31: 3.
A32: 4.
A33: 5.
A35: AJUSTEMENTS NON PÉRIODIQUE | C35: Un ajustement correspond à une modification majeure des équipements ou du bâtiment. Un ajustement peut avoir un impact positif ou négatif sur la consommation énergétique: - un impact positif correspond à une augmentation majeure de la consommation, suite par exemple à l'ajout d'un étage de bâtiment ou à l'ajout de climatisation d'une aile d'un bâtiment. - un impact négatif correspond à une diminution majeure de la consommation. Cette diminution provient non pas d’une économie provenant d’une optimisation du bâtiment mais par exemple de la fermeture d’une partie d'un bâtiment qui devient alors inoccupé. Par exemple : l'ajout de locaux implique une augmentation nette des charges de chauffage et d'éclairage de 500 kWh, telles que calculées par une firme d'ingénieurs. Dans ce fichier, le projet sera noté « Agrandissement » impliquant une augmentation de l'électricité de 500 kWh. Comme il s'agit de chauffage, l'ajustement est sensible au chauffage. La date d'implantation correspond au mois où l'impact sur la consommation a été effectif. Si l'ajustement a eu un impact sur plus qu'une source d'énergie, merci de rajouter une ligne pour chaque source touchée.
B37: Projet | C37: Tendance de l'impact | D37: Source d'énergie touchée | E37: Impact Annuel | G37: Ajustement sensible au chauffage | H37: Date d'implantation | I37: Impact pour l'année complète [GJ] | J37: Impact pour l'année en cours [GJ] | X37: Énergie de l'année de référence ajustée | Y37: =((1-Facteur_variable)+Facteur_variable*DJC_tot_20_21/DJC_tot_09_10)*GJ_Tot_09_10+GJ_Ajust_NP_Cour_20_21 -> 0 | Z37: GJTotRef_Ajust_20_21
B38: Nom du projet #1 | F38: =IF(D38="électrique","kWh",IF(D38="Gaz naturel","m³",IF(LEFT(D38,1)="R","1000 kg","l"))) -> l | I38: =IF(COUNTA(G38)=1,IF(C38="Réduction",-1,IF(C38="Augmentation",1,0))*E38*INDEX(Conversion!$A$26:$J$42,MATCH(D38,Conversion!$J$26:$J$42,0),9),0) -> 0 | J38: =IF(G38="Non",I38*L38,IF(G38="Oui",I38*K38,0)) -> 0 | K38: =(DJC_tot_20_21-INDEX($A$9:$AF$20,MATCH(H38,$A$9:$A$20,0),24))/DJC_tot_20_21 ->  | L38: =INDEX($A$9:$AG$20,MATCH(H38,$A$9:$A$20,0),25)/12 ->  | X38: Énergie de l'année de suivi | Y38: =GJ_Tot_20_21 -> 0
B39: Nom du projet #2 | F39: =IF(D39="électrique","kWh",IF(D39="Gaz naturel","m³",IF(LEFT(D39,1)="R","1000 kg","l"))) -> l | I39: =IF(COUNTA(G39)=1,IF(C39="Réduction",-1,IF(C39="Augmentation",1,0))*E39*INDEX(Conversion!$A$26:$J$42,MATCH(D39,Conversion!$J$26:$J$42,0),9),0) -> 0 | J39: 0 | X39: Superficie de l'année de référence | Y39: =Sup_09_10 -> 0
B40: Nom du projet #3 | F40: l | I40: =IF(COUNTA(G40)=1,IF(C40="Réduction",-1,IF(C40="Augmentation",1,0))*E40*INDEX(Conversion!$A$26:$J$42,MATCH(D40,Conversion!$J$26:$J$42,0),9),0) -> 0 | J40: 0 | X40: Superficie de l'année de suivi | Y40: =Sup_20_21 -> 0
B41: Nom du projet #4 | F41: l | I41: =IF(COUNTA(G41)=1,IF(C41="Réduction",-1,IF(C41="Augmentation",1,0))*E41*INDEX(Conversion!$A$26:$J$42,MATCH(D41,Conversion!$J$26:$J$42,0),9),0) -> 0 | J41: 0 | Y41: =GJTotRef_Ajust_20_21/Sup_09_10 ->  | Z41: GJTotRef_Ajust_m²_20_21
B42: Nom du projet #5 | F42: l | I42: =IF(COUNTA(G42)=1,IF(C42="Réduction",-1,IF(C42="Augmentation",1,0))*E42*INDEX(Conversion!$A$26:$J$42,MATCH(D42,Conversion!$J$26:$J$42,0),9),0) -> 0 | J42: 0 | Y42: =J45 -> 0 | Z42: GJ_Ajust_NP_Cour_20_21
B43: Nom du projet #6 | F43: l | I43: =IF(COUNTA(G43)=1,IF(C43="Réduction",-1,IF(C43="Augmentation",1,0))*E43*INDEX(Conversion!$A$26:$J$42,MATCH(D43,Conversion!$J$26:$J$42,0),9),0) -> 0 | J43: 0 | Y43: =I45 -> 0 | Z43: GJ_Ajust_NP_annuel_20_21
B44: Nom du projet #7 | F44: l | I44: =IF(COUNTA(G44)=1,IF(C44="Réduction",-1,IF(C44="Augmentation",1,0))*E44*INDEX(Conversion!$A$26:$J$42,MATCH(D44,Conversion!$J$26:$J$42,0),9),0) -> 0 | J44: 0
B45: TOTAL | I45: =SUM(I38:I44) -> 0 | J45: =SUM(J38:J44) -> 0
C54: Réduction | D54: Électrique | G54: Oui
C55: Augmentation | D55: Gaz naturel | G55: Non
D56: Mazout n°2
D57: Mazout n°6
D58: Propane
D59: Résidus de bois (20%humidité)
D60: Résidus de bois (45%humidité)
D61: -

Sheet DJ 18 MTL (hidden)
A1: Degrés-jours calculés de Montréal (Pierre Elliot Trudeau) | H1: Degrés-jours calculés de Québec (Qc)
A3: Début | B3: Fin | C3: DJC | D3: DJR | H3: Début | I3: Fin | J3: DJC | K3: DJR
C4: ° C | D4: ° C | J4: ° C | K4: ° C
A5: Degrés-jours calculés de Montréal (Pierre Elliot Trudeau) | G5: Degrés-jours calculés de Québec (Qc)
A7: Début | B7: Fin | C7: DJC | D7: DJR | G7: Début | H7: Fin | I7: DJC | J7: DJR
C8: ° C | D8: ° C | I8: ° C | J8: ° C
A9: 2002-01-01 | B9: 2002-01-31 | C9: 695.7 | D9: 0 | E9: Janvier | F9: 2002 | H9: 2002-01-31 | J9: 0
A10: 2002-02-01 | B10: 2002-02-28 | C10: 643.3 | D10: 0 | E10: Février | F10: 2002 | G10: 37288 | H10: 2002-02-28 | I10: 1902-01-19T04:48:00 | J10: 0
A11: 2002-03-01 | B11: 2002-03-31 | C11: 616.2 | D11: 0 | E11: Mars | F11: 2002 | G11: 37316 | H11: 2002-03-31 | I11: 1901-12-12T04:48:00 | J11: 0
A12: 2002-04-01 | B12: 2002-04-30 | C12: 336.6 | D12: 3.2 | E12: Avril | F12: 2002 | G12: 37347 | H12: 2002-04-30 | I12: 1901-03-02T04:48:00 | J12: 0
A13: 2002-05-01 | B13: 2002-05-31 | C13: 214.4 | D13: 6.6 | E13: Mai | F13: 2002 | G13: 37377 | H13: 2002-05-31 | I13: 1900-09-29T14:24:00 | J13: 1.4
A14: 2002-06-01 | B14: 2002-06-30 | C14: 53.3 | D14: 38.1 | E14: Juin | F14: 2002 | G14: 37408 | H14: 2002-06-30 | I14: 1900-04-16T02:24:00 | J14: 13.8
A15: 2002-07-01 | B15: 2002-07-31 | C15: 2.9 | D15: 130.2 | E15: Juillet | F15: 2002 | G15: 37438 | H15: 2002-07-31 | I15: 1900-01-18T19:12:00 | J15: 74.9
A16: 2002-08-01 | B16: 2002-08-31 | C16: 4.3 | D16: 123.1 | E16: Août | F16: 2002 | G16: 37469 | H16: 2002-08-31 | I16: 1900-01-23T09:36:00 | J16: 66.6
A17: 2002-09-01 | B17: 2002-09-30 | C17: 51 | D17: 60.1 | E17: Septembre | F17: 2002 | G17: 37500 | H17: 2002-09-30 | I17: 1900-04-08T04:48:00 | J17: 27.8
A18: 2002-10-01 | B18: 2002-10-31 | C18: 343.7 | D18: 3.3 | E18: Octobre | F18: 2002 | G18: 37530 | H18: 2002-10-31 | I18: 1901-02-14 | J18: 0.5
A19: 2002-11-01 | B19: 2002-11-30 | C19: 517.1 | D19: 0 | E19: Novembre | F19: 2002 | G19: 37561 | H19: 2002-11-30 | I19: 1901-09-01T16:48:00 | J19: 0
A20: 2002-12-01 | B20: 2002-12-31 | C20: 699.9 | D20: 0 | E20: Décembre | F20: 2002 | G20: 37591 | H20: 2002-12-31 | I20: 1902-03-07 | J20: 0
A21: 2003-01-01 | B21: 2003-01-31 | C21: 948.3 | D21: 0 | E21: Janvier | F21: 2003 | G21: 37622 | H21: 2003-01-31 | I21: 1902-10-08T14:24:00 | J21: 0
A22: 2003-02-01 | B22: 2003-02-28 | C22: 805.6 | D22: 0 | E22: Février | F22: 2003 | G22: 37653 | H22: 2003-02-28 | I22: 1902-05-25T12:00:00 | J22: 0
A23: 2003-03-01 | B23: 2003-03-31 | C23: 674.9 | D23: 0 | E23: Mars | F23: 2003 | G23: 37681 | H23: 2003-03-31 | I23: 1902-01-16T16:48:00 | J23: 0
A24: 2003-04-01 | B24: 2003-04-30 | C24: 413.1 | D24: 0 | E24: Avril | F24: 2003 | G24: 37712 | H24: 2003-04-30 | I24: 1901-05-20T02:24:00 | J24: 0
A25: 2003-05-01 | B25: 2003-05-31 | C25: 144.8 | D25: 3.4 | E25: Mai | F25: 2003 | G25: 37742 | H25: 2003-05-31 | I25: 1900-08-12T16:48:00 | J25: 2
A26: 2003-06-01 | B26: 2003-06-30 | C26: 39.9 | D26: 64.1 | E26: Juin | F26: 2003 | G26: 37773 | H26: 2003-06-30 | I26: 1900-03-11T14:24:00 | J26: 43.9
A27: 2003-07-01 | B27: 2003-07-31 | C27: 0.8 | D27: 112.6 | E27: Juillet | F27: 2003 | G27: 37803 | H27: 2003-07-31 | I27: 1900-01-19 | J27: 33.3
A28: 2003-08-01 | B28: 2003-08-31 | C28: 10.2 | D28: 121.5 | E28: Août | F28: 2003 | G28: 37834 | H28: 2003-08-31 | I28: 1900-02-15T07:12:00 | J28: 48.6
A29: 2003-09-01 | B29: 2003-09-30 | C29: 43.2 | D29: 33 | E29: Septembre | F29: 2003 | G29: 37865 | H29: 2003-09-30 | I29: 1900-03-30T07:12:00 | J29: 8.5
A30: 2003-10-01 | B30: 2003-10-31 | C30: 310.2 | D30: 0 | E30: Octobre | F30: 2003 | G30: 37895 | H30: 2003-10-31 | I30: 1900-12-23 | J30: 0
A31: 2003-11-01 | B31: 2003-11-30 | C31: 453.7 | D31: 0 | E31: Novembre | F31: 2003 | G31: 37926 | H31: 2003-11-30 | I31: 1901-06-09T07:12:00 | J31: 0
A32: 2003-12-01 | B32: 2003-12-31 | C32: 710.8 | D32: 0 | E32: Décembre | F32: 2003 | G32: 37956 | H32: 2003-12-31 | I32: 1902-01-26T04:48:00 | J32: 0
A33: 2004-01-01 | B33: 2004-01-31 | C33: 1026.4 | D33: 0 | E33: Janvier | F33: 2004 | G33: 37987 | H33: 2004-01-31 | I33: 1902-12-20T21:36:00 | J33: 0
A34: 2004-02-01 | B34: 2004-02-29 | C34: 750.8 | D34: 0 | E34: Février | F34: 2004 | G34: 38018 | H34: 2004-02-29 | I34: 1902-03-13T02:24:00 | J34: 0
A35: 2004-03-01 | B35: 2004-03-31 | C35: 567.6 | D35: 0 | E35: Mars | F35: 2004 | G35: 38047 | H35: 2004-03-31 | I35: 1901-10-25T19:12:00 | J35: 0
A36: 2004-04-01 | B36: 2004-04-30 | C36: 361.5 | D36: 2.4 | E36: Avril | F36: 2004 | G36: 38078 | H36: 2004-04-30 | I36: 1901-03-09T07:12:00 | J36: 0
A37: 2004-05-01 | B37: 2004-05-31 | C37: 144.9 | D37: 3.8 | E37: Mai | F37: 2004 | G37: 38108 | H37: 2004-05-31 | I37: 1900-08-20T02:24:00 | J37: 0
A38: 2004-06-01 | B38: 2004-06-30 | C38: 45.5 | D38: 31.4 | E38: Juin | F38: 2004 | G38: 38139 | H38: 2004-06-30 | I38: 1900-04-06T04:48:00 | J38: 4
A39: 2004-07-01 | B39: 2004-07-31 | C39: 0.7 | D39: 108.9 | E39: Juillet | F39: 2004 | G39: 38169 | H39: 2004-07-31 | I39: 1900-01-07T21:36:00 | J39: 55
A40: 2004-08-01 | B40: 2004-08-31 | C40: 18.4 | D40: 59.2 | E40: Août | F40: 2004 | G40: 38200 | H40: 2004-08-31 | I40: 1900-02-05T02:24:00 | J40: 27.6
A41: 2004-09-01 | B41: 2004-09-30 | C41: 60.9 | D41: 11.6 | E41: Septembre | F41: 2004 | G41: 38231 | H41: 2004-09-30 | I41: 1900-05-09T14:24:00 | J41: 1.8
A42: 2004-10-01 | B42: 2004-10-31 | C42: 281.8 | D42: 0.5 | E42: Octobre | F42: 2004 | G42: 38261 | H42: 2004-10-31 | I42: 1900-11-04T21:36:00 | J42: 0
A43: 2004-11-01 | B43: 2004-11-30 | C43: 472.6 | D43: 0 | E43: Novembre | F43: 2004 | G43: 38292 | H43: 2004-11-30 | I43: 1901-07-02 | J43: 0
A44: 2004-12-01 | B44: 2004-12-31 | C44: 787.5 | D44: 0 | E44: Décembre | F44: 2004 | G44: 38322 | H44: 2004-12-31 | I44: 1902-05-21T04:48:00 | J44: 0
A45: 2005-01-01 | B45: 2005-01-31 | C45: 898.4 | D45: 0 | E45: Janvier | F45: 2005 | G45: 38353 | H45: 2005-01-31 | I45: 1902-10-01T02:24:00 | J45: 0
A46: 2005-02-01 | B46: 2005-02-28 | C46: 686.7 | D46: 0 | E46: Février | F46: 2005 | G46: 38384 | H46: 2005-02-28 | I46: 1902-01-10T09:36:00 | J46: 0
A47: 2005-03-01 | B47: 2005-03-31 | C47: 659.4 | D47: 0 | E47: Mars | F47: 2005 | G47: 38412 | H47: 2005-03-31 | I47: 1901-12-01T02:24:00 | J47: 0
A48: 2005-04-01 | B48: 2005-04-30 | C48: 308.4 | D48: 0 | E48: Avril | F48: 2005 | G48: 38443 | H48: 2005-04-30 | I48: 1901-01-28T19:12:00 | J48: 0
A49: 2005-05-01 | B49: 2005-05-31 | C49: 190.3 | D49: 0.9 | E49: Mai | F49: 2005 | G49: 38473 | H49: 2005-05-31 | I49: 1900-08-23T07:12:00 | J49: 0
A50: 2005-06-01 | B50: 2005-06-30 | C50: 16.2 | D50: 121.3 | E50: Juin | F50: 2005 | G50: 38504 | H50: 2005-06-30 | I50: 1900-03-01T21:36:00 | J50: 57.4
A51: 2005-07-01 | B51: 2005-07-31 | C51: 2.7 | D51: 132.6 | E51: Juillet | F51: 2005 | G51: 38534 | H51: 2005-07-31 | I51: 1900-01-10T04:48:00 | J51: 84.5
A52: 2005-08-01 | B52: 2005-08-31 | C52: 6.2 | D52: 122.1 | E52: Août | F52: 2005 | G52: 38565 | H52: 2005-08-31 | I52: 1900-01-16T19:12:00 | J52: 55.5
A53: 2005-09-01 | B53: 2005-09-30 | C53: 54.3 | D53: 37.1 | E53: Septembre | F53: 2005 | G53: 38596 | H53: 2005-09-30 | I53: 1900-04-20T02:24:00 | J53: 13.2
A54: 2005-10-01 | B54: 2005-10-31 | C54: 253 | D54: 8.6 | E54: Octobre | F54: 2005 | G54: 38626 | H54: 2005-10-31 | I54: 1900-10-19T14:24:00 | J54: 0.4
A55: 2005-11-01 | B55: 2005-11-30 | C55: 454.7 | D55: 0 | E55: Novembre | F55: 2005 | G55: 38657 | H55: 2005-11-30 | I55: 1901-06-20T02:24:00 | J55: 0
A56: 2005-12-01 | B56: 2005-12-31 | C56: 682.6 | D56: 0 | E56: Décembre | F56: 2005 | G56: 38687 | H56: 2005-12-31 | I56: 1902-03-21T19:12:00 | J56: 0
A57: 2006-01-01 | B57: 2006-01-31 | C57: 697.4 | D57: 0 | E57: Janvier | F57: 2006 | G57: 38718 | H57: 2006-01-31 | I57: 1902-02-15T04:48:00 | J57: 0
A58: 2006-02-01 | B58: 2006-02-28 | C58: 694 | D58: 0 | E58: Février | F58: 2006 | G58: 38749 | H58: 2006-02-28 | I58: 1902-02-27T12:00:00 | J58: 0
A59: 2006-03-01 | B59: 2006-03-31 | C59: 576.5 | D59: 0 | E59: Mars | F59: 2006 | G59: 38777 | H59: 2006-03-31 | I59: 1901-09-23 | J59: 0
A60: 2006-04-01 | B60: 2006-04-30 | C60: 313 | D60: 0 | E60: Avril | F60: 2006 | G60: 38808 | H60: 2006-04-30 | I60: 1901-01-09T14:24:00 | J60: 0
A61: 2006-05-01 | B61: 2006-05-31 | C61: 126.6 | D61: 17.8 | E61: Mai | F61: 2006 | G61: 38838 | H61: 2006-05-31 | I61: 1900-06-19T09:36:00 | J61: 1.5
A62: 2006-06-01 | B62: 2006-06-30 | C62: 23.8 | D62: 59 | E62: Juin | F62: 2006 | G62: 38869 | H62: 2006-06-30 | I62: 1900-02-05 | J62: 35.4
A63: 2006-07-01 | B63: 2006-07-31 | C63: 0 | D63: 141.9 | E63: Juillet | F63: 2006 | G63: 38899 | H63: 2006-07-31 | I63: 1900-01-04T12:00:00 | J63: 89.9
A64: 2006-08-01 | B64: 2006-08-31 | C64: 23.9 | D64: 65 | E64: Août | F64: 2006 | G64: 38930 | H64: 2006-08-31 | I64: 1900-02-22T16:48:00 | J64: 33
A65: 2006-09-01 | B65: 2006-09-30 | C65: 96.1 | D65: 7.5 | E65: Septembre | F65: 2006 | G65: 38961 | H65: 2006-09-30 | I65: 1900-05-30T12:00:00 | J65: 0
A66: 2006-10-01 | B66: 2006-10-31 | C66: 312.9 | D66: 0 | E66: Octobre | F66: 2006 | G66: 38991 | H66: 2006-10-31 | I66: 1900-12-15T04:48:00 | J66: 0
A67: 2006-11-01 | B67: 2006-11-30 | C67: 407.2 | D67: 0 | E67: Novembre | F67: 2006 | G67: 39022 | H67: 2006-11-30 | I67: 1901-03-27T04:48:00 | J67: 0
A68: 2006-12-01 | B68: 2006-12-31 | C68: 595.9 | D68: 0 | E68: Décembre | F68: 2006 | G68: 39052 | H68: 2006-12-31 | I68: 1901-12-03T14:24:00 | J68: 0
A69: 2007-01-01 | B69: 2007-01-31 | C69: 775.6 | D69: 0 | E69: Janvier | F69: 2007 | G69: 39083 | H69: 2007-01-31 | I69: 1902-05-29T14:24:00 | J69: 0
A70: 2007-02-01 | B70: 2007-02-28 | C70: 809.7 | D70: 0 | E70: Février | F70: 2007 | G70: 39114 | H70: 2007-02-28 | I70: 1902-05-13T09:36:00 | J70: 0
A71: 2007-03-01 | B71: 2007-03-31 | C71: 644.9 | D71: 0 | E71: Mars | F71: 2007 | G71: 39142 | H71: 2007-03-31 | I71: 1901-12-22T21:36:00 | J71: 0
A72: 2007-04-01 | B72: 2007-04-30 | C72: 366.4 | D72: 0 | E72: Avril | F72: 2007 | G72: 39173 | H72: 2007-04-30 | I72: 1901-03-16T21:36:00 | J72: 0
A73: 2007-05-01 | B73: 2007-05-31 | C73: 152.9 | D73: 18 | E73: Mai | F73: 2007 | G73: 39203 | H73: 2007-05-31 | I73: 1900-07-14T14:24:00 | J73: 11.7
A74: 2007-06-01 | B74: 2007-06-30 | C74: 26 | D74: 74.9 | E74: Juin | F74: 2007 | G74: 39234 | H74: 2007-06-30 | I74: 1900-02-28T04:48:00 | J74: 21.9
A75: 2007-07-01 | B75: 2007-07-31 | D75: 82.1 | E75: Juillet | F75: 2007 | G75: 39264 | H75: 2007-07-31 | I75: 1900-01-21T14:24:00 | J75: 51
A76: 2007-08-01 | B76: 2007-08-31 | C76: 15.5 | D76: 80.8 | E76: Août | F76: 2007 | G76: 39295 | H76: 2007-08-31 | I76: 1900-02-16T14:24:00 | J76: 25.4
A77: 2007-09-01 | B77: 2007-09-30 | C77: 69.9 | D77: 30.1 | E77: Septembre | F77: 2007 | G77: 39326 | H77: 2007-09-30 | I77: 1900-05-08T09:36:00 | J77: 11.4
A78: 2007-10-01 | B78: 2007-10-31 | C78: 207.9 | D78: 3.1 | E78: Octobre | F78: 2007 | G78: 39356 | H78: 2007-10-31 | I78: 1900-09-20T12:00:00 | J78: 0
A79: 2007-11-01 | B79: 2007-11-30 | C79: 509.7 | D79: 0 | E79: Novembre | F79: 2007 | G79: 39387 | H79: 2007-11-30 | I79: 1901-07-07T09:36:00 | J79: 0
A80: 2007-12-01 | B80: 2007-12-31 | C80: 756.4 | D80: 0 | E80: Décembre | F80: 2007 | G80: 39417 | H80: 2007-12-31 | I80: 1902-04-18T04:48:00 | J80: 0
A81: 2008-01-01 | B81: 2008-01-31 | C81: 749.3 | D81: 0 | E81: Janvier | F81: 2008 | G81: 39448 | H81: 2008-01-31 | I81: 1902-05-01T16:48:00 | J81: 0
A82: 2008-02-01 | B82: 2008-02-29 | C82: 744.7 | D82: 0 | E82: Février | F82: 2008 | G82: 39479 | H82: 2008-02-29 | I82: 1902-04-03T16:48:00 | J82: 0
A83: 2008-03-01 | B83: 2008-03-31 | C83: 690.8 | D83: 0 | E83: Mars | F83: 2008 | G83: 39508 | H83: 2008-03-31 | I83: 1902-02-03T19:12:00 | J83: 0
A84: 2008-04-01 | B84: 2008-04-30 | C84: 296 | D84: 0 | E84: Avril | F84: 2008 | G84: 39539 | H84: 2008-04-30 | I84: 1901-01-31T19:12:00 | J84: 0
A85: 2008-05-01 | B85: 2008-05-31 | C85: 172.3 | D85: 0 | E85: Mai | F85: 2008 | G85: 39569 | H85: 2008-05-31 | I85: 1900-08-13T07:12:00 | J85: 0
A86: 2008-06-01 | B86: 2008-06-30 | C86: 16.8 | D86: 72.4 | E86: Juin | F86: 2008 | G86: 39600 | H86: 2008-06-30 | I86: 1900-02-20T07:12:00 | J86: 17
A87: 2008-07-01 | B87: 2008-07-31 | C87: 0 | D87: 106.8 | E87: Juillet | F87: 2008 | G87: 39630 | H87: 2008-07-31 | I87: 1900-01-04T12:00:00 | J87: 50.3
A88: 2008-08-01 | B88: 2008-08-31 | C88: 10.8 | D88: 62.7 | E88: Août | F88: 2008 | G88: 39661 | H88: 2008-08-31 | I88: 1900-01-22T21:36:00 | J88: 22.6
A89: 2008-09-01 | B89: 2008-09-30 | C89: 72.1 | D89: 33 | E89: Septembre | F89: 2008 | G89: 39692 | H89: 2008-09-30 | I89: 1900-05-11T14:24:00 | J89: 9.6
A90: 2008-10-01 | B90: 2008-10-31 | C90: 307.1 | D90: 0 | E90: Octobre | F90: 2008 | G90: 39722 | H90: 2008-10-31 | I90: 1900-12-16T19:12:00 | J90: 0
A91: 2008-11-01 | B91: 2008-11-30 | C91: 467.9 | D91: 0 | E91: Novembre | F91: 2008 | G91: 39753 | H91: 2008-11-30 | I91: 1901-05-28T12:00:00 | J91: 0
A92: 2008-12-01 | B92: 2008-12-31 | C92: 763.6 | D92: 0 | E92: Décembre | F92: 2008 | G92: 39783 | H92: 2008-12-31 | I92: 1902-04-22T04:48:00 | J92: 0
A93: 2009-01-01 | B93: 2009-01-31 | C93: 956.2 | D93: 0 | E93: Janvier | F93: 2009 | G93: 39814 | H93: 2009-01-31 | I93: 1902-11-18 | J93: 0
A94: 2009-02-01 | B94: 2009-02-28 | C94: 701 | D94: 0 | E94: Février | F94: 2009 | G94: 39845 | H94: 2009-02-28 | I94: 1902-01-25 | J94: 0
A95: 2009-03-01 | B95: 2009-03-31 | C95: 590.8 | D95: 0 | E95: Mars | F95: 2009 | G95: 39873 | H95: 2009-03-31 | I95: 1901-11-26T04:48:00 | J95: 0
A96: 2009-04-01 | B96: 2009-04-30 | C96: 313.8 | D96: 3.3 | E96: Avril | F96: 2009 | G96: 39904 | H96: 2009-04-30 | I96: 1900-12-28T21:36:00 | J96: 0
A97: 2009-05-01 | B97: 2009-05-31 | C97: 165.8 | D97: 1 | E97: Mai | F97: 2009 | G97: 39934 | H97: 2009-05-31 | I97: 1900-08-19T12:00:00 | J97: 0
A98: 2009-06-01 | B98: 2009-06-30 | C98: 45.6 | D98: 44.1 | E98: Juin | F98: 2009 | G98: 39965 | H98: 2009-06-30 | I98: 1900-03-09 | J98: 12.7
A99: 2009-07-01 | B99: 2009-07-31 | C99: 7.8 | D99: 70.7 | E99: Juillet | F99: 2009 | G99: 39995 | H99: 2009-07-31 | I99: 1900-02-03T09:36:00 | J99: 27
A100: 2009-08-01 | B100: 2009-08-31 | C100: 20.1 | D100: 106.3 | E100: Août | F100: 2009 | G100: 40026 | H100: 2009-08-31 | I100: 1900-02-02T07:12:00 | J100: 74.9
A101: 2009-09-01 | B101: 2009-09-30 | C101: 90.6 | D101: 8.9 | E101: Septembre | F101: 2009 | G101: 40057 | H101: 2009-09-30 | I101: 1900-05-15T16:48:00 | J101: 2.6
A102: 2009-10-01 | B102: 2009-10-31 | C102: 342.7 | D102: 0 | E102: Octobre | F102: 2009 | G102: 40087 | H102: 2009-10-31 | I102: 1901-02-04T12:00:00 | J102: 0
A103: 2009-11-01 | B103: 2009-11-30 | C103: 407.3 | D103: 0 | E103: Novembre | F103: 2009 | G103: 40118 | H103: 2009-11-30 | I103: 1901-04-01T04:48:00 | J103: 0
A104: 2009-12-01 | B104: 2009-12-31 | C104: 724.6 | D104: 0 | E104: Décembre | F104: 2009 | G104: 40148 | H104: 2009-12-31 | I104: 1902-02-18T04:48:00 | J104: 0
A105: 2010-01-01 | B105: 2010-01-31 | C105: 756.3 | D105: 0 | E105: Janvier | F105: 2010 | G105: 40179 | H105: 2010-01-31 | I105: 1902-03-04T04:48:00 | J105: 0
A106: 2010-02-01 | B106: 2010-02-28 | C106: 636.3 | D106: 0 | E106: Février | F106: 2010 | G106: 40210 | H106: 2010-02-28 | I106: 1901-10-13T07:12:00 | J106: 0
A107: 2010-03-01 | B107: 2010-03-31 | C107: 456.9 | D107: 0 | E107: Mars | F107: 2010 | G107: 40238 | H107: 2010-03-31 | I107: 1901-07-01T07:12:00 | J107: 0
A108: 2010-04-01 | B108: 2010-04-30 | C108: 256.3 | D108: 0.1 | E108: Avril | F108: 2010 | G108: 40269 | H108: 2010-04-30 | I108: 1900-11-11T12:00:00 | J108: 0
A109: 2010-05-01 | B109: 2010-05-31 | C109: 107.9 | D109: 36.6 | E109: Mai | F109: 2010 | G109: 40299 | H109: 2010-05-31 | I109: 1900-06-09T07:12:00 | J109: 15.1
A110: 2010-06-01 | B110: 2010-06-30 | C110: 32.4 | D110: 43.7 | E110: Juin | F110: 2010 | G110: 40330 | H110: 2010-06-30 | I110: 1900-02-26 | J110: 23.3
A111: 2010-07-01 | B111: 2010-07-31 | C111: 4.9 | D111: 160 | E111: Juillet | F111: 2010 | G111: 40360 | H111: 2010-07-31 | I111: 1900-01-12T16:48:00 | J111: 119.2
A112: 2010-08-01 | B112: 2010-08-31 | C112: 9.4 | D112: 99.2 | E112: Août | F112: 2010 | G112: 40391 | H112: 2010-08-31 | I112: 1900-01-19T09:36:00 | J112: 59
A113: 2010-09-01 | B113: 2010-09-30 | C113: 84.4 | D113: 32.7 | E113: Septembre | F113: 2010 | G113: 40422 | H113: 2010-09-30 | I113: 1900-05-26T14:24:00 | J113: 16.4
A114: 2010-10-01 | B114: 2010-10-31 | C114: 300.5 | D114: 0 | E114: Octobre | F114: 2010 | G114: 40452 | H114: 2010-10-31 | I114: 1900-12-18T09:36:00 | J114: 0
A115: 2010-11-01 | B115: 2010-11-30 | C115: 466.6 | D115: 0 | E115: Novembre | F115: 2010 | G115: 40483 | H115: 2010-11-30 | I115: 1901-06-09T16:48:00 | J115: 0
A116: 2010-12-01 | B116: 2010-12-31 | C116: 739 | D116: 0 | E116: Décembre | F116: 2010 | G116: 40513 | H116: 2010-12-31 | I116: 1902-02-05T12:00:00 | J116: 0
A117: 2011-01-01 | B117: 2011-01-31 | C117: 851.5 | D117: 0 | E117: Janvier | F117: 2011 | G117: 40544 | H117: 2011-01-31 | I117: 1902-05-25 | J117: 0
A118: 2011-02-01 | B118: 2011-02-28 | C118: 716.1 | D118: 0 | E118: Février | F118: 2011 | G118: 40575 | H118: 2011-02-28 | I118: 1902-02-11T16:48:00 | J118: 0
A119: 2011-03-01 | B119: 2011-03-31 | C119: 618.4 | D119: 0 | E119: Mars | F119: 2011 | G119: 40603 | H119: 2011-03-31 | I119: 1901-11-26T19:12:00 | J119: 0
A120: 2011-04-01 | B120: 2011-04-30 | C120: 341.6 | D120: 0 | E120: Avril | F120: 2011 | G120: 40634 | H120: 2011-04-30 | I120: 1901-03-11T07:12:00 | J120: 0
A121: 2011-05-01 | B121: 2011-05-31 | C121: 138 | D121: 12.8 | E121: Mai | F121: 2011 | G121: 40664 | H121: 2011-05-31 | I121: 1900-08-07T21:36:00 | J121: 2.1
A122: 2011-06-01 | B122: 2011-06-30 | C122: 19.4 | D122: 59.7 | E122: Juin | F122: 2011 | G122: 40695 | H122: 2011-06-30 | I122: 1900-02-23T04:48:00 | J122: 18.3
A123: 2011-07-01 | B123: 2011-07-31 | C123: 0 | D123: 156.7 | E123: Juillet | F123: 2011 | G123: 40725 | H123: 2011-07-31 | I123: 1900-01-04T19:12:00 | J123: 85
A124: 2011-08-01 | B124: 2011-08-31 | C124: 2.4 | D124: 95.8 | E124: Août | F124: 2011 | G124: 40756 | H124: 2011-08-31 | I124: 1900-01-19T12:00:00 | J124: 37.6
A125: 2011-09-01 | B125: 2011-09-30 | C125: 46.6 | D125: 38.7 | E125: Septembre | F125: 2011 | G125: 40787 | H125: 40816 | I125: 84 | J125: 9.1
A126: 2011-10-01 | B126: 2011-10-31 | C126: 252 | D126: 1.4 | E126: Octobre | F126: 2011 | G126: 40817 | H126: 40847 | I126: 305.1 | J126: 0
A127: 2011-11-01 | B127: 2011-11-30 | C127: 381.6 | D127: 0 | E127: Novembre | F127: 2011 | G127: 40848 | H127: 40877 | I127: 454.3 | J127: 0
A128: 2011-12-01 | B128: 2011-12-31 | C128: 637.6 | D128: 0 | E128: Décembre | F128: 2011 | G128: 40878 | H128: 40908 | I128: 736 | J128: 0
A129: 2012-01-01 | B129: 2012-01-31 | C129: 788.3 | D129: 0 | E129: Janvier | F129: 2012
A130: 2012-02-01 | B130: 2012-02-29 | C130: 659.7 | D130: 0 | E130: Février | F130: 2012
A131: 2012-03-01 | B131: 2012-03-31 | C131: 462.8 | D131: 0 | E131: Mars | F131: 2012
A132: 2012-04-01 | B132: 2012-04-30 | C132: 339.2 | D132: 3.7 | E132: Avril | F132: 2012
A133: 2012-05-01 | B133: 2012-05-31 | C133: 89.9 | D133: 23.8 | E133: Mai | F133: 2012
A134: 2012-06-01 | B134: 2012-06-30 | C134: 21.5 | D134: 80.4 | E134: Juin | F134: 2012
A135: 2012-07-01 | B135: 2012-07-31 | C135: 0.7 | D135: 133.8 | E135: Juillet | F135: 2012
A136: 2012-08-01 | B136: 2012-08-31 | C136: 0.8 | D136: 129.7 | E136: Août | F136: 2012
A137: 2012-09-01 | B137: 2012-09-30 | C137: 92.5 | D137: - | E137: Septembre | F137: 2012
A138: 2012-10-01 | B138: 2012-10-31 | C138: 222.8 | D138: - | E138: Octobre | F138: 2012
A139: 2012-11-01 | B139: 2012-11-30 | C139: 524.2 | D139: - | E139: Novembre | F139: 2012
A140: 2012-12-01 | B140: 2012-12-31 | C140: 666.5 | D140: - | E140: Décembre | F140: 2012
A141: 2013-01-01 | B141: 2013-01-31 | C141: 808.2 | D141: - | E141: Janvier | F141: 2013
A142: 2013-02-01 | B142: 2013-02-28 | C142: 698 | D142: - | E142: Février | F142: 2013
A143: 2013-03-01 | B143: 2013-03-31 | C143: 575.1 | D143: - | E143: Mars | F143: 2013
A144: 2013-04-01 | B144: 2013-04-30 | C144: 358.6 | D144: - | E144: Avril | F144: 2013
A145: 2013-05-01 | B145: 2013-05-31 | C145: 106.5 | D145: - | E145: Mai | F145: 2013
A146: 2013-06-01 | B146: 2013-06-30 | C146: 47.7 | D146: - | E146: Juin | F146: 2013
A147: 2013-07-01 | B147: 2013-07-31 | C147: 4.1 | D147: - | E147: Juillet | F147: 2013
A148: 2013-08-01 | B148: 2013-08-31 | C148: 3.4 | D148: - | E148: Août | F148: 2013
A149: 2013-09-01 | B149: 2013-09-30 | C149: 99.5 | D149: - | E149: Septembre | F149: 2013
A150: 2013-10-01 | B150: 2013-10-31 | C150: 236.5 | D150: - | E150: Octobre | F150: 2013
A151: 2013-11-01 | B151: 2013-11-30 | C151: 514 | D151: - | E151: Novembre | F151: 2013
A152: 2013-12-01 | B152: 2013-12-31 | C152: 817.5 | D152: - | E152: Décembre | F152: 2013
A153: 2014-01-01 | B153: 2014-01-31 | C153: 873.9 | D153: - | E153: Janvier | F153: 2014
A154: 2014-02-01 | B154: 2014-02-28 | C154: 754.6 | D154: - | E154: Février | F154: 2014
A155: 2014-03-01 | B155: 2014-03-31 | C155: 746.2 | D155: - | E155: Mars | F155: 2014
A156: 2014-04-01 | B156: 2014-04-30 | C156: 368.1 | D156: - | E156: Avril | F156: 2014
A157: 2014-05-01 | B157: 2014-05-31 | C157: 118.9 | D157: - | E157: Mai | F157: 2014
A158: 2014-06-01 | B158: 2014-06-30 | C158: 10.1 | D158: - | E158: Juin | F158: 2014
A159: 2014-07-01 | B159: 2014-07-31 | C159: 2.9 | D159: - | E159: Juillet | F159: 2014
A160: 2014-08-01 | B160: 2014-08-31 | C160: 10.6 | D160: - | E160: Août | F160: 2014
A161: 2014-09-01 | B161: 2014-09-30 | C161: 97.6 | D161: - | E161: Septembre | F161: 2014
A162: 2014-10-01 | B162: 2014-10-31 | C162: 224.1 | D162: - | E162: Octobre | F162: 2014
A163: 2014-11-01 | B163: 2014-11-30 | C163: 484 | D163: - | E163: Novembre | F163: 2014
A164: 2014-12-01 | B164: 2014-12-31 | C164: 664.7 | D164: - | E164: Décembre | F164: 2014
A165: 2015-01-01 | B165: 2015-01-31 | C165: 926.3 | D165: - | E165: Janvier | F165: 2015
A166: 2015-02-01 | B166: 2015-02-28 | C166: 929.3 | D166: - | E166: Février | F166: 2015
A167: 2015-03-01 | B167: 2015-03-31 | C167: 706.5 | D167: - | E167: Mars | F167: 2015
A168: 2015-04-01 | B168: 2015-04-30 | C168: 351.6 | D168: - | E168: Avril | F168: 2015
A169: 2015-05-01 | B169: 2015-05-31 | C169: 73 | D169: - | E169: Mai | F169: 2015
A170: 2015-06-01 | B170: 2015-06-30 | C170: 40.1 | D170: - | E170: Juin | F170: 2015
A171: 2015-07-01 | B171: 2015-07-31 | C171: 1.1 | D171: - | E171: Juillet | F171: 2015
A172: 2015-08-01 | B172: 2015-08-31 | C172: 0.9 | D172: - | E172: Août | F172: 2015
A173: 2015-09-01 | B173: 2015-09-30 | C173: 39.5 | D173: - | E173: Septembre | F173: 2015
A174: 2015-10-01 | B174: 2015-10-31 | C174: 311.7 | D174: - | E174: Octobre | F174: 2015
A175: 2015-11-01 | B175: 2015-11-30 | C175: 384.2 | D175: - | E175: Novembre | F175: 2015
A176: 2015-12-01 | B176: 2015-12-31 | C176: 489.7 | D176: - | E176: Décembre | F176: 2015
A177: 2016-01-01 | B177: 2016-01-31 | C177: 723 | D177: - | E177: Janvier | F177: 2016
A178: 2016-02-01 | B178: 2016-02-29 | C178: 641.8 | D178: - | E178: Février | F178: 2016
A179: 2016-03-01 | B179: 2016-03-31 | C179: 554.8 | D179: - | E179: Mars | F179: 2016
A180: 2016-04-01 | B180: 2016-04-30 | C180: 417.7 | D180: - | E180: Avril | F180: 2016
A181: 2016-05-01 | B181: 2016-05-31 | C181: 132.2 | D181: - | E181: Mai | F181: 2016
A182: 2016-06-01 | B182: 2016-06-30 | C182: 31.2 | D182: - | E182: Juin | F182: 2016
A183: 2016-07-01 | B183: 2016-07-31 | C183: 3.4 | D183: - | E183: Juillet | F183: 2016
A184: 2016-08-01 | B184: 2016-08-31 | C184: 0.6 | D184: - | E184: Août | F184: 2016
A185: 2016-09-01 | B185: 2016-09-30 | C185: 48 | D185: - | E185: Septembre | F185: 2016
A186: 2016-10-01 | B186: 2016-10-31 | C186: 254.1 | D186: - | E186: Octobre | F186: 2016
A187: 2016-11-01 | B187: 2016-11-30 | C187: 406.9 | D187: - | E187: Novembre | F187: 2016
A188: 2016-12-01 | B188: 2016-12-31 | C188: 690.4 | D188: - | E188: Décembre | F188: 2016
A189: 2017-01-01 | B189: 2017-01-31 | C189: 699 | D189: - | E189: Janvier | F189: 2017
A190: 2017-02-01 | B190: 2017-02-28 | C190: 607.5 | D190: - | E190: Février | F190: 2017
A191: 2017-03-01 | B191: 2017-03-31 | C191: 660.9 | D191: - | E191: Mars | F191: 2017
A192: 2017-04-01 | B192: 2017-04-30 | C192: 300.7 | D192: - | E192: Avril | F192: 2017
A193: 2017-05-01 | B193: 2017-05-31 | C193: 157.3 | D193: - | E193: Mai | F193: 2017
A194: 2017-06-01 | B194: 2017-06-30 | C194: 30.2 | D194: - | E194: Juin | F194: 2017
A195: 2017-07-01 | B195: 2017-07-31 | C195: 0.8 | D195: - | E195: Juillet | F195: 2017
A196: 2017-08-01 | B196: 2017-08-31 | C196: 14 | D196: - | E196: Août | F196: 2017
A197: 2017-09-01 | B197: 2017-09-30 | C197: 51.8 | D197: - | E197: Septembre | F197: 2017
A198: 2017-10-01 | B198: 2017-10-31 | C198: 14 | D198: - | E198: Octobre | F198: 2017
A199: 2017-11-01 | B199: 2017-11-30 | C199: 479.5 | D199: - | E199: Novembre | F199: 2017
A200: 2017-12-01 | B200: 2017-12-31 | C200: 823.6 | D200: - | E200: Décembre | F200: 2017
A201: 2018-01-01 | B201: 2018-01-31 | C201: 859.2 | D201: - | E201: Janvier | F201: 2018
A202: 2018-02-01 | B202: 2018-02-28 | C202: 631.8 | D202: - | E202: Février | F202: 2018
... 46 more rows

Sheet RÉSUMÉ
B1: TOTAL | E1: Intensité énergétique | H1: GES | J1: Économie d'énergie | L1: Économie de coûts | N1: Économie de GES | O1: Superficie | P1: Nombre de bâtiments | Q1: Consommation électrique | S1: Gaz naturel | U1: Mazout n°2 | W1: Mazout n°6 | Y1: Diesel génératrice | AA1: Propane | AC1: Résidus de bois (8 % d'humidité) | AE1: Résidus de bois (35 % d'humidité) | AG1: Vapeur | AI1: Eau refroidie | AK1: Eau chaude | AM1: DJC | AN1: Superficie contient des surfaces louées | AO1: Valeurs de consommation proviennent de surfaces des surfaces louées | AP1: Projet(s) modifiant la superficie fait(s) lors de l'année de suivi | AQ1: Taxes de ventes inclues dans le montant dépensé en énergie | AR1: Murs extérieurs exclus de la superficie
B2: [GJ réel] | C2: [GJ 09-10 ajusté] | D2: [$ réel] | E2: [GJ réel/m²] | F2: [GJ 09-10 ajusté/m²] | G2: [$ réel/m²] | H2: [t éq. CO2] | I2: [kg éq. CO2/m²] | J2: [GJ ajusté/m²] | K2: [%] | L2: [$ réel/m²] | M2: [%] | N2: [t éq. CO2] | O2: [m²] | Q2: [kWh] | R2: [$] | S2: [m³] | T2: [$] | U2: [l] | V2: [$] | W2: [l] | X2: [$] | Y2: [l] | Z2: [$] | AA2: [l] | AB2: [$] | AC2: [1000 kg MG] | AD2: [$] | AE2: [1000 kg MG] | AF2: [$] | AG2: [lbs] | AH2: [$] | AI2: [MBTU] | AJ2: [$] | AK2: [MBTU] | AL2: [$] | AM2: [° C] | AN2: [VRAI/FAUX] | AO2: [VRAI/FAUX] | AP2: [VRAI/FAUX] | AQ2: [VRAI/FAUX] | AR2: [VRAI/FAUX]
A3: s | B3: =GJ_Tot_02_03 ->  | D3: =CAD_Tot_02_03 ->  | E3: =IF(ISERROR(GJ_Tot_02_03/O3),0,(GJ_Tot_02_03/O3)) -> 0 | G3: =IF(ISERROR(CAD_Tot_02_03/O3),0,(CAD_Tot_02_03/O3)) -> 0 | H3: =GES_ton_02_03 ->  | I3: =(IF(ISERROR(GES_ton_02_03/O3),0,(GES_ton_02_03/O3)))*1000 -> 0 | O3: =IF(ISERROR(Sup_02_03),0,(Sup_02_03)) -> 0 | P3: =#REF! ->  | Q3: =Elec_kWh_02_03 ->  | R3: =Elec_CAD_02_03 ->  | S3: =GN_m³_02_03 ->  | T3: =GN_CAD_02_03 ->  | U3: =Ma2_l_02_03 ->  | V3: =Ma2_CAD_02_03 ->  | W3: =Ma6_l_02_03 ->  | X3: =Ma6_CAD_02_03 ->  | AA3: =Prop_l_02_03 ->  | AB3: =Prop_CAD_02_03 ->  | AC3: =Bois20_1000kg_02_03 ->  | AD3: =Bois20_CAD_02_03 ->  | AE3: =Bois45_1000kg_02_03 ->  | AF3: =Bois45_CAD_02_03 ->  | AG3: =0 -> 0 | AH3: =0 -> 0 | AI3: =0 -> 0 | AJ3: =0 -> 0 | AK3: =0 -> 0 | AL3: =0 -> 0 | AM3: =DJC_tot_02_03 -> 
A4: 2003-2004 | B4: =GJ_Tot_03_04 ->  | D4: =CAD_Tot_03_04 ->  | E4: =IF(ISERROR(GJ_Tot_03_04/O4),0,(GJ_Tot_03_04/O4)) -> 0 | G4: =IF(ISERROR(CAD_Tot_03_04/O4),0,(CAD_Tot_03_04/O4)) -> 0 | H4: =GES_ton_03_04 ->  | I4: =IF(ISERROR(GES_ton_03_04/O4),0,(GES_ton_03_04/O4))*1000 -> 0 | O4: =IF(ISERROR(Sup_03_04),0,(Sup_03_04)) -> 0 | P4: =#REF! ->  | Q4: =Elec_kWh_03_04 ->  | R4: =Elec_CAD_03_04 ->  | S4: =GN_m³_03_04 ->  | T4: =GN_CAD_03_04 ->  | U4: =Ma2_l_03_04 ->  | V4: =Ma2_CAD_03_04 ->  | W4: =Ma6_l_03_04 ->  | X4: =Ma6_CAD_03_04 ->  | AA4: =Prop_l_03_04 ->  | AB4: =Prop_CAD_03_04 ->  | AC4: =Bois20_1000kg_03_04 ->  | AD4: =Bois20_CAD_03_04 ->  | AE4: =Bois45_1000kg_03_04 ->  | AF4: =Bois45_CAD_03_04 ->  | AG4: =0 -> 0 | AH4: =0 -> 0 | AI4: =0 -> 0 | AJ4: =0 -> 0 | AK4: =0 -> 0 | AL4: =0 -> 0 | AM4: =DJC_tot_03_04 -> 
A5: 2004-2005 | B5: =GJ_Tot_04_05 ->  | D5: =CAD_Tot_04_05 ->  | E5: =IF(ISERROR(GJ_Tot_04_05/O5),0,(GJ_Tot_04_05/O5)) -> 0 | G5: =IF(ISERROR(CAD_Tot_04_05/O5),0,(CAD_Tot_04_05/O5)) -> 0 | H5: =GES_ton_04_05 ->  | I5: =IF(ISERROR(GES_ton_04_05/O5),0,(GES_ton_04_05/O5))*1000 -> 0 | O5: =IF(ISERROR(Sup_04_05),0,(Sup_04_05)) -> 0 | P5: =#REF! ->  | Q5: =Elec_kWh_04_05 ->  | R5: =Elec_CAD_04_05 ->  | S5: =GN_m³_04_05 ->  | T5: =GN_CAD_04_05 ->  | U5: =Ma2_l_04_05 ->  | V5: =Ma2_CAD_04_05 ->  | W5: =Ma6_l_04_05 ->  | X5: =Ma6_CAD_04_05 ->  | AA5: =Prop_l_04_05 ->  | AB5: =Prop_CAD_04_05 ->  | AC5: =Bois20_1000kg_04_05 ->  | AD5: =Bois20_CAD_04_05 ->  | AE5: =Bois45_1000kg_04_05 ->  | AF5: =Bois45_CAD_04_05 ->  | AG5: =0 -> 0 | AH5: =0 -> 0 | AI5: =0 -> 0 | AJ5: =0 -> 0 | AK5: =0 -> 0 | AL5: =0 -> 0 | AM5: =DJC_tot_04_05 -> 
A6: 2005-2006 | B6: =GJ_Tot_05_06 ->  | D6: =CAD_Tot_05_06 ->  | E6: =IF(ISERROR(GJ_Tot_05_06/O6),0,(GJ_Tot_05_06/O6)) -> 0 | G6: =IF(ISERROR(CAD_Tot_05_06/O6),0,(CAD_Tot_05_06/O6)) -> 0 | H6: =GES_ton_05_06 ->  | I6: =IF(ISERROR(GES_ton_05_06/O6),0,(GES_ton_05_06/O6))*1000 -> 0 | O6: =IF(ISERROR(Sup_05_06),0,(Sup_05_06)) -> 0 | P6: =#REF! ->  | Q6: =Elec_kWh_05_06 ->  | R6: =Elec_CAD_05_06 ->  | S6: =GN_m³_05_06 ->  | T6: =GN_CAD_05_06 ->  | U6: =Ma2_l_05_06 ->  | V6: =Ma2_CAD_05_06 ->  | W6: =Ma6_l_05_06 ->  | X6: =Ma6_CAD_05_06 ->  | AA6: =Prop_l_05_06 ->  | AB6: =Prop_CAD_05_06 ->  | AC6: =Bois20_1000kg_05_06 ->  | AD6: =Bois20_CAD_05_06 ->  | AE6: =Bois45_1000kg_05_06 ->  | AF6: =Bois45_CAD_05_06 ->  | AG6: =0 -> 0 | AH6: =0 -> 0 | AI6: =0 -> 0 | AJ6: =0 -> 0 | AK6: =0 -> 0 | AL6: =0 -> 0 | AM6: =DJC_tot_05_06 -> 
A7: 2006-2007 | B7: =GJ_Tot_06_07 ->  | D7: =CAD_Tot_06_07 ->  | E7: =IF(ISERROR(GJ_Tot_06_07/O7),0,(GJ_Tot_06_07/O7)) -> 0 | G7: =IF(ISERROR(CAD_Tot_06_07/O7),0,(CAD_Tot_06_07/O7)) -> 0 | H7: =GES_ton_06_07 ->  | I7: =IF(ISERROR(GES_ton_06_07/O7),0,(GES_ton_06_07/O7))*1000 -> 0 | O7: =IF(ISERROR(Sup_06_07),0,(Sup_06_07)) -> 0 | P7: =#REF! ->  | Q7: =Elec_kWh_06_07 ->  | R7: =Elec_CAD_06_07 ->  | S7: =GN_m³_06_07 ->  | T7: =GN_CAD_06_07 ->  | U7: =Ma2_l_06_07 ->  | V7: =Ma2_CAD_06_07 ->  | W7: =Ma6_l_06_07 ->  | X7: =Ma6_CAD_06_07 ->  | AA7: =Prop_l_06_07 ->  | AB7: =Prop_CAD_06_07 ->  | AC7: =Bois20_1000kg_06_07 ->  | AD7: =Bois20_CAD_06_07 ->  | AE7: =Bois45_1000kg_06_07 ->  | AF7: =Bois45_CAD_06_07 ->  | AG7: =0 -> 0 | AH7: =0 -> 0 | AI7: =0 -> 0 | AJ7: =0 -> 0 | AK7: =0 -> 0 | AL7: =0 -> 0 | AM7: =DJC_tot_06_07 -> 
A8: 2007-2008 | B8: =GJ_Tot_07_08 ->  | D8: =CAD_Tot_07_08 ->  | E8: =IF(ISERROR(GJ_Tot_07_08/O8),0,(GJ_Tot_07_08/O8)) -> 0 | G8: =IF(ISERROR(CAD_Tot_07_08/O8),0,(CAD_Tot_07_08/O8)) -> 0 | H8: =GES_ton_07_08 ->  | I8: =IF(ISERROR(GES_ton_07_08/O8),0,(GES_ton_07_08/O8))*1000 -> 0 | O8: =IF(ISERROR(Sup_07_08),0,(Sup_07_08)) -> 0 | P8: =#REF! ->  | Q8: =Elec_kWh_07_08 ->  | R8: =Elec_CAD_07_08 ->  | S8: =GN_m³_07_08 ->  | T8: =GN_CAD_07_08 ->  | U8: =Ma2_l_07_08 ->  | V8: =Ma2_CAD_07_08 ->  | W8: =Ma6_l_07_08 ->  | X8: =Ma6_CAD_07_08 ->  | AA8: =Prop_l_07_08 ->  | AB8: =Prop_CAD_07_08 ->  | AC8: =Bois20_1000kg_07_08 ->  | AD8: =Bois20_CAD_07_08 ->  | AE8: =Bois45_1000kg_07_08 ->  | AF8: =Bois45_CAD_07_08 ->  | AG8: =0 -> 0 | AH8: =0 -> 0 | AI8: =0 -> 0 | AJ8: =0 -> 0 | AK8: =0 -> 0 | AL8: =0 -> 0 | AM8: =DJC_tot_07_08 -> 
A9: 2008-2009 | B9: =GJ_Tot_08_09 ->  | D9: =CAD_Tot_08_09 ->  | E9: =IF(ISERROR(GJ_Tot_08_09/O9),0,(GJ_Tot_08_09/O9)) -> 0 | G9: =IF(ISERROR(CAD_Tot_08_09/O9),0,(CAD_Tot_08_09/O9)) -> 0 | H9: =GES_ton_08_09 ->  | I9: =IF(ISERROR(GES_ton_08_09/O9),0,(GES_ton_08_09/O9))*1000 -> 0 | O9: =IF(ISERROR(Sup_08_09),0,(Sup_08_09)) -> 0 | P9: =#REF! ->  | Q9: =Elec_kWh_08_09 ->  | R9: =Elec_CAD_08_09 ->  | S9: =GN_m³_08_09 ->  | T9: =GN_CAD_08_09 ->  | U9: =Ma2_l_08_09 ->  | V9: =Ma2_CAD_08_09 ->  | W9: =Ma6_l_08_09 ->  | X9: =Ma6_CAD_08_09 ->  | AA9: =Prop_l_08_09 ->  | AB9: =Prop_CAD_08_09 ->  | AC9: =Bois20_1000kg_08_09 ->  | AD9: =Bois20_CAD_08_09 ->  | AE9: =Bois45_1000kg_08_09 ->  | AF9: =Bois45_CAD_08_09 ->  | AG9: =0 -> 0 | AH9: =0 -> 0 | AI9: =0 -> 0 | AJ9: =0 -> 0 | AK9: =0 -> 0 | AL9: =0 -> 0 | AM9: =DJC_tot_08_09 -> 
A10: 2009-2010 | B10: =IFERROR(GJ_Tot_09_10,0) -> 0 | D10: =CAD_Tot_09_10 -> 0 | E10: =IF(ISERROR(GJ_Tot_09_10/O10),0,(GJ_Tot_09_10/O10)) -> 0 | G10: =IF(ISERROR(CAD_Tot_09_10/O10),0,(CAD_Tot_09_10/O10)) -> 0 | H10: =GES_ton_09_10 -> 0 | I10: =IF(ISERROR(GES_ton_09_10/O10),0,(GES_ton_09_10/O10))*1000 -> 0 | O10: =IF(ISERROR(Sup_09_10),0,(Sup_09_10)) -> 0 | P10: =nb_bât_09_10 -> 0 | Q10: =Elec_kWh_09_10 -> 0 | R10: =Elec_CAD_09_10 -> 0 | S10: =GN_m³_09_10 -> 0 | T10: =GN_CAD_09_10 -> 0 | U10: =Ma2_l_09_10 -> 0 | V10: =Ma2_CAD_09_10 -> 0 | W10: =Ma6_l_09_10 -> 0 | X10: =Ma6_CAD_09_10 -> 0 | Y10: =Dies_09_10 -> 0 | Z10: =Dies_CAD_09_10 -> 0 | AA10: =Prop_l_09_10 -> 0 | AB10: =Prop_CAD_09_10 -> 0 | AC10: =Bois20_1000kg_09_10 -> 0 | AD10: =Bois20_CAD_09_10 -> 0 | AE10: =Bois45_1000kg_09_10 -> 0 | AF10: =Bois45_CAD_09_10 -> 0 | AG10: =Vapeur_Lbs_09_10 -> 0 | AH10: =Vapeur_CAD_09_10 -> 0 | AI10: =EauRefroidie_MBTU_09_10 -> 0 | AJ10: =EauRefroidie_CAD_09_10 -> 0 | AK10: =EauChaude_MBTU_09_10 -> 0 | AL10: =EauChaude_CAD_09_10 -> 0 | AM10: =DJC_tot_09_10 -> 3967.8
A11: 2010-2011 | B11: =IFERROR(GJ_Tot_10_11,0) -> 0 | C11: =GJTotRef_Ajust_10_11 -> 0 | D11: =CAD_Tot_10_11 -> 0 | E11: =IF(ISERROR(GJ_Tot_10_11/O11),0,(GJ_Tot_10_11/O11)) -> 0 | F11: =IF(ISERROR(GJTotRef_Ajust_10_11/O11),0,(GJTotRef_Ajust_10_11/O11)) -> 0 | G11: =IF(ISERROR(CAD_Tot_10_11/O11),0,(CAD_Tot_10_11/O11)) -> 0 | H11: =GES_ton_10_11 -> 0 | I11: =IF(ISERROR(GES_ton_10_11/O11),0,(GES_ton_10_11/O11))*1000 -> 0 | J11: =IF(ISERROR(F11-E11),0,(F11-E11)) -> 0 | K11: =IF(ISERROR(1-E11/F11),0,(1-E11/F11)) -> 0 | L11: =IF(ISERROR($G$10-G11),0,($G$10-G11)) -> 0 | M11: =IF(ISERROR(1-G11/$G$12),0,(1-G11/$G$12)) -> 0 | N11: =GES_ton_09_10-GES_ton_10_11 -> 0 | O11: =IF(ISERROR(Sup_10_11),0,(Sup_10_11)) -> 0 | P11: =nb_bât_10_11 -> 0 | Q11: =Elec_kWh_10_11 -> 0 | R11: =Elec_CAD_10_11 -> 0 | S11: =GN_m³_10_11 -> 0 | T11: =GN_CAD_10_11 -> 0 | U11: =Ma2_l_10_11 -> 0 | V11: =Ma2_CAD_10_11 -> 0 | W11: =Ma6_l_10_11 -> 0 | X11: =Ma6_CAD_10_11 -> 0 | Y11: =Dies_10_11 -> 0 | Z11: =Dies_CAD_10_11 -> 0 | AA11: =Prop_l_10_11 -> 0 | AB11: =Prop_CAD_10_11 -> 0 | AC11: =Bois20_1000kg_10_11 -> 0 | AD11: =Bois20_CAD_10_11 -> 0 | AE11: =Bois45_1000kg_10_11 -> 0 | AF11: =Bois45_CAD_10_11 -> 0 | AG11: =Vapeur_Lbs_10_11 -> 0 | AH11: =Vapeur_CAD_10_11 -> 0 | AI11: =EauRefroidie_MBTU_10_11 -> 0 | AJ11: =EauRefroidie_CAD_10_11 -> 0 | AK11: =EauChaude_MBTU_10_11 -> 0 | AL11: =EauChaude_CAD_10_11 -> 0 | AM11: =DJC_tot_10_11 -> 4187.4
A12: 2011-2012 | B12: =IFERROR(GJ_Tot_11_12,0) -> 0 | C12: =GJTotRef_Ajust_11_12 -> 0 | D12: =CAD_Tot_11_12 -> 0 | E12: =IF(ISERROR(GJ_Tot_11_12/O12),0,(GJ_Tot_11_12/O12)) -> 0 | F12: =IF(ISERROR(GJTotRef_Ajust_11_12/O12),0,(GJTotRef_Ajust_11_12/O12)) -> 0 | G12: =IF(ISERROR(CAD_Tot_11_12/O12),0,(CAD_Tot_11_12/O12)) -> 0 | H12: =GES_ton_11_12 -> 0 | I12: =IF(ISERROR(GES_ton_11_12/O12),0,(GES_ton_11_12/O12))*1000 -> 0 | J12: =IF(ISERROR(F12-E12),0,(F12-E12)) -> 0 | K12: =IF(ISERROR(1-E12/F12),0,(1-E12/F12)) -> 0 | L12: =IF(ISERROR($G$10-G12),0,($G$10-G12)) -> 0 | M12: =IF(ISERROR(1-G12/$G$12),0,(1-G12/$G$12)) -> 0 | N12: =GES_ton_09_10-GES_ton_11_12 -> 0 | O12: =IF(ISERROR(Sup_11_12),0,(Sup_11_12)) -> 0 | P12: =nb_bât_11_12 -> 0 | Q12: =Elec_kWh_11_12 -> 0 | R12: =Elec_CAD_11_12 -> 0 | S12: =GN_m³_11_12 -> 0 | T12: =GN_CAD_11_12 -> 0 | U12: =Ma2_l_11_12 -> 0 | V12: =Ma2_CAD_11_12 -> 0 | W12: =Ma6_l_11_12 -> 0 | X12: =Ma6_CAD_11_12 -> 0 | Y12: =Dies_11_12 -> 0 | Z12: =Dies_CAD_11_12 -> 0 | AA12: =Prop_l_11_12 -> 0 | AB12: =Prop_CAD_11_12 -> 0 | AC12: =Bois20_1000kg_11_12 -> 0 | AD12: =Bois20_CAD_11_12 -> 0 | AE12: =Bois45_1000kg_11_12 -> 0 | AF12: =Bois45_CAD_11_12 -> 0 | AG12: =Vapeur_Lbs_11_12 -> 0 | AH12: =Vapeur_CAD_11_12 -> 0 | AI12: =EauRefroidie_MBTU_11_12 -> 0 | AJ12: =EauRefroidie_CAD_11_12 -> 0 | AK12: =EauChaude_MBTU_11_12 -> 0 | AL12: =EauChaude_CAD_11_12 -> 0 | AM12: =DJC_tot_11_12 -> 3730
A13: 2012-2013 | B13: =IFERROR(GJ_Tot_12_13,0) -> 0 | C13: =GJTotRef_Ajust_12_13 -> 0 | D13: =CAD_Tot_12_13 -> 0 | E13: =IF(ISERROR(GJ_Tot_12_13/O13),0,(GJ_Tot_12_13/O13)) -> 0 | F13: =IF(ISERROR(GJTotRef_Ajust_12_13/O13),0,(GJTotRef_Ajust_12_13/O13)) -> 0 | G13: =IF(ISERROR(CAD_Tot_12_13/O13),0,(CAD_Tot_12_13/O13)) -> 0 | H13: =GES_ton_12_13 -> 0 | I13: =IF(ISERROR(GES_ton_12_13/O13),0,(GES_ton_12_13/O13))*1000 -> 0 | J13: 0 | K13: 0 | L13: 0 | M13: 0 | N13: =GES_ton_09_10-GES_ton_12_13 -> 0 | O13: =IF(ISERROR(Sup_12_13),0,(Sup_12_13)) -> 0 | P13: =nb_bât_12_13 -> 0 | Q13: =Elec_kWh_12_13 -> 0 | R13: =Elec_CAD_12_13 -> 0 | S13: =GN_m³_12_13 -> 0 | T13: =GN_CAD_12_13 -> 0 | U13: =Ma2_l_12_13 -> 0 | V13: =Ma2_CAD_12_13 -> 0 | W13: =Ma6_l_12_13 -> 0 | X13: =Ma6_CAD_12_13 -> 0 | Y13: =Dies_12_13 -> 0 | Z13: =Dies_CAD_12_13 -> 0 | AA13: =Prop_l_12_13 -> 0 | AB13: =Prop_CAD_12_13 -> 0 | AC13: =Bois20_1000kg_12_13 -> 0 | AD13: =Bois20_CAD_12_13 -> 0 | AE13: =Bois45_1000kg_12_13 -> 0 | AF13: =Bois45_CAD_12_13 -> 0 | AG13: =Vapeur_Lbs_12_13 -> 0 | AH13: =Vapeur_CAD_12_13 -> 0 | AI13: =EauRefroidie_MBTU_12_13 -> 0 | AJ13: =EauRefroidie_CAD_12_13 -> 0 | AK13: =EauChaude_MBTU_12_13 -> 0 | AL13: =EauChaude_CAD_12_13 -> 0 | AM13: =DJC_tot_12_13 -> 4039.4
A14: 2013-2014 | B14: =IFERROR(GJ_Tot_13_14,0) -> 0 | C14: =GJTotRef_Ajust_13_14 -> 0 | D14: =CAD_Tot_13_14 -> 0 | E14: =IF(ISERROR(GJ_Tot_13_14/O14),0,(GJ_Tot_13_14/O14)) -> 0 | F14: =IF(ISERROR(GJTotRef_Ajust_13_14/O14),0,(GJTotRef_Ajust_13_14/O14)) -> 0 | G14: =IF(ISERROR(CAD_Tot_13_14/O14),0,(CAD_Tot_13_14/O14)) -> 0 | H14: =GES_ton_13_14 -> 0 | I14: =IF(ISERROR(GES_ton_13_14/O14),0,(GES_ton_13_14/O14))*1000 -> 0 | J14: 0 | K14: 0 | L14: 0 | M14: 0 | N14: =GES_ton_09_10-GES_ton_13_14 -> 0 | O14: =IF(ISERROR(Sup_13_14),0,(Sup_13_14)) -> 0 | P14: =nb_bât_13_14 -> 0 | Q14: =Elec_kWh_13_14 -> 0 | R14: =Elec_CAD_13_14 -> 0 | S14: =GN_m³_13_14 -> 0 | T14: =GN_CAD_13_14 -> 0 | U14: =Ma2_l_13_14 -> 0 | V14: =Ma2_CAD_13_14 -> 0 | W14: =Ma6_l_13_14 -> 0 | X14: =Ma6_CAD_13_14 -> 0 | Y14: =Dies_13_14 -> 0 | Z14: =Dies_CAD_13_14 -> 0 | AA14: =Prop_l_13_14 -> 0 | AB14: =Prop_CAD_13_14 -> 0 | AC14: =Bois20_1000kg_13_14 -> 0 | AD14: =Bois20_CAD_13_14 -> 0 | AE14: =Bois45_1000kg_13_14 -> 0 | AF14: =Bois45_CAD_13_14 -> 0 | AG14: =Vapeur_Lbs_13_14 -> 0 | AH14: =Vapeur_CAD_13_14 -> 0 | AI14: =EauRefroidie_MBTU_13_14 -> 0 | AJ14: =EauRefroidie_CAD_13_14 -> 0 | AK14: =EauChaude_MBTU_13_14 -> 0 | AL14: =EauChaude_CAD_13_14 -> 0 | AM14: =DJC_tot_13_14 -> 4562.5
A15: 2014-2015 | B15: =IFERROR(GJ_Tot_14_15,0) -> 0 | C15: =GJTotRef_Ajust_14_15 -> 0 | D15: =CAD_Tot_14_15 -> 0 | E15: =IF(ISERROR(GJ_Tot_14_15/O15),0,(GJ_Tot_14_15/O15)) -> 0 | F15: =IF(ISERROR(GJTotRef_Ajust_14_15/O15),0,(GJTotRef_Ajust_14_15/O15)) -> 0 | G15: =IF(ISERROR(CAD_Tot_14_15/O15),0,(CAD_Tot_14_15/O15)) -> 0 | H15: =GES_ton_14_15 -> 0 | I15: =IF(ISERROR(GES_ton_14_15/O15),0,(GES_ton_14_15/O15))*1000 -> 0 | J15: 0 | K15: 0 | L15: 0 | M15: 0 | N15: =GES_ton_09_10-GES_ton_14_15 -> 0 | O15: =IF(ISERROR(Sup_14_15),0,(Sup_14_15)) -> 0 | P15: =nb_bât_14_15 -> 0 | Q15: =Elec_kWh_14_15 -> 0 | R15: =Elec_CAD_14_15 -> 0 | S15: =GN_m³_14_15 -> 0 | T15: =GN_CAD_14_15 -> 0 | U15: =Ma2_l_14_15 -> 0 | V15: =Ma2_CAD_14_15 -> 0 | W15: =Ma6_l_14_15 -> 0 | X15: =Ma6_CAD_14_15 -> 0 | Y15: =Dies_14_15 -> 0 | Z15: =Dies_CAD_14_15 -> 0 | AA15: =Prop_l_14_15 -> 0 | AB15: =Prop_CAD_14_15 -> 0 | AC15: =Bois20_1000kg_14_15 -> 0 | AD15: =Bois20_CAD_14_15 -> 0 | AE15: =Bois45_1000kg_14_15 -> 0 | AF15: =Bois45_CAD_14_15 -> 0 | AG15: =Vapeur_Lbs_14_15 -> 0 | AH15: =Vapeur_CAD_14_15 -> 0 | AI15: =EauRefroidie_MBTU_14_15 -> 0 | AJ15: =EauRefroidie_CAD_14_15 -> 0 | AK15: =EauChaude_MBTU_14_15 -> 0 | AL15: =EauChaude_CAD_14_15 -> 0 | AM15: =DJC_tot_14_15 -> 4543.1 | AN15: FALSE | AO15: FALSE | AP15: FALSE | AQ15: FALSE | AR15: FALSE
A16: 2015-2016 | B16: =IFERROR(GJ_Tot_15_16,0) -> 0 | C16: =GJTotRef_Ajust_15_16 -> 0 | D16: =CAD_Tot_15_16 -> 0 | E16: =IF(ISERROR(GJ_Tot_15_16/O16),0,(GJ_Tot_15_16/O16)) -> 0 | F16: =IF(ISERROR(GJTotRef_Ajust_15_16/O16),0,(GJTotRef_Ajust_15_16/O16)) -> 0 | G16: =IF(ISERROR(CAD_Tot_15_16/O16),0,(CAD_Tot_15_16/O16)) -> 0 | H16: =GES_ton_15_16 -> 0 | I16: =IF(ISERROR(GES_ton_15_16/O16),0,(GES_ton_15_16/O16))*1000 -> 0 | J16: 0 | K16: 0 | L16: 0 | M16: 0 | N16: =GES_ton_09_10-GES_ton_15_16 -> 0 | O16: =IF(ISERROR(Sup_15_16),0,(Sup_15_16)) -> 0 | P16: =nb_bât_15_16 -> 0 | Q16: =Elec_kWh_15_16 -> 0 | R16: =Elec_CAD_15_16 -> 0 | S16: =GN_m³_15_16 -> 0 | T16: =GN_CAD_15_16 -> 0 | U16: =Ma2_l_15_16 -> 0 | V16: =Ma2_CAD_15_16 -> 0 | W16: =Ma6_l_15_16 -> 0 | X16: =Ma6_CAD_15_16 -> 0 | Y16: =Dies_15_16 -> 0 | Z16: =Dies_CAD_15_16 -> 0 | AA16: =Prop_l_15_16 -> 0 | AB16: =Prop_CAD_15_16 -> 0 | AC16: =Bois20_1000kg_15_16 -> 0 | AD16: =Bois20_CAD_15_16 -> 0 | AE16: =Bois45_1000kg_15_16 -> 0 | AF16: =Bois45_CAD_15_16 -> 0 | AG16: =Vapeur_Lbs_15_16 -> 0 | AH16: =Vapeur_CAD_15_16 -> 0 | AI16: =EauRefroidie_MBTU_15_16 -> 0 | AJ16: =EauRefroidie_CAD_15_16 -> 0 | AK16: =EauChaude_MBTU_15_16 -> 0 | AL16: =EauChaude_CAD_15_16 -> 0 | AM16: =DJC_tot_15_16 -> 3611.4 | AN16: FALSE | AO16: FALSE | AP16: FALSE | AQ16: FALSE | AR16: FALSE
A17: 2016-2017 | B17: =IFERROR(GJ_Tot_16_17,0) -> 0 | C17: =GJTotRef_Ajust_16_17 -> 0 | D17: =CAD_Tot_16_17 -> 0 | E17: =IF(ISERROR(GJ_Tot_16_17/O17),0,(GJ_Tot_16_17/O17)) -> 0 | F17: =IF(ISERROR(GJTotRef_Ajust_16_17/O17),0,(GJTotRef_Ajust_16_17/O17)) -> 0 | G17: =IF(ISERROR(CAD_Tot_16_17/O17),0,(CAD_Tot_16_17/O17)) -> 0 | H17: =GES_ton_16_17 -> 0 | I17: =IF(ISERROR(GES_ton_16_17/O17),0,(GES_ton_16_17/O17))*1000 -> 0 | J17: 0 | K17: 0 | L17: 0 | M17: 0 | N17: =GES_ton_09_10-GES_ton_16_17 -> 0 | O17: =IF(ISERROR(Sup_16_17),0,(Sup_16_17)) -> 0 | P17: =nb_bât_16_17 -> 0 | Q17: =Elec_kWh_16_17 -> 0 | R17: =Elec_CAD_16_17 -> 0 | S17: =GN_m³_16_17 -> 0 | T17: =GN_CAD_16_17 -> 0 | U17: =Ma2_l_16_17 -> 0 | V17: =Ma2_CAD_16_17 -> 0 | W17: =Ma6_l_16_17 -> 0 | X17: =Ma6_CAD_16_17 -> 0 | Y17: =Dies_16_17 -> 0 | Z17: =Dies_CAD_16_17 -> 0 | AA17: =Prop_l_16_17 -> 0 | AB17: =Prop_CAD_16_17 -> 0 | AC17: =Bois20_1000kg_16_17 -> 0 | AD17: =Bois20_CAD_16_17 -> 0 | AE17: =Bois45_1000kg_16_17 -> 0 | AF17: =Bois45_CAD_16_17 -> 0 | AG17: =Vapeur_Lbs_16_17 -> 0 | AH17: =Vapeur_CAD_16_17 -> 0 | AI17: =EauRefroidie_MBTU_16_17 -> 0 | AJ17: =EauRefroidie_CAD_16_17 -> 0 | AK17: =EauChaude_MBTU_16_17 -> 0 | AL17: =EauChaude_CAD_16_17 -> 0 | AM17: =DJC_tot_16_17 -> 3951.9 | AN17: FALSE | AO17: FALSE | AP17: FALSE | AQ17: FALSE | AR17: FALSE
A18: 2017-2018 | B18: =IFERROR(GJ_Tot_17_18,0) -> 0 | C18: =GJTotRef_Ajust_17_18 -> 0 | D18: =CAD_Tot_17_18 -> 0 | E18: =IF(ISERROR(GJ_Tot_17_18/O18),0,(GJ_Tot_17_18/O18)) -> 0 | F18: =IF(ISERROR(GJTotRef_Ajust_17_18/O18),0,(GJTotRef_Ajust_17_18/O18)) -> 0 | G18: =IF(ISERROR(CAD_Tot_17_18/O18),0,(CAD_Tot_17_18/O18)) -> 0 | H18: =GES_ton_17_18 -> 0 | I18: =IF(ISERROR(GES_ton_17_18/O18),0,(GES_ton_17_18/O18))*1000 -> 0 | J18: 0 | K18: 0 | L18: 0 | M18: 0 | N18: =GES_ton_09_10-GES_ton_17_18 -> 0 | O18: =IF(ISERROR(Sup_17_18),0,(Sup_17_18)) -> 0 | P18: =nb_bât_17_18 -> 0 | Q18: =Elec_kWh_17_18 -> 0 | R18: =Elec_CAD_17_18 -> 0 | S18: =GN_m³_17_18 -> 0 | T18: =GN_CAD_17_18 -> 0 | U18: =Ma2_l_17_18 -> 0 | V18: =Ma2_CAD_17_18 -> 0 | W18: =Ma6_l_17_18 -> 0 | X18: =Ma6_CAD_17_18 -> 0 | Y18: =Dies_17_18 -> 0 | Z18: =Dies_CAD_17_18 -> 0 | AA18: =Prop_l_17_18 -> 0 | AB18: =Prop_CAD_17_18 -> 0 | AC18: =Bois20_1000kg_17_18 -> 0 | AD18: =Bois20_CAD_17_18 -> 0 | AE18: =Bois45_1000kg_17_18 -> 0 | AF18: =Bois45_CAD_17_18 -> 0 | AG18: =Vapeur_Lbs_17_18 -> 0 | AH18: =Vapeur_CAD_17_18 -> 0 | AI18: =EauRefroidie_MBTU_17_18 -> 0 | AJ18: =EauRefroidie_CAD_17_18 -> 0 | AK18: =EauChaude_MBTU_17_18 -> 0 | AL18: =EauChaude_CAD_17_18 -> 0 | AM18: =DJC_tot_17_18 -> 3949.4 | AN18: FALSE | AO18: FALSE | AP18: FALSE | AQ18: FALSE | AR18: FALSE
A19: 2018-2019 | B19: =IFERROR(GJ_Tot_18_19,0) -> 0 | C19: =GJTotRef_Ajust_18_19 -> 0 | D19: =CAD_Tot_18_19 -> 0 | E19: =IF(ISERROR(GJ_Tot_18_19/O19),0,(GJ_Tot_18_19/O19)) -> 0 | F19: =IF(ISERROR(GJTotRef_Ajust_18_19/O19),0,(GJTotRef_Ajust_18_19/O19)) -> 0 | G19: =IF(ISERROR(CAD_Tot_18_19/O19),0,(CAD_Tot_18_19/O19)) -> 0 | H19: =GES_ton_18_19 -> 0 | I19: =IF(ISERROR(GES_ton_18_19/O19),0,(GES_ton_18_19/O19))*1000 -> 0 | J19: 0 | K19: 0 | L19: 0 | M19: 0 | N19: =GES_ton_09_10-GES_ton_18_19 -> 0 | O19: =IF(ISERROR(Sup_18_19),0,(Sup_18_19)) -> 0 | P19: =nb_bât_18_19 -> 0 | Q19: =Elec_kWh_18_19 -> 0 | R19: =Elec_CAD_18_19 -> 0 | S19: =GN_m³_18_19 -> 0 | T19: =GN_CAD_18_19 -> 0 | U19: =Ma2_l_18_19 -> 0 | V19: =Ma2_CAD_18_19 -> 0 | W19: =Ma6_l_18_19 -> 0 | X19: =Ma6_CAD_18_19 -> 0 | Y19: =Dies_18_19 -> 0 | Z19: =Dies_CAD_18_19 -> 0 | AA19: =Prop_l_18_19 -> 0 | AB19: =Prop_CAD_18_19 -> 0 | AC19: =Bois20_1000kg_18_19 -> 0 | AD19: =Bois20_CAD_18_19 -> 0 | AE19: =Bois45_1000kg_18_19 -> 0 | AF19: =Bois45_CAD_18_19 -> 0 | AG19: =Vapeur_Lbs_18_19 -> 0 | AH19: =Vapeur_CAD_18_19 -> 0 | AI19: =EauRefroidie_MBTU_18_19 -> 0 | AJ19: =EauRefroidie_CAD_18_19 -> 0 | AK19: =EauChaude_MBTU_18_19 -> 0 | AL19: =EauChaude_CAD_18_19 -> 0 | AM19: =DJC_tot_18_19 -> 4347.2 | AN19: FALSE | AO19: FALSE | AP19: FALSE | AQ19: FALSE | AR19: FALSE
A20: 2019-2020 | B20: =IFERROR(GJ_Tot_19_20,0) -> 0 | C20: =GJTotRef_Ajust_19_20 -> 0 | D20: =CAD_Tot_19_20 -> 0 | E20: =IF(ISERROR(GJ_Tot_19_20/O20),0,(GJ_Tot_19_20/O20)) -> 0 | F20: =IF(ISERROR(GJTotRef_Ajust_19_20/O20),0,(GJTotRef_Ajust_19_20/O20)) -> 0 | G20: =IF(ISERROR(CAD_Tot_19_20/O20),0,(CAD_Tot_19_20/O20)) -> 0 | H20: =GES_ton_19_20 -> 0 | I20: =IF(ISERROR(GES_ton_19_20/O20),0,(GES_ton_19_20/O20))*1000 -> 0 | J20: 0 | K20: 0 | L20: 0 | M20: 0 | N20: =GES_ton_09_10-GES_ton_19_20 -> 0 | O20: =IF(ISERROR(Sup_19_20),0,(Sup_19_20)) -> 0 | P20: =nb_bât_19_20 -> 0 | Q20: =Elec_kWh_19_20 -> 0 | R20: =Elec_CAD_19_20 -> 0 | S20: =GN_m³_19_20 -> 0 | T20: =GN_CAD_19_20 -> 0 | U20: =Ma2_l_19_20 -> 0 | V20: =Ma2_CAD_19_20 -> 0 | W20: =Ma6_l_19_20 -> 0 | X20: =Ma6_CAD_19_20 -> 0 | Y20: =Dies_19_20 -> 0 | Z20: =Dies_CAD_19_20 -> 0 | AA20: =Prop_l_19_20 -> 0 | AB20: =Prop_CAD_19_20 -> 0 | AC20: =Bois20_1000kg_19_20 -> 0 | AD20: =Bois20_CAD_19_20 -> 0 | AE20: =Bois45_1000kg_19_20 -> 0 | AF20: =Bois45_CAD_19_20 -> 0 | AG20: =Vapeur_Lbs_19_20 -> 0 | AH20: =Vapeur_CAD_19_20 -> 0 | AI20: =EauRefroidie_MBTU_19_20 -> 0 | AJ20: =EauRefroidie_CAD_19_20 -> 0 | AK20: =EauChaude_MBTU_19_20 -> 0 | AL20: =EauChaude_CAD_19_20 -> 0 | AM20: =DJC_tot_19_20 -> 4105.7 | AN20: FALSE | AO20: FALSE | AP20: FALSE | AQ20: FALSE | AR20: FALSE
A21: ='1. IDENTITÉ'!A66 -> 2020-2021 | B21: =IFERROR(GJ_Tot_20_21,0) -> 0 | C21: =GJTotRef_Ajust_20_21 -> 0 | D21: =CAD_Tot_20_21 -> 0 | E21: =IF(ISERROR(GJ_Tot_20_21/O21),0,(GJ_Tot_20_21/O21)) -> 0 | F21: =IF(ISERROR(GJTotRef_Ajust_20_21/O21),0,(GJTotRef_Ajust_20_21/O21)) -> 0 | G21: =IF(ISERROR(CAD_Tot_20_21/O21),0,(CAD_Tot_20_21/O21)) -> 0 | H21: =GES_ton_20_21 ->  | I21: =IF(ISERROR(GES_ton_20_21/O21),0,(GES_ton_20_21/O21))*1000 -> 0 | J21: 0 | K21: 0 | L21: 0 | M21: 0 | N21: =GES_ton_09_10-GES_ton_20_21 ->  | O21: =IF(ISERROR(Sup_20_21),0,(Sup_20_21)) -> 0 | P21: =nb_bât_20_21 -> 0 | Q21: =Elec_kWh_20_21 -> 0 | R21: =Elec_CAD_20_21 -> 0 | S21: =GN_m³_20_21 -> 0 | T21: =GN_CAD_20_21 -> 0 | U21: =Ma2_l_20_21 -> 0 | V21: =Ma2_CAD_20_21 -> 0 | W21: =Ma6_l_20_21 -> 0 | X21: =Ma6_CAD_20_21 -> 0 | Y21: =Dies_20_21 -> 0 | Z21: =Dies_CAD_20_21 -> 0 | AA21: =Prop_l_20_21 -> 0 | AB21: =Prop_CAD_20_21 -> 0 | AC21: =Bois20_1000kg_20_21 -> 0 | AD21: =Bois20_CAD_20_21 -> 0 | AE21: =Bois45_1000kg_20_21 -> 0 | AF21: =Bois45_CAD_20_21 -> 0 | AG21: =Vapeur_Lbs_20_21 -> 0 | AH21: =Vapeur_CAD_20_21 -> 0 | AI21: =EauRefroidie_MBTU_20_21 -> 0 | AJ21: =EauRefroidie_CAD_20_21 -> 0 | AK21: =EauChaude_MBTU_20_21 -> 0 | AL21: =EauChaude_CAD_20_21 -> 0 | AM21: =DJC_tot_20_21 -> 998.4 | AN21: FALSE | AO21: FALSE | AP21: FALSE | AQ21: FALSE | AR21: FALSE
A22: ='1. IDENTITÉ'!A67 -> 2021-2022 | B22: 0 | C22: 0 | D22: 0 | E22: 0 | F22: 0 | G22: 0 | I22: 0 | J22: =IF(ISERROR(F22-E22),0,(F22-E22)) -> 0 | K22: =IF(ISERROR(1-E22/F22),0,(1-E22/F22)) -> 0 | L22: =IF(ISERROR($G$10-G22),0,($G$10-G22)) -> 0 | M22: =IF(ISERROR(1-G22/$G$12),0,(1-G22/$G$12)) -> 0 | O22: 0 | P22: 0 | Q22: 0 | R22: 0 | S22: 0 | T22: 0 | U22: 0 | V22: 0 | W22: 0 | X22: 0 | AA22: 0 | AB22: 0 | AC22: 0 | AD22: 0 | AE22: 0 | AF22: 0 | AG22: 0 | AH22: 0 | AI22: 0 | AJ22: 0 | AK22: 0 | AL22: 0 | AM22: 998.4 | AN22: FALSE | AO22: FALSE | AP22: FALSE | AQ22: FALSE | AR22: FALSE
A23: ='1. IDENTITÉ'!A68 -> 2022-2023 | B23: 0 | C23: 0 | D23: 0 | E23: 0 | F23: 0 | G23: 0 | I23: 0 | J23: 0 | K23: 0 | L23: 0 | M23: 0 | O23: 0 | P23: 0 | Q23: 0 | R23: 0 | S23: 0 | T23: 0 | U23: 0 | V23: 0 | W23: 0 | X23: 0 | AA23: 0 | AB23: 0 | AC23: 0 | AD23: 0 | AE23: 0 | AF23: 0 | AG23: 0 | AH23: 0 | AI23: 0 | AJ23: 0 | AK23: 0 | AL23: 0 | AM23: 998.4 | AN23: FALSE | AO23: FALSE | AP23: FALSE | AQ23: FALSE | AR23: FALSE
A24: ='1. IDENTITÉ'!A69 -> 2023-2024 | B24: 0 | C24: 0 | D24: 0 | E24: 0 | F24: 0 | G24: 0 | I24: 0 | J24: 0 | K24: 0 | L24: 0 | M24: 0 | O24: 0 | P24: 0 | Q24: 0 | R24: 0 | S24: 0 | T24: 0 | U24: 0 | V24: 0 | W24: 0 | X24: 0 | AA24: 0 | AB24: 0 | AC24: 0 | AD24: 0 | AE24: 0 | AF24: 0 | AG24: 0 | AH24: 0 | AI24: 0 | AJ24: 0 | AK24: 0 | AL24: 0 | AM24: 998.4 | AN24: FALSE | AO24: FALSE | AP24: FALSE | AQ24: FALSE | AR24: FALSE
A25: ='1. IDENTITÉ'!A70 -> 2024-2025 | B25: 0 | C25: 0 | D25: 0 | E25: 0 | F25: 0 | G25: 0 | I25: 0 | J25: 0 | K25: 0 | L25: 0 | M25: 0 | O25: 0 | P25: 0 | Q25: 0 | R25: 0 | S25: 0 | T25: 0 | U25: 0 | V25: 0 | W25: 0 | X25: 0 | AA25: 0 | AB25: 0 | AC25: 0 | AD25: 0 | AE25: 0 | AF25: 0 | AG25: 0 | AH25: 0 | AI25: 0 | AJ25: 0 | AK25: 0 | AL25: 0 | AM25: 998.4 | AN25: FALSE | AO25: FALSE | AP25: FALSE | AQ25: FALSE | AR25: FALSE
A26: ='1. IDENTITÉ'!A71 -> 2025-2026 | B26: 0 | C26: 0 | D26: 0 | E26: 0 | F26: 0 | G26: 0 | I26: 0 | J26: 0 | K26: 0 | L26: 0 | M26: 0 | O26: 0 | P26: 0 | Q26: 0 | R26: 0 | S26: 0 | T26: 0 | U26: 0 | V26: 0 | W26: 0 | X26: 0 | AA26: 0 | AB26: 0 | AC26: 0 | AD26: 0 | AE26: 0 | AF26: 0 | AG26: 0 | AH26: 0 | AI26: 0 | AJ26: 0 | AK26: 0 | AL26: 0 | AM26: 998.4 | AN26: FALSE | AO26: FALSE | AP26: FALSE | AQ26: FALSE | AR26: FALSE
A27: ='1. IDENTITÉ'!A72 -> 2026-2027 | B27: 0 | C27: 0 | D27: 0 | E27: 0 | F27: 0 | G27: 0 | I27: 0 | J27: 0 | K27: 0 | L27: 0 | M27: 0 | O27: 0 | P27: 0 | Q27: 0 | R27: 0 | S27: 0 | T27: 0 | U27: 0 | V27: 0 | W27: 0 | X27: 0 | AA27: 0 | AB27: 0 | AC27: 0 | AD27: 0 | AE27: 0 | AF27: 0 | AG27: 0 | AH27: 0 | AI27: 0 | AJ27: 0 | AK27: 0 | AL27: 0 | AM27: 998.4 | AN27: FALSE | AO27: FALSE | AP27: FALSE | AQ27: FALSE | AR27: FALSE
A28: ='1. IDENTITÉ'!A73 -> 2027-2028 | B28: 0 | C28: 0 | D28: 0 | E28: 0 | F28: 0 | G28: 0 | I28: 0 | J28: 0 | K28: 0 | L28: 0 | M28: 0 | O28: 0 | P28: 0 | Q28: 0 | R28: 0 | S28: 0 | T28: 0 | U28: 0 | V28: 0 | W28: 0 | X28: 0 | AA28: 0 | AB28: 0 | AC28: 0 | AD28: 0 | AE28: 0 | AF28: 0 | AG28: 0 | AH28: 0 | AI28: 0 | AJ28: 0 | AK28: 0 | AL28: 0 | AM28: 998.4 | AN28: FALSE | AO28: FALSE | AP28: FALSE | AQ28: FALSE | AR28: FALSE
A29: ='1. IDENTITÉ'!A74 -> 2028-2029 | B29: 0 | C29: 0 | D29: 0 | E29: 0 | F29: 0 | G29: 0 | I29: 0 | J29: 0 | K29: 0 | L29: 0 | M29: 0 | O29: 0 | P29: 0 | Q29: 0 | R29: 0 | S29: 0 | T29: 0 | U29: 0 | V29: 0 | W29: 0 | X29: 0 | AA29: 0 | AB29: 0 | AC29: 0 | AD29: 0 | AE29: 0 | AF29: 0 | AG29: 0 | AH29: 0 | AI29: 0 | AJ29: 0 | AK29: 0 | AL29: 0 | AM29: 998.4 | AN29: FALSE | AO29: FALSE | AP29: FALSE | AQ29: FALSE | AR29: FALSE
A30: ='1. IDENTITÉ'!A75 -> 2029-2030 | B30: 0 | C30: 0 | D30: 0 | E30: 0 | F30: 0 | G30: 0 | I30: 0 | J30: 0 | K30: 0 | L30: 0 | M30: 0 | O30: 0 | P30: 0 | Q30: 0 | R30: 0 | S30: 0 | T30: 0 | U30: 0 | V30: 0 | W30: 0 | X30: 0 | AA30: 0 | AB30: 0 | AC30: 0 | AD30: 0 | AE30: 0 | AF30: 0 | AG30: 0 | AH30: 0 | AI30: 0 | AJ30: 0 | AK30: 0 | AL30: 0 | AM30: 998.4 | AN30: FALSE | AO30: FALSE | AP30: FALSE | AQ30: FALSE | AR30: FALSE
A44: 1 | B44: =GJ_Tot_05_06 ->  | D44: =CAD_Tot_05_06 ->  | E44: =GJm²_05_06 ->  | G44: =CAD_m²_05_06 ->  | H44: =GES_ton_05_06 ->  | I44: =GES_ton_m²_05_06 ->  | O44: =Sup_05_06 ->  | Q44: =Elec_kWh_05_06 ->  | R44: =Elec_CAD_05_06 ->  | S44: =GN_m³_05_06 ->  | T44: =GN_CAD_05_06 ->  | U44: =Ma2_l_05_06 ->  | V44: =Ma2_CAD_05_06 ->  | W44: =Ma6_l_05_06 ->  | X44: =Ma6_CAD_05_06 ->  | AA44: =Prop_l_05_06 ->  | AB44: =Prop_CAD_05_06 ->  | AC44: =Bois20_1000kg_05_06 ->  | AD44: =Bois20_CAD_05_06 ->  | AE44: =Bois45_1000kg_05_06 ->  | AF44: =Bois45_CAD_05_06 ->  | AM44: =DJC_tot_05_06 -> 
A45: 2 | B45: =GJ_Tot_06_07 ->  | D45: =CAD_Tot_06_07 ->  | E45: =GJm²_06_07 ->  | G45: =CAD_m²_06_07 ->  | H45: =GES_ton_06_07 ->  | I45: =GES_ton_m²_06_07 ->  | O45: =Sup_06_07 ->  | Q45: =Elec_kWh_06_07 ->  | R45: =Elec_CAD_06_07 ->  | S45: =GN_m³_06_07 ->  | T45: =GN_CAD_06_07 ->  | U45: =Ma2_l_06_07 ->  | V45: =Ma2_CAD_06_07 ->  | W45: =Ma6_l_06_07 ->  | X45: =Ma6_CAD_06_07 ->  | AA45: =Prop_l_06_07 ->  | AB45: =Prop_CAD_06_07 ->  | AC45: =Bois20_1000kg_06_07 ->  | AD45: =Bois20_CAD_06_07 ->  | AE45: =Bois45_1000kg_06_07 ->  | AF45: =Bois45_CAD_06_07 ->  | AM45: =DJC_tot_06_07 -> 
A46: 3 | B46: =GJ_Tot_07_08 ->  | D46: =CAD_Tot_07_08 ->  | E46: =GJm²_07_08 ->  | G46: =CAD_m²_07_08 ->  | H46: =GES_ton_07_08 ->  | I46: =GES_ton_m²_07_08 ->  | O46: =Sup_07_08 ->  | Q46: =Elec_kWh_07_08 ->  | R46: =Elec_CAD_07_08 ->  | S46: =GN_m³_07_08 ->  | T46: =GN_CAD_07_08 ->  | U46: =Ma2_l_07_08 ->  | V46: =Ma2_CAD_07_08 ->  | W46: =Ma6_l_07_08 ->  | X46: =Ma6_CAD_07_08 ->  | AA46: =Prop_l_07_08 ->  | AB46: =Prop_CAD_07_08 ->  | AC46: =Bois20_1000kg_07_08 ->  | AD46: =Bois20_CAD_07_08 ->  | AE46: =Bois45_1000kg_07_08 ->  | AF46: =Bois45_CAD_07_08 ->  | AM46: =DJC_tot_07_08 -> 
A47: 4 | B47: =GJ_Tot_08_09 ->  | D47: =CAD_Tot_08_09 ->  | E47: =GJm²_08_09 ->  | G47: =CAD_m²_08_09 ->  | H47: =GES_ton_08_09 ->  | I47: =GES_ton_m²_08_09 ->  | O47: =Sup_08_09 ->  | Q47: =Elec_kWh_08_09 ->  | R47: =Elec_CAD_08_09 ->  | S47: =GN_m³_08_09 ->  | T47: =GN_CAD_08_09 ->  | U47: =Ma2_l_08_09 ->  | V47: =Ma2_CAD_08_09 ->  | W47: =Ma6_l_08_09 ->  | X47: =Ma6_CAD_08_09 ->  | AA47: =Prop_l_08_09 ->  | AB47: =Prop_CAD_08_09 ->  | AC47: =Bois20_1000kg_08_09 ->  | AD47: =Bois20_CAD_08_09 ->  | AE47: =Bois45_1000kg_08_09 ->  | AF47: =Bois45_CAD_08_09 ->  | AM47: =DJC_tot_08_09 -> 
A48: 5 | B48: =GJ_Tot_09_10 -> 0 | D48: =CAD_Tot_09_10 -> 0 | E48: =GJm²_09_10 ->  | G48: =CAD_m²_09_10 ->  | H48: =GES_ton_09_10 -> 0 | I48: =GES_ton_m²_09_10 -> 0 | O48: =Sup_09_10 -> 0 | Q48: =Elec_kWh_09_10 -> 0 | R48: =Elec_CAD_09_10 -> 0 | S48: =GN_m³_09_10 -> 0 | T48: =GN_CAD_09_10 -> 0 | U48: =Ma2_l_09_10 -> 0 | V48: =Ma2_CAD_09_10 -> 0 | W48: =Ma6_l_09_10 -> 0 | X48: =Ma6_CAD_09_10 -> 0 | AA48: =Prop_l_09_10 -> 0 | AB48: =Prop_CAD_09_10 -> 0 | AC48: =Bois20_1000kg_09_10 -> 0 | AD48: =Bois20_CAD_09_10 -> 0 | AE48: =Bois45_1000kg_09_10 -> 0 | AF48: =Bois45_CAD_09_10 -> 0 | AM48: =DJC_tot_09_10 -> 3967.8
A49: 6 | B49: =GJ_Tot_10_11 -> 0 | D49: =CAD_Tot_10_11 -> 0 | E49: =GJm²_10_11 ->  | G49: =CAD_m²_10_11 ->  | H49: =GES_ton_10_11 -> 0 | I49: =GES_ton_m²_10_11 -> 0 | O49: =Sup_10_11 -> 0 | Q49: =Elec_kWh_10_11 -> 0 | R49: =Elec_CAD_10_11 -> 0 | S49: =GN_m³_10_11 -> 0 | T49: =GN_CAD_10_11 -> 0 | U49: =Ma2_l_10_11 -> 0 | V49: =Ma2_CAD_10_11 -> 0 | W49: =Ma6_l_10_11 -> 0 | X49: =Ma6_CAD_10_11 -> 0 | AA49: =Prop_l_10_11 -> 0 | AB49: =Prop_CAD_10_11 -> 0 | AC49: =Bois20_1000kg_10_11 -> 0 | AD49: =Bois20_CAD_10_11 -> 0 | AE49: =Bois45_1000kg_10_11 -> 0 | AF49: =Bois45_CAD_10_11 -> 0 | AM49: =DJC_tot_10_11 -> 4187.4
A50: 7 | B50: =GJ_Tot_11_12 -> 0 | C50: =GJTotRef_Ajust_11_12 -> 0 | D50: =CAD_Tot_11_12 -> 0 | E50: =GJm²_11_12 ->  | F50: =GJTotRef_Ajust_11_12 -> 0 | G50: =CAD_m²_11_12 ->  | H50: =GES_ton_11_12 -> 0 | I50: =GES_ton_m²_11_12 -> 0 | N50: =GES_ton_10_11-GES_ton_11_12 -> 0 | O50: =Sup_11_12 -> 0 | Q50: =Elec_kWh_11_12 -> 0 | R50: =Elec_CAD_11_12 -> 0 | S50: =GN_m³_11_12 -> 0 | T50: =GN_CAD_11_12 -> 0 | U50: =Ma2_l_11_12 -> 0 | V50: =Ma2_CAD_11_12 -> 0 | W50: =Ma6_l_11_12 -> 0 | X50: =Ma6_CAD_11_12 -> 0 | AA50: =Prop_l_11_12 -> 0 | AB50: =Prop_CAD_11_12 -> 0 | AC50: =Bois20_1000kg_11_12 -> 0 | AD50: =Bois20_CAD_11_12 -> 0 | AE50: =Bois45_1000kg_11_12 -> 0 | AF50: =Bois45_CAD_11_12 -> 0 | AM50: =DJC_tot_11_12 -> 3730
A51: 8 | B51: =GJ_Tot_12_13 -> 0 | C51: =GJTotRef_Ajust_12_13 -> 0 | D51: =CAD_Tot_12_13 -> 0 | E51: =GJm²_12_13 ->  | F51: =GJTotRef_Ajust_12_13 -> 0 | G51: =CAD_m²_12_13 ->  | H51: =GES_ton_12_13 -> 0 | I51: =GES_ton_m²_12_13 -> 0 | N51: =GES_ton_10_11-GES_ton_12_13 -> 0 | O51: =Sup_12_13 -> 0 | Q51: =Elec_kWh_12_13 -> 0 | R51: =Elec_CAD_12_13 -> 0 | S51: =GN_m³_12_13 -> 0 | T51: =GN_CAD_12_13 -> 0 | U51: =Ma2_l_12_13 -> 0 | V51: =Ma2_CAD_12_13 -> 0 | W51: =Ma6_l_12_13 -> 0 | X51: =Ma6_CAD_12_13 -> 0 | AA51: =Prop_l_12_13 -> 0 | AB51: =Prop_CAD_12_13 -> 0 | AC51: =Bois20_1000kg_12_13 -> 0 | AD51: =Bois20_CAD_12_13 -> 0 | AE51: =Bois45_1000kg_12_13 -> 0 | AF51: =Bois45_CAD_12_13 -> 0 | AM51: =DJC_tot_12_13 -> 4039.4
A52: 9 | B52: =GJ_Tot_13_14 -> 0 | C52: =GJTotRef_Ajust_13_14 -> 0 | D52: =CAD_Tot_13_14 -> 0 | E52: =GJm²_13_14 ->  | F52: =GJTotRef_Ajust_13_14 -> 0 | G52: =CAD_m²_13_14 ->  | H52: =GES_ton_13_14 -> 0 | I52: =GES_ton_m²_13_14 -> 0 | N52: =GES_ton_10_11-GES_ton_13_14 -> 0 | O52: =Sup_13_14 -> 0 | Q52: =Elec_kWh_13_14 -> 0 | R52: =Elec_CAD_13_14 -> 0 | S52: =GN_m³_13_14 -> 0 | T52: =GN_CAD_13_14 -> 0 | U52: =Ma2_l_13_14 -> 0 | V52: =Ma2_CAD_13_14 -> 0 | W52: =Ma6_l_13_14 -> 0 | X52: =Ma6_CAD_13_14 -> 0 | AA52: =Prop_l_13_14 -> 0 | AB52: =Prop_CAD_13_14 -> 0 | AC52: =Bois20_1000kg_13_14 -> 0 | AD52: =Bois20_CAD_13_14 -> 0 | AE52: =Bois45_1000kg_13_14 -> 0 | AF52: =Bois45_CAD_13_14 -> 0 | AM52: =DJC_tot_13_14 -> 4562.5
A53: 10 | B53: =GJ_Tot_14_15 -> 0 | C53: =GJTotRef_Ajust_14_15 -> 0 | D53: =CAD_Tot_14_15 -> 0 | E53: =GJm²_14_15 ->  | F53: =GJTotRef_Ajust_14_15 -> 0 | G53: =CAD_m²_14_15 ->  | H53: =GES_ton_14_15 -> 0 | I53: =GES_ton_m²_14_15 -> 0 | N53: =GES_ton_10_11-GES_ton_14_15 -> 0 | O53: =Sup_14_15 -> 0 | Q53: =Elec_kWh_14_15 -> 0 | R53: =Elec_CAD_14_15 -> 0 | S53: =GN_m³_14_15 -> 0 | T53: =GN_CAD_14_15 -> 0 | U53: =Ma2_l_14_15 -> 0 | V53: =Ma2_CAD_14_15 -> 0 | W53: =Ma6_l_14_15 -> 0 | X53: =Ma6_CAD_14_15 -> 0 | AA53: =Prop_l_14_15 -> 0 | AB53: =Prop_CAD_14_15 -> 0 | AC53: =Bois20_1000kg_14_15 -> 0 | AD53: =Bois20_CAD_14_15 -> 0 | AE53: =Bois45_1000kg_14_15 -> 0 | AF53: =Bois45_CAD_14_15 -> 0 | AM53: =DJC_tot_14_15 -> 4543.1
A54: 11 | B54: =GJ_Tot_15_16 -> 0 | C54: =GJTotRef_Ajust_15_16 -> 0 | D54: =CAD_Tot_15_16 -> 0 | E54: =GJm²_15_16 ->  | F54: =GJTotRef_Ajust_15_16 -> 0 | G54: =CAD_m²_15_16 ->  | H54: =GES_ton_15_16 -> 0 | I54: =GES_ton_m²_15_16 -> 0 | N54: =GES_ton_10_11-GES_ton_15_16 -> 0 | O54: =Sup_15_16 -> 0 | Q54: =Elec_kWh_15_16 -> 0 | R54: =Elec_CAD_15_16 -> 0 | S54: =GN_m³_15_16 -> 0 | T54: =GN_CAD_15_16 -> 0 | U54: =Ma2_l_15_16 -> 0 | V54: =Ma2_CAD_15_16 -> 0 | W54: =Ma6_l_15_16 -> 0 | X54: =Ma6_CAD_15_16 -> 0 | AA54: =Prop_l_15_16 -> 0 | AB54: =Prop_CAD_15_16 -> 0 | AC54: =Bois20_1000kg_15_16 -> 0 | AD54: =Bois20_CAD_15_16 -> 0 | AE54: =Bois45_1000kg_15_16 -> 0 | AF54: =Bois45_CAD_15_16 -> 0 | AM54: =DJC_tot_15_16 -> 3611.4
A55: 12 | B55: =GJ_Tot_16_17 -> 0 | C55: =GJTotRef_Ajust_16_17 -> 0 | D55: =CAD_Tot_16_17 -> 0 | E55: =GJm²_16_17 ->  | F55: =GJTotRef_Ajust_16_17 -> 0 | G55: =CAD_m²_16_17 ->  | H55: =GES_ton_16_17 -> 0 | I55: =GES_ton_m²_16_17 -> 0 | N55: =GES_ton_10_11-GES_ton_16_17 -> 0 | O55: =Sup_16_17 -> 0 | Q55: =Elec_kWh_16_17 -> 0 | R55: =Elec_CAD_16_17 -> 0 | S55: =GN_m³_16_17 -> 0 | T55: =GN_CAD_16_17 -> 0 | U55: =Ma2_l_16_17 -> 0 | V55: =Ma2_CAD_16_17 -> 0 | W55: =Ma6_l_16_17 -> 0 | X55: =Ma6_CAD_16_17 -> 0 | AA55: =Prop_l_16_17 -> 0 | AB55: =Prop_CAD_16_17 -> 0 | AC55: =Bois20_1000kg_16_17 -> 0 | AD55: =Bois20_CAD_16_17 -> 0 | AE55: =Bois45_1000kg_16_17 -> 0 | AF55: =Bois45_CAD_16_17 -> 0 | AM55: =DJC_tot_16_17 -> 3951.9
A56: 13 | B56: =GJ_Tot_17_18 -> 0 | C56: =GJTotRef_Ajust_17_18 -> 0 | D56: =CAD_Tot_17_18 -> 0 | E56: =GJm²_17_18 ->  | F56: =GJTotRef_Ajust_17_18 -> 0 | G56: =CAD_m²_17_18 ->  | H56: =GES_ton_17_18 -> 0 | I56: =GES_ton_m²_17_18 -> 0 | N56: =GES_ton_10_11-GES_ton_17_18 -> 0 | O56: =Sup_17_18 -> 0 | Q56: =Elec_kWh_17_18 -> 0 | R56: =Elec_CAD_17_18 -> 0 | S56: =GN_m³_17_18 -> 0 | T56: =GN_CAD_17_18 -> 0 | U56: =Ma2_l_17_18 -> 0 | V56: =Ma2_CAD_17_18 -> 0 | W56: =Ma6_l_17_18 -> 0 | X56: =Ma6_CAD_17_18 -> 0 | AA56: =Prop_l_17_18 -> 0 | AB56: =Prop_CAD_17_18 -> 0 | AC56: =Bois20_1000kg_17_18 -> 0 | AD56: =Bois20_CAD_17_18 -> 0 | AE56: =Bois45_1000kg_17_18 -> 0 | AF56: =Bois45_CAD_17_18 -> 0 | AM56: =DJC_tot_17_18 -> 3949.4
A57: 14 | B57: =GJ_Tot_18_19 -> 0 | C57: =GJTotRef_Ajust_18_19 -> 0 | D57: =CAD_Tot_18_19 -> 0 | E57: =GJm²_18_19 ->  | F57: =GJTotRef_Ajust_18_19 -> 0 | G57: =CAD_m²_18_19 ->  | H57: =GES_ton_18_19 -> 0 | I57: =GES_ton_m²_18_19 -> 0 | N57: =GES_ton_10_11-GES_ton_18_19 -> 0 | O57: =Sup_18_19 -> 0 | Q57: =Elec_kWh_18_19 -> 0 | R57: =Elec_CAD_18_19 -> 0 | S57: =GN_m³_18_19 -> 0 | T57: =GN_CAD_18_19 -> 0 | U57: =Ma2_l_18_19 -> 0 | V57: =Ma2_CAD_18_19 -> 0 | W57: =Ma6_l_18_19 -> 0 | X57: =Ma6_CAD_18_19 -> 0 | AA57: =Prop_l_18_19 -> 0 | AB57: =Prop_CAD_18_19 -> 0 | AC57: =Bois20_1000kg_18_19 -> 0 | AD57: =Bois20_CAD_18_19 -> 0 | AE57: =Bois45_1000kg_18_19 -> 0 | AF57: =Bois45_CAD_18_19 -> 0 | AM57: =DJC_tot_18_19 -> 4347.2
A58: 15 | B58: =GJ_Tot_19_20 -> 0 | C58: =GJTotRef_Ajust_19_20 -> 0 | D58: =CAD_Tot_19_20 -> 0 | E58: =GJm²_19_20 ->  | F58: =GJTotRef_Ajust_19_20 -> 0 | G58: =CAD_m²_19_20 ->  | H58: =GES_ton_19_20 -> 0 | I58: =GES_ton_m²_19_20 -> 0 | N58: =GES_ton_10_11-GES_ton_19_20 -> 0 | O58: =Sup_19_20 -> 0 | P58: =Sup_19_20 -> 0 | Q58: =Elec_kWh_19_20 -> 0 | R58: =Elec_CAD_19_20 -> 0 | S58: =GN_m³_19_20 -> 0 | T58: =GN_CAD_19_20 -> 0 | U58: =Ma2_l_19_20 -> 0 | V58: =Ma2_CAD_19_20 -> 0 | W58: =Ma6_l_19_20 -> 0 | X58: =Ma6_CAD_19_20 -> 0 | AA58: =Prop_l_19_20 -> 0 | AB58: =Prop_CAD_19_20 -> 0 | AC58: =Bois20_1000kg_19_20 -> 0 | AD58: =Bois20_CAD_19_20 -> 0 | AE58: =Bois45_1000kg_19_20 -> 0 | AF58: =Bois45_CAD_19_20 -> 0 | AM58: =DJC_tot_19_20 -> 4105.7
A59: 16 | B59: =GJ_Tot_20_21 -> 0 | C59: =GJTotRef_Ajust_20_21 -> 0 | D59: =CAD_Tot_20_21 -> 0 | E59: =GJm²_20_21 ->  | F59: =GJTotRef_Ajust_20_21 -> 0 | G59: =CAD_m²_20_21 ->  | H59: =GES_ton_20_21 ->  | I59: =GES_ton_m²_20_21 -> 0 | N59: =GES_ton_10_11-GES_ton_20_21 ->  | O59: =Sup_20_21 -> 0 | P59: =Sup_20_21 -> 0 | Q59: =Elec_kWh_20_21 -> 0 | R59: =Elec_CAD_20_21 -> 0 | S59: =GN_m³_20_21 -> 0 | T59: =GN_CAD_20_21 -> 0 | U59: =Ma2_l_20_21 -> 0 | V59: =Ma2_CAD_20_21 -> 0 | W59: =Ma6_l_20_21 -> 0 | X59: =Ma6_CAD_20_21 -> 0 | AA59: =Prop_l_20_21 -> 0 | AB59: =Prop_CAD_20_21 -> 0 | AC59: =Bois20_1000kg_20_21 -> 0 | AD59: =Bois20_CAD_20_21 -> 0 | AE59: =Bois45_1000kg_20_21 -> 0 | AF59: =Bois45_CAD_20_21 -> 0 | AM59: =DJC_tot_20_21 -> 998.4
A68: =VLOOKUP(I2,B2:N2002,11,FALSE) -> 

Sheet ListeMO (hidden)
B1: Liste des ministères et organismes
B2: NOM DE L'ENTITÉ | C2: NUMÉRO APPARENTÉ SAGIR
B3: Agence du revenu du Québec | C3: 0445
B4: Autorité des marchés financiers | C4: 0356
B5: Autorité des marchés publics | C5: 0395
B6: Bibliothèque et Archives nationales du Québec | C6: 0326
B7: Bureau d'audiences publiques sur l'environnement | C7: 0256
B8: Bureau du coroner | C8: 0293
B9: Bureau du forestier en chef | C9: NA
B10: Caisse de dépôt et placement du Québec et filiales | C10: 0603
B11: Capital financière agricole inc. | C11: 0899
B12: Centre de la francophonie des Amériques | C12: 0222
B13: Centre de recherche industrielle du Québec | C13: 0523
B14: Centre de services partagés du Québec | C14: 0347
B15: Centre régional de santé et de services sociaux de la Baie-James | C15: 4051
B16: Comité consultatif de lutte contre la pauvreté et l'exclusion sociale | C16: 0201
B17: Comité de déontologie policière | C17: 0402
B18: Comité d'examen (COMEX) (Convention de la Baie-James et du Nord québécois) | C18: NA
B19: Commissaire à la déontologie policière | C19: 0267
B20: Commissaire à la lutte contre la corruption | C20: 0244
B21: Commission d'accès à l'information | C21: 0408
B22: Commission de la capitale nationale du Québec | C22: 0549
B23: Commission de la construction du Québec | C23: 0509
B24: Commission de la fonction publique du Québec | C24: 0430
B25: Commission de la qualité de l'environnement Kativik | C25: 0486
B26: Commission de protection du territoire agricole du Québec | C26: 0328
B27: Commission de toponymie du Québec | C27: 0361
B28: Commission des droits de la personne et des droits de la jeunesse | C28: 0271
B29: Commission des normes, de l'équité, de la santé et de la sécurité du travail | C29: 0703
B30: Commission des partenaires du marché du travail | C30: 0310
B31: Commission des services juridiques | C31: 0315
B32: Commission des transports du Québec | C32: 0830
B33: Commission d'évaluation de l'enseignement collégial | C33: 0274
B34: Commission municipale du Québec | C34: 0368
B35: Commission québécoise des libérations conditionnelles | C35: 0425
B36: Conseil Cris-Québec sur la foresterie | C36: 0203
B37: Conseil de gestion de l'assurance parentale | C37: 0505
B38: Conseil de la justice administrative | C38: 0272
B39: Conseil des appellations réservées et des termes valorisants | C39: 0212
B40: Conseil des arts et des lettres du Québec | C40: 0314
B41: Conseil du patrimoine culturel du Québec | C41: 0206
B42: Conseil du statut de la femme | C42: 0660
B43: Conseil supérieur de la langue française | C43: 0690
B44: Conseil supérieur de l'éducation | C44: 0238
B45: Conservatoire de musique et d'art dramatique du Québec | C45: 0317
B46: Corporation d'urgences-santé | C46: 0571
B47: Curateur public du Québec | C47: 0560
B48: Directeur des poursuites criminelles et pénales | C48: 0246
B49: Directeur général des élections du Québec | C49: 0630
B50: École nationale de police du Québec | C50: 0329
B51: École nationale des pompiers du Québec | C51: 0335
B52: Financement-Québec | C52: 0876
B53: Financière agricole du Québec | C53: 0520
B54: Fondation de la faune du Québec | C54: 0525
B55: Fonds d'aide aux recours collectifs | C55: 0321
B56: Fonds de la recherche du Québec – Nature et technologies | C56: 0327
B57: Fonds de recherche du Québec - Santé | C57: 0324
B58: Fonds de recherche du Québec - Société et culture | C58: 0318
B59: Héma-Québec | C59: 0573
B60: Hydro-Québec | C60: 0606
B61: Institut de la statistique du Québec | C61: 0323
B62: Institut de tourisme et d'hôtellerie du Québec | C62: 0547
B63: Institut national de santé publique du Québec | C63: 0332
B64: Institut national d'excellence en santé et en services sociaux | C64: 0357
B65: Investissement Québec | C65: 0537
B66: Ministère de la Culture et des Communications | C66: 0010
B67: Ministère de la Famille | C67: 0065
B68: Ministère de la justice | C68: 0400
B69: Ministère de la Santé et des Services sociaux | C69: 0060
B70: Ministère de la Sécurité publique | C70: 0095
B71: Ministère de l'Agriculture, des Pêcheries et de l'Alimentation | C71: 0080
B72: Ministère de l'Économie, de la Science et de l'Innovation | C72: 0280
B73: Ministère de l'Éducation et de l'Enseignement supérieur | C73: 0350
B74: Ministère de l'Immigration, de la Diversité et de l'Inclusion | C74: 0055
B75: Ministère des Affaires municipales et de l'Occupation du territoire | C75: 0050
B76: Ministère des Finances | C76: 0210
B77: Ministère des Relations internationales et de la Francophonie | C77: 0030
B78: Ministère des Ressources naturelles | C78: 0600
B79: Ministère des Transports, de la Mobilité durable et de l'Électrification des transports | C79: 0850
B80: Ministère du Conseil exécutif | C80: 0140
B81: Ministère du Développement durable, de l'Environnement et de la Lutte contre les changements climatiques | C81: 0380
B82: Ministère du Tourisme | C82: 0071
B83: Ministère du Travail, de l'Emploi et de la Solidarité sociale | C83: 0700
B84: Musée d'art contemporain de Montréal | C84: 0541
B85: Musée national des beaux-arts du Québec | C85: 0545
B86: Musées de la civilisation | C86: 0544
B87: Office de la protection du consommateur | C87: 0344
B88: Office de la sécurité du revenu des chasseurs et piégeurs cris | C88: 0483
B89: Office des personnes handicapées du Québec | C89: 0538
B90: Office des professions du Québec | C90: 0360
B91: Office Québec-Amériques pour la jeunesse | C91: 0346
B92: Office Québec-Monde pour la jeunesse | C92: 0239
B93: Office québécois de la langue française | C93: 0710
B94: Protecteur du citoyen | C94: 0295
B95: Régie de l'assurance maladie du Québec | C95: 0064
B96: Régie de l'énergie | C96: 0385
B97: Régie des alcools, des courses et des jeux | C97: 0386
B98: Régie des installations olympiques | C98: 0546
B99: Régie des marchés agricoles et alimentaires du Québec | C99: 0392
B100: Régie du bâtiment du Québec | C100: 0367
B101: Régie du cinéma | C101: 0352
B102: Régie du logement du Québec | C102: 0510
B103: Régie régionale de la santé et des services sociaux du Nunavik | C103: 4017
B104: Réseau de transport métropolitain | C104: 0553
B105: Retraite Québec | C105: 0063
B106: Secrétariat à la Capitale nationale | C106: NA
B107: Secrétariat du conseil du trésor | C107: 0160
B108: Société de développement de la Baie-James | C108: 0618
B109: Société de développement des entreprises culturelles | C109: 0539
B110: Société de la Place de Arts de Montréal | C110: 0552
B111: Société de l'assurance automobile du Québec | C111: 0320
B112: Société de télédiffusion du Québec | C112: 0582
B113: Société des Alcools du Québec | C113: 0624
B114: Société des établissements de plein air du Québec | C114: 0569
B115: Société des loteries du Québec | C115: 0627
B116: Société des traversiers du Québec | C116: 0554
B117: Société d'habitation du Québec | C117: 0730
B118: Société du Centre des congrès de Québec | C118: 0557
B119: Société du Grand Théâtre de Québec | C119: 0558
B120: Société du Palais des congrès de Montréal | C120: 0559
B121: Société du parc industriel et portuaire de Bécancour | C121: 0565
B122: Société du Plan Nord | C122: 0376
B123: Société québécoise de récupération et de recyclage | C123: 0586
B124: Société québécoise des infrastructures | C124: 0339
B125: Société québécoise d'information juridique | C125: 0585
B126: Sûreté du Québec | C126: 0390
B127: Tribunal administratif du Québec | C127: 0450
B128: Tribunal administratif du travail | C128: 0415
B129: Tribunal des droits de la personne | C129: 0434

Sheet Transition (hidden)
B1: Données bâtiments
B3: Code du MO | C3: Année | D3: Organisme | E3: Ministère ou org. | I3: Parc de bâtiment | J3: Superficie m2 | K3: Nb bâtiments | L3: Parc de bâtiment | M3: Catégorie | N3: Intensité énerg. minimum | O3: Intensité énerg. maximum | AE3: Concatener (cette colonne est un repére de données pour les rapports personnalisés) | AO3: propriété | AP3: location | AS3: Nom pers. Respon. | AT3: Titre | AU3: Adresse | AV3: Ville | AW3: Téléphone | AX3: Courriel | AY3: Date | AZ3: Année financière | BA3: Année de référence | BB3: Facteur consom. Variable
B4: Code du MO | C4: Année | D4: Organisme (acronyme) | E4: Ministère ou organisme | I4: Parc de bâtiment | J4: Superficie m2 | K4: Nombre de bâtiments | L4: Parc de bâtiment | M4: Catégorie | N4: Intensité énergétique minimum | O4: Intensité énergétique maximum | AE4: Concatener (cette colonne est un repére de données pour les rapports personnalisés) | AO4: Bâtiment | AS4: Nom de la personne responsable | AT4: Titre | AU4: Adresse | AV4: Ville | AW4: Téléphone | AX4: Courriel | AY4: Date | AZ4: Année financière | BA4: Année de référence | BB4: Facteur de consommation variable
AO5: propriété | AP5: location
B7: Code du MO | C7: Année | D7: Organisme (acronyme) | E7: ='1. IDENTITÉ'!A10 -> Ministère ou organisme : | F7: Statut du MO/réseau | G7: Année financière Choix possibles: Janvier-Décembre Avril-Mars Mai-Avril Juillet-Juin | H7: Critère d'inclusion et d'exclusion | I7: Parc de bâtiment | J7: =DH32 -> Superficie | K7: =DI32 -> Nombre de bâtiments | L7: Superficie/bâtiment | M7: ='1. IDENTITÉ'!A13 -> Catégorie : | N7: ='1. IDENTITÉ'!A24 -> Intensité énergétique minimale : | O7: ='1. IDENTITÉ'!A25 -> Intensité énergétique maximale : | AE7: Code du MO | AO7: propriété | AP7: location | AS7: ='1. IDENTITÉ'!A14 -> Nom de la personne responsable : | AT7: ='1. IDENTITÉ'!A15 -> Titre : | AU7: ='1. IDENTITÉ'!A16 -> Adresse : | AV7: ='1. IDENTITÉ'!A17 -> Ville : | AW7: ='1. IDENTITÉ'!A18 -> Téléphone : | AX7: ='1. IDENTITÉ'!A19 -> Courriel : | AY7: ='1. IDENTITÉ'!A20 -> Date : | AZ7: ='1. IDENTITÉ'!A21 -> Année financière : | BA7: ='1. IDENTITÉ'!A22 -> Année de référence : | BB7: ='1. IDENTITÉ'!A23 -> Facteur de consommation variable :
B8: =IF('1. IDENTITÉ'!$B$11<>0,'1. IDENTITÉ'!$B$11,IF(ISERROR(VLOOKUP(Transition!E8,ListeMO!$B$3:$C$133,2,FALSE)),"",VLOOKUP(Transition!E8,ListeMO!$B$3:$C$133,2,FALSE))) ->  | C8: =B41 -> 2009-2010 | D8: ='1. IDENTITÉ'!$B$12 -> 0 | E8: ='1. IDENTITÉ'!$B$10 -> NOM DE L'ENTITÉ | J8: =DH41 -> 0 | K8: =DI41 -> 0 | M8: ='1. IDENTITÉ'!$B$13 -> 0 | N8: ='1. IDENTITÉ'!$B$24 -> 0 | O8: ='1. IDENTITÉ'!$B$25 -> 0 | AE8: =CONCATENATE(B8,"-",C8) -> -2009-2010 | AO8: X | AS8: ='1. IDENTITÉ'!$B$14 -> 0 | AT8: ='1. IDENTITÉ'!$B$15 -> 0 | AU8: ='1. IDENTITÉ'!$B$16 -> 0 | AV8: ='1. IDENTITÉ'!$B$17 -> 0 | AW8: ='1. IDENTITÉ'!$B$18 -> 0 | AX8: ='1. IDENTITÉ'!$B$19 -> 0 | AY8: ='1. IDENTITÉ'!$B$20 -> 0 | AZ8: ='1. IDENTITÉ'!$B$21 -> avril-mars | BA8: ='1. IDENTITÉ'!$B$22 -> 0 | BB8: ='1. IDENTITÉ'!$B$23 -> 0.35
B9: =IF('1. IDENTITÉ'!$B$11<>0,'1. IDENTITÉ'!$B$11,IF(ISERROR(VLOOKUP(Transition!E9,ListeMO!$B$3:$C$133,2,FALSE)),"",VLOOKUP(Transition!E9,ListeMO!$B$3:$C$133,2,FALSE))) ->  | C9: 2010-2011 | D9: ='1. IDENTITÉ'!$B$12 -> 0 | E9: ='1. IDENTITÉ'!$B$10 -> NOM DE L'ENTITÉ | J9: 0 | K9: 0 | M9: ='1. IDENTITÉ'!$B$13 -> 0 | N9: ='1. IDENTITÉ'!$B$24 -> 0 | O9: ='1. IDENTITÉ'!$B$25 -> 0 | AE9: -2010-2011 | AO9: X | AS9: ='1. IDENTITÉ'!$B$14 -> 0 | AT9: ='1. IDENTITÉ'!$B$15 -> 0 | AU9: ='1. IDENTITÉ'!$B$16 -> 0 | AV9: ='1. IDENTITÉ'!$B$17 -> 0 | AW9: ='1. IDENTITÉ'!$B$18 -> 0 | AX9: ='1. IDENTITÉ'!$B$19 -> 0 | AY9: ='1. IDENTITÉ'!$B$20 -> 0 | AZ9: ='1. IDENTITÉ'!$B$21 -> avril-mars | BA9: ='1. IDENTITÉ'!$B$22 -> 0 | BB9: ='1. IDENTITÉ'!$B$23 -> 0.35
B10: =IF('1. IDENTITÉ'!$B$11<>0,'1. IDENTITÉ'!$B$11,IF(ISERROR(VLOOKUP(Transition!E10,ListeMO!$B$3:$C$133,2,FALSE)),"",VLOOKUP(Transition!E10,ListeMO!$B$3:$C$133,2,FALSE))) ->  | C10: 2011-2012 | D10: ='1. IDENTITÉ'!$B$12 -> 0 | E10: ='1. IDENTITÉ'!$B$10 -> NOM DE L'ENTITÉ | J10: 0 | K10: 0 | M10: ='1. IDENTITÉ'!$B$13 -> 0 | N10: ='1. IDENTITÉ'!$B$24 -> 0 | O10: ='1. IDENTITÉ'!$B$25 -> 0 | AE10: -2011-2012 | AO10: X | AS10: ='1. IDENTITÉ'!$B$14 -> 0 | AT10: ='1. IDENTITÉ'!$B$15 -> 0 | AU10: ='1. IDENTITÉ'!$B$16 -> 0 | AV10: ='1. IDENTITÉ'!$B$17 -> 0 | AW10: ='1. IDENTITÉ'!$B$18 -> 0 | AX10: ='1. IDENTITÉ'!$B$19 -> 0 | AY10: ='1. IDENTITÉ'!$B$20 -> 0 | AZ10: ='1. IDENTITÉ'!$B$21 -> avril-mars | BA10: ='1. IDENTITÉ'!$B$22 -> 0 | BB10: ='1. IDENTITÉ'!$B$23 -> 0.35
B11: =IF('1. IDENTITÉ'!$B$11<>0,'1. IDENTITÉ'!$B$11,IF(ISERROR(VLOOKUP(Transition!E11,ListeMO!$B$3:$C$133,2,FALSE)),"",VLOOKUP(Transition!E11,ListeMO!$B$3:$C$133,2,FALSE))) ->  | C11: 2012-2013 | D11: ='1. IDENTITÉ'!$B$12 -> 0 | E11: ='1. IDENTITÉ'!$B$10 -> NOM DE L'ENTITÉ | J11: 0 | K11: 0 | M11: ='1. IDENTITÉ'!$B$13 -> 0 | N11: ='1. IDENTITÉ'!$B$24 -> 0 | O11: ='1. IDENTITÉ'!$B$25 -> 0 | AE11: -2012-2013 | AO11: X | AS11: ='1. IDENTITÉ'!$B$14 -> 0 | AT11: ='1. IDENTITÉ'!$B$15 -> 0 | AU11: ='1. IDENTITÉ'!$B$16 -> 0 | AV11: ='1. IDENTITÉ'!$B$17 -> 0 | AW11: ='1. IDENTITÉ'!$B$18 -> 0 | AX11: ='1. IDENTITÉ'!$B$19 -> 0 | AY11: ='1. IDENTITÉ'!$B$20 -> 0 | AZ11: ='1. IDENTITÉ'!$B$21 -> avril-mars | BA11: ='1. IDENTITÉ'!$B$22 -> 0 | BB11: ='1. IDENTITÉ'!$B$23 -> 0.35
B12: =IF('1. IDENTITÉ'!$B$11<>0,'1. IDENTITÉ'!$B$11,IF(ISERROR(VLOOKUP(Transition!E12,ListeMO!$B$3:$C$133,2,FALSE)),"",VLOOKUP(Transition!E12,ListeMO!$B$3:$C$133,2,FALSE))) ->  | C12: 2013-2014 | D12: ='1. IDENTITÉ'!$B$12 -> 0 | E12: ='1. IDENTITÉ'!$B$10 -> NOM DE L'ENTITÉ | J12: 0 | K12: 0 | M12: ='1. IDENTITÉ'!$B$13 -> 0 | N12: ='1. IDENTITÉ'!$B$24 -> 0 | O12: ='1. IDENTITÉ'!$B$25 -> 0 | AE12: -2013-2014 | AO12: X | AS12: ='1. IDENTITÉ'!$B$14 -> 0 | AT12: ='1. IDENTITÉ'!$B$15 -> 0 | AU12: ='1. IDENTITÉ'!$B$16 -> 0 | AV12: ='1. IDENTITÉ'!$B$17 -> 0 | AW12: ='1. IDENTITÉ'!$B$18 -> 0 | AX12: ='1. IDENTITÉ'!$B$19 -> 0 | AY12: ='1. IDENTITÉ'!$B$20 -> 0 | AZ12: ='1. IDENTITÉ'!$B$21 -> avril-mars | BA12: ='1. IDENTITÉ'!$B$22 -> 0 | BB12: ='1. IDENTITÉ'!$B$23 -> 0.35
B13: =IF('1. IDENTITÉ'!$B$11<>0,'1. IDENTITÉ'!$B$11,IF(ISERROR(VLOOKUP(Transition!E13,ListeMO!$B$3:$C$133,2,FALSE)),"",VLOOKUP(Transition!E13,ListeMO!$B$3:$C$133,2,FALSE))) ->  | C13: 2014-2015 | D13: ='1. IDENTITÉ'!$B$12 -> 0 | E13: ='1. IDENTITÉ'!$B$10 -> NOM DE L'ENTITÉ | J13: 0 | K13: 0 | M13: ='1. IDENTITÉ'!$B$13 -> 0 | N13: ='1. IDENTITÉ'!$B$24 -> 0 | O13: ='1. IDENTITÉ'!$B$25 -> 0 | AE13: -2014-2015 | AO13: X | AS13: ='1. IDENTITÉ'!$B$14 -> 0 | AT13: ='1. IDENTITÉ'!$B$15 -> 0 | AU13: ='1. IDENTITÉ'!$B$16 -> 0 | AV13: ='1. IDENTITÉ'!$B$17 -> 0 | AW13: ='1. IDENTITÉ'!$B$18 -> 0 | AX13: ='1. IDENTITÉ'!$B$19 -> 0 | AY13: ='1. IDENTITÉ'!$B$20 -> 0 | AZ13: ='1. IDENTITÉ'!$B$21 -> avril-mars | BA13: ='1. IDENTITÉ'!$B$22 -> 0 | BB13: ='1. IDENTITÉ'!$B$23 -> 0.35
B14: =IF('1. IDENTITÉ'!$B$11<>0,'1. IDENTITÉ'!$B$11,IF(ISERROR(VLOOKUP(Transition!E14,ListeMO!$B$3:$C$133,2,FALSE)),"",VLOOKUP(Transition!E14,ListeMO!$B$3:$C$133,2,FALSE))) ->  | C14: 2015-2016 | D14: ='1. IDENTITÉ'!$B$12 -> 0 | E14: ='1. IDENTITÉ'!$B$10 -> NOM DE L'ENTITÉ | J14: 0 | K14: 0 | M14: ='1. IDENTITÉ'!$B$13 -> 0 | N14: ='1. IDENTITÉ'!$B$24 -> 0 | O14: ='1. IDENTITÉ'!$B$25 -> 0 | AE14: -2015-2016 | AO14: X | AS14: ='1. IDENTITÉ'!$B$14 -> 0 | AT14: ='1. IDENTITÉ'!$B$15 -> 0 | AU14: ='1. IDENTITÉ'!$B$16 -> 0 | AV14: ='1. IDENTITÉ'!$B$17 -> 0 | AW14: ='1. IDENTITÉ'!$B$18 -> 0 | AX14: ='1. IDENTITÉ'!$B$19 -> 0 | AY14: ='1. IDENTITÉ'!$B$20 -> 0 | AZ14: ='1. IDENTITÉ'!$B$21 -> avril-mars | BA14: ='1. IDENTITÉ'!$B$22 -> 0 | BB14: ='1. IDENTITÉ'!$B$23 -> 0.35
B15: =IF('1. IDENTITÉ'!$B$11<>0,'1. IDENTITÉ'!$B$11,IF(ISERROR(VLOOKUP(Transition!E15,ListeMO!$B$3:$C$133,2,FALSE)),"",VLOOKUP(Transition!E15,ListeMO!$B$3:$C$133,2,FALSE))) ->  | C15: 2016-2017 | D15: ='1. IDENTITÉ'!$B$12 -> 0 | E15: ='1. IDENTITÉ'!$B$10 -> NOM DE L'ENTITÉ | J15: 0 | K15: 0 | M15: ='1. IDENTITÉ'!$B$13 -> 0 | N15: ='1. IDENTITÉ'!$B$24 -> 0 | O15: ='1. IDENTITÉ'!$B$25 -> 0 | AE15: -2016-2017 | AO15: X | AS15: ='1. IDENTITÉ'!$B$14 -> 0 | AT15: ='1. IDENTITÉ'!$B$15 -> 0 | AU15: ='1. IDENTITÉ'!$B$16 -> 0 | AV15: ='1. IDENTITÉ'!$B$17 -> 0 | AW15: ='1. IDENTITÉ'!$B$18 -> 0 | AX15: ='1. IDENTITÉ'!$B$19 -> 0 | AY15: ='1. IDENTITÉ'!$B$20 -> 0 | AZ15: ='1. IDENTITÉ'!$B$21 -> avril-mars | BA15: ='1. IDENTITÉ'!$B$22 -> 0 | BB15: ='1. IDENTITÉ'!$B$23 -> 0.35
B16: =IF('1. IDENTITÉ'!$B$11<>0,'1. IDENTITÉ'!$B$11,IF(ISERROR(VLOOKUP(Transition!E16,ListeMO!$B$3:$C$133,2,FALSE)),"",VLOOKUP(Transition!E16,ListeMO!$B$3:$C$133,2,FALSE))) ->  | C16: 2017-2018 | D16: ='1. IDENTITÉ'!$B$12 -> 0 | E16: ='1. IDENTITÉ'!$B$10 -> NOM DE L'ENTITÉ | J16: 0 | K16: 0 | M16: ='1. IDENTITÉ'!$B$13 -> 0 | N16: ='1. IDENTITÉ'!$B$24 -> 0 | O16: ='1. IDENTITÉ'!$B$25 -> 0 | AE16: -2017-2018 | AO16: X | AS16: ='1. IDENTITÉ'!$B$14 -> 0 | AT16: ='1. IDENTITÉ'!$B$15 -> 0 | AU16: ='1. IDENTITÉ'!$B$16 -> 0 | AV16: ='1. IDENTITÉ'!$B$17 -> 0 | AW16: ='1. IDENTITÉ'!$B$18 -> 0 | AX16: ='1. IDENTITÉ'!$B$19 -> 0 | AY16: ='1. IDENTITÉ'!$B$20 -> 0 | AZ16: ='1. IDENTITÉ'!$B$21 -> avril-mars | BA16: ='1. IDENTITÉ'!$B$22 -> 0 | BB16: ='1. IDENTITÉ'!$B$23 -> 0.35
B17: =IF('1. IDENTITÉ'!$B$11<>0,'1. IDENTITÉ'!$B$11,IF(ISERROR(VLOOKUP(Transition!E17,ListeMO!$B$3:$C$133,2,FALSE)),"",VLOOKUP(Transition!E17,ListeMO!$B$3:$C$133,2,FALSE))) ->  | C17: 2018-2019 | D17: ='1. IDENTITÉ'!$B$12 -> 0 | E17: ='1. IDENTITÉ'!$B$10 -> NOM DE L'ENTITÉ | J17: 0 | K17: 0 | M17: ='1. IDENTITÉ'!$B$13 -> 0 | N17: ='1. IDENTITÉ'!$B$24 -> 0 | O17: ='1. IDENTITÉ'!$B$25 -> 0 | AE17: -2018-2019 | AO17: X | AS17: ='1. IDENTITÉ'!$B$14 -> 0 | AT17: ='1. IDENTITÉ'!$B$15 -> 0 | AU17: ='1. IDENTITÉ'!$B$16 -> 0 | AV17: ='1. IDENTITÉ'!$B$17 -> 0 | AW17: ='1. IDENTITÉ'!$B$18 -> 0 | AX17: ='1. IDENTITÉ'!$B$19 -> 0 | AY17: ='1. IDENTITÉ'!$B$20 -> 0 | AZ17: ='1. IDENTITÉ'!$B$21 -> avril-mars | BA17: ='1. IDENTITÉ'!$B$22 -> 0 | BB17: ='1. IDENTITÉ'!$B$23 -> 0.35
B18: =IF('1. IDENTITÉ'!$B$11<>0,'1. IDENTITÉ'!$B$11,IF(ISERROR(VLOOKUP(Transition!E18,ListeMO!$B$3:$C$133,2,FALSE)),"",VLOOKUP(Transition!E18,ListeMO!$B$3:$C$133,2,FALSE))) ->  | C18: 2019-2020 | D18: ='1. IDENTITÉ'!$B$12 -> 0 | E18: ='1. IDENTITÉ'!$B$10 -> NOM DE L'ENTITÉ | J18: 0 | K18: 0 | M18: ='1. IDENTITÉ'!$B$13 -> 0 | N18: ='1. IDENTITÉ'!$B$24 -> 0 | O18: ='1. IDENTITÉ'!$B$25 -> 0 | AE18: -2019-2020 | AO18: X | AS18: ='1. IDENTITÉ'!$B$14 -> 0 | AT18: ='1. IDENTITÉ'!$B$15 -> 0 | AU18: ='1. IDENTITÉ'!$B$16 -> 0 | AV18: ='1. IDENTITÉ'!$B$17 -> 0 | AW18: ='1. IDENTITÉ'!$B$18 -> 0 | AX18: ='1. IDENTITÉ'!$B$19 -> 0 | AY18: ='1. IDENTITÉ'!$B$20 -> 0 | AZ18: ='1. IDENTITÉ'!$B$21 -> avril-mars | BA18: ='1. IDENTITÉ'!$B$22 -> 0 | BB18: ='1. IDENTITÉ'!$B$23 -> 0.35
B19: =IF('1. IDENTITÉ'!$B$11<>0,'1. IDENTITÉ'!$B$11,IF(ISERROR(VLOOKUP(Transition!E19,ListeMO!$B$3:$C$133,2,FALSE)),"",VLOOKUP(Transition!E19,ListeMO!$B$3:$C$133,2,FALSE))) ->  | C19: 2020-2021 | D19: ='1. IDENTITÉ'!$B$12 -> 0 | E19: ='1. IDENTITÉ'!$B$10 -> NOM DE L'ENTITÉ | J19: 0 | K19: 0 | M19: ='1. IDENTITÉ'!$B$13 -> 0 | N19: ='1. IDENTITÉ'!$B$24 -> 0 | O19: ='1. IDENTITÉ'!$B$25 -> 0 | AE19: -2020-2021 | AO19: X | AS19: ='1. IDENTITÉ'!$B$14 -> 0 | AT19: ='1. IDENTITÉ'!$B$15 -> 0 | AU19: ='1. IDENTITÉ'!$B$16 -> 0 | AV19: ='1. IDENTITÉ'!$B$17 -> 0 | AW19: ='1. IDENTITÉ'!$B$18 -> 0 | AX19: ='1. IDENTITÉ'!$B$19 -> 0 | AY19: ='1. IDENTITÉ'!$B$20 -> 0 | AZ19: ='1. IDENTITÉ'!$B$21 -> avril-mars | BA19: ='1. IDENTITÉ'!$B$22 -> 0 | BB19: ='1. IDENTITÉ'!$B$23 -> 0.35
B20: =IF('1. IDENTITÉ'!$B$11<>0,'1. IDENTITÉ'!$B$11,IF(ISERROR(VLOOKUP(Transition!E20,ListeMO!$B$3:$C$133,2,FALSE)),"",VLOOKUP(Transition!E20,ListeMO!$B$3:$C$133,2,FALSE))) ->  | C20: 2021-2022 | D20: ='1. IDENTITÉ'!$B$12 -> 0 | E20: ='1. IDENTITÉ'!$B$10 -> NOM DE L'ENTITÉ | J20: 0 | K20: 0 | M20: ='1. IDENTITÉ'!$B$13 -> 0 | N20: ='1. IDENTITÉ'!$B$24 -> 0 | O20: ='1. IDENTITÉ'!$B$25 -> 0 | AE20: -2021-2022 | AO20: X | AS20: ='1. IDENTITÉ'!$B$14 -> 0 | AT20: ='1. IDENTITÉ'!$B$15 -> 0 | AU20: ='1. IDENTITÉ'!$B$16 -> 0 | AV20: ='1. IDENTITÉ'!$B$17 -> 0 | AW20: ='1. IDENTITÉ'!$B$18 -> 0 | AX20: ='1. IDENTITÉ'!$B$19 -> 0 | AY20: ='1. IDENTITÉ'!$B$20 -> 0 | AZ20: ='1. IDENTITÉ'!$B$21 -> avril-mars | BA20: ='1. IDENTITÉ'!$B$22 -> 0 | BB20: ='1. IDENTITÉ'!$B$23 -> 0.35
B21: =IF('1. IDENTITÉ'!$B$11<>0,'1. IDENTITÉ'!$B$11,IF(ISERROR(VLOOKUP(Transition!E21,ListeMO!$B$3:$C$133,2,FALSE)),"",VLOOKUP(Transition!E21,ListeMO!$B$3:$C$133,2,FALSE))) ->  | C21: 2022-2023 | D21: ='1. IDENTITÉ'!$B$12 -> 0 | E21: ='1. IDENTITÉ'!$B$10 -> NOM DE L'ENTITÉ | J21: 0 | K21: 0 | M21: ='1. IDENTITÉ'!$B$13 -> 0 | N21: ='1. IDENTITÉ'!$B$24 -> 0 | O21: ='1. IDENTITÉ'!$B$25 -> 0 | AE21: -2022-2023 | AO21: X | AS21: ='1. IDENTITÉ'!$B$14 -> 0 | AT21: ='1. IDENTITÉ'!$B$15 -> 0 | AU21: ='1. IDENTITÉ'!$B$16 -> 0 | AV21: ='1. IDENTITÉ'!$B$17 -> 0 | AW21: ='1. IDENTITÉ'!$B$18 -> 0 | AX21: ='1. IDENTITÉ'!$B$19 -> 0 | AY21: ='1. IDENTITÉ'!$B$20 -> 0 | AZ21: ='1. IDENTITÉ'!$B$21 -> avril-mars | BA21: ='1. IDENTITÉ'!$B$22 -> 0 | BB21: ='1. IDENTITÉ'!$B$23 -> 0.35
B22: =IF('1. IDENTITÉ'!$B$11<>0,'1. IDENTITÉ'!$B$11,IF(ISERROR(VLOOKUP(Transition!E22,ListeMO!$B$3:$C$133,2,FALSE)),"",VLOOKUP(Transition!E22,ListeMO!$B$3:$C$133,2,FALSE))) ->  | C22: 2023-2024 | D22: ='1. IDENTITÉ'!$B$12 -> 0 | E22: ='1. IDENTITÉ'!$B$10 -> NOM DE L'ENTITÉ | J22: 0 | K22: 0 | M22: ='1. IDENTITÉ'!$B$13 -> 0 | N22: ='1. IDENTITÉ'!$B$24 -> 0 | O22: ='1. IDENTITÉ'!$B$25 -> 0 | AE22: -2023-2024 | AO22: X | AS22: ='1. IDENTITÉ'!$B$14 -> 0 | AT22: ='1. IDENTITÉ'!$B$15 -> 0 | AU22: ='1. IDENTITÉ'!$B$16 -> 0 | AV22: ='1. IDENTITÉ'!$B$17 -> 0 | AW22: ='1. IDENTITÉ'!$B$18 -> 0 | AX22: ='1. IDENTITÉ'!$B$19 -> 0 | AY22: ='1. IDENTITÉ'!$B$20 -> 0 | AZ22: ='1. IDENTITÉ'!$B$21 -> avril-mars | BA22: ='1. IDENTITÉ'!$B$22 -> 0 | BB22: ='1. IDENTITÉ'!$B$23 -> 0.35
B23: =IF('1. IDENTITÉ'!$B$11<>0,'1. IDENTITÉ'!$B$11,IF(ISERROR(VLOOKUP(Transition!E23,ListeMO!$B$3:$C$133,2,FALSE)),"",VLOOKUP(Transition!E23,ListeMO!$B$3:$C$133,2,FALSE))) ->  | C23: 2024-2025 | D23: ='1. IDENTITÉ'!$B$12 -> 0 | E23: ='1. IDENTITÉ'!$B$10 -> NOM DE L'ENTITÉ | J23: 0 | K23: 0 | M23: ='1. IDENTITÉ'!$B$13 -> 0 | N23: ='1. IDENTITÉ'!$B$24 -> 0 | O23: ='1. IDENTITÉ'!$B$25 -> 0 | AE23: -2024-2025 | AO23: X | AS23: ='1. IDENTITÉ'!$B$14 -> 0 | AT23: ='1. IDENTITÉ'!$B$15 -> 0 | AU23: ='1. IDENTITÉ'!$B$16 -> 0 | AV23: ='1. IDENTITÉ'!$B$17 -> 0 | AW23: ='1. IDENTITÉ'!$B$18 -> 0 | AX23: ='1. IDENTITÉ'!$B$19 -> 0 | AY23: ='1. IDENTITÉ'!$B$20 -> 0 | AZ23: ='1. IDENTITÉ'!$B$21 -> avril-mars | BA23: ='1. IDENTITÉ'!$B$22 -> 0 | BB23: ='1. IDENTITÉ'!$B$23 -> 0.35
B24: =IF('1. IDENTITÉ'!$B$11<>0,'1. IDENTITÉ'!$B$11,IF(ISERROR(VLOOKUP(Transition!E24,ListeMO!$B$3:$C$133,2,FALSE)),"",VLOOKUP(Transition!E24,ListeMO!$B$3:$C$133,2,FALSE))) ->  | C24: 2025-2026 | D24: ='1. IDENTITÉ'!$B$12 -> 0 | E24: ='1. IDENTITÉ'!$B$10 -> NOM DE L'ENTITÉ | J24: 0 | K24: 0 | M24: ='1. IDENTITÉ'!$B$13 -> 0 | N24: ='1. IDENTITÉ'!$B$24 -> 0 | O24: ='1. IDENTITÉ'!$B$25 -> 0 | AE24: -2025-2026 | AO24: X | AS24: ='1. IDENTITÉ'!$B$14 -> 0 | AT24: ='1. IDENTITÉ'!$B$15 -> 0 | AU24: ='1. IDENTITÉ'!$B$16 -> 0 | AV24: ='1. IDENTITÉ'!$B$17 -> 0 | AW24: ='1. IDENTITÉ'!$B$18 -> 0 | AX24: ='1. IDENTITÉ'!$B$19 -> 0 | AY24: ='1. IDENTITÉ'!$B$20 -> 0 | AZ24: ='1. IDENTITÉ'!$B$21 -> avril-mars | BA24: ='1. IDENTITÉ'!$B$22 -> 0 | BB24: ='1. IDENTITÉ'!$B$23 -> 0.35
B25: =IF('1. IDENTITÉ'!$B$11<>0,'1. IDENTITÉ'!$B$11,IF(ISERROR(VLOOKUP(Transition!E25,ListeMO!$B$3:$C$133,2,FALSE)),"",VLOOKUP(Transition!E25,ListeMO!$B$3:$C$133,2,FALSE))) ->  | C25: 2026-2027 | D25: ='1. IDENTITÉ'!$B$12 -> 0 | E25: ='1. IDENTITÉ'!$B$10 -> NOM DE L'ENTITÉ | J25: 0 | K25: 0 | M25: ='1. IDENTITÉ'!$B$13 -> 0 | N25: ='1. IDENTITÉ'!$B$24 -> 0 | O25: ='1. IDENTITÉ'!$B$25 -> 0 | AE25: -2026-2027 | AO25: X | AS25: ='1. IDENTITÉ'!$B$14 -> 0 | AT25: ='1. IDENTITÉ'!$B$15 -> 0 | AU25: ='1. IDENTITÉ'!$B$16 -> 0 | AV25: ='1. IDENTITÉ'!$B$17 -> 0 | AW25: ='1. IDENTITÉ'!$B$18 -> 0 | AX25: ='1. IDENTITÉ'!$B$19 -> 0 | AY25: ='1. IDENTITÉ'!$B$20 -> 0 | AZ25: ='1. IDENTITÉ'!$B$21 -> avril-mars | BA25: ='1. IDENTITÉ'!$B$22 -> 0 | BB25: ='1. IDENTITÉ'!$B$23 -> 0.35
B26: =IF('1. IDENTITÉ'!$B$11<>0,'1. IDENTITÉ'!$B$11,IF(ISERROR(VLOOKUP(Transition!E26,ListeMO!$B$3:$C$133,2,FALSE)),"",VLOOKUP(Transition!E26,ListeMO!$B$3:$C$133,2,FALSE))) ->  | C26: 2027-2028 | D26: ='1. IDENTITÉ'!$B$12 -> 0 | E26: ='1. IDENTITÉ'!$B$10 -> NOM DE L'ENTITÉ | J26: 0 | K26: 0 | M26: ='1. IDENTITÉ'!$B$13 -> 0 | N26: ='1. IDENTITÉ'!$B$24 -> 0 | O26: ='1. IDENTITÉ'!$B$25 -> 0 | AE26: -2027-2028 | AO26: X | AS26: ='1. IDENTITÉ'!$B$14 -> 0 | AT26: ='1. IDENTITÉ'!$B$15 -> 0 | AU26: ='1. IDENTITÉ'!$B$16 -> 0 | AV26: ='1. IDENTITÉ'!$B$17 -> 0 | AW26: ='1. IDENTITÉ'!$B$18 -> 0 | AX26: ='1. IDENTITÉ'!$B$19 -> 0 | AY26: ='1. IDENTITÉ'!$B$20 -> 0 | AZ26: ='1. IDENTITÉ'!$B$21 -> avril-mars | BA26: ='1. IDENTITÉ'!$B$22 -> 0 | BB26: ='1. IDENTITÉ'!$B$23 -> 0.35
B27: =IF('1. IDENTITÉ'!$B$11<>0,'1. IDENTITÉ'!$B$11,IF(ISERROR(VLOOKUP(Transition!E27,ListeMO!$B$3:$C$133,2,FALSE)),"",VLOOKUP(Transition!E27,ListeMO!$B$3:$C$133,2,FALSE))) ->  | C27: 2028-2029 | D27: ='1. IDENTITÉ'!$B$12 -> 0 | E27: ='1. IDENTITÉ'!$B$10 -> NOM DE L'ENTITÉ | J27: 0 | K27: 0 | M27: ='1. IDENTITÉ'!$B$13 -> 0 | N27: ='1. IDENTITÉ'!$B$24 -> 0 | O27: ='1. IDENTITÉ'!$B$25 -> 0 | AE27: -2028-2029 | AO27: X | AS27: ='1. IDENTITÉ'!$B$14 -> 0 | AT27: ='1. IDENTITÉ'!$B$15 -> 0 | AU27: ='1. IDENTITÉ'!$B$16 -> 0 | AV27: ='1. IDENTITÉ'!$B$17 -> 0 | AW27: ='1. IDENTITÉ'!$B$18 -> 0 | AX27: ='1. IDENTITÉ'!$B$19 -> 0 | AY27: ='1. IDENTITÉ'!$B$20 -> 0 | AZ27: ='1. IDENTITÉ'!$B$21 -> avril-mars | BA27: ='1. IDENTITÉ'!$B$22 -> 0 | BB27: ='1. IDENTITÉ'!$B$23 -> 0.35
B28: =IF('1. IDENTITÉ'!$B$11<>0,'1. IDENTITÉ'!$B$11,IF(ISERROR(VLOOKUP(Transition!E28,ListeMO!$B$3:$C$133,2,FALSE)),"",VLOOKUP(Transition!E28,ListeMO!$B$3:$C$133,2,FALSE))) ->  | C28: 2029-2030 | D28: ='1. IDENTITÉ'!$B$12 -> 0 | E28: ='1. IDENTITÉ'!$B$10 -> NOM DE L'ENTITÉ | J28: 0 | K28: 0 | M28: ='1. IDENTITÉ'!$B$13 -> 0 | N28: ='1. IDENTITÉ'!$B$24 -> 0 | O28: ='1. IDENTITÉ'!$B$25 -> 0 | AE28: -2029-2030 | AO28: X | AS28: ='1. IDENTITÉ'!$B$14 -> 0 | AT28: ='1. IDENTITÉ'!$B$15 -> 0 | AU28: ='1. IDENTITÉ'!$B$16 -> 0 | AV28: ='1. IDENTITÉ'!$B$17 -> 0 | AW28: ='1. IDENTITÉ'!$B$18 -> 0 | AX28: ='1. IDENTITÉ'!$B$19 -> 0 | AY28: ='1. IDENTITÉ'!$B$20 -> 0 | AZ28: ='1. IDENTITÉ'!$B$21 -> avril-mars | BA28: ='1. IDENTITÉ'!$B$22 -> 0 | BB28: ='1. IDENTITÉ'!$B$23 -> 0.35
B31: ='1. IDENTITÉ'!C16 -> 0 | C31: ='1. IDENTITÉ'!E16 -> 0 | D31: ='1. IDENTITÉ'!F16 -> 0
B32: =RÉSUMÉ!A1 -> 0 | C32: =RÉSUMÉ!B1 -> TOTAL | D32: =RÉSUMÉ!C1 -> 0 | E32: =RÉSUMÉ!D1 -> 0 | F32: =RÉSUMÉ!E1 -> Intensité énergétique | G32: =RÉSUMÉ!F1 -> 0 | H32: =RÉSUMÉ!G1 -> 0 | I32: =RÉSUMÉ!H1 -> GES | J32: =RÉSUMÉ!I1 -> 0 | K32: =RÉSUMÉ!J1 -> Économie d'énergie | L32: =RÉSUMÉ!K1 -> 0 | Q32: =RÉSUMÉ!Q1 -> Consommation électrique | R32: =RÉSUMÉ!R1 -> 0 | X32: =RÉSUMÉ!S1 -> Gaz naturel | Y32: =RÉSUMÉ!T1 -> 0 | AE32: =RÉSUMÉ!U1 -> Mazout n°2 | AF32: =RÉSUMÉ!V1 -> 0 | AL32: =RÉSUMÉ!W1 -> Mazout n°6 | AM32: =RÉSUMÉ!X1 -> 0 | AS32: Diesel génératrice | AZ32: =RÉSUMÉ!AA1 -> Propane | BA32: =RÉSUMÉ!AB1 -> 0 | BG32: =RÉSUMÉ!AC1 -> Résidus de bois (8 % d'humidité) | BH32: =RÉSUMÉ!AD1 -> 0 | BN32: =RÉSUMÉ!AE1 -> Résidus de bois (35 % d'humidité) | BO32: =RÉSUMÉ!AF1 -> 0 | BU32: Vapeur | CB32: Eau refroidie | CI32: Eau chaude | CP32: =RÉSUMÉ!AM1 -> DJC | CQ32: =RÉSUMÉ!AN1 -> Superficie contient des surfaces louées | CR32: =RÉSUMÉ!AO1 -> Valeurs de consommation proviennent de surfaces des surfaces louées | CS32: =RÉSUMÉ!AP1 -> Projet(s) modifiant la superficie fait(s) lors de l'année de suivi | CT32: =RÉSUMÉ!AQ1 -> Taxes de ventes inclues dans le montant dépensé en énergie | CU32: =RÉSUMÉ!AR1 -> Murs extérieurs exclus de la superficie | DE32: =RÉSUMÉ!L1 -> Économie de coûts | DF32: =RÉSUMÉ!M1 -> 0 | DG32: =RÉSUMÉ!N1 -> Économie de GES | DH32: =RÉSUMÉ!O1 -> Superficie | DI32: =RÉSUMÉ!P1 -> Nombre de bâtiments
B33: =RÉSUMÉ!A2 -> 0 | C33: =RÉSUMÉ!B2 -> [GJ réel] | D33: =RÉSUMÉ!C2 -> [GJ 09-10 ajusté] | E33: =RÉSUMÉ!D2 -> [$ réel] | F33: =RÉSUMÉ!E2 -> [GJ réel/m²] | G33: =RÉSUMÉ!F2 -> [GJ 09-10 ajusté/m²] | H33: =RÉSUMÉ!G2 -> [$ réel/m²] | I33: =RÉSUMÉ!H2 -> [t éq. CO2] | J33: =RÉSUMÉ!I2 -> [kg éq. CO2/m²] | K33: =RÉSUMÉ!J2 -> [GJ ajusté/m²] | L33: =RÉSUMÉ!K2 -> [%] | Q33: =RÉSUMÉ!Q2 -> [kWh] | R33: =RÉSUMÉ!R2 -> [$] | X33: =RÉSUMÉ!S2 -> [m³] | Y33: =RÉSUMÉ!T2 -> [$] | AE33: =RÉSUMÉ!U2 -> [l] | AF33: =RÉSUMÉ!V2 -> [$] | AL33: =RÉSUMÉ!W2 -> [l] | AM33: =RÉSUMÉ!X2 -> [$] | AS33: [l] | AT33: [$] | AZ33: =RÉSUMÉ!AA2 -> [l] | BA33: =RÉSUMÉ!AB2 -> [$] | BG33: =RÉSUMÉ!AC2 -> [1000 kg MG] | BH33: =RÉSUMÉ!AD2 -> [$] | BN33: =RÉSUMÉ!AE2 -> [1000 kg MG] | BO33: =RÉSUMÉ!AF2 -> [$] | BU33: =RÉSUMÉ!AG2 -> [lbs] | BV33: =RÉSUMÉ!AH2 -> [$] | CB33: =RÉSUMÉ!AI2 -> [MBTU] | CC33: =RÉSUMÉ!AJ2 -> [$] | CI33: =RÉSUMÉ!AK2 -> [MBTU] | CJ33: =RÉSUMÉ!AL2 -> [$] | CP33: =RÉSUMÉ!AM2 -> [° C] | CQ33: =RÉSUMÉ!AN2 -> [VRAI/FAUX] | CR33: =RÉSUMÉ!AO2 -> [VRAI/FAUX] | CS33: =RÉSUMÉ!AP2 -> [VRAI/FAUX] | CT33: =RÉSUMÉ!AQ2 -> [VRAI/FAUX] | CU33: =RÉSUMÉ!AR2 -> [VRAI/FAUX] | DE33: =RÉSUMÉ!L2 -> [$ réel/m²] | DF33: =RÉSUMÉ!M2 -> [%] | DG33: =RÉSUMÉ!N2 -> [t éq. CO2] | DH33: =RÉSUMÉ!O2 -> [m²] | DI33: =RÉSUMÉ!P2 -> 0
B34: =RÉSUMÉ!A3 -> s | C34: =RÉSUMÉ!B3 ->  | D34: =RÉSUMÉ!C3 -> 0 | E34: =RÉSUMÉ!D3 ->  | F34: =RÉSUMÉ!E3 -> 0 | G34: =RÉSUMÉ!F3 -> 0 | H34: =RÉSUMÉ!G3 -> 0 | I34: =RÉSUMÉ!H3 ->  | J34: =RÉSUMÉ!I3 -> 0 | K34: =RÉSUMÉ!J3 -> 0 | L34: =RÉSUMÉ!K3 -> 0 | Q34: =RÉSUMÉ!Q3 ->  | R34: =RÉSUMÉ!R3 ->  | X34: =RÉSUMÉ!S3 ->  | Y34: =RÉSUMÉ!T3 ->  | AE34: =RÉSUMÉ!U3 ->  | AF34: =RÉSUMÉ!V3 ->  | AL34: =RÉSUMÉ!W3 ->  | AM34: =RÉSUMÉ!X3 ->  | AS34: =RÉSUMÉ!Y3 -> 0 | AT34: =RÉSUMÉ!Z3 -> 0 | AZ34: =RÉSUMÉ!AA3 ->  | BA34: =RÉSUMÉ!AB3 ->  | BG34: =RÉSUMÉ!AC3 ->  | BH34: =RÉSUMÉ!AD3 ->  | BN34: =RÉSUMÉ!AE3 ->  | BO34: =RÉSUMÉ!AF3 ->  | BU34: =RÉSUMÉ!AG3 -> 0 | BV34: =RÉSUMÉ!AH3 -> 0 | CB34: =RÉSUMÉ!AI3 -> 0 | CC34: =RÉSUMÉ!AJ3 -> 0 | CI34: =RÉSUMÉ!AK3 -> 0 | CJ34: =RÉSUMÉ!AL3 -> 0 | CP34: =RÉSUMÉ!AM3 ->  | CQ34: =RÉSUMÉ!AN3 -> 0 | CR34: =RÉSUMÉ!AO3 -> 0 | CS34: =RÉSUMÉ!AP3 -> 0 | CT34: =RÉSUMÉ!AQ3 -> 0 | CU34: =RÉSUMÉ!AR3 -> 0 | DE34: =RÉSUMÉ!L3 -> 0 | DF34: =RÉSUMÉ!M3 -> 0 | DG34: =RÉSUMÉ!N3 -> 0 | DH34: =RÉSUMÉ!O3 -> 0 | DI34: =RÉSUMÉ!P3 -> 
B35: =RÉSUMÉ!A4 -> 2003-2004 | C35: =RÉSUMÉ!B4 ->  | D35: =RÉSUMÉ!C4 -> 0 | E35: =RÉSUMÉ!D4 ->  | F35: =RÉSUMÉ!E4 -> 0 | G35: =RÉSUMÉ!F4 -> 0 | H35: =RÉSUMÉ!G4 -> 0 | I35: =RÉSUMÉ!H4 ->  | J35: =RÉSUMÉ!I4 -> 0 | K35: =RÉSUMÉ!J4 -> 0 | L35: =RÉSUMÉ!K4 -> 0 | Q35: =RÉSUMÉ!Q4 ->  | R35: =RÉSUMÉ!R4 ->  | X35: =RÉSUMÉ!S4 ->  | Y35: =RÉSUMÉ!T4 ->  | AE35: =RÉSUMÉ!U4 ->  | AF35: =RÉSUMÉ!V4 ->  | AL35: =RÉSUMÉ!W4 ->  | AM35: =RÉSUMÉ!X4 ->  | AS35: =RÉSUMÉ!Y4 -> 0 | AT35: =RÉSUMÉ!Z4 -> 0 | AZ35: =RÉSUMÉ!AA4 ->  | BA35: =RÉSUMÉ!AB4 ->  | BG35: =RÉSUMÉ!AC4 ->  | BH35: =RÉSUMÉ!AD4 ->  | BN35: =RÉSUMÉ!AE4 ->  | BO35: =RÉSUMÉ!AF4 ->  | BU35: =RÉSUMÉ!AG4 -> 0 | BV35: =RÉSUMÉ!AH4 -> 0 | CB35: =RÉSUMÉ!AI4 -> 0 | CC35: =RÉSUMÉ!AJ4 -> 0 | CI35: =RÉSUMÉ!AK4 -> 0 | CJ35: =RÉSUMÉ!AL4 -> 0 | CP35: =RÉSUMÉ!AM4 ->  | CQ35: =RÉSUMÉ!AN4 -> 0 | CR35: =RÉSUMÉ!AO4 -> 0 | CS35: =RÉSUMÉ!AP4 -> 0 | CT35: =RÉSUMÉ!AQ4 -> 0 | CU35: =RÉSUMÉ!AR4 -> 0 | DE35: =RÉSUMÉ!L4 -> 0 | DF35: =RÉSUMÉ!M4 -> 0 | DG35: =RÉSUMÉ!N4 -> 0 | DH35: =RÉSUMÉ!O4 -> 0 | DI35: =RÉSUMÉ!P4 -> 
B36: =RÉSUMÉ!A5 -> 2004-2005 | C36: =RÉSUMÉ!B5 ->  | D36: =RÉSUMÉ!C5 -> 0 | E36: =RÉSUMÉ!D5 ->  | F36: =RÉSUMÉ!E5 -> 0 | G36: =RÉSUMÉ!F5 -> 0 | H36: =RÉSUMÉ!G5 -> 0 | I36: =RÉSUMÉ!H5 ->  | J36: =RÉSUMÉ!I5 -> 0 | K36: =RÉSUMÉ!J5 -> 0 | L36: =RÉSUMÉ!K5 -> 0 | Q36: =RÉSUMÉ!Q5 ->  | R36: =RÉSUMÉ!R5 ->  | X36: =RÉSUMÉ!S5 ->  | Y36: =RÉSUMÉ!T5 ->  | AE36: =RÉSUMÉ!U5 ->  | AF36: =RÉSUMÉ!V5 ->  | AL36: =RÉSUMÉ!W5 ->  | AM36: =RÉSUMÉ!X5 ->  | AS36: =RÉSUMÉ!Y5 -> 0 | AT36: =RÉSUMÉ!Z5 -> 0 | AZ36: =RÉSUMÉ!AA5 ->  | BA36: =RÉSUMÉ!AB5 ->  | BG36: =RÉSUMÉ!AC5 ->  | BH36: =RÉSUMÉ!AD5 ->  | BN36: =RÉSUMÉ!AE5 ->  | BO36: =RÉSUMÉ!AF5 ->  | BU36: =RÉSUMÉ!AG5 -> 0 | BV36: =RÉSUMÉ!AH5 -> 0 | CB36: =RÉSUMÉ!AI5 -> 0 | CC36: =RÉSUMÉ!AJ5 -> 0 | CI36: =RÉSUMÉ!AK5 -> 0 | CJ36: =RÉSUMÉ!AL5 -> 0 | CP36: =RÉSUMÉ!AM5 ->  | CQ36: =RÉSUMÉ!AN5 -> 0 | CR36: =RÉSUMÉ!AO5 -> 0 | CS36: =RÉSUMÉ!AP5 -> 0 | CT36: =RÉSUMÉ!AQ5 -> 0 | CU36: =RÉSUMÉ!AR5 -> 0 | DE36: =RÉSUMÉ!L5 -> 0 | DF36: =RÉSUMÉ!M5 -> 0 | DG36: =RÉSUMÉ!N5 -> 0 | DH36: =RÉSUMÉ!O5 -> 0 | DI36: =RÉSUMÉ!P5 -> 
B37: =RÉSUMÉ!A6 -> 2005-2006 | C37: =RÉSUMÉ!B6 ->  | D37: =RÉSUMÉ!C6 -> 0 | E37: =RÉSUMÉ!D6 ->  | F37: =RÉSUMÉ!E6 -> 0 | G37: =RÉSUMÉ!F6 -> 0 | H37: =RÉSUMÉ!G6 -> 0 | I37: =RÉSUMÉ!H6 ->  | J37: =RÉSUMÉ!I6 -> 0 | K37: =RÉSUMÉ!J6 -> 0 | L37: =RÉSUMÉ!K6 -> 0 | Q37: =RÉSUMÉ!Q6 ->  | R37: =RÉSUMÉ!R6 ->  | X37: =RÉSUMÉ!S6 ->  | Y37: =RÉSUMÉ!T6 ->  | AE37: =RÉSUMÉ!U6 ->  | AF37: =RÉSUMÉ!V6 ->  | AL37: =RÉSUMÉ!W6 ->  | AM37: =RÉSUMÉ!X6 ->  | AS37: =RÉSUMÉ!Y6 -> 0 | AT37: =RÉSUMÉ!Z6 -> 0 | AZ37: =RÉSUMÉ!AA6 ->  | BA37: =RÉSUMÉ!AB6 ->  | BG37: =RÉSUMÉ!AC6 ->  | BH37: =RÉSUMÉ!AD6 ->  | BN37: =RÉSUMÉ!AE6 ->  | BO37: =RÉSUMÉ!AF6 ->  | BU37: =RÉSUMÉ!AG6 -> 0 | BV37: =RÉSUMÉ!AH6 -> 0 | CB37: =RÉSUMÉ!AI6 -> 0 | CC37: =RÉSUMÉ!AJ6 -> 0 | CI37: =RÉSUMÉ!AK6 -> 0 | CJ37: =RÉSUMÉ!AL6 -> 0 | CP37: =RÉSUMÉ!AM6 ->  | CQ37: =RÉSUMÉ!AN6 -> 0 | CR37: =RÉSUMÉ!AO6 -> 0 | CS37: =RÉSUMÉ!AP6 -> 0 | CT37: =RÉSUMÉ!AQ6 -> 0 | CU37: =RÉSUMÉ!AR6 -> 0 | DE37: =RÉSUMÉ!L6 -> 0 | DF37: =RÉSUMÉ!M6 -> 0 | DG37: =RÉSUMÉ!N6 -> 0 | DH37: =RÉSUMÉ!O6 -> 0 | DI37: =RÉSUMÉ!P6 -> 
B38: =RÉSUMÉ!A7 -> 2006-2007 | C38: =RÉSUMÉ!B7 ->  | D38: =RÉSUMÉ!C7 -> 0 | E38: =RÉSUMÉ!D7 ->  | F38: =RÉSUMÉ!E7 -> 0 | G38: =RÉSUMÉ!F7 -> 0 | H38: =RÉSUMÉ!G7 -> 0 | I38: =RÉSUMÉ!H7 ->  | J38: =RÉSUMÉ!I7 -> 0 | K38: =RÉSUMÉ!J7 -> 0 | L38: =RÉSUMÉ!K7 -> 0 | Q38: =RÉSUMÉ!Q7 ->  | R38: =RÉSUMÉ!R7 ->  | X38: =RÉSUMÉ!S7 ->  | Y38: =RÉSUMÉ!T7 ->  | AE38: =RÉSUMÉ!U7 ->  | AF38: =RÉSUMÉ!V7 ->  | AL38: =RÉSUMÉ!W7 ->  | AM38: =RÉSUMÉ!X7 ->  | AS38: =RÉSUMÉ!Y7 -> 0 | AT38: =RÉSUMÉ!Z7 -> 0 | AZ38: =RÉSUMÉ!AA7 ->  | BA38: =RÉSUMÉ!AB7 ->  | BG38: =RÉSUMÉ!AC7 ->  | BH38: =RÉSUMÉ!AD7 ->  | BN38: =RÉSUMÉ!AE7 ->  | BO38: =RÉSUMÉ!AF7 ->  | BU38: =RÉSUMÉ!AG7 -> 0 | BV38: =RÉSUMÉ!AH7 -> 0 | CB38: =RÉSUMÉ!AI7 -> 0 | CC38: =RÉSUMÉ!AJ7 -> 0 | CI38: =RÉSUMÉ!AK7 -> 0 | CJ38: =RÉSUMÉ!AL7 -> 0 | CP38: =RÉSUMÉ!AM7 ->  | CQ38: =RÉSUMÉ!AN7 -> 0 | CR38: =RÉSUMÉ!AO7 -> 0 | CS38: =RÉSUMÉ!AP7 -> 0 | CT38: =RÉSUMÉ!AQ7 -> 0 | CU38: =RÉSUMÉ!AR7 -> 0 | DE38: =RÉSUMÉ!L7 -> 0 | DF38: =RÉSUMÉ!M7 -> 0 | DG38: =RÉSUMÉ!N7 -> 0 | DH38: =RÉSUMÉ!O7 -> 0 | DI38: =RÉSUMÉ!P7 -> 
B39: =RÉSUMÉ!A8 -> 2007-2008 | C39: =RÉSUMÉ!B8 ->  | D39: =RÉSUMÉ!C8 -> 0 | E39: =RÉSUMÉ!D8 ->  | F39: =RÉSUMÉ!E8 -> 0 | G39: =RÉSUMÉ!F8 -> 0 | H39: =RÉSUMÉ!G8 -> 0 | I39: =RÉSUMÉ!H8 ->  | J39: =RÉSUMÉ!I8 -> 0 | K39: =RÉSUMÉ!J8 -> 0 | L39: =RÉSUMÉ!K8 -> 0 | Q39: =RÉSUMÉ!Q8 ->  | R39: =RÉSUMÉ!R8 ->  | X39: =RÉSUMÉ!S8 ->  | Y39: =RÉSUMÉ!T8 ->  | AE39: =RÉSUMÉ!U8 ->  | AF39: =RÉSUMÉ!V8 ->  | AL39: =RÉSUMÉ!W8 ->  | AM39: =RÉSUMÉ!X8 ->  | AS39: =RÉSUMÉ!Y8 -> 0 | AT39: =RÉSUMÉ!Z8 -> 0 | AZ39: =RÉSUMÉ!AA8 ->  | BA39: =RÉSUMÉ!AB8 ->  | BG39: =RÉSUMÉ!AC8 ->  | BH39: =RÉSUMÉ!AD8 ->  | BN39: =RÉSUMÉ!AE8 ->  | BO39: =RÉSUMÉ!AF8 ->  | BU39: =RÉSUMÉ!AG8 -> 0 | BV39: =RÉSUMÉ!AH8 -> 0 | CB39: =RÉSUMÉ!AI8 -> 0 | CC39: =RÉSUMÉ!AJ8 -> 0 | CI39: =RÉSUMÉ!AK8 -> 0 | CJ39: =RÉSUMÉ!AL8 -> 0 | CP39: =RÉSUMÉ!AM8 ->  | CQ39: =RÉSUMÉ!AN8 -> 0 | CR39: =RÉSUMÉ!AO8 -> 0 | CS39: =RÉSUMÉ!AP8 -> 0 | CT39: =RÉSUMÉ!AQ8 -> 0 | CU39: =RÉSUMÉ!AR8 -> 0 | DE39: =RÉSUMÉ!L8 -> 0 | DF39: =RÉSUMÉ!M8 -> 0 | DG39: =RÉSUMÉ!N8 -> 0 | DH39: =RÉSUMÉ!O8 -> 0 | DI39: =RÉSUMÉ!P8 -> 
B40: =RÉSUMÉ!A9 -> 2008-2009 | C40: =RÉSUMÉ!B9 ->  | D40: =RÉSUMÉ!C9 -> 0 | E40: =RÉSUMÉ!D9 ->  | F40: =RÉSUMÉ!E9 -> 0 | G40: =RÉSUMÉ!F9 -> 0 | H40: =RÉSUMÉ!G9 -> 0 | I40: =RÉSUMÉ!H9 ->  | J40: =RÉSUMÉ!I9 -> 0 | K40: =RÉSUMÉ!J9 -> 0 | L40: =RÉSUMÉ!K9 -> 0 | Q40: =RÉSUMÉ!Q9 ->  | R40: =RÉSUMÉ!R9 ->  | X40: =RÉSUMÉ!S9 ->  | Y40: =RÉSUMÉ!T9 ->  | AE40: =RÉSUMÉ!U9 ->  | AF40: =RÉSUMÉ!V9 ->  | AL40: =RÉSUMÉ!W9 ->  | AM40: =RÉSUMÉ!X9 ->  | AS40: =RÉSUMÉ!Y9 -> 0 | AT40: =RÉSUMÉ!Z9 -> 0 | AZ40: =RÉSUMÉ!AA9 ->  | BA40: =RÉSUMÉ!AB9 ->  | BG40: =RÉSUMÉ!AC9 ->  | BH40: =RÉSUMÉ!AD9 ->  | BN40: =RÉSUMÉ!AE9 ->  | BO40: =RÉSUMÉ!AF9 ->  | BU40: =RÉSUMÉ!AG9 -> 0 | BV40: =RÉSUMÉ!AH9 -> 0 | CB40: =RÉSUMÉ!AI9 -> 0 | CC40: =RÉSUMÉ!AJ9 -> 0 | CI40: =RÉSUMÉ!AK9 -> 0 | CJ40: =RÉSUMÉ!AL9 -> 0 | CP40: =RÉSUMÉ!AM9 ->  | CQ40: =RÉSUMÉ!AN9 -> 0 | CR40: =RÉSUMÉ!AO9 -> 0 | CS40: =RÉSUMÉ!AP9 -> 0 | CT40: =RÉSUMÉ!AQ9 -> 0 | CU40: =RÉSUMÉ!AR9 -> 0 | DE40: =RÉSUMÉ!L9 -> 0 | DF40: =RÉSUMÉ!M9 -> 0 | DG40: =RÉSUMÉ!N9 -> 0 | DH40: =RÉSUMÉ!O9 -> 0 | DI40: =RÉSUMÉ!P9 -> 
B41: =RÉSUMÉ!A10 -> 2009-2010 | C41: =RÉSUMÉ!B10 -> 0 | D41: =RÉSUMÉ!C10 -> 0 | E41: =RÉSUMÉ!D10 -> 0 | F41: =RÉSUMÉ!E10 -> 0 | G41: =RÉSUMÉ!F10 -> 0 | H41: =RÉSUMÉ!G10 -> 0 | I41: =RÉSUMÉ!H10 -> 0 | J41: =RÉSUMÉ!I10 -> 0 | K41: =RÉSUMÉ!J10 -> 0 | L41: =RÉSUMÉ!K10 -> 0 | Q41: =RÉSUMÉ!Q10 -> 0 | R41: =RÉSUMÉ!R10 -> 0 | X41: =RÉSUMÉ!S10 -> 0 | Y41: =RÉSUMÉ!T10 -> 0 | AE41: =RÉSUMÉ!U10 -> 0 | AF41: =RÉSUMÉ!V10 -> 0 | AL41: =RÉSUMÉ!W10 -> 0 | AM41: =RÉSUMÉ!X10 -> 0 | AS41: =RÉSUMÉ!Y10 -> 0 | AT41: =RÉSUMÉ!Z10 -> 0 | AZ41: =RÉSUMÉ!AA10 -> 0 | BA41: =RÉSUMÉ!AB10 -> 0 | BG41: =RÉSUMÉ!AC10 -> 0 | BH41: =RÉSUMÉ!AD10 -> 0 | BN41: =RÉSUMÉ!AE10 -> 0 | BO41: =RÉSUMÉ!AF10 -> 0 | BU41: =RÉSUMÉ!AG10 -> 0 | BV41: =RÉSUMÉ!AH10 -> 0 | CB41: =RÉSUMÉ!AI10 -> 0 | CC41: =RÉSUMÉ!AJ10 -> 0 | CI41: =RÉSUMÉ!AK10 -> 0 | CJ41: =RÉSUMÉ!AL10 -> 0 | CP41: =RÉSUMÉ!AM10 -> 3967.8 | CQ41: =RÉSUMÉ!AN10 -> 0 | CR41: =RÉSUMÉ!AO10 -> 0 | CS41: =RÉSUMÉ!AP10 -> 0 | CT41: =RÉSUMÉ!AQ10 -> 0 | CU41: =RÉSUMÉ!AR10 -> 0 | DE41: =RÉSUMÉ!L10 -> 0 | DF41: =RÉSUMÉ!M10 -> 0 | DG41: =RÉSUMÉ!N10 -> 0 | DH41: =RÉSUMÉ!O10 -> 0 | DI41: =RÉSUMÉ!P10 -> 0
B42: =RÉSUMÉ!A11 -> 2010-2011 | C42: =RÉSUMÉ!B11 -> 0 | D42: =RÉSUMÉ!C11 -> 0 | E42: =RÉSUMÉ!D11 -> 0 | F42: =RÉSUMÉ!E11 -> 0 | G42: =RÉSUMÉ!F11 -> 0 | H42: =RÉSUMÉ!G11 -> 0 | I42: =RÉSUMÉ!H11 -> 0 | J42: =RÉSUMÉ!I11 -> 0 | K42: =RÉSUMÉ!J11 -> 0 | L42: =RÉSUMÉ!K11 -> 0 | Q42: =RÉSUMÉ!Q11 -> 0 | R42: =RÉSUMÉ!R11 -> 0 | X42: =RÉSUMÉ!S11 -> 0 | Y42: =RÉSUMÉ!T11 -> 0 | AE42: =RÉSUMÉ!U11 -> 0 | AF42: =RÉSUMÉ!V11 -> 0 | AL42: =RÉSUMÉ!W11 -> 0 | AM42: =RÉSUMÉ!X11 -> 0 | AS42: =RÉSUMÉ!Y11 -> 0 | AT42: =RÉSUMÉ!Z11 -> 0 | AZ42: =RÉSUMÉ!AA11 -> 0 | BA42: =RÉSUMÉ!AB11 -> 0 | BG42: =RÉSUMÉ!AC11 -> 0 | BH42: =RÉSUMÉ!AD11 -> 0 | BN42: =RÉSUMÉ!AE11 -> 0 | BO42: =RÉSUMÉ!AF11 -> 0 | BU42: =RÉSUMÉ!AG11 -> 0 | BV42: =RÉSUMÉ!AH11 -> 0 | CB42: =RÉSUMÉ!AI11 -> 0 | CC42: =RÉSUMÉ!AJ11 -> 0 | CI42: =RÉSUMÉ!AK11 -> 0 | CJ42: =RÉSUMÉ!AL11 -> 0 | CP42: =RÉSUMÉ!AM11 -> 4187.4 | CQ42: =RÉSUMÉ!AN11 -> 0 | CR42: =RÉSUMÉ!AO11 -> 0 | CS42: =RÉSUMÉ!AP11 -> 0 | CT42: =RÉSUMÉ!AQ11 -> 0 | CU42: =RÉSUMÉ!AR11 -> 0 | DE42: =RÉSUMÉ!L11 -> 0 | DF42: =RÉSUMÉ!M11 -> 0 | DG42: =RÉSUMÉ!N11 -> 0 | DH42: =RÉSUMÉ!O11 -> 0 | DI42: =RÉSUMÉ!P11 -> 0
B43: =RÉSUMÉ!A12 -> 2011-2012 | C43: =RÉSUMÉ!B12 -> 0 | D43: =RÉSUMÉ!C12 -> 0 | E43: =RÉSUMÉ!D12 -> 0 | F43: =RÉSUMÉ!E12 -> 0 | G43: =RÉSUMÉ!F12 -> 0 | H43: =RÉSUMÉ!G12 -> 0 | I43: =RÉSUMÉ!H12 -> 0 | J43: =RÉSUMÉ!I12 -> 0 | K43: =RÉSUMÉ!J12 -> 0 | L43: =RÉSUMÉ!K12 -> 0 | Q43: =RÉSUMÉ!Q12 -> 0 | R43: =RÉSUMÉ!R12 -> 0 | X43: =RÉSUMÉ!S12 -> 0 | Y43: =RÉSUMÉ!T12 -> 0 | AE43: =RÉSUMÉ!U12 -> 0 | AF43: =RÉSUMÉ!V12 -> 0 | AL43: =RÉSUMÉ!W12 -> 0 | AM43: =RÉSUMÉ!X12 -> 0 | AS43: =RÉSUMÉ!Y12 -> 0 | AT43: =RÉSUMÉ!Z12 -> 0 | AZ43: =RÉSUMÉ!AA12 -> 0 | BA43: =RÉSUMÉ!AB12 -> 0 | BG43: =RÉSUMÉ!AC12 -> 0 | BH43: =RÉSUMÉ!AD12 -> 0 | BN43: =RÉSUMÉ!AE12 -> 0 | BO43: =RÉSUMÉ!AF12 -> 0 | BU43: =RÉSUMÉ!AG12 -> 0 | BV43: =RÉSUMÉ!AH12 -> 0 | CB43: =RÉSUMÉ!AI12 -> 0 | CC43: =RÉSUMÉ!AJ12 -> 0 | CI43: =RÉSUMÉ!AK12 -> 0 | CJ43: =RÉSUMÉ!AL12 -> 0 | CP43: =RÉSUMÉ!AM12 -> 3730 | CQ43: =RÉSUMÉ!AN12 -> 0 | CR43: =RÉSUMÉ!AO12 -> 0 | CS43: =RÉSUMÉ!AP12 -> 0 | CT43: =RÉSUMÉ!AQ12 -> 0 | CU43: =RÉSUMÉ!AR12 -> 0 | DE43: =RÉSUMÉ!L12 -> 0 | DF43: =RÉSUMÉ!M12 -> 0 | DG43: =RÉSUMÉ!N12 -> 0 | DH43: =RÉSUMÉ!O12 -> 0 | DI43: =RÉSUMÉ!P12 -> 0
B44: =RÉSUMÉ!A13 -> 2012-2013 | C44: =RÉSUMÉ!B13 -> 0 | D44: =RÉSUMÉ!C13 -> 0 | E44: =RÉSUMÉ!D13 -> 0 | F44: =RÉSUMÉ!E13 -> 0 | G44: =RÉSUMÉ!F13 -> 0 | H44: =RÉSUMÉ!G13 -> 0 | I44: =RÉSUMÉ!H13 -> 0 | J44: =RÉSUMÉ!I13 -> 0 | K44: =RÉSUMÉ!J13 -> 0 | L44: =RÉSUMÉ!K13 -> 0 | Q44: =RÉSUMÉ!Q13 -> 0 | R44: =RÉSUMÉ!R13 -> 0 | X44: =RÉSUMÉ!S13 -> 0 | Y44: =RÉSUMÉ!T13 -> 0 | AE44: =RÉSUMÉ!U13 -> 0 | AF44: =RÉSUMÉ!V13 -> 0 | AL44: =RÉSUMÉ!W13 -> 0 | AM44: =RÉSUMÉ!X13 -> 0 | AS44: =RÉSUMÉ!Y13 -> 0 | AT44: =RÉSUMÉ!Z13 -> 0 | AZ44: =RÉSUMÉ!AA13 -> 0 | BA44: =RÉSUMÉ!AB13 -> 0 | BG44: =RÉSUMÉ!AC13 -> 0 | BH44: =RÉSUMÉ!AD13 -> 0 | BN44: =RÉSUMÉ!AE13 -> 0 | BO44: =RÉSUMÉ!AF13 -> 0 | BU44: =RÉSUMÉ!AG13 -> 0 | BV44: =RÉSUMÉ!AH13 -> 0 | CB44: =RÉSUMÉ!AI13 -> 0 | CC44: =RÉSUMÉ!AJ13 -> 0 | CI44: =RÉSUMÉ!AK13 -> 0 | CJ44: =RÉSUMÉ!AL13 -> 0 | CP44: =RÉSUMÉ!AM13 -> 4039.4 | CQ44: =RÉSUMÉ!AN13 -> 0 | CR44: =RÉSUMÉ!AO13 -> 0 | CS44: =RÉSUMÉ!AP13 -> 0 | CT44: =RÉSUMÉ!AQ13 -> 0 | CU44: =RÉSUMÉ!AR13 -> 0 | DE44: =RÉSUMÉ!L13 -> 0 | DF44: =RÉSUMÉ!M13 -> 0 | DG44: =RÉSUMÉ!N13 -> 0 | DH44: =RÉSUMÉ!O13 -> 0 | DI44: =RÉSUMÉ!P13 -> 0
B45: =RÉSUMÉ!A14 -> 2013-2014 | C45: =RÉSUMÉ!B14 -> 0 | D45: =RÉSUMÉ!C14 -> 0 | E45: =RÉSUMÉ!D14 -> 0 | F45: =RÉSUMÉ!E14 -> 0 | G45: =RÉSUMÉ!F14 -> 0 | H45: =RÉSUMÉ!G14 -> 0 | I45: =RÉSUMÉ!H14 -> 0 | J45: =RÉSUMÉ!I14 -> 0 | K45: =RÉSUMÉ!J14 -> 0 | L45: =RÉSUMÉ!K14 -> 0 | Q45: =RÉSUMÉ!Q14 -> 0 | R45: =RÉSUMÉ!R14 -> 0 | X45: =RÉSUMÉ!S14 -> 0 | Y45: =RÉSUMÉ!T14 -> 0 | AE45: =RÉSUMÉ!U14 -> 0 | AF45: =RÉSUMÉ!V14 -> 0 | AL45: =RÉSUMÉ!W14 -> 0 | AM45: =RÉSUMÉ!X14 -> 0 | AS45: =RÉSUMÉ!Y14 -> 0 | AT45: =RÉSUMÉ!Z14 -> 0 | AZ45: =RÉSUMÉ!AA14 -> 0 | BA45: =RÉSUMÉ!AB14 -> 0 | BG45: =RÉSUMÉ!AC14 -> 0 | BH45: =RÉSUMÉ!AD14 -> 0 | BN45: =RÉSUMÉ!AE14 -> 0 | BO45: =RÉSUMÉ!AF14 -> 0 | BU45: =RÉSUMÉ!AG14 -> 0 | BV45: =RÉSUMÉ!AH14 -> 0 | CB45: =RÉSUMÉ!AI14 -> 0 | CC45: =RÉSUMÉ!AJ14 -> 0 | CI45: =RÉSUMÉ!AK14 -> 0 | CJ45: =RÉSUMÉ!AL14 -> 0 | CP45: =RÉSUMÉ!AM14 -> 4562.5 | CQ45: =RÉSUMÉ!AN14 -> 0 | CR45: =RÉSUMÉ!AO14 -> 0 | CS45: =RÉSUMÉ!AP14 -> 0 | CT45: =RÉSUMÉ!AQ14 -> 0 | CU45: =RÉSUMÉ!AR14 -> 0 | DE45: =RÉSUMÉ!L14 -> 0 | DF45: =RÉSUMÉ!M14 -> 0 | DG45: =RÉSUMÉ!N14 -> 0 | DH45: =RÉSUMÉ!O14 -> 0 | DI45: =RÉSUMÉ!P14 -> 0
B46: =RÉSUMÉ!A15 -> 2014-2015 | C46: =RÉSUMÉ!B15 -> 0 | D46: =RÉSUMÉ!C15 -> 0 | E46: =RÉSUMÉ!D15 -> 0 | F46: =RÉSUMÉ!E15 -> 0 | G46: =RÉSUMÉ!F15 -> 0 | H46: =RÉSUMÉ!G15 -> 0 | I46: =RÉSUMÉ!H15 -> 0 | J46: =RÉSUMÉ!I15 -> 0 | K46: =RÉSUMÉ!J15 -> 0 | L46: =RÉSUMÉ!K15 -> 0 | O46: x | P46: x | Q46: =RÉSUMÉ!Q15 -> 0 | R46: =RÉSUMÉ!R15 -> 0 | X46: =RÉSUMÉ!S15 -> 0 | Y46: =RÉSUMÉ!T15 -> 0 | AE46: =RÉSUMÉ!U15 -> 0 | AF46: =RÉSUMÉ!V15 -> 0 | AL46: =RÉSUMÉ!W15 -> 0 | AM46: =RÉSUMÉ!X15 -> 0 | AS46: =RÉSUMÉ!Y15 -> 0 | AT46: =RÉSUMÉ!Z15 -> 0 | AZ46: =RÉSUMÉ!AA15 -> 0 | BA46: =RÉSUMÉ!AB15 -> 0 | BG46: =RÉSUMÉ!AC15 -> 0 | BH46: =RÉSUMÉ!AD15 -> 0 | BN46: =RÉSUMÉ!AE15 -> 0 | BO46: =RÉSUMÉ!AF15 -> 0 | BU46: =RÉSUMÉ!AG15 -> 0 | BV46: =RÉSUMÉ!AH15 -> 0 | CB46: =RÉSUMÉ!AI15 -> 0 | CC46: =RÉSUMÉ!AJ15 -> 0 | CI46: =RÉSUMÉ!AK15 -> 0 | CJ46: =RÉSUMÉ!AL15 -> 0 | CP46: =RÉSUMÉ!AM15 -> 4543.1 | CQ46: =IF(RÉSUMÉ!AN15=FALSE,"",RÉSUMÉ!AN15) ->  | CR46: =IF(RÉSUMÉ!AO15=FALSE,"",RÉSUMÉ!AO15) ->  | CS46: =IF(RÉSUMÉ!AP15=FALSE,"",RÉSUMÉ!AP15) ->  | CT46: =IF(RÉSUMÉ!AQ15=FALSE,"",RÉSUMÉ!AQ15) ->  | CU46: =IF(RÉSUMÉ!AR15=FALSE,"",RÉSUMÉ!AR15) ->  | DE46: =RÉSUMÉ!L15 -> 0 | DF46: =RÉSUMÉ!M15 -> 0 | DG46: =RÉSUMÉ!N15 -> 0 | DH46: =RÉSUMÉ!O15 -> 0 | DI46: =RÉSUMÉ!P15 -> 0
B47: =RÉSUMÉ!A16 -> 2015-2016 | C47: =RÉSUMÉ!B16 -> 0 | D47: =RÉSUMÉ!C16 -> 0 | E47: =RÉSUMÉ!D16 -> 0 | F47: =RÉSUMÉ!E16 -> 0 | G47: =RÉSUMÉ!F16 -> 0 | H47: =RÉSUMÉ!G16 -> 0 | I47: =RÉSUMÉ!H16 -> 0 | J47: =RÉSUMÉ!I16 -> 0 | K47: =RÉSUMÉ!J16 -> 0 | L47: =RÉSUMÉ!K16 -> 0 | O47: x | P47: x | Q47: =RÉSUMÉ!Q16 -> 0 | R47: =RÉSUMÉ!R16 -> 0 | X47: =RÉSUMÉ!S16 -> 0 | Y47: =RÉSUMÉ!T16 -> 0 | AE47: =RÉSUMÉ!U16 -> 0 | AF47: =RÉSUMÉ!V16 -> 0 | AL47: =RÉSUMÉ!W16 -> 0 | AM47: =RÉSUMÉ!X16 -> 0 | AS47: =RÉSUMÉ!Y16 -> 0 | AT47: =RÉSUMÉ!Z16 -> 0 | AZ47: =RÉSUMÉ!AA16 -> 0 | BA47: =RÉSUMÉ!AB16 -> 0 | BG47: =RÉSUMÉ!AC16 -> 0 | BH47: =RÉSUMÉ!AD16 -> 0 | BN47: =RÉSUMÉ!AE16 -> 0 | BO47: =RÉSUMÉ!AF16 -> 0 | BU47: =RÉSUMÉ!AG16 -> 0 | BV47: =RÉSUMÉ!AH16 -> 0 | CB47: =RÉSUMÉ!AI16 -> 0 | CC47: =RÉSUMÉ!AJ16 -> 0 | CI47: =RÉSUMÉ!AK16 -> 0 | CJ47: =RÉSUMÉ!AL16 -> 0 | CP47: =RÉSUMÉ!AM16 -> 3611.4 | CQ47: =IF(RÉSUMÉ!AN16=FALSE,"",RÉSUMÉ!AN16) ->  | CR47: =IF(RÉSUMÉ!AO16=FALSE,"",RÉSUMÉ!AO16) ->  | CS47: =IF(RÉSUMÉ!AP16=FALSE,"",RÉSUMÉ!AP16) ->  | CT47: =IF(RÉSUMÉ!AQ16=FALSE,"",RÉSUMÉ!AQ16) ->  | CU47: =IF(RÉSUMÉ!AR16=FALSE,"",RÉSUMÉ!AR16) ->  | DE47: =RÉSUMÉ!L16 -> 0 | DF47: =RÉSUMÉ!M16 -> 0 | DG47: =RÉSUMÉ!N16 -> 0 | DH47: =RÉSUMÉ!O16 -> 0 | DI47: =RÉSUMÉ!P16 -> 0
B48: =RÉSUMÉ!A17 -> 2016-2017 | C48: =RÉSUMÉ!B17 -> 0 | D48: =RÉSUMÉ!C17 -> 0 | E48: =RÉSUMÉ!D17 -> 0 | F48: =RÉSUMÉ!E17 -> 0 | G48: =RÉSUMÉ!F17 -> 0 | H48: =RÉSUMÉ!G17 -> 0 | I48: =RÉSUMÉ!H17 -> 0 | J48: =RÉSUMÉ!I17 -> 0 | K48: =RÉSUMÉ!J17 -> 0 | L48: =RÉSUMÉ!K17 -> 0 | Q48: =RÉSUMÉ!Q17 -> 0 | R48: =RÉSUMÉ!R17 -> 0 | X48: =RÉSUMÉ!S17 -> 0 | Y48: =RÉSUMÉ!T17 -> 0 | AE48: =RÉSUMÉ!U17 -> 0 | AF48: =RÉSUMÉ!V17 -> 0 | AL48: =RÉSUMÉ!W17 -> 0 | AM48: =RÉSUMÉ!X17 -> 0 | AS48: =RÉSUMÉ!Y17 -> 0 | AT48: =RÉSUMÉ!Z17 -> 0 | AZ48: =RÉSUMÉ!AA17 -> 0 | BA48: =RÉSUMÉ!AB17 -> 0 | BG48: =RÉSUMÉ!AC17 -> 0 | BH48: =RÉSUMÉ!AD17 -> 0 | BN48: =RÉSUMÉ!AE17 -> 0 | BO48: =RÉSUMÉ!AF17 -> 0 | BU48: =RÉSUMÉ!AG17 -> 0 | BV48: =RÉSUMÉ!AH17 -> 0 | CB48: =RÉSUMÉ!AI17 -> 0 | CC48: =RÉSUMÉ!AJ17 -> 0 | CI48: =RÉSUMÉ!AK17 -> 0 | CJ48: =RÉSUMÉ!AL17 -> 0 | CP48: =RÉSUMÉ!AM17 -> 3951.9 | CQ48: =IF(RÉSUMÉ!AN17=FALSE,"",RÉSUMÉ!AN17) ->  | CR48: =IF(RÉSUMÉ!AO17=FALSE,"",RÉSUMÉ!AO17) ->  | CS48: =IF(RÉSUMÉ!AP17=FALSE,"",RÉSUMÉ!AP17) ->  | CT48: =IF(RÉSUMÉ!AQ17=FALSE,"",RÉSUMÉ!AQ17) ->  | CU48: =IF(RÉSUMÉ!AR17=FALSE,"",RÉSUMÉ!AR17) ->  | DE48: =RÉSUMÉ!L17 -> 0 | DF48: =RÉSUMÉ!M17 -> 0 | DG48: =RÉSUMÉ!N17 -> 0 | DH48: =RÉSUMÉ!O17 -> 0 | DI48: =RÉSUMÉ!P17 -> 0
B49: =RÉSUMÉ!A18 -> 2017-2018 | C49: =RÉSUMÉ!B18 -> 0 | D49: =RÉSUMÉ!C18 -> 0 | E49: =RÉSUMÉ!D18 -> 0 | F49: =RÉSUMÉ!E18 -> 0 | G49: =RÉSUMÉ!F18 -> 0 | H49: =RÉSUMÉ!G18 -> 0 | I49: =RÉSUMÉ!H18 -> 0 | J49: =RÉSUMÉ!I18 -> 0 | K49: =RÉSUMÉ!J18 -> 0 | L49: =RÉSUMÉ!K18 -> 0 | Q49: =RÉSUMÉ!Q18 -> 0 | R49: =RÉSUMÉ!R18 -> 0 | X49: =RÉSUMÉ!S18 -> 0 | Y49: =RÉSUMÉ!T18 -> 0 | AE49: =RÉSUMÉ!U18 -> 0 | AF49: =RÉSUMÉ!V18 -> 0 | AL49: =RÉSUMÉ!W18 -> 0 | AM49: =RÉSUMÉ!X18 -> 0 | AS49: =RÉSUMÉ!Y18 -> 0 | AT49: =RÉSUMÉ!Z18 -> 0 | AZ49: =RÉSUMÉ!AA18 -> 0 | BA49: =RÉSUMÉ!AB18 -> 0 | BG49: =RÉSUMÉ!AC18 -> 0 | BH49: =RÉSUMÉ!AD18 -> 0 | BN49: =RÉSUMÉ!AE18 -> 0 | BO49: =RÉSUMÉ!AF18 -> 0 | BU49: =RÉSUMÉ!AG18 -> 0 | BV49: =RÉSUMÉ!AH18 -> 0 | CB49: =RÉSUMÉ!AI18 -> 0 | CC49: =RÉSUMÉ!AJ18 -> 0 | CI49: =RÉSUMÉ!AK18 -> 0 | CJ49: =RÉSUMÉ!AL18 -> 0 | CP49: =RÉSUMÉ!AM18 -> 3949.4 | CQ49: =IF(RÉSUMÉ!AN18=FALSE,"",RÉSUMÉ!AN18) ->  | CR49: =IF(RÉSUMÉ!AO18=FALSE,"",RÉSUMÉ!AO18) ->  | CS49: =IF(RÉSUMÉ!AP18=FALSE,"",RÉSUMÉ!AP18) ->  | CT49: =IF(RÉSUMÉ!AQ18=FALSE,"",RÉSUMÉ!AQ18) ->  | CU49: =IF(RÉSUMÉ!AR18=FALSE,"",RÉSUMÉ!AR18) ->  | DE49: =RÉSUMÉ!L18 -> 0 | DF49: =RÉSUMÉ!M18 -> 0 | DG49: =RÉSUMÉ!N18 -> 0 | DH49: =RÉSUMÉ!O18 -> 0 | DI49: =RÉSUMÉ!P18 -> 0
B50: =RÉSUMÉ!A19 -> 2018-2019 | C50: =RÉSUMÉ!B19 -> 0 | D50: =RÉSUMÉ!C19 -> 0 | E50: =RÉSUMÉ!D19 -> 0 | F50: =RÉSUMÉ!E19 -> 0 | G50: =RÉSUMÉ!F19 -> 0 | H50: =RÉSUMÉ!G19 -> 0 | I50: =RÉSUMÉ!H19 -> 0 | J50: =RÉSUMÉ!I19 -> 0 | K50: =RÉSUMÉ!J19 -> 0 | L50: =RÉSUMÉ!K19 -> 0 | Q50: =RÉSUMÉ!Q19 -> 0 | R50: =RÉSUMÉ!R19 -> 0 | X50: =RÉSUMÉ!S19 -> 0 | Y50: =RÉSUMÉ!T19 -> 0 | AE50: =RÉSUMÉ!U19 -> 0 | AF50: =RÉSUMÉ!V19 -> 0 | AL50: =RÉSUMÉ!W19 -> 0 | AM50: =RÉSUMÉ!X19 -> 0 | AS50: =RÉSUMÉ!Y19 -> 0 | AT50: =RÉSUMÉ!Z19 -> 0 | AZ50: =RÉSUMÉ!AA19 -> 0 | BA50: =RÉSUMÉ!AB19 -> 0 | BG50: =RÉSUMÉ!AC19 -> 0 | BH50: =RÉSUMÉ!AD19 -> 0 | BN50: =RÉSUMÉ!AE19 -> 0 | BO50: =RÉSUMÉ!AF19 -> 0 | BU50: =RÉSUMÉ!AG19 -> 0 | BV50: =RÉSUMÉ!AH19 -> 0 | CB50: =RÉSUMÉ!AI19 -> 0 | CC50: =RÉSUMÉ!AJ19 -> 0 | CI50: =RÉSUMÉ!AK19 -> 0 | CJ50: =RÉSUMÉ!AL19 -> 0 | CP50: =RÉSUMÉ!AM19 -> 4347.2 | CQ50: =IF(RÉSUMÉ!AN19=FALSE,"",RÉSUMÉ!AN19) ->  | CR50: =IF(RÉSUMÉ!AO19=FALSE,"",RÉSUMÉ!AO19) ->  | CS50: =IF(RÉSUMÉ!AP19=FALSE,"",RÉSUMÉ!AP19) ->  | CT50: =IF(RÉSUMÉ!AQ19=FALSE,"",RÉSUMÉ!AQ19) ->  | CU50: =IF(RÉSUMÉ!AR19=FALSE,"",RÉSUMÉ!AR19) ->  | DE50: =RÉSUMÉ!L19 -> 0 | DF50: =RÉSUMÉ!M19 -> 0 | DG50: =RÉSUMÉ!N19 -> 0 | DH50: =RÉSUMÉ!O19 -> 0 | DI50: =RÉSUMÉ!P19 -> 0
B51: =RÉSUMÉ!A20 -> 2019-2020 | C51: =RÉSUMÉ!B20 -> 0 | D51: =RÉSUMÉ!C20 -> 0 | E51: =RÉSUMÉ!D20 -> 0 | F51: =RÉSUMÉ!E20 -> 0 | G51: =RÉSUMÉ!F20 -> 0 | H51: =RÉSUMÉ!G20 -> 0 | I51: =RÉSUMÉ!H20 -> 0 | J51: =RÉSUMÉ!I20 -> 0 | K51: =RÉSUMÉ!J20 -> 0 | L51: =RÉSUMÉ!K20 -> 0 | Q51: =RÉSUMÉ!Q20 -> 0 | R51: =RÉSUMÉ!R20 -> 0 | X51: =RÉSUMÉ!S20 -> 0 | Y51: =RÉSUMÉ!T20 -> 0 | AE51: =RÉSUMÉ!U20 -> 0 | AF51: =RÉSUMÉ!V20 -> 0 | AL51: =RÉSUMÉ!W20 -> 0 | AM51: =RÉSUMÉ!X20 -> 0 | AS51: =RÉSUMÉ!Y20 -> 0 | AT51: =RÉSUMÉ!Z20 -> 0 | AZ51: =RÉSUMÉ!AA20 -> 0 | BA51: =RÉSUMÉ!AB20 -> 0 | BG51: =RÉSUMÉ!AC20 -> 0 | BH51: =RÉSUMÉ!AD20 -> 0 | BN51: =RÉSUMÉ!AE20 -> 0 | BO51: =RÉSUMÉ!AF20 -> 0 | BU51: =RÉSUMÉ!AG20 -> 0 | BV51: =RÉSUMÉ!AH20 -> 0 | CB51: =RÉSUMÉ!AI20 -> 0 | CC51: =RÉSUMÉ!AJ20 -> 0 | CI51: =RÉSUMÉ!AK20 -> 0 | CJ51: =RÉSUMÉ!AL20 -> 0 | CP51: =RÉSUMÉ!AM20 -> 4105.7 | CQ51: =IF(RÉSUMÉ!AN20=FALSE,"",RÉSUMÉ!AN20) ->  | CR51: =IF(RÉSUMÉ!AO20=FALSE,"",RÉSUMÉ!AO20) ->  | CS51: =IF(RÉSUMÉ!AP20=FALSE,"",RÉSUMÉ!AP20) ->  | CT51: =IF(RÉSUMÉ!AQ20=FALSE,"",RÉSUMÉ!AQ20) ->  | CU51: =IF(RÉSUMÉ!AR20=FALSE,"",RÉSUMÉ!AR20) ->  | DE51: =RÉSUMÉ!L20 -> 0 | DF51: =RÉSUMÉ!M20 -> 0 | DG51: =RÉSUMÉ!N20 -> 0 | DH51: =RÉSUMÉ!O20 -> 0 | DI51: =RÉSUMÉ!P20 -> 0
B52: =RÉSUMÉ!A21 -> 2020-2021 | C52: =RÉSUMÉ!B21 -> 0 | D52: =RÉSUMÉ!C21 -> 0 | E52: =RÉSUMÉ!D21 -> 0 | F52: =RÉSUMÉ!E21 -> 0 | G52: =RÉSUMÉ!F21 -> 0 | H52: =RÉSUMÉ!G21 -> 0 | I52: =RÉSUMÉ!H21 ->  | J52: =RÉSUMÉ!I21 -> 0 | K52: =RÉSUMÉ!J21 -> 0 | L52: =RÉSUMÉ!K21 -> 0 | Q52: =RÉSUMÉ!Q21 -> 0 | R52: =RÉSUMÉ!R21 -> 0 | X52: =RÉSUMÉ!S21 -> 0 | Y52: =RÉSUMÉ!T21 -> 0 | AE52: =RÉSUMÉ!U21 -> 0 | AF52: =RÉSUMÉ!V21 -> 0 | AL52: =RÉSUMÉ!W21 -> 0 | AM52: =RÉSUMÉ!X21 -> 0 | AS52: =RÉSUMÉ!Y21 -> 0 | AT52: =RÉSUMÉ!Z21 -> 0 | AZ52: =RÉSUMÉ!AA21 -> 0 | BA52: =RÉSUMÉ!AB21 -> 0 | BG52: =RÉSUMÉ!AC21 -> 0 | BH52: =RÉSUMÉ!AD21 -> 0 | BN52: =RÉSUMÉ!AE21 -> 0 | BO52: =RÉSUMÉ!AF21 -> 0 | BU52: =RÉSUMÉ!AG21 -> 0 | BV52: =RÉSUMÉ!AH21 -> 0 | CB52: =RÉSUMÉ!AI21 -> 0 | CC52: =RÉSUMÉ!AJ21 -> 0 | CI52: =RÉSUMÉ!AK21 -> 0 | CJ52: =RÉSUMÉ!AL21 -> 0 | CP52: =RÉSUMÉ!AM21 -> 998.4 | CQ52: =IF(RÉSUMÉ!AN21=FALSE,"",RÉSUMÉ!AN21) ->  | CR52: =IF(RÉSUMÉ!AO21=FALSE,"",RÉSUMÉ!AO21) ->  | CS52: =IF(RÉSUMÉ!AP21=FALSE,"",RÉSUMÉ!AP21) ->  | CT52: =IF(RÉSUMÉ!AQ21=FALSE,"",RÉSUMÉ!AQ21) ->  | CU52: =IF(RÉSUMÉ!AR21=FALSE,"",RÉSUMÉ!AR21) ->  | DE52: =RÉSUMÉ!L21 -> 0 | DF52: =RÉSUMÉ!M21 -> 0 | DG52: =RÉSUMÉ!N21 ->  | DH52: =RÉSUMÉ!O21 -> 0 | DI52: =RÉSUMÉ!P21 -> 0
B53: =RÉSUMÉ!A22 -> 2021-2022 | C53: =RÉSUMÉ!B22 -> 0 | D53: =RÉSUMÉ!C22 -> 0 | E53: =RÉSUMÉ!D22 -> 0 | F53: =RÉSUMÉ!E22 -> 0 | G53: =RÉSUMÉ!F22 -> 0 | H53: =RÉSUMÉ!G22 -> 0 | I53: =RÉSUMÉ!H22 ->  | J53: =RÉSUMÉ!I22 -> 0 | K53: =RÉSUMÉ!J22 -> 0 | L53: =RÉSUMÉ!K22 -> 0 | Q53: =RÉSUMÉ!Q22 -> 0 | R53: =RÉSUMÉ!R22 -> 0 | X53: =RÉSUMÉ!S22 -> 0 | Y53: =RÉSUMÉ!T22 -> 0 | AE53: =RÉSUMÉ!U22 -> 0 | AF53: =RÉSUMÉ!V22 -> 0 | AL53: =RÉSUMÉ!W22 -> 0 | AM53: =RÉSUMÉ!X22 -> 0 | AS53: =RÉSUMÉ!Y22 -> 0 | AT53: =RÉSUMÉ!Z22 -> 0 | AZ53: =RÉSUMÉ!AA22 -> 0 | BA53: =RÉSUMÉ!AB22 -> 0 | BG53: =RÉSUMÉ!AC22 -> 0 | BH53: =RÉSUMÉ!AD22 -> 0 | BN53: =RÉSUMÉ!AE22 -> 0 | BO53: =RÉSUMÉ!AF22 -> 0 | BU53: =RÉSUMÉ!AG22 -> 0 | BV53: =RÉSUMÉ!AH22 -> 0 | CB53: =RÉSUMÉ!AI22 -> 0 | CC53: =RÉSUMÉ!AJ22 -> 0 | CI53: =RÉSUMÉ!AK22 -> 0 | CJ53: =RÉSUMÉ!AL22 -> 0 | CP53: =RÉSUMÉ!AM22 -> 998.4 | CQ53: =IF(RÉSUMÉ!AN22=FALSE,"",RÉSUMÉ!AN22) ->  | CR53: =IF(RÉSUMÉ!AO22=FALSE,"",RÉSUMÉ!AO22) ->  | CS53: =IF(RÉSUMÉ!AP22=FALSE,"",RÉSUMÉ!AP22) ->  | CT53: =IF(RÉSUMÉ!AQ22=FALSE,"",RÉSUMÉ!AQ22) ->  | CU53: =IF(RÉSUMÉ!AR22=FALSE,"",RÉSUMÉ!AR22) ->  | DE53: =RÉSUMÉ!L22 -> 0 | DF53: =RÉSUMÉ!M22 -> 0 | DG53: =RÉSUMÉ!N22 ->  | DH53: =RÉSUMÉ!O22 -> 0 | DI53: =RÉSUMÉ!P22 -> 0
B54: =RÉSUMÉ!A23 -> 2022-2023 | C54: =RÉSUMÉ!B23 -> 0 | D54: =RÉSUMÉ!C23 -> 0 | E54: =RÉSUMÉ!D23 -> 0 | F54: =RÉSUMÉ!E23 -> 0 | G54: =RÉSUMÉ!F23 -> 0 | H54: =RÉSUMÉ!G23 -> 0 | I54: =RÉSUMÉ!H23 ->  | J54: =RÉSUMÉ!I23 -> 0 | K54: =RÉSUMÉ!J23 -> 0 | L54: =RÉSUMÉ!K23 -> 0 | Q54: =RÉSUMÉ!Q23 -> 0 | R54: =RÉSUMÉ!R23 -> 0 | X54: =RÉSUMÉ!S23 -> 0 | Y54: =RÉSUMÉ!T23 -> 0 | AE54: =RÉSUMÉ!U23 -> 0 | AF54: =RÉSUMÉ!V23 -> 0 | AL54: =RÉSUMÉ!W23 -> 0 | AM54: =RÉSUMÉ!X23 -> 0 | AS54: =RÉSUMÉ!Y23 -> 0 | AT54: =RÉSUMÉ!Z23 -> 0 | AZ54: =RÉSUMÉ!AA23 -> 0 | BA54: =RÉSUMÉ!AB23 -> 0 | BG54: =RÉSUMÉ!AC23 -> 0 | BH54: =RÉSUMÉ!AD23 -> 0 | BN54: =RÉSUMÉ!AE23 -> 0 | BO54: =RÉSUMÉ!AF23 -> 0 | BU54: =RÉSUMÉ!AG23 -> 0 | BV54: =RÉSUMÉ!AH23 -> 0 | CB54: =RÉSUMÉ!AI23 -> 0 | CC54: =RÉSUMÉ!AJ23 -> 0 | CI54: =RÉSUMÉ!AK23 -> 0 | CJ54: =RÉSUMÉ!AL23 -> 0 | CP54: =RÉSUMÉ!AM23 -> 998.4 | CQ54: =IF(RÉSUMÉ!AN23=FALSE,"",RÉSUMÉ!AN23) ->  | CR54: =IF(RÉSUMÉ!AO23=FALSE,"",RÉSUMÉ!AO23) ->  | CS54: =IF(RÉSUMÉ!AP23=FALSE,"",RÉSUMÉ!AP23) ->  | CT54: =IF(RÉSUMÉ!AQ23=FALSE,"",RÉSUMÉ!AQ23) ->  | CU54: =IF(RÉSUMÉ!AR23=FALSE,"",RÉSUMÉ!AR23) ->  | DE54: =RÉSUMÉ!L23 -> 0 | DF54: =RÉSUMÉ!M23 -> 0 | DG54: =RÉSUMÉ!N23 ->  | DH54: =RÉSUMÉ!O23 -> 0 | DI54: =RÉSUMÉ!P23 -> 0
B55: =RÉSUMÉ!A24 -> 2023-2024 | C55: =RÉSUMÉ!B24 -> 0 | D55: =RÉSUMÉ!C24 -> 0 | E55: =RÉSUMÉ!D24 -> 0 | F55: =RÉSUMÉ!E24 -> 0 | G55: =RÉSUMÉ!F24 -> 0 | H55: =RÉSUMÉ!G24 -> 0 | I55: =RÉSUMÉ!H24 ->  | J55: =RÉSUMÉ!I24 -> 0 | K55: =RÉSUMÉ!J24 -> 0 | L55: =RÉSUMÉ!K24 -> 0 | Q55: =RÉSUMÉ!Q24 -> 0 | R55: =RÉSUMÉ!R24 -> 0 | X55: =RÉSUMÉ!S24 -> 0 | Y55: =RÉSUMÉ!T24 -> 0 | AE55: =RÉSUMÉ!U24 -> 0 | AF55: =RÉSUMÉ!V24 -> 0 | AL55: =RÉSUMÉ!W24 -> 0 | AM55: =RÉSUMÉ!X24 -> 0 | AS55: =RÉSUMÉ!Y24 -> 0 | AT55: =RÉSUMÉ!Z24 -> 0 | AZ55: =RÉSUMÉ!AA24 -> 0 | BA55: =RÉSUMÉ!AB24 -> 0 | BG55: =RÉSUMÉ!AC24 -> 0 | BH55: =RÉSUMÉ!AD24 -> 0 | BN55: =RÉSUMÉ!AE24 -> 0 | BO55: =RÉSUMÉ!AF24 -> 0 | BU55: =RÉSUMÉ!AG24 -> 0 | BV55: =RÉSUMÉ!AH24 -> 0 | CB55: =RÉSUMÉ!AI24 -> 0 | CC55: =RÉSUMÉ!AJ24 -> 0 | CI55: =RÉSUMÉ!AK24 -> 0 | CJ55: =RÉSUMÉ!AL24 -> 0 | CP55: =RÉSUMÉ!AM24 -> 998.4 | CQ55: =IF(RÉSUMÉ!AN24=FALSE,"",RÉSUMÉ!AN24) ->  | CR55: =IF(RÉSUMÉ!AO24=FALSE,"",RÉSUMÉ!AO24) ->  | CS55: =IF(RÉSUMÉ!AP24=FALSE,"",RÉSUMÉ!AP24) ->  | CT55: =IF(RÉSUMÉ!AQ24=FALSE,"",RÉSUMÉ!AQ24) ->  | CU55: =IF(RÉSUMÉ!AR24=FALSE,"",RÉSUMÉ!AR24) ->  | DE55: =RÉSUMÉ!L24 -> 0 | DF55: =RÉSUMÉ!M24 -> 0 | DG55: =RÉSUMÉ!N24 ->  | DH55: =RÉSUMÉ!O24 -> 0 | DI55: =RÉSUMÉ!P24 -> 0
B56: =RÉSUMÉ!A25 -> 2024-2025 | C56: =RÉSUMÉ!B25 -> 0 | D56: =RÉSUMÉ!C25 -> 0 | E56: =RÉSUMÉ!D25 -> 0 | F56: =RÉSUMÉ!E25 -> 0 | G56: =RÉSUMÉ!F25 -> 0 | H56: =RÉSUMÉ!G25 -> 0 | I56: =RÉSUMÉ!H25 ->  | J56: =RÉSUMÉ!I25 -> 0 | K56: =RÉSUMÉ!J25 -> 0 | L56: =RÉSUMÉ!K25 -> 0 | Q56: =RÉSUMÉ!Q25 -> 0 | R56: =RÉSUMÉ!R25 -> 0 | X56: =RÉSUMÉ!S25 -> 0 | Y56: =RÉSUMÉ!T25 -> 0 | AE56: =RÉSUMÉ!U25 -> 0 | AF56: =RÉSUMÉ!V25 -> 0 | AL56: =RÉSUMÉ!W25 -> 0 | AM56: =RÉSUMÉ!X25 -> 0 | AS56: =RÉSUMÉ!Y25 -> 0 | AT56: =RÉSUMÉ!Z25 -> 0 | AZ56: =RÉSUMÉ!AA25 -> 0 | BA56: =RÉSUMÉ!AB25 -> 0 | BG56: =RÉSUMÉ!AC25 -> 0 | BH56: =RÉSUMÉ!AD25 -> 0 | BN56: =RÉSUMÉ!AE25 -> 0 | BO56: =RÉSUMÉ!AF25 -> 0 | BU56: =RÉSUMÉ!AG25 -> 0 | BV56: =RÉSUMÉ!AH25 -> 0 | CB56: =RÉSUMÉ!AI25 -> 0 | CC56: =RÉSUMÉ!AJ25 -> 0 | CI56: =RÉSUMÉ!AK25 -> 0 | CJ56: =RÉSUMÉ!AL25 -> 0 | CP56: =RÉSUMÉ!AM25 -> 998.4 | CQ56: =IF(RÉSUMÉ!AN25=FALSE,"",RÉSUMÉ!AN25) ->  | CR56: =IF(RÉSUMÉ!AO25=FALSE,"",RÉSUMÉ!AO25) ->  | CS56: =IF(RÉSUMÉ!AP25=FALSE,"",RÉSUMÉ!AP25) ->  | CT56: =IF(RÉSUMÉ!AQ25=FALSE,"",RÉSUMÉ!AQ25) ->  | CU56: =IF(RÉSUMÉ!AR25=FALSE,"",RÉSUMÉ!AR25) ->  | DE56: =RÉSUMÉ!L25 -> 0 | DF56: =RÉSUMÉ!M25 -> 0 | DG56: =RÉSUMÉ!N25 ->  | DH56: =RÉSUMÉ!O25 -> 0 | DI56: =RÉSUMÉ!P25 -> 0
